Workbook

Sheet Inicio

Sheet Regiones
Q1: 05002 | R1: JOHN | S1: JAIRO | T1: MANRIQUE | U1: HERNÁNDEZ | AB1: 05002 | AC1: LINA | AD1: MARCELA | AE1: GONZALEZ | AF1: CASAS
Q2: 05004 | R2: LUIS | S2: ALFONSO | T2: SALAS | U2: CARDONA | AB2: 05004 | AC2: DUVER | AD2: MARY | AE2: VELASQUEZ | AF2: PULGARIN
Q3: 05021 | R3: UBER | S3: ARBEY | T3: AGUILAR | U3: CARMONA | AB3: 05021 | AC3: GLORIA | AD3: CECILIA | AE3: NARANJO | AF3: OSORIO
Q4: 05030 | R4: JUAN | S4: CARLOS | T4: AMAYA | U4: CANO | AB4: 05030 | AC4: DAVID | AD4: ALEJANDRO | AE4: QUIROS | AF4: VELASQUEZ
Q5: 05031 | R5: OSCAR | S5: MARIO | T5: GARCÍA | U5: RENDÓN | AB5: 05031 | AC5: JESSICA | AD5: ALEJANDRA | AE5: ZAPATA | AF5: RESTREPO
Q6: 05034 | R6: ELKIN | S6: DARÍO | T6: JARAMILLO | U6: JARAMILLO | AB6: 05034 | AC6: ANA | AD6: CAROLINA | AE6: OSPINA | AF6: OLAYA
Q7: 05036 | R7: JAIME | S7: ALBERTO | T7: GÓMEZ | U7: GÓMEZ | AB7: 05036 | AC7: LEIDY | AD7: TATIANA | AE7: MONTOYA | AF7: TAMAYO
Q8: 05038 | R8: JOSE | S8: MIGUEL | T8: VÁSQUEZ | U8: ARANGO | AB8: 05038 | AC8: GLORIA | AE8: ESTELLA | AF8: ACEVEDO
Q9: 05040 | R9: GILDARDO | S9: ALONSO | T9: ROLDÁN | U9: FORONDA | AB9: 05040 | AC9: CLAUDIA | AD9: PATRICIA | AE9: VELEZ | AF9: BARRERA
Q10: 05044 | R10: LUIS | S10: GONZAGA | T10: MARTÍNEZ | U10: SIERRA | AB10: 05044 | AC10: YODILMA | AD10: AMPARO | AE10: MOLINA | AF10: ATEHORTUA
Q11: 05045 | R11: LUIS | S11: GONZALO | T11: GIRALDO | U11: AGUIRRE | AB11: 05045 | AC11: JOSÉ | AD11: ALONSO | AE11: ALVAREZ | AF11: QUINTANA
Q12: 05051 | R12: DIANA | S12: STELLA | T12: GARRIDO | U12: HENAO | AB12: 05051 | AC12: JAFETH | AE12: LONDOÑO | AF12: MONZON
Q13: 05055 | R13: FLOR | S13: DEY | T13: GRANADA | U13: VALENCIA | AB13: 05055 | AC13: PAOLA | AE13: MANCO
Q14: 05059 | R14: LUIS | S14: NORBEY | T14: ACEVEDO | U14: SÁNCHEZ | AB14: 05059 | AC14: WILMAN ANDRES | AD14: CARDENAS | AE14: SAN | AF14: MARTIN
Q15: 05079 | R15: HERNANDO | S15: ALONSO | T15: CATAÑO | U15: VÉLEZ | AB15: 05079 | AC15: CLAUDIA | AD15: PATRICIA | AE15: AVENDAÑO | AF15: MOLINA
Q16: 05088 | R16: CARLOS | T16: ALIRIO | U16: MUÑOZ | AB16: 05088 | AC16: CESAR | AD16: AUGUSTO | AE16: ARANGO | AF16: SERNA
Q17: 05086 | R17: EDISON | S17: DE JESÚS | T17: BUSTAMANTE | U17: RUIZ | AB17: 05086 | AC17: GLORIA | AD17: ZULEIMA | AE17: VELASQUEZ | AF17: ZAPATA
Q18: 05091 | R18: JUAN | S18: CARLOS | T18: MONTOYA | U18: ALZATE | AB18: 05091 | AC18: ALEJANDRA | AD18: MARIA | AE18: ARANGO | AF18: ALVAREZ
Q19: 05093 | R19: LEÓN | S19: DARÍO | T19: VÉLEZ | U19: YEPES | AB19: 05093 | AC19: YULIANA | AD19: ANDREA | AE19: LONDOÑO | AF19: VANEGAS
Q20: 05107 | R20: OMAR | S20: FERNANDO | T20: ARENAS | U20: CHAVARRÍA | AB20: 05120 | AC20: EDUARD | AD20: ANTONIO | AE20: MARIN | AF20: LONDOÑO
Q21: 05113 | R21: CARLOS | S21: MARIO | T21: VARELA | U21: RAMÍREZ | AB21: 05125 | AC21: LEIDY | AD21: JOHANNA | AE21: ZAPATA | AF21: ZAPATA
Q22: 05120 | R22: NURYS MARÍA | S22: ESCOBAR | T22: SUÁREZ | U22: € | AB22: 05107 | AC22: LUZ | AD22: MARINA | AE22: GONZALEZ | AF22: ZAPATA
Q23: 05125 | R23: JHON | S23: GERARDO | T23: CARO | U23: VARELA | AB23: 05113 | AC23: PAULO | AD23: ANDRES | AE23: BUSTAMANTE | AF23: VILLEGAS
Q24: 05129 | R24: MÓNICA | S24: MARÍA | T24: RAIGOZA | U24: MORALES | AB24: 05129 | AC24: EDIER | AD24: ALBERTO | AE24: CARO | AF24: ALVAREZ
Q25: 05134 | R25: HÉCTOR | S25: ALFONSO | T25: GÓMEZ | U25: TRUJILLO | AB25: 05134 | AC25: FERNANDO | AD25: DE JESUS | AE25: VERGARA | AF25: VELEZ
Q26: 05138 | R26: AICARDO | S26: ANTONIO | T26: URREGO | U26: ÚSUGA | AB26: 05138 | AC26: ROSA | AD26: MARIA | AE26: RUDA | AF26: VERGARA
Q27: 05142 | R27: CARLOS | S27: ALBERTO | T27: MUÑOZ | U27: GUTIÉRREZ | AB27: 05142 | AC27: JOSE | AD27: GILBERTO | AE27: OCAMPO | AF27: ZAPATA
Q28: 05145 | R28: JULIÁN | S28: ANDRÉS | T28: GRANADA | U28: RESTREPO | AB28: 05145 | AC28: DIEGO | AD28: ALEJANDRO | AE28: JIMENEZ | AF28: DELGADO
Q29: 05147 | R29: AGAPITO | T29: MURILLO | U29: PALACIOS | AB29: 05147 | AC29: RUTH | AD29: MARGELY | AE29: AGUDELO | AF29: CASTAÑO
Q30: 05150 | R30: JUAN | S30: JOSÉ | T30: VÁSQUEZ | U30: CÁRDENAS | AB30: 05150 | AC30: IVAN | AD30: ALEXANDER | AE30: FAJARDO | AF30: PUERTA
Q31: 05154 | R31: JOSE | S31: NADÍN | T31: ARABIA | U31: ABISAAD | AB31: 05154 | AC31: NATALIA | AE31: ARBELAEZ | AF31: SOTO
Q32: 05172 | R32: EDGAR | T32: PAYARES | U32: BERRÍO | AB32: 05172 | AC32: PAOLA | AD32: ANDREA | AE32: JARAMILLO | AF32: VASQUEZ
Q33: 05190 | R33: NELLY | S33: DEL SOCORRO | T33: QINTERO | U33: PIEDRAHITA | AB33: 05190 | AC33: JOSE | AE33: GARCIA | AF33: NIEBLES
Q34: 05101 | R34: LUIS | S34: BERNARDO | T34: MORENO | U34: VARGAS | AB34: 05101 | AC34: MIGUEL | AD34: ANGEL | AE34: RENTERIA | AF34: HENAO
Q35: 05197 | R35: JORGE | S35: DE JESÚS | T35: VÁSQUEZ | U35: MONTOYA | AB35: 05197 | AC35: LUIS | AD35: GUILLERMO | AE35: ALVAREZ | AF35: GONZALEZ
Q36: 05206 | R36: GUSTAVO | S36: ALONSO | T36: LÓPEZ | U36: ORREGO | AB36: 05206 | AC36: SONIA | AD36: ISABEL | AE36: MEJÍA | AF36: TABARES
Q37: 05209 | R37: SERGIO | S37: DE JESÚS | T37: RESTREPO | U37: BETANCUR | AB37: 05209 | AC37: DIANA | AD37: PATRICIA | AE37: RIOS | AF37: VANEGAS
Q38: 05212 | R38: HÉCTOR | S38: AUGUSTO | T38: MONSALVE | U38: RESTREPO | AB38: 05212 | AC38: ALEXANDRA | AE38: HERRERA | AF38: QUIJANO
Q39: 05234 | R39: TORIBIO | T39: GIRÓN | U39: DAVID | AB39: 05234 | AC39: CARLOS | AD39: ARTURO | AE39: ZAPATA | AF39: ZAPATA
Q40: 05237 | R40: JAVIER | S40: DARÍO | T40: LÓPEZ | U40: RESTREPO | AB40: 05237 | AC40: MARTA | AD40: LUCIA | AE40: SEPULVEDA | AF40: GARCIA
Q41: 05240 | R41: MANUEL | S41: SALVADOR | T41: ZAPATA | U41: CUADROS | AB41: 05240 | AC41: LILIANA | AD41: DEL CARMEN | AE41: GOMEZ | AF41: RESTREPO
Q42: 05250 | R42: HAROLD | S42: ALONSO | T42: ECHEVERRI | U42: AVENDAÑO | AB42: 05411 | AC42: SERGIO | AD42: ANDRÉS | AE42: RESTREPO | AF42: ÚSUGA
Q43: 05148 | R43: NESTOR | S43: JOAQUÍN | T43: MARTÍNEZ | U43: JIMÉNEZ | AB43: 05250 | AC43: JULIANA | AD43: ANDREA | AE43: JULIO | AF43: AGUDELO
Q44: 05541 | R44: FREDY | S44: DE JESÚS | T44: OCAMPO | U44: GÓMEZ | AB44: 05148 | AC44: SAMIR | AD44: JOSE | AE44: ROMERO | AF44: MONTERROSA
Q45: 05607 | R45: ELKIN | S45: DARÍO | T45: VILLADA | U45: HENAO | AB45: 05541 | AC45: ANGEL | AD45: NORBEY | AE45: GARCIA | AF45: GIRALDO
Q46: 05697 | R46: JUAN | S46: LEONARDO | T46: ZULUAGA | U46: SALAZAR | AB46: 05607 | AC46: MARCELA | AE46: GIRALDO | AF46: BOTERO
Q47: 05264 | R47: ÓSCAR | S47: ALBERTO | T47: DE J. | U47: PÉREZ | AB47: 05697 | AC47: MARIA | AD47: AMPARO | AE47: CARVAJAL | AF47: GALLO
Q48: 05266 | R48: HÉCTOR | T48: LONDOÑO | U48: RESTREPO | AB48: 05264 | AC48: BEATRIZ | AD48: ELENA | AE48: LOPERA | AF48: VILLA
Q49: 05282 | R49: JORGE | S49: LUIS | T49: MESA | U49: SÁNCHEZ | AB49: 05266 | AC49: RICARDO | AD49: ANTONIO | AE49: CASTRILLON | AF49: QUINTERO
Q50: 05284 | R50: JORGE | S50: HUGO | T50: ELEJALDE | U50: LÓPEZ | AB50: 05282 | AC50: DANIEL | AD50: ALEJANDRO | AE50: MARIN | AF50: SERNA
Q51: 05306 | R51: JAIME | S51: LEÓN | T51: PÉREZ | U51: GUERRA | AB51: 05284 | AC51: ANA | AD51: PIEDAD | AE51: MORENO | AF51: GUISAO
Q52: 05308 | R52: LUIS | S52: FERNANDO | T52: ORTIZ | U52: SÁNCHEZ | AB52: 05306 | AC52: EDISON | AD52: ALONSO | AE52: USUGA | AF52: RUEDA
Q53: 05310 | R53: MARIO | S53: DE JESÚS | T53: RESTREPO | U53: PÉREZ | AB53: 05308 | AC53: DIDIER | AD53: ORLANDO | AE53: ALZATE | AF53: ARIAS
Q54: 05313 | R54: FREDDY | T54: CASTAÑO | U54: ARISTIZÁBAL | AB54: 05310 | AC54: LAURA | AD54: CATALINA | AE54: ROJO | AF54: BERMUDEZ
Q55: 05315 | R55: CESAR | S55: AUGUSTO | T55: AGUDELO | U55: METRIO | AB55: 05313 | AC55: DEISY | AD55: YOHANNA | AE55: GIRALDO | AF55: ZULUAGA
Q56: 05318 | R56: LUIS | S56: EDUARDO | T56: OCHOA | U56: LONDOÑO | AB56: 05315 | AC56: YOLANDA | AE56: CALLE | AF56: CHAVARRIA
Q57: 05321 | R57: MAURICIO | S57: ALEJANDRO | T57: HERNÁNDEZ | U57: JIMÉNEZ | AB57: 05318 | AC57: WILBER | AD57: ARDUAI | AE57: MEJIA | AF57: TORO
Q58: 05347 | R58: JOHN | S58: FREDY | T58: ORTIZ | U58: TABARES | AB58: 05321 | AC58: EDWIN | AE58: GUARIN | AF58: GARCIA
Q59: 05353 | R59: FRANKY | S59: HENRY | T59: GAVIRIA | U59: CASTAÑO | AB59: 05353 | AC59: CATALINA | AE59: BOLIVAR | AF59: LONDOÑO
Q60: 05360 | R60: CARLOS | S60: ANDRÉS | T60: TRUJILLO | U60: GONZÁLEZ | AB60: 05361 | AC60: CARLOS | AD60: MARIO | AE60: BEDOYA | AF60: ECHAVARRIA
Q61: 05361 | R61: JAIME | S61: ELÍAS | T61: MONTOYA | U61: LONDOÑO | AB61: 05364 | AC61: JUAN | AD61: CARLOS | AE61: GUZMAN | AF61: NOREÑA
Q62: 05364 | R62: ÁLVARO | S62: ANÍBAL | T62: CARVAJAL | U62: OCHOA | AB62: 05376 | AC62: MARIA | AD62: ILBED | AE62: SANTA | AF62: SANTA
Q63: 05368 | R63: DAVID | S63: ALONSO | T63: TORO | U63: CADAVID | AB63: 05400 | AC63: SANDRA | AD63: MILENA | AE63: GOMEZ | AF63: OSORIO
Q64: 05376 | R64: JOSE | S64: ALBERTO | T64: PATIÑO | U64: MARTÍNEZ | AB64: 05347 | AC64: MONICA | AD64: ALEXANDRA | AE64: VELASQUEZ | AF64: MONTOYA
Q65: 05380 | R65: JUAN | S65: DIEGO | T65: ECHAVARRIA | U65: SÁNCHEZ | AB65: 05360 | AC65: LUIS | AD65: GUILLERMO | AE65: PEREZ | AF65: SÁNCHEZ
Q66: 05390 | R66: RODRIGO | T66: GARCÍA | U66: LONDOÑO | AB66: 05368 | AC66: MARIA | AD66: ISABEL | AE66: GALLEGO | AF66: JARAMILLO
Q67: 05400 | R67: EDGAR | S67: ALEXANDER | T67: OSORIO | U67: LONDOÑO | AB67: 05380 | AC67: JAIME | AD67: ALBERTO | AE67: CARMONA | AF67: CANO
Q68: 05411 | R68: ADRIANA | S68: MARIA | T68: MAYA | U68: GALLEGO | AB68: 05390 | AC68: DIANA | AD68: MARIA | AE68: LOPEZ | AF68: PÉREZ
Q69: 05425 | R69: FRANCISCO | S69: EMIRO | T69: ÁLVAREZ | U69: HOLGUÍN | AB69: 05425 | AC69: CLARIBETH | AE69: CALDERON | AF69: GÓMEZ
Q70: 05440 | R70: JOSE | S70: GILDARDO | T70: HURTADO | U70: ALZATE | AB70: 05440 | AC70: LUZ | AD70: ADRIANA | AE70: BETANCUR | AF70: NANCLARES
Q71: 05001 | R71: ANÍBAL | T71: GAVIRIA | U71: CORREA | AB71: 05001 | AC71: GABRIEL | AD71: JAIME | AE71: GUARIN | AF71: ALZATE
Q72: 05467 | R72: OSCAR | S72: ERNESTO | T72: CUERVO | U72: VILLADA | AB72: 05467 | AC72: MARIA | AD72: CECILIA | AE72: BERMUDEZ | AF72: TOBÓN
Q73: 05475 | R73: EZEQUIEL | S73: DE JESÚS | T73: FERRO | U73: CUESTA | AB73: 05475 | AC73: JAIRO | AD73: ENRIQUE | AE73: RAMOS | AF73: SANCHEZ
Q74: 05480 | R74: JAIME | S74: DARÍO | T74: LÓPEZ | U74: DUQUE | AB74: 05480 | AC74: YARLEY | AE74: ARBOLEDA | AF74: ZAPATA
Q75: 05483 | R75: ABELARDO | S75: ANTONIO | T75: ARRAUT | U75: BUSTAMANTE | AB75: 05483 | AC75: LUZ | AD75: YICELA | AE75: CADAVID | AF75: ALVAREZ
Q76: 05495 | R76: EDUARDO | S76: ENRIQUE | T76: CABRERA | U76: URBIÑA | AB76: 05495 | AC76: CARMEN | AD76: MARIA | AE76: MARZOLA | AF76: BORJA
Q77: 05490 | R77: ADALBERTO | T77: BAENA | U77: OYOLA | AB77: 05490 | AC77: ROSA | AD77: MATILDE | AE77: HERNÁNDEZ | AF77: ALVAREZ
Q78: 05501 | R78: JUAN | S78: DE DIOS | T78: PINEDA | U78: BEDOYA | AB78: 05501 | AC78: AURA | AD78: CRISTINA | AE78: GOMEZ | AF78: HENAO
Q79: 05543 | R79: HUGO | S79: LEÓN | T79: GIRÓN | U79: GRACIANO | AB79: 05543 | AC79: FROY | AD79: FABER | AE79: HERNANDEZ | AF79: TUBERQUIA
Q80: 05576 | R80: FLAVIO | S80: ENRIQUE | T80: FAJARDO | U80: SIERRA | AB80: 05576 | AC80: PAULA | AE80: CARVAJAL | AF80: RAMIREZ
Q81: 05579 | R81: RÓBINSON | S81: ALBERTO | T81: BAENA | U81: ZULUAGA | AB81: 05579 | AC81: RAMIRO | AE81: ALEXANDER | AF81: CARMONA
Q82: 05585 | R82: JUAN | S82: DAVID | T82: LONDOÑO | U82: GARCÍA | AB82: 05585 | AC82: WALTER | AD82: HUMBERTO | AE82: QUIROZ | AF82: VARELA
Q83: 05591 | R83: SANTIAGO | T83: LÓPEZ | AB83: 05591 | AC83: JOHN | AD83: MARIO | AE83: BEDOYA | AF83: PUERTA
Q84: 05604 | R84: JORGE | T84: ELIÉCER | U84: GIL | AB84: 05604 | AC84: VICTORIA | AD84: ANDREA | AE84: VERGARA | AF84: VELÁSQUEZ
Q85: 05615 | R85: HERNÁN | S85: DE JESÚS | T85: OSPINA | U85: SEPÚLVEDA | AB85: 05615 | AC85: OSVALDO | AD85: ENRIQUE | AE85: OSORIO | AF85: OROZCO
Q86: 05628 | R86: CARLOS | S86: ARTURO | T86: HENAO | U86: LOPERA | AB86: 05628 | AC86: NANCY | AD86: AMPARO | AE86: AVENDAÑO | AF86: MORENO
Q87: 05631 | R87: LUZ | S87: ESTELA | T87: GIRALDO | U87: OSSA | AB87: 05631 | AC87: ELKIN | AD87: DARIO | AE87: DELVALLE | AF87: GARCÉS
Q88: 05642 | R88: OLGA | S88: EUGENIA | T88: OSORIO | U88: GARCÍA | AB88: 05642 | AC88: CARLOS | AD88: ANDRÉS | AE88: LONDOÑO | AF88: VELEZ
Q89: 05647 | R89: ÓSCAR | S89: DE JESÚS | T89: SEPÚLVEDA | U89: LONDOÑO | AB89: 05647 | AC89: MARIELA | AE89: CHAVARRIA | AF89: MAZO
Q90: 05649 | R90: MARA | S90: PATRICIA | T90: GIRALDO | U90: RAMÍREZ | AB90: 05649 | AC90: MARIA | AD90: N. | AE90: BURITICÁ | AF90: QUINCHIA
Q91: 05652 | R91: LUIS | S91: EMIGDIO | T91: ESCOBAR | U91: VILLEGAS | AB91: 05652 | AC91: JOHN | AD91: JAIRO | AE91: POSSO | AF91: ECHAVARRIA
Q92: 05656 | R92: LUIS | S92: ALBERTO | T92: PULGARÍN | U92: CANO | AB92: 05656 | AC92: SILVIA | AD92: ELENA | AE92: TORRES | AF92: RODRIGUEZ
Q93: 05658 | R93: EDISON | S93: MAURICIO | T93: CORREA | U93: RESTREPO | AB93: 05658 | AC93: NELLY | AD93: DEL CARMEN | AE93: AGUDELO | AF93: GONZÁLEZ
Q94: 05659 | R94: EMILIO | T94: BELTRÁN | U94: CUADRADO | AB94: 05659 | AC94: ALBA | AD94: CAROLINA | AE94: ZULUAGA | AF94: HOYOS
Q95: 05660 | R95: CARLOS | S95: MARIO | T95: GÓMEZ | U95: URREA | AB95: 05660 | AC95: GUSTAVO | AD95: ADOLFO | AE95: LÓPEZ | AF95: MUÑOZ
Q96: 05664 | R96: JADER | S96: ORLANDO | T96: GONZÁLEZ | U96: AGUDELO | AB96: 05664 | AC96: YOVANNY | AE96: VASQUEZ | AF96: RUIZ
Q97: 05665 | R97: NEDER | S97: LUIS | T97: DIAZ | U97: DIAZ | AB97: 05665 | AC97: GILMOR | AE97: MURILLO | AF97: MURILLO
Q98: 05667 | R98: ORLEY | S98: DE JESÚS | T98: SANTACRUZ | U98: VALENCIA | AB98: 05667 | AC98: RUBY | AE98: CARDONA | AF98: ZULUAGA
Q99: 05670 | R99: ÁLVARO | S99: ALONSO | T99: DUQUE | U99: MUÑOZ | AB99: 05670 | AC99: NIDIA | AD99: RUTH | AE99: GAVIRIA | AF99: GARZON
Q100: 05674 | R100: JOSÉ | S100: ANTONIO | T100: BEDOYA | U100: CEBALLOS | AB100: 05674 | AC100: NANCY | AD100: LILIBETH | AE100: ORREGO | AF100: AGUDELO
Q101: 05679 | R101: JORGE | S101: HERNÁN | T101: RAMÍREZ | U101: VALENCIA | AB101: 05679 | AC101: CARMEN | AE101: ADRIANA | AF101: HERNANDEZ
Q102: 05686 | R102: FRANCISCO | S102: JAIR | T102: PALACIO | U102: LOPERA | AB102: 05690 | AC102: LINA | AD102: ZORAIDA | AE102: MONSALVE | AF102: MONSALVE
Q103: 05042 | R103: FREY | S103: LEÓN | T103: RODRÍGUEZ | U103: VARGAS | AB103: 05736 | AC103: LINA | AD103: MARCELA | AE103: SALAZAR | AF103: LONDOÑO
Q104: 05690 | R104: FABIO | S104: IGNACIO | T104: MIRA | U104: VALENCIA | AB104: 05756 | AC104: HECTOR | AD104: IVAN | AE104: SÁNCHEZ | AF104: PAREJA
Q105: 05736 | R105: JOHNY | S105: ALEXIS | T105: CASTRILLÓN | U105: SALAZAR | AB105: 05686 | AC105: ANNY | AD105: CAROLINA | AE105: VÉLEZ | AF105: URREGO
Q106: 05756 | R106: DIOSELIO | S106: DE JESÚS | T106: BEDOYA | U106: LÓPEZ | AB106: 05042 | AC106: CARMENZA | AD106: ELENA | AE106: JARAMILLO | AF106: SÁNCHEZ
Q107: 05761 | R107: GERARDO | S107: DE JESÚS | T107: VANEGAS | U107: JARAMILLO | AB107: 05761 | AC107: MARIA | AD107: ISABEL | AE107: CHAVERRA | AF107: ARANGO
Q108: 05789 | R108: JUAN | S108: MARTÍN | T108: VÁSQUEZ | U108: HINCAPIÉ | AB108: 05789 | AC108: DIEGO | AD108: ALBERTO | AE108: MARTINEZ | AF108: BEDOYA
Q109: 05790 | R109: HÉCTOR | S109: LEONIDAS | T109: GIRALDO | U109: ARANGO | AB109: 05790 | AC109: MONICA | AD109: LUCIA | AE109: GOMEZ | AF109: VILLA
Q110: 05792 | R110: HUGO | S110: ALEXANDER | T110: OCAMPO | U110: RÍOS | AB110: 05792 | AC110: NELSON | AE110: GARCIA | AF110: USUGA
Q111: 05809 | R111: DIEGO | S111: ANTONIO | T111: MONTOYA | U111: TABORDA | AB111: 05809 | AC111: DAVID | AD111: ALEJANDRO | AE111: VANEGAS | AF111: PULGARIN
Q112: 05819 | R112: JUAN | S112: CARLOS | T112: MONTOYA | U112: OSORIO | AB112: 05819 | AC112: YOLANDA | AD112: MARIA | AE112: GOMEZ | AF112: GARCÍA
Q113: 05837 | R113: WILLIAM | T113: PALACIO | U113: VALENCIA | AB113: 05837 | AC113: ALIRIO | AE113: SANCHEZ | AF113: PORRAS
Q114: 05842 | R114: JESÚS | S114: MARÍA | T114: RÚA | U114: ARIAS | AB114: 05842 | AC114: VÍCTOR | AE114: VELÁSQUEZ | AF114: BOLÍVAR
Q115: 05847 | R115: LUIS | S115: EDUARDO | T115: MONTOYA | U115: URREGO | AB115: 05847 | AC115: KENIER | AE115: REYES | AF115: DURANGO
Q116: 05854 | R116: FRANCISCO | S116: JAVIER | T116: CÁRDENAS | U116: DIAZ | AB116: 05854 | AC116: LUIS | AD116: CARLOS | AE116: ARCILA | AF116: MONTOYA
Q117: 05856 | R117: MARTA | S117: CECILIA | T117: HERNÁNDEZ | U117: OROZCO | AB117: 05856 | AC117: ADRIANA | AE117: PATRICIA | AF117: OROZCO
Q118: 05858 | R118: FABER | S118: ARMANDO | T118: VIDAL | U118: ESCUDERO | AB118: 05858 | AC118: GUILLERMO | AE118: PÉREZ | AF118: CASTRO
Q119: 05861 | R119: JUAN | S119: GUILLERMO | T119: BOLÍVAR | U119: COLORADO | AB119: 05861 | AC119: JOHN | AD119: HENRY | AE119: MARIN | AF119: RODRIGUEZ
Q120: 05873 | R120: MIRIAM | S120: DEL CARMEN | T120: SERNA | U120: MARTÍNEZ | AB120: 05873 | AC120: HERMENEGILDO | AE120: VIERA | AF120: CHAVERRA
Q121: 05885 | R121: LUIS | S121: NORBERTO | T121: PIEDRAHITA | U121: LLANO | AB121: 05885 | AC121: ROBID | AD121: ASTRID | AE121: RENGIFO | AF121: CASTRO
Q122: 05887 | R122: RODRIGO | S122: ALBEIRO | T122: JARAMILLO | U122: VILLEGAS | AB122: 05887 | AC122: JAVIER | AD122: DE JESUS | AE122: ARAQUE | AF122: ACEVEDO
Q123: 05890 | R123: GUSTAVO | S123: ADOLFO | T123: LONDOÑO | U123: VÉLEZ | AB123: 05890 | AC123: CLAUDIA | AD123: ELENA | AE123: CORREA | AF123: BARRERA
Q124: 05893 | R124: WILFRIDO | T124: UZURIAGA | U124: APONZA | AB124: 05893 | AC124: MARTHA | AD124: LUZ | AE124: CAMPILLO | AF124: SARMIENTO
Q125: 05895 | AB125: 05895 | AC125: NELLY | AE125: PALACIOS | AF125: TAPIAS

Sheet Valle Aburra

Sheet BAJO CAUCA
M3: Regresar

Sheet MAGDALENA MEDIO
M3: Regresar

Sheet NORDESTE
M3: Regresar

Sheet NORTE
M3: Regresar

Sheet OCCIDENTE
M3: Regresar

Sheet ORIENTE
M3: Regresar

Sheet SUROESTE
M3: Regresar

Sheet URABA
M3: Regresar

Sheet MEDELLIN
C4: ALCALDE | E4: ANÍBAL GAVIRIA CORREA
C5: DIRECTOR LOCAL DE SALUD | E5: GABRIEL JAIME GUARIN ALZATE
C7: CERTIFICACION | E7: RANKING | F7: CATEGORIA MUNICIPAL
C8: SI | E8: 4 | F8: Especial
C9: TOTAL CORREGIMIENTOS | E9: 5 | F9: TOTAL VEREDAS | I9: 53
A10: CARACTERISTICAS DEMOGRAFICAS | N10: VIGILANCIA DE LA SALUD PUBLICA - AÑO 2014
A11: POBLACION 2015
A12: TOTAL | B12: HOMBRES | C12: MUJERES | D12: CABECERA | E12: RESTO | N12: MORTALIDAD CANCER CUELLO UTERINO | S12: MORTALIDAD MATERNA
A13: 2464322 | B13: 1159759 | C13: 1304563 | D13: 2434647 | E13: 29675 | N13: # Casos | O13: Tasa x cienmil Mujeres | S13: # Casos | T13: Tasa x cienmil Nacidos vivos
A14: POR GRUPOS DE EDAD | N14: 86 | O14: 6.655512235 | S14: 8 | T14: 28.23961312
A15: 0 - 4 AÑOS | B15: 5 - 9 AÑOS | C15: 10 - 14 AÑOS | D15: 15 - 19 AÑOS | E15: 20 - 59 AÑOS | F15: > 60 AÑOS
A16: 146105 | B16: 149608 | C16: 154984 | D16: 173536 | E16: 1460792 | F16: 379297 | N16: MORTALIDAD INFANTIL | S16: MORTALIDAD PERINATAL
N17: # Casos | O17: Tasa x cienmil Nacidos vivos | S17: # Casos | T17: Tasa x cienmil Nacidos vivos
A18: DESPLAZADOS 2015 (a marzo) | D18: INDIGENAS FEB 2014 | G18: ROM | I18: AFRO | N18: 208 | O18: 7.34229941 | S18: 510 | T18: 18.00275336
A19: TOTAL | B19: HOMBRES | C19: MUJERES | D19: TOTAL | E19: HOMBRES | F19: MUJERES
A20: 308776 | B20: 151300.24 | C20: 157475.76 | D20: 0 | E20: 0 | F20: 0 | N20: MORTALIDAD VIH SIDA | S20: MORTALIDAD TUBERCULOSIS
A21: POBLACION TOTAL | B21: Afiliados al regimen Subsidiado * | D21: % De Aseguramiento al Regimen Subsidiado * | F21: Afiliados al Regimen Contributivo BDUA * | H21: % De Aseguramiento al Regimen Contributivo * | N21: # Casos | O21: Tasa x cienmil Habitantes | S21: # Casos | T21: Tasa x cienmil Habitantes
N22: 131 | O22: 5.366382603 | S22: 87 | T22: 3.563933485
N24: MORTALIDAD INFARTO AL MIOCARDIO | S24: MORTALIDAD < 5 AÑOS
A25: 2464322 | B25: 615291 | D25: 24.58355686 | F25: 1775420 | H25: 72.04496815 | N25: # Casos | O25: Tasa x cienmil Habitantes | S25: # Casos | T25: Tasa x cienmil Niños
A26: NBI (pobre) 2012 | H26: * Agosto 2015 | N26: 1686 | O26: 69.06657305 | S26: 253 | T26: 173.0967905
A27: Total | C27: Cabecera | E27: Resto
A28: Prop (%) | B28: cve (%) | C28: Prop (%) | D28: cve (%) | E28: Prop (%) | F28: cve (%)
A29: 12.42408975 | B29: 2.65984954 | C29: 12.32679845 | D29: 2.705095706 | E29: 18.27817061 | F29: 13.47354923 | N29: REGISTRO POBLACIONAL DE CANCER 2012
N30: Numero de casos registrados | P30: HOMBRES | Q30: MUJERES | R30: TOTAL
A31: PRESTACION DE SERVICIOS DE SALUD ** | P31: 2245 | Q31: 2853 | R31: =SUM(P31:Q31) -> 5098
A32: EMPRESAS SOCIALES DEL ESTADO
A33: INSTITUCION PRESTADORA DE SERVICIOS DE SALUD | F33: DIRECTOR / GERENTE | N33: 10 PRIMERAS CAUSAS DE MORTALIDAD 2014
A34: EMPRESA SOCIAL DEL ESTADO METROSALUD | F34: MARTHA CECILIA CASTRILLON SUAREZ | N34: ORDEN | O34: CODIGO 105 CIE-10 | P34: CAUSA | T34: TOTAL GENERAL | U34: HOMBRES | V34: MUJERES | W34: SIN DATO
A35: ESE HOSPITAL CARISMA | F35: MAURICIO ANTONIO TORO ZAPATA
A36: ESE HOSPITAL LA MARIA | F36: WILLIAM MARULANDA TOBÓN | N36: 1 | O36: 051 | P36: ENFERMEDADES ISQUEMICAS DEL CORAZON | T36: 1871 | U36: 984 | V36: 887
A37: HOSPITAL GENERAL DE MEDELLIN - LUZ CASTRO DE GUTIERREZ | F37: LEOPOLDO ABDIEL GIRALDO VELASQUEZ | N37: 2 | O37: 060 | P37: ENFERMEDADES CRONICAS DE LAS VIAS RESPIRATORIAS INFERIORES | T37: 980 | U37: 422 | V37: 558
N38: 3 | O38: 055 | P38: ENFERMEDADES CEREBROVASCULARES | T38: 804 | U38: 321 | V38: 483
A39: PRESTADORES DE SERVICIOS DE SALUD | N39: 4 | O39: 101 | P39: AGRESIONES (HOMICIDIOS) Y SECUELAS | T39: 664 | U39: 611 | V39: 53
A40: TOTALES | B40: IPS | C40: PROFESIONALES INDEPENDIENTES | E40: TRANSPORTE ESPECIAL | G40: OBJETO SOCIAL DIFERENTE | N40: 5 | O40: 020 | P40: TUMOR MALIGNO DE LA TRAQUEA, LOS BRONQUIOS Y EL PULMON | T40: 563 | U40: 289 | V40: 274
N41: 6 | O41: 059 | P41: NEUMONIA | T41: 560 | U41: 255 | V41: 305
B42: 577 | C42: 3695 | E42: 12 | G42: 126 | N42: 7 | O42: 013 | P42: TUMOR MALIGNO DEL ESTOMAGO | T42: 336 | U42: 166 | V42: 170
A43: IPS PUBLICAS | B43: IPS PRIVADAS | C43: SERVICIOS PRESTADOS X PROFESION | N43: 8 | O43: 050 | P43: ENFERMEDADES HIPERTENSIVAS | T43: 325 | U43: 157 | V43: 168
C44: Odontólogos | D44: Médicos | E44: Otros | F44: Total | N44: 9 | O44: 041 | P44: DIABETES MELLITUS | T44: 307 | U44: 135 | V44: 172
N45: 10 | O45: 090 | P45: ACCIDENTES DE TRANSPORTE DE MOTOR Y SECUELAS | T45: 284 | U45: 220 | V45: 64
A46: 6 | B46: 697 | C46: 1158 | D46: 328 | E46: 3511 | F46: =C46+D46+E46 -> 4997
A48: CAPACIDAD INSTALADA | N48: PORCENTAJE DE EMBARAZOS POR GRUPO EDAD RESIDENCIA HABITUAL DE LA MADRE 2014 | S48: TASAS DE FECUNDIDAD ESPECIFICA POR MIL MUJERES 2014
A49: CAMAS
A50: Adultos | B50: Cuidado Agudo Mental | C50: Cuidado Intensivo Adulto | D50: Cuidado Intensivo Neonatal | E50: Cuidado Intensivo Pediátrico | F50: Cuidado Intermedio Adulto | G50: Cuidado Intermedio Mental | I50: Cuidado Intermedio Neonatal
N51: 10 a 14 AÑOS | P51: 15 a 19 AÑOS | S51: 10 a 14 AÑOS | U51: 15 a 19 AÑOS
N52: No | O52: % | P52: No | Q52: % | S52: No | T52: TASA | U52: No | V52: TASA
A53: 3266 | B53: 0 | C53: 309 | D53: 92 | E53: 49 | F53: 295 | G53: 60 | I53: 128 | N53: 278 | O53: 0.8610276582 | P53: 6382 | Q53: 19.76646948 | S53: 278 | T53: 3.614755484 | U53: 6382 | V53: 73.4779405
A54: CAMAS
A55: Cuidado Intermedio Pediátrico | B55: Farmaco- de-pendencia | C55: Obste-tricia | D55: Pediátricas | E55: Quemados Adultos | F55: Quemados Pediátrico | G55: Salud Mental Psiquiatría | I55: TOTAL CAMAS
A58: 45 | B58: 112 | C58: 401 | D58: 588 | E58: 17 | F58: 15 | G58: 110 | I58: =A53+B53+C53+D53+E53+F53+G53+I53+A58+B58+C58+D58+E58+F58+G58 -> 5487
A60: SALAS | E60: TOTAL SALAS | N60: INMUNIZACIONES PAI 2014
A61: PARTO | C61: QUIROFANO | N61: POLIOMIELITIS (V.O.P)
A62: 23 | C62: 278 | E62: =A62+C62 -> 301 | N62: Vacunados (Edades) | S62: Refuerzos | T62: Dosis Aplicadas
N63: <1 | O63: 1 | P63: 2 | Q63: 3 | R63: 4 | S63: Otros
A64: TOTAL DE SERVICIOS PRESTADOS SEGÚN LA COMPLEJIDAD | N64: 26157 | O64: 636 | P64: 210 | Q64: 118 | R64: 69 | S64: 50614 | T64: 134003
A65: BAJA | C65: MEDIA | E65: ALTA
A66: 4181 | C66: 3387 | E66: 439 | N66: DIFTERIA, TOSFERINA Y TÉTANO (D.P.T)
N67: Vacunados (Edades) | S67: Refuerzos | T67: Dosis
A68: TOTAL DE AMBULANCIAS HABILITADAS SEGÚN TIPO Y MODALIDAD | N68: <1 | O68: 1 | P68: 2 | Q68: 3 | R68: 4 | S68: Otros | T68: Aplicadas
A69: TIPO | C69: MODALIDAD | F69: TOTAL GENERAL | N69: 26180 | O69: 547 | P69: 212 | Q69: 123 | R69: 78 | S69: 51019 | T69: 134403
A70: BASICA | B70: MEDICADA | C70: AEREA | D70: TERRESTRE | E70: FLUVIAL | H70: ** Fuente: REPS-Minsalud julio 2015
A71: 90 | B71: 35 | C71: 0 | D71: 125 | E71: 0 | F71: =SUM(C71:E71) -> 125 | N71: TUBERCULOSIS (B.C.G)
A72: 10 PRIMERAS CAUSAS DE HOSPITALIZACION 2013 | N72: Vacunados (Edades) | S72: Otros | T72: Dosis Aplicadas
A73: ORDEN | B73: CODIGO CIE-10 | C73: CAUSA | F73: TOTAL GENERAL | G73: % | H73: HOMBRES | J73: MUJERES | N73: <1 | O73: 1
N74: 37339 | O74: 722 | S74: 39 | T74: 38100
A75: 1 | B75: R104 | C75: OTROS DOLORES ABDOMINALES Y LOS NO ESPECIFICADOS | F75: 5693 | G75: 3.135015474 | H75: 2032 | J75: 3661
A76: 2 | B76: N390 | C76: INFECCION DE VIAS URINARIAS SITIO NO ESPECIFICADO | F76: 5007 | G76: 2.757249689 | H76: 1625 | J76: 3382 | N76: TRIPLE VIRAL - S. R. P.
A77: 3 | B77: O800 | C77: PARTO UNICO ESPONTANEO PRESENTACION CEFALICA DE VERTICE | F77: 4048 | G77: 2.22914854 | H77: 0 | J77: 4048 | N77: Vacunados (Edades) | S77: Refuerzos | T77: Dosis Aplicadas
A78: 4 | B78: R509 | C78: FIEBRE NO ESPECIFICADA | F78: 3024 | G78: 1.665253257 | H78: 1478 | J78: 1546 | N78: 1 | O78: 2 | P78: 3 | Q78: 4 | R78: Ref. | S78: Otros
A79: 5 | B79: R688 | C79: OTROS SINTOMAS Y SIGNOS GENERALES ESPECIFICADOS | F79: 2980 | G79: 1.641023382 | H79: 1049 | J79: 1931 | N79: 26285 | O79: 373 | P79: 203 | Q79: 125 | R79: 26258 | S79: 5269 | T79: 58513
A80: 6 | B80: J189 | C80: NEUMONIA NO ESPECIFICADA | F80: 2668 | G80: 1.469211538 | H80: 1268 | J80: 1400
A81: 7 | B81: J441 | C81: ENFERMEDAD PULMONAR OBSTRUCTIVA CRONICA CON EXACERBACION AGUDA NO ESPECIFICADA | F81: 2263 | G81: 1.246186548 | H81: 1015 | J81: 1248 | N81: AGUA POTABLE 2013
A82: 8 | B82: N939 | C82: HEMORRAGIA VAGINAL Y UTERINA ANORMAL NO ESPECIFICADA | F82: 2037 | G82: 1.121733097 | H82: 0 | J82: 2037 | P82: NUMEROS ACUEDUCTOS | R82: COBERTURA ACUEDUCTOS CON AGUA POTABLE (%) | T82: COBERTURAS VIVIENDAS CON AGUA POTABLE (%)
A83: 9 | B83: O470 | C83: FALSO TRABAJO DE PARTO ANTES DE LA 37 SEMANAS COMPLETAS DE GESTACION | F83: 1955 | G83: 1.07657742 | H83: 0 | J83: 1955
A84: 10 | B84: J449 | C84: ENFERMEDAD PULMONAR OBSTRUCTIVA CRONICA NO ESPECIFICADA | F84: 1930 | G84: 1.062810445 | H84: 908 | J84: 1022
A85: 11 | C85: OTROS | F85: 149989 | G85: 82.59579061 | H85: 60398 | J85: 89591 | N85: Urbano | P85: 1 | R85: 100 | T85: 99.2
A86: TOTALES | F86: 181594 | G86: 100 | H86: 69773 | J86: 111821 | N86: Rural | P86: 20 | R86: 85 | T86: 80.7
A87: 10 PRIMERAS CAUSAS DE CONSULTA 2013 | N87: Total Municipal | P87: 21 | R87: 85.71428571 | T87: 98.2
A88: ORDEN | B88: CODIGO CIE-10 | C88: CAUSA | F88: TOTAL GENERAL | G88: % | H88: HOMBRES | J88: MUJERES | N88: CERTIFACION EN AGUA POTABLE | O88: INDICE RIESGO CALIDAD DEL AGUA POTABLE - IRCA- (a) | P88: INDICE RIESGO DE ABASTECIMIENTO MUNICIPAL - IRABA- (b) | R88: BUENAS PRACTICAS SANTIARIAS © | T88: CERTIFICAION SANITARIA MUNICIPAL EN AGUA POTABLE ©
A90: 1 | B90: I10X | C90: HIPERTENSION ESENCIAL (PRIMARIA) | F90: 759888 | G90: 8.662807957 | H90: 254509 | J90: 505379
A91: 2 | B91: K021 | C91: CARIES DE LA DENTINA | F91: 170525 | G91: 1.94400402 | H91: 73232 | J91: 97293
A92: 3 | B92: K051 | C92: GINGIVITIS CRONICA | F92: 154327 | G92: 1.759345013 | H92: 64868 | J92: 89459 | N92: Urbano | O92: 0 | P92: 15.3 | R92: 9.2 | T92: 5.82
A93: 4 | B93: M545 | C93: LUMBAGO NO ESPECIFICADO | F93: 136310 | G93: 1.553949204 | H93: 54416 | J93: 81894 | N93: Rural | O93: 3.6 | P93: 49.7 | R93: 1.2 | T93: 12.1
A94: 5 | B94: J00X | C94: RINOFARINGITIS AGUDA (RESFRIADO COMUN) | F94: 132382 | G94: 1.509169566 | H94: 55534 | J94: 76848 | N94: Total | O94: 0.6 | P94: 13 | R94: 9.1 | T94: 5.63
A95: 6 | B95: A09X | C95: DIARREA Y GASTROENTERITIS DE PRESUNTO ORIGEN INFECCIOSO | F95: 131058 | G95: 1.494075818 | H95: 58345 | J95: 72713 | N95: PROYECTOS DE INVERSION (En pesos)
A96: 7 | B96: N390 | C96: INFECCION DE VIAS URINARIAS SITIO NO ESPECIFICADO | F96: 127334 | G96: 1.451621803 | H96: 33753 | J96: 93581 | Q96: 2012 | S96: 2013 | U96: 2014
A97: 8 | B97: R104 | C97: OTROS DOLORES ABDOMINALES Y LOS NO ESPECIFICADOS | F97: 118887 | G97: 1.355325061 | H97: 37845 | J97: 81042 | N97: ADULTO MAYOR
A98: 9 | B98: R51X | C98: CEFALEA | F98: 106386 | G98: 1.212812266 | H98: 26410 | J98: 79975 | N98: DOTACION DISCAPACIDAD | U98: 2919752
A99: 10 | B99: E119 | C99: DIABETES MELLITUS NO INSULINODEPENDIENTE SIN MENCION DE COMPLICACION | F99: 101941 | G99: 1.16213877 | H99: 37951 | J99: 63990 | N99: APS - SALUD CONTIGO
A100: 11 | C100: OTROS | F100: 6832806 | G100: 77.89475052 | H100: 2503579 | J100: 4329225 | N100: COFINANCIACION REG. SUBSIDIADO | U100: 60299618686
A101: TOTALES | F101: 8771844 | G101: 100 | H101: 3200442 | J101: 5571399 | N101: SSR
A102: 10 PRIMERAS CAUSAS DE URGENCIAS 2013 | N102: PAI
A103: ORDEN | B103: CODIGO CIE-10 | C103: CAUSA | F103: TOTAL GENERAL | G103: % | H103: HOMBRES | J103: MUJERES | N103: VECTORES
N104: ESTERILIZACION MASCOTAS
A105: 1 | B105: R104 | C105: OTROS DOLORES ABDOMINALES Y LOS NO ESPECIFICADOS | F105: 14062 | G105: 4.152982871 | H105: 4636 | J105: 9426 | N105: VACUNA ANTIRRABICA
A106: 2 | B106: A09X | C106: DIARREA Y GASTROENTERITIS DE PRESUNTO ORIGEN INFECCIOSO | F106: 9876 | G106: 2.916715889 | H106: 4529 | J106: 5347 | N106: INFRAESTRUCTURA
A107: 3 | B107: R688 | C107: OTROS SINTOMAS Y SIGNOS GENERALES ESPECIFICADOS | F107: 8984 | G107: 2.653278204 | H107: 3689 | J107: 5295 | N107: DOTACION EQUIPOS BIOMEDICOS
A108: 4 | B108: N390 | C108: INFECCION DE VIAS URINARIAS SITIO NO ESPECIFICADO | F108: 8278 | G108: 2.444772593 | H108: 1976 | J108: 6302 | N108: ESTAMPILLAS PROHOSPITALES | U108: 4041854118
A109: 5 | B109: R51X | C109: CEFALEA | F109: 7927 | G109: 2.341110455 | H109: 2063 | J109: 5864 | N109: EQUIPAMIENTO
A110: 6 | B110: R509 | C110: FIEBRE NO ESPECIFICADA | F110: 6458 | G110: 1.90726521 | H110: 3166 | J110: 3292 | N110: TELEMEDICINA
A111: 7 | B111: R102 | C111: DOLOR PELVICO Y PERINEAL | F111: 5281 | G111: 1.559657413 | H111: 51 | J111: 5230 | N111: AMBULANCIA
A112: 8 | B112: O800 | C112: PARTO UNICO ESPONTANEO PRESENTACION CEFALICA DE VERTICE | F112: 4437 | G112: 1.310395747 | H112: 0 | J112: 4437 | N112: TOTALES | Q112: =SUM(Q97:R111) -> 0 | S112: =SUM(S97:T111) -> 0 | U112: =SUM(U97:V111) -> 64344392556
A113: 9 | B113: O470 | C113: FALSO TRABAJO DE PARTO ANTES DE LA 37 SEMANAS COMPLETAS DE GESTACION | F113: 4346 | G113: 1.283520378 | H113: 0 | J113: 4346 | N113: PROYECTOS DE INVERSION (En Cantidad)
A114: 10 | B114: M545 | C114: LUMBAGO NO ESPECIFICADO | F114: 4181 | G114: 1.234790313 | H114: 2084 | J114: 2097 | N114: PROGRAMA AEREO (No brigadas)
A115: 11 | C115: OTROS | F115: 264770 | G115: 78.19551093 | H115: 114833 | J115: 149937 | N115: ASESORIA Y ASISTENCIA TECNICA | Q115: 180
A116: TOTALES | F116: 338600 | G116: 100 | H116: 137027 | J116: 201573 | N116: CENTROS AMIGABLES JOVENES | S116: SI

Sheet ABEJORRAL
C4: ALCALDE | E4: JOHN JAIRO MANRIQUE HERNANDEZ
C5: DIRECTOR LOCAL DE SALUD | E5: LINA MARCELA GONZALEZ CASAS
C7: CERTIFICACION | E7: RANKING | F7: CATEGORIA MUNICIPAL
C8: SI | E8: 80 | F8: 6a.
C9: TOTAL CORREGIMIENTOS | E9: 2 | F9: TOTAL VEREDAS | I9: 67
A10: CARACTERISTICAS DEMOGRAFICAS | N10: VIGILANCIA DE LA SALUD PUBLICA - AÑO 2014
A11: POBLACION 2015
A12: TOTAL | B12: HOMBRES | C12: MUJERES | D12: CABECERA | E12: RESTO | N12: MORTALIDAD CANCER CUELLO UTERINO | S12: MORTALIDAD MATERNA
A13: 19290 | B13: 9850 | C13: 9440 | D13: 6681 | E13: 12609 | N13: # Casos | O13: Tasa x cienmil Mujeres | S13: # Casos | T13: Tasa x cienmil Nacidos vivos
A14: POR GRUPOS DE EDAD | N14: 0 | O14: 0 | S14: 0 | T14: 0
A15: 0 - 4 AÑOS | B15: 5 - 9 AÑOS | C15: 10 - 14 AÑOS | D15: 15 - 19 AÑOS | E15: 20 - 59 AÑOS | F15: > 60 AÑOS
A16: 1731 | B16: 1626 | C16: 1576 | D16: 1576 | E16: 9760 | F16: 3021 | N16: MORTALIDAD INFANTIL | S16: MORTALIDAD PERINATAL
N17: # Casos | O17: Tasa x cienmil Nacidos vivos | S17: # Casos | T17: Tasa x cienmil Nacidos vivos
A18: DESPLAZADOS 2015 (a marzo) | D18: INDIGENAS FEB 2014 | G18: ROM | I18: AFRO | N18: 1 | O18: 4.62962963 | S18: 3 | T18: 13.88888889
A19: TOTAL | B19: HOMBRES | C19: MUJERES | D19: TOTAL | E19: HOMBRES | F19: MUJERES
A20: 2559 | B20: 1253.91 | C20: 1305.09 | D20: 0 | E20: 0 | F20: 0 | N20: MORTALIDAD VIH SIDA | S20: MORTALIDAD TUBERCULOSIS
A21: POBLACION TOTAL | B21: Afiliados al regimen Subsidiado * | D21: % De Aseguramiento al Regimen Subsidiado * | F21: Afiliados al Regimen Contributivo BDUA * | H21: % De Aseguramiento al Regimen Contributivo * | N21: # Casos | O21: Tasa x cienmil Habitantes | S21: # Casos | T21: Tasa x cienmil Habitantes
N22: 0 | O22: 0 | S22: 0 | T22: 0
N24: MORTALIDAD INFARTO AL MIOCARDIO | S24: MORTALIDAD < 5 AÑOS
A25: 19290 | B25: 13925 | D25: 72.187662 | F25: 2584 | H25: 13.39554173 | N25: # Casos | O25: Tasa x cienmil Habitantes | S25: # Casos | T25: Tasa x cienmil Niños
A26: NBI (pobre) 2012 | H26: * Agosto 2015 | N26: 29 | O26: 149.6233619 | S26: 2 | T26: 115.1410478
A27: Total | C27: Cabecera | E27: Resto
A28: Prop (%) | B28: cve (%) | C28: Prop (%) | D28: cve (%) | E28: Prop (%) | F28: cve (%)
A29: 33.85111963 | B29: - | C29: 30.2623057 | D29: - | E29: 35.47465573 | F29: - | N29: REGISTRO POBLACIONAL DE CANCER 2012
N30: Numero de casos registrados | P30: HOMBRES | Q30: MUJERES | R30: TOTAL
A31: PRESTACION DE SERVICIOS DE SALUD ** | P31: 14 | Q31: 14 | R31: =SUM(P31:Q31) -> 28
A32: EMPRESAS SOCIALES DEL ESTADO
A33: INSTITUCION PRESTADORA DE SERVICIOS DE SALUD | F33: DIRECTOR / GERENTE | N33: 10 PRIMERAS CAUSAS DE MORTALIDAD 2014
A34: HOSPITAL SAN JUAN DE DIOS DE ABEJORRAL | F34: Jorge Alberto Caro Avendaño | N34: ORDEN | O34: CODIGO 105 CIE-10 | P34: CAUSA | T34: TOTAL GENERAL | U34: HOMBRES | V34: MUJERES | W34: SIN DATO
N36: 1 | O36: 051 | P36: ENFERMEDADES ISQUEMICAS DEL CORAZON | T36: 32 | U36: 16 | V36: 16
N37: 2 | O37: 060 | P37: ENFERMEDADES CRONICAS DE LAS VIAS RESPIRATORIAS INFERIORES | T37: 17 | U37: 11 | V37: 6
N38: 3 | O38: 055 | P38: ENFERMEDADES CEREBROVASCULARES | T38: 10 | U38: 6 | V38: 4
A39: PRESTADORES DE SERVICIOS DE SALUD | N39: 4 | O39: 020 | P39: TUMOR MALIGNO DE LA TRAQUEA, LOS BRONQUIOS Y EL PULMON | T39: 8 | U39: 6 | V39: 2
A40: TOTALES | B40: IPS | C40: PROFESIONALES INDEPENDIENTES | E40: TRANSPORTE ESPECIAL | G40: OBJETO SOCIAL DIFERENTE | N40: 5 | O40: 059 | P40: NEUMONIA | T40: 7 | U40: 2 | V40: 5
N41: 6 | O41: 053 | P41: TODAS LAS DEMAS FORMAS DE ENFERMEDAD DEL CORAZON | T41: 7 | U41: 2 | V41: 5
B42: 1 | C42: 5 | E42: 0 | G42: 0 | N42: 7 | O42: 050 | P42: ENFERMEDADES HIPERTENSIVAS | T42: 5 | U42: 2 | V42: 3
A43: IPS PUBLICAS | B43: IPS PRIVADAS | C43: SERVICIOS PRESTADOS X PROFESION | N43: 8 | O43: 101 | P43: AGRESIONES (HOMICIDIOS) Y SECUELAS | T43: 4 | U43: 4 | V43: 0
C44: Odontólogos | D44: Médicos | E44: Otros | F44: Total | N44: 9 | O44: 013 | P44: TUMOR MALIGNO DEL ESTOMAGO | T44: 4 | U44: 4 | V44: 0
N45: 10 | O45: 072 | P45: ENFERMEDADES DEL SISTEMA OSTEOMUSCULAR Y DEL TEJIDO CONJUNTIVO | T45: 3 | U45: 1 | V45: 2
A46: 1 | B46: 0 | C46: 5 | D46: 1 | E46: 2 | F46: =C46+D46+E46 -> 8
A48: CAPACIDAD INSTALADA | N48: PORCENTAJE DE EMBARAZOS POR GRUPO EDAD RESIDENCIA HABITUAL DE LA MADRE 2014 | S48: TASAS DE FECUNDIDAD ESPECIFICA POR MIL MUJERES 2014
A49: CAMAS
A50: Adultos | B50: Cuidado Agudo Mental | C50: Cuidado Intensivo Adulto | D50: Cuidado Intensivo Neonatal | E50: Cuidado Intensivo Pediátrico | F50: Cuidado Intermedio Adulto | G50: Cuidado Intermedio Mental | I50: Cuidado Intermedio Neonatal
N51: 10 a 14 AÑOS | P51: 15 a 19 AÑOS | S51: 10 a 14 AÑOS | U51: 15 a 19 AÑOS
N52: No | O52: % | P52: No | Q52: % | S52: No | T52: TASA | U52: No | V52: TASA
A53: 9 | B53: 0 | C53: 0 | D53: 0 | E53: 0 | F53: 0 | G53: 0 | I53: 0 | N53: 2 | O53: 0.8968609865 | P53: 73 | Q53: 32.73542601 | S53: 2 | T53: 2.583979328 | U53: 73 | V53: 94.80519481
A54: CAMAS
A55: Cuidado Intermedio Pediátrico | B55: Farmaco- de-pendencia | C55: Obste-tricia | D55: Pediátricas | E55: Quemados Adultos | F55: Quemados Pediátrico | G55: Salud Mental Psiquiatría | I55: TOTAL CAMAS
A58: 0 | B58: 0 | C58: 4 | D58: 1 | E58: 0 | F58: 0 | G58: 0 | I58: =A53+B53+C53+D53+E53+F53+G53+I53+A58+B58+C58+D58+E58+F58+G58 -> 14
A60: SALAS | E60: TOTAL SALAS | N60: INMUNIZACIONES PAI 2014
A61: PARTO | C61: QUIROFANO | N61: POLIOMIELITIS (V.O.P)
A62: 1 | C62: 0 | E62: =A62+C62 -> 1 | N62: Vacunados (Edades) | S62: Refuerzos | T62: Dosis Aplicadas
N63: <1 | O63: 1 | P63: 2 | Q63: 3 | R63: 4 | S63: Otros
A64: TOTAL DE SERVICIOS PRESTADOS SEGÚN LA COMPLEJIDAD | N64: 223 | O64: 0 | P64: 0 | Q64: 0 | R64: 0 | S64: 469 | T64: 1105
A65: BAJA | C65: MEDIA | E65: ALTA
A66: 71 | C66: 4 | E66: 0 | N66: DIFTERIA, TOSFERINA Y TÉTANO (D.P.T)
N67: Vacunados (Edades) | S67: Refuerzos | T67: Dosis
A68: TOTAL DE AMBULANCIAS HABILITADAS SEGÚN TIPO Y MODALIDAD | N68: <1 | O68: 1 | P68: 2 | Q68: 3 | R68: 4 | S68: Otros | T68: Aplicadas
A69: TIPO | C69: MODALIDAD | F69: TOTAL GENERAL | N69: 219 | O69: 0 | P69: 0 | Q69: 0 | R69: 0 | S69: 484 | T69: 1121
A70: BASICA | B70: MEDICADA | C70: AEREA | D70: TERRESTRE | E70: FLUVIAL | H70: ** Fuente: REPS-Minsalud julio 2015
A71: 0 | B71: 0 | C71: 0 | D71: 0 | E71: 0 | F71: =SUM(C71:E71) -> 0 | N71: TUBERCULOSIS (B.C.G)
A72: 10 PRIMERAS CAUSAS DE HOSPITALIZACION 2013 | N72: Vacunados (Edades) | S72: Otros | T72: Dosis Aplicadas
A73: ORDEN | B73: CODIGO CIE-10 | C73: CAUSA | F73: TOTAL GENERAL | G73: % | H73: HOMBRES | J73: MUJERES | N73: <1 | O73: 1
N74: 124 | O74: 0 | S74: 0 | T74: 124
A75: 1 | B75: O471 | C75: FALSO TRABAJO DE PARTO ANTES DE LA 37 Y MAS SEMANAS COMPLETAS DE GESTACION | F75: 80 | G75: 9.546539379 | H75: 0 | J75: 80
A76: 2 | B76: N390 | C76: INFECCION DE VIAS URINARIAS SITIO NO ESPECIFICADO | F76: 40 | G76: 4.77326969 | H76: 20 | J76: 20 | N76: TRIPLE VIRAL - S. R. P.
A77: 3 | B77: R104 | C77: OTROS DOLORES ABDOMINALES Y LOS NO ESPECIFICADOS | F77: 21 | G77: 2.505966587 | H77: 7 | J77: 14 | N77: Vacunados (Edades) | S77: Refuerzos | T77: Dosis Aplicadas
A78: 4 | B78: J159 | C78: NEUMONIA BACTERIANA NO ESPECIFICADA | F78: 18 | G78: 2.14797136 | H78: 12 | J78: 6 | N78: 1 | O78: 2 | P78: 3 | Q78: 4 | R78: Ref. | S78: Otros
A79: 5 | B79: O800 | C79: PARTO UNICO ESPONTANEO PRESENTACION CEFALICA DE VERTICE | F79: 13 | G79: 1.551312649 | H79: 0 | J79: 13 | N79: 192 | O79: 2 | P79: 0 | Q79: 0 | R79: 260 | S79: 25 | T79: 479
A80: 6 | B80: K922 | C80: HEMORRAGIA GASTROINTESTINAL NO ESPECIFICADA | F80: 12 | G80: 1.431980907 | H80: 6 | J80: 6
A81: 7 | B81: R509 | C81: FIEBRE NO ESPECIFICADA | F81: 10 | G81: 1.193317422 | H81: 6 | J81: 4 | N81: AGUA POTABLE 2013
A82: 8 | B82: A419 | C82: SEPTICEMIA NO ESPECIFICADA | F82: 9 | G82: 1.07398568 | H82: 4 | J82: 5 | P82: NUMEROS ACUEDUCTOS | R82: COBERTURA ACUEDUCTOS CON AGUA POTABLE (%) | T82: COBERTURAS VIVIENDAS CON AGUA POTABLE (%)
A83: 9 | B83: I500 | C83: INSUFICIENCIA CARDIACA CONGESTIVA | F83: 9 | G83: 1.07398568 | H83: 5 | J83: 4
A84: 10 | B84: O470 | C84: FALSO TRABAJO DE PARTO ANTES DE LA 37 SEMANAS COMPLETAS DE GESTACION | F84: 9 | G84: 1.07398568 | H84: 0 | J84: 9
A85: 11 | C85: OTROS | F85: 617 | G85: 73.62768496 | H85: 266 | J85: 351 | N85: Urbano | P85: 2 | R85: 100 | T85: 98.4
A86: TOTALES | F86: 838 | G86: 100 | H86: 326 | J86: 512 | N86: Rural | P86: 35 | R86: 2.857142857 | T86: 0,0
A87: 10 PRIMERAS CAUSAS DE CONSULTA 2013 | N87: Total Municipal | P87: 37 | R87: 8.108108108 | T87: 32.9
A88: ORDEN | B88: CODIGO CIE-10 | C88: CAUSA | F88: TOTAL GENERAL | G88: % | H88: HOMBRES | J88: MUJERES | N88: CERTIFACION EN AGUA POTABLE | O88: INDICE RIESGO CALIDAD DEL AGUA POTABLE - IRCA- (a) | P88: INDICE RIESGO DE ABASTECIMIENTO MUNICIPAL - IRABA- (b) | R88: BUENAS PRACTICAS SANTIARIAS © | T88: CERTIFICAION SANITARIA MUNICIPAL EN AGUA POTABLE ©
A90: 1 | B90: I10X | C90: HIPERTENSION ESENCIAL (PRIMARIA) | F90: 9036 | G90: 21.31081814 | H90: 3060 | J90: 5976
A91: 2 | B91: K021 | C91: CARIES DE LA DENTINA | F91: 787 | G91: 1.8560883 | H91: 386 | J91: 401
A92: 3 | B92: N390 | C92: INFECCION DE VIAS URINARIAS SITIO NO ESPECIFICADO | F92: 541 | G92: 1.275913304 | H92: 138 | J92: 403 | N92: Urbano | O92: 2.1 | P92: 30.2 | R92: 26.4 | T92: 15.01
A93: 4 | B93: E119 | C93: DIABETES MELLITUS NO INSULINODEPENDIENTE SIN MENCION DE COMPLICACION | F93: 484 | G93: 1.141482512 | H93: 163 | J93: 321 | N93: Rural | O93: 58.1 | P93: 79.4 | R93: 63.4 | T93: 63.95
A94: 5 | B94: R104 | C94: OTROS DOLORES ABDOMINALES Y LOS NO ESPECIFICADOS | F94: 475 | G94: 1.120256598 | H94: 176 | J94: 299 | N94: Total | O94: 18.2 | P94: 33.1 | R94: 33.4 | T94: 25.74
A95: 6 | B95: M545 | C95: LUMBAGO NO ESPECIFICADO | F95: 441 | G95: 1.04006981 | H95: 214 | J95: 227 | N95: PROYECTOS DE INVERSION (En pesos)
A96: 7 | B96: J00X | C96: RINOFARINGITIS AGUDA (RESFRIADO COMUN) | F96: 301 | G96: 0.7098889177 | H96: 137 | J96: 164 | Q96: 2012 | S96: 2013 | U96: 2014
A97: 8 | B97: R51X | C97: CEFALEA | F97: 275 | G97: 0.6485696092 | H97: 88 | J97: 187 | N97: ADULTO MAYOR | Q97: 60000000 | S97: 30745094 | U97: 29679319
A98: 9 | B98: K073 | C98: ANOMALIAS DE LA POSICION DEL DIENTE | F98: 249 | G98: 0.5872503007 | H98: 109 | J98: 140 | N98: DOTACION DISCAPACIDAD | U98: 2747752
A99: 10 | B99: K044 | C99: PERIODONTITIS APICAL AGUDA ORIGINADA EN LA PULPA | F99: 245 | G99: 0.5778165609 | H99: 123 | J99: 122 | N99: APS - SALUD CONTIGO | S99: 18500000 | U99: 50000000
A100: 11 | C100: OTROS | F100: 29567 | G100: 69.73184595 | H100: 10615 | J100: 18952 | N100: COFINANCIACION REG. SUBSIDIADO | Q100: 913406642.1 | S100: 784485901 | U100: 1035600813
A101: TOTALES | F101: 42401 | G101: 100 | H101: 15209 | J101: 27192 | N101: SSR | Q101: 2367018
A102: 10 PRIMERAS CAUSAS DE URGENCIAS 2013 | N102: PAI | Q102: 6074145
A103: ORDEN | B103: CODIGO CIE-10 | C103: CAUSA | F103: TOTAL GENERAL | G103: % | H103: HOMBRES | J103: MUJERES | N103: VECTORES | Q103: 386400
N104: ESTERILIZACION MASCOTAS | Q104: 0
A105: 1 | B105: R104 | C105: OTROS DOLORES ABDOMINALES Y LOS NO ESPECIFICADOS | F105: 15 | G105: 4.643962848 | H105: 8 | J105: 7 | N105: VACUNA ANTIRRABICA | Q105: 3980000
A106: 2 | B106: A09X | C106: DIARREA Y GASTROENTERITIS DE PRESUNTO ORIGEN INFECCIOSO | F106: 12 | G106: 3.715170279 | H106: 4 | J106: 8 | N106: INFRAESTRUCTURA
A107: 3 | B107: N390 | C107: INFECCION DE VIAS URINARIAS SITIO NO ESPECIFICADO | F107: 10 | G107: 3.095975232 | H107: 6 | J107: 4 | N107: DOTACION EQUIPOS BIOMEDICOS | Q107: 55000000
A108: 4 | B108: S721 | C108: FRACTURA PERTROCANTERIANA | F108: 10 | G108: 3.095975232 | H108: 5 | J108: 5 | N108: ESTAMPILLAS PROHOSPITALES | Q108: 105127000 | U108: 81709519
A109: 5 | B109: I702 | C109: ATEROSCLEROSIS DE LAS ARTERIAS DE LOS MIEMBROS | F109: 7 | G109: 2.167182663 | H109: 0 | J109: 7 | N109: EQUIPAMIENTO
A110: 6 | B110: R51X | C110: CEFALEA | F110: 7 | G110: 2.167182663 | H110: 2 | J110: 5 | N110: TELEMEDICINA
A111: 7 | B111: C500 | C111: TUMOR MALIGNO DEL PEZON Y AREOLA MAMARIA | F111: 5 | G111: 1.547987616 | H111: 0 | J111: 5 | N111: AMBULANCIA
A112: 8 | B112: C341 | C112: TUMOR MALIGNO DEL LOBULO SUPERIOR BRONQUIO O PULMON | F112: 5 | G112: 1.547987616 | H112: 5 | J112: 0 | N112: TOTALES | Q112: =SUM(Q97:R111) -> 1146341205 | S112: =SUM(S97:T111) -> 833730995 | U112: =SUM(U97:V111) -> 1199737403
A113: 9 | B113: K922 | C113: HEMORRAGIA GASTROINTESTINAL NO ESPECIFICADA | F113: 5 | G113: 1.547987616 | H113: 3 | J113: 2 | N113: PROYECTOS DE INVERSION (En Cantidad)
A114: 10 | B114: O800 | C114: PARTO UNICO ESPONTANEO PRESENTACION CEFALICA DE VERTICE | F114: 4 | G114: 1.238390093 | H114: 0 | J114: 4 | N114: PROGRAMA AEREO (No brigadas)
A115: 11 | C115: OTROS | F115: 243 | G115: 75.23219814 | H115: 115 | J115: 128 | N115: ASESORIA Y ASISTENCIA TECNICA | Q115: 12
A116: TOTALES | F116: 323 | G116: 100 | H116: 148 | J116: 175 | N116: CENTROS AMIGABLES JOVENES

Sheet ABRIAQUI
C4: ALCALDE | E4: LUIS ALFONSO SALAS CARDONA
C5: DIRECTOR LOCAL DE SALUD | E5: EDWIN JAVIER ARENAS DAVID
C7: CERTIFICACION | E7: RANKING | F7: CATEGORIA MUNICIPAL
C8: SI | E8: 107 | F8: 6a.
C9: TOTAL CORREGIMIENTOS | E9: 1 | F9: TOTAL VEREDAS | I9: 12
A10: CARACTERISTICAS DEMOGRAFICAS | N10: VIGILANCIA DE LA SALUD PUBLICA - AÑO 2014
A11: POBLACION 2015
A12: TOTAL | B12: HOMBRES | C12: MUJERES | D12: CABECERA | E12: RESTO | N12: MORTALIDAD CANCER CUELLO UTERINO | S12: MORTALIDAD MATERNA
A13: 2128 | B13: 1110 | C13: 1018 | D13: 751 | E13: 1377 | N13: # Casos | O13: Tasa x cienmil Mujeres | S13: # Casos | T13: Tasa x cienmil Nacidos vivos
A14: POR GRUPOS DE EDAD | N14: 0 | O14: 0 | S14: 0 | T14: 0
A15: 0 - 4 AÑOS | B15: 5 - 9 AÑOS | C15: 10 - 14 AÑOS | D15: 15 - 19 AÑOS | E15: 20 - 59 AÑOS | F15: > 60 AÑOS
A16: 174 | B16: 166 | C16: 165 | D16: 176 | E16: 1151 | F16: 296 | N16: MORTALIDAD INFANTIL | S16: MORTALIDAD PERINATAL
N17: # Casos | O17: Tasa x cienmil Nacidos vivos | S17: # Casos | T17: Tasa x cienmil Nacidos vivos
A18: DESPLAZADOS 2015 (a marzo) | D18: INDIGENAS FEB 2014 | G18: ROM | I18: AFRO | N18: 2 | O18: 76.92307692 | S18: 0 | T18: 0
A19: TOTAL | B19: HOMBRES | C19: MUJERES | D19: TOTAL | E19: HOMBRES | F19: MUJERES
A20: 632 | B20: 309.68 | C20: 322.32 | D20: 0 | E20: 0 | F20: 0 | N20: MORTALIDAD VIH SIDA | S20: MORTALIDAD TUBERCULOSIS
A21: POBLACION TOTAL | B21: Afiliados al regimen Subsidiado * | D21: % De Aseguramiento al Regimen Subsidiado * | F21: Afiliados al Regimen Contributivo BDUA * | H21: % De Aseguramiento al Regimen Contributivo * | N21: # Casos | O21: Tasa x cienmil Habitantes | S21: # Casos | T21: Tasa x cienmil Habitantes
N22: 0 | O22: 0 | S22: 0 | T22: 0
N24: MORTALIDAD INFARTO AL MIOCARDIO | S24: MORTALIDAD < 5 AÑOS
A25: 2128 | B25: 1427 | D25: 67.05827068 | F25: 223 | H25: 10.47932331 | N25: # Casos | O25: Tasa x cienmil Habitantes | S25: # Casos | T25: Tasa x cienmil Niños
A26: NBI (pobre) 2012 | H26: * Agosto 2015 | N26: 2 | O26: 91.95402299 | S26: 3 | T26: 1714.285714
A27: Total | C27: Cabecera | E27: Resto
A28: Prop (%) | B28: cve (%) | C28: Prop (%) | D28: cve (%) | E28: Prop (%) | F28: cve (%)
A29: 28.53828306 | B29: - | C29: 11.52073733 | D29: - | E29: 35.90425532 | F29: - | N29: REGISTRO POBLACIONAL DE CANCER 2012
N30: Numero de casos registrados | P30: HOMBRES | Q30: MUJERES | R30: TOTAL
A31: PRESTACION DE SERVICIOS DE SALUD ** | P31: 1 | Q31: 1 | R31: =SUM(P31:Q31) -> 2
A32: EMPRESAS SOCIALES DEL ESTADO
A33: INSTITUCION PRESTADORA DE SERVICIOS DE SALUD | F33: DIRECTOR / GERENTE | N33: 10 PRIMERAS CAUSAS DE MORTALIDAD 2014
N34: ORDEN | O34: CODIGO 105 CIE-10 | P34: CAUSA | T34: TOTAL GENERAL | U34: HOMBRES | V34: MUJERES | W34: SIN DATO
N36: 1 | O36: 051 | P36: ENFERMEDADES ISQUEMICAS DEL CORAZON | T36: 3 | U36: 3 | V36: 0
N37: 2 | O37: 060 | P37: ENFERMEDADES CRONICAS DE LAS VIAS RESPIRATORIAS INFERIORES | T37: 2 | U37: 1 | V37: 1
N38: 3 | O38: 024 | P38: TUMOR MALIGNO DE LA MAMA DE LA MUJER | T38: 2 | U38: 0 | V38: 2
A39: PRESTADORES DE SERVICIOS DE SALUD | N39: 4 | O39: 062 | P39: TODAS LAS DEMAS ENFERMEDADES DEL SISTEMA RESPIRATORIO | T39: 2 | U39: 1 | V39: 1
A40: TOTALES | B40: IPS | C40: PROFESIONALES INDEPENDIENTES | E40: TRANSPORTE ESPECIAL | G40: OBJETO SOCIAL DIFERENTE | N40: 5 | O40: 020 | P40: TUMOR MALIGNO DE LA TRAQUEA, LOS BRONQUIOS Y EL PULMON | T40: 2 | U40: 1 | V40: 1
N41: 6 | O41: 041 | P41: DIABETES MELLITUS | T41: 2 | U41: 2 | V41: 0
N42: 7 | O42: 033 | P42: TUMORES MALIGNOS DE SITIOS MAL DEFINIDOS Y SECUNDARIOS | T42: 1 | U42: 1 | V42: 0
A43: IPS PUBLICAS | B43: IPS PRIVADAS | C43: SERVICIOS PRESTADOS X PROFESION | N43: 8 | O43: 055 | P43: ENFERMEDADES CEREBROVASCULARES | T43: 1 | U43: 1 | V43: 0
C44: Odontólogos | D44: Médicos | E44: Otros | F44: Total | N44: 9 | O44: 037 | P44: TUMORES: IN SITU, BENIGNOS Y DE COMPORTAMIENTO INCIERTO O DESCONOCIDO Y LOS NO ESPECIFICADOS | T44: 1 | U44: 0 | V44: 1
N45: 10 | O45: 082 | P45: TRASTORNOS RESPIRATORIOS ESPECIFICOS DEL PERIODO PERINATAL | T45: 1 | U45: 1 | V45: 0
A46: 0 | B46: 0 | C46: 0 | D46: 0 | E46: 0 | F46: =C46+D46+E46 -> 0
A48: CAPACIDAD INSTALADA | N48: PORCENTAJE DE EMBARAZOS POR GRUPO EDAD RESIDENCIA HABITUAL DE LA MADRE 2014 | S48: TASAS DE FECUNDIDAD ESPECIFICA POR MIL MUJERES 2014
A49: CAMAS
A50: Adultos | B50: Cuidado Agudo Mental | C50: Cuidado Intensivo Adulto | D50: Cuidado Intensivo Neonatal | E50: Cuidado Intensivo Pediátrico | F50: Cuidado Intermedio Adulto | G50: Cuidado Intermedio Mental | I50: Cuidado Intermedio Neonatal
N51: 10 a 14 AÑOS | P51: 15 a 19 AÑOS | S51: 10 a 14 AÑOS | U51: 15 a 19 AÑOS
N52: No | O52: % | P52: No | Q52: % | S52: No | T52: TASA | U52: No | V52: TASA
A53: 2 | B53: 0 | C53: 0 | D53: 0 | E53: 0 | F53: 0 | G53: 0 | I53: 0 | N53: 0 | O53: 0 | P53: 6 | Q53: 22.22222222 | S53: 0 | T53: 0 | U53: 6 | V53: 68.96551724
A54: CAMAS
A55: Cuidado Intermedio Pediátrico | B55: Farmaco- de-pendencia | C55: Obste-tricia | D55: Pediátricas | E55: Quemados Adultos | F55: Quemados Pediátrico | G55: Salud Mental Psiquiatría | I55: TOTAL CAMAS
A58: 0 | B58: 0 | C58: 2 | D58: 2 | E58: 0 | F58: 0 | G58: 0 | I58: =A53+B53+C53+D53+E53+F53+G53+I53+A58+B58+C58+D58+E58+F58+G58 -> 6
A60: SALAS | E60: TOTAL SALAS | N60: INMUNIZACIONES PAI 2014
A61: PARTO | C61: QUIROFANO | N61: POLIOMIELITIS (V.O.P)
A62: 1 | C62: 0 | E62: =A62+C62 -> 1 | N62: Vacunados (Edades) | S62: Refuerzos | T62: Dosis Aplicadas
N63: <1 | O63: 1 | P63: 2 | Q63: 3 | R63: 4 | S63: Otros
A64: TOTAL DE SERVICIOS PRESTADOS SEGÚN LA COMPLEJIDAD | N64: 23 | O64: 0 | P64: 0 | Q64: 0 | R64: 0 | S64: 49 | T64: 124
A65: BAJA | C65: MEDIA | E65: ALTA
A66: 20 | C66: 0 | E66: 0 | N66: DIFTERIA, TOSFERINA Y TÉTANO (D.P.T)
N67: Vacunados (Edades) | S67: Refuerzos | T67: Dosis
A68: TOTAL DE AMBULANCIAS HABILITADAS SEGÚN TIPO Y MODALIDAD | N68: <1 | O68: 1 | P68: 2 | Q68: 3 | R68: 4 | S68: Otros | T68: Aplicadas
A69: TIPO | C69: MODALIDAD | F69: TOTAL GENERAL | N69: 24 | O69: 0 | P69: 0 | Q69: 0 | R69: 0 | S69: 45 | T69: 123
A70: BASICA | B70: MEDICADA | C70: AEREA | D70: TERRESTRE | E70: FLUVIAL | H70: ** Fuente: REPS-Minsalud julio 2015
A71: 1 | B71: 0 | C71: 0 | D71: 1 | E71: 0 | F71: =SUM(C71:E71) -> 1 | N71: TUBERCULOSIS (B.C.G)
A72: 10 PRIMERAS CAUSAS DE HOSPITALIZACION 2013 | N72: Vacunados (Edades) | S72: Otros | T72: Dosis Aplicadas
A73: ORDEN | B73: CODIGO CIE-10 | C73: CAUSA | F73: TOTAL GENERAL | G73: % | H73: HOMBRES | J73: MUJERES | N73: <1 | O73: 1
N74: 4 | O74: 0 | S74: 0 | T74: 4
A75: 1 | B75: R104 | C75: OTROS DOLORES ABDOMINALES Y LOS NO ESPECIFICADOS | F75: 4 | G75: 4.255319149 | H75: 0 | J75: 4
A76: 2 | B76: C56X | C76: TUMOR MALIGNO DEL OVARIO | F76: 4 | G76: 4.255319149 | H76: 0 | J76: 4 | N76: TRIPLE VIRAL - S. R. P.
A77: 3 | B77: I259 | C77: ENFERMEDAD ISQUEMIA CRONICA DEL CORAZON NO ESPECIFICADA | F77: 3 | G77: 3.191489362 | H77: 3 | J77: 0 | N77: Vacunados (Edades) | S77: Refuerzos | T77: Dosis Aplicadas
A78: 4 | B78: L024 | C78: ABSCESO CUTANEO FURUNCULO Y ANTRAX DE MIEMBRO | F78: 3 | G78: 3.191489362 | H78: 0 | J78: 3 | N78: 1 | O78: 2 | P78: 3 | Q78: 4 | R78: Ref. | S78: Otros
A79: 5 | B79: O800 | C79: PARTO UNICO ESPONTANEO PRESENTACION CEFALICA DE VERTICE | F79: 2 | G79: 2.127659574 | H79: 0 | J79: 2 | N79: 21 | O79: 0 | P79: 0 | Q79: 0 | R79: 21 | S79: 0 | T79: 42
A80: 6 | B80: K819 | C80: COLECISTITIS NO ESPECIFICADA | F80: 2 | G80: 2.127659574 | H80: 0 | J80: 2
A81: 7 | B81: K439 | C81: HERNIA VENTRAL SIN OBSTRUCCION NI GANGRENA | F81: 2 | G81: 2.127659574 | H81: 0 | J81: 2 | N81: AGUA POTABLE 2013
A82: 8 | B82: D391 | C82: TUMOR DE COMPORTAMIENTO INCIERTO O DESCONOCIDO DEL OVARIO | F82: 2 | G82: 2.127659574 | H82: 0 | J82: 2 | P82: NUMEROS ACUEDUCTOS | R82: COBERTURA ACUEDUCTOS CON AGUA POTABLE (%) | T82: COBERTURAS VIVIENDAS CON AGUA POTABLE (%)
A83: 9 | B83: N23X | C83: COLICO RENAL NO ESPECIFICADO | F83: 2 | G83: 2.127659574 | H83: 0 | J83: 2
A84: 10 | B84: I10X | C84: HIPERTENSION ESENCIAL (PRIMARIA) | F84: 2 | G84: 2.127659574 | H84: 0 | J84: 2
A85: 11 | C85: OTROS | F85: 68 | G85: 72.34042553 | H85: 21 | J85: 47 | N85: Urbano | P85: 1 | R85: 0 | T85: 0
A86: TOTALES | F86: 94 | G86: 100 | H86: 24 | J86: 70 | N86: Rural | P86: 5 | R86: 0 | T86: 0
A87: 10 PRIMERAS CAUSAS DE CONSULTA 2013 | N87: Total Municipal | P87: 6 | R87: 0 | T87: 0
A88: ORDEN | B88: CODIGO CIE-10 | C88: CAUSA | F88: TOTAL GENERAL | G88: % | H88: HOMBRES | J88: MUJERES | N88: CERTIFACION EN AGUA POTABLE | O88: INDICE RIESGO CALIDAD DEL AGUA POTABLE - IRCA- (a) | P88: INDICE RIESGO DE ABASTECIMIENTO MUNICIPAL - IRABA- (b) | R88: BUENAS PRACTICAS SANTIARIAS © | T88: CERTIFICAION SANITARIA MUNICIPAL EN AGUA POTABLE ©
A90: 1 | B90: I10X | C90: HIPERTENSION ESENCIAL (PRIMARIA) | F90: 1343 | G90: 23.48312642 | H90: 499 | J90: 844
A91: 2 | B91: J00X | C91: RINOFARINGITIS AGUDA (RESFRIADO COMUN) | F91: 294 | G91: 5.140758874 | H91: 139 | J91: 155
A92: 3 | B92: N390 | C92: INFECCION DE VIAS URINARIAS SITIO NO ESPECIFICADO | F92: 268 | G92: 4.686133939 | H92: 62 | J92: 206 | N92: Urbano | O92: 5.8 | P92: 21.5 | R92: 31 | T92: 16.5
A93: 4 | B93: K021 | C93: CARIES DE LA DENTINA | F93: 183 | G93: 3.199860115 | H93: 93 | J93: 90 | N93: Rural | O93: 38.2 | P93: 74.9 | R93: 75.8 | T93: 56.82
A94: 5 | B94: B829 | C94: PARASITOSIS INTESTINAL SIN OTRA ESPECIFICACION | F94: 176 | G94: 3.077461095 | H94: 89 | J94: 87 | N94: Total | O94: 12.9 | P94: 25.7 | R94: 45.2 | T94: 25.15
A95: 6 | B95: J039 | C95: AMIGDALITIS AGUDA NO ESPECIFICADA | F95: 132 | G95: 2.308095821 | H95: 47 | J95: 85 | N95: PROYECTOS DE INVERSION (En pesos)
A96: 7 | B96: M255 | C96: DOLOR EN ARTICULACION | F96: 97 | G96: 1.696100717 | H96: 47 | J96: 50 | Q96: 2012 | S96: 2013 | U96: 2014
A97: 8 | B97: R51X | C97: CEFALEA | F97: 94 | G97: 1.643643994 | H97: 25 | J97: 69 | N97: ADULTO MAYOR | Q97: 32130000 | S97: 12326854 | U97: 22000000
A98: 9 | B98: T784 | C98: ALERGIA NO ESPECIFICADA | F98: 92 | G98: 1.608672845 | H98: 22 | J98: 70 | N98: DOTACION DISCAPACIDAD | U98: 2747752
A99: 10 | B99: M545 | C99: LUMBAGO NO ESPECIFICADO | F99: 91 | G99: 1.591187271 | H99: 45 | J99: 46 | N99: APS - SALUD CONTIGO | Q99: 22000000 | S99: 38971000
A100: 11 | C100: OTROS | F100: 2949 | G100: 51.56495891 | H100: 1132 | J100: 1817 | N100: COFINANCIACION REG. SUBSIDIADO | Q100: 2963575.206 | S100: 2545288 | U100: 3360038
A101: TOTALES | F101: 5719 | G101: 100 | H101: 2200 | J101: 3519 | N101: SSR | Q101: 276979
A102: 10 PRIMERAS CAUSAS DE URGENCIAS 2013 | N102: PAI | Q102: 710771
A103: ORDEN | B103: CODIGO CIE-10 | C103: CAUSA | F103: TOTAL GENERAL | G103: % | H103: HOMBRES | J103: MUJERES | N103: VECTORES | Q103: 386400
N104: ESTERILIZACION MASCOTAS | Q104: 0
A105: 1 | B105: S810 | C105: HERIDA DE LA RODILLA | F105: 6 | G105: 6.52173913 | H105: 6 | J105: 0 | N105: VACUNA ANTIRRABICA | Q105: 698000
A106: 2 | B106: O800 | C106: PARTO UNICO ESPONTANEO PRESENTACION CEFALICA DE VERTICE | F106: 5 | G106: 5.434782609 | H106: 0 | J106: 5 | N106: INFRAESTRUCTURA
A107: 3 | B107: K922 | C107: HEMORRAGIA GASTROINTESTINAL NO ESPECIFICADA | F107: 4 | G107: 4.347826087 | H107: 0 | J107: 4 | N107: DOTACION EQUIPOS BIOMEDICOS | Q107: 45500000
A108: 4 | B108: S610 | C108: HERIDA DE DEDO(S) DE LA MANO SIN DA¥O DE LA(S) U¥A(S) | F108: 4 | G108: 4.347826087 | H108: 3 | J108: 1 | N108: ESTAMPILLAS PROHOSPITALES
A109: 5 | B109: R51X | C109: CEFALEA | F109: 3 | G109: 3.260869565 | H109: 0 | J109: 3 | N109: EQUIPAMIENTO
A110: 6 | B110: R509 | C110: FIEBRE NO ESPECIFICADA | F110: 3 | G110: 3.260869565 | H110: 1 | J110: 2 | N110: TELEMEDICINA
A111: 7 | B111: O200 | C111: AMENAZA DE ABORTO | F111: 3 | G111: 3.260869565 | H111: 0 | J111: 3 | N111: AMBULANCIA
A112: 8 | B112: R101 | C112: DOLOR ABDOMINAL LOCALIZADO EN PARTE SUPERIOR | F112: 2 | G112: 2.173913043 | H112: 0 | J112: 2 | N112: TOTALES | Q112: =SUM(Q97:R111) -> 104665725.2 | S112: =SUM(S97:T111) -> 53843142 | U112: =SUM(U97:V111) -> 28107790
A113: 9 | B113: M545 | C113: LUMBAGO NO ESPECIFICADO | F113: 2 | G113: 2.173913043 | H113: 1 | J113: 1 | N113: PROYECTOS DE INVERSION (En Cantidad)
A114: 10 | B114: R11X | C114: NAUSEA Y VOMITO | F114: 2 | G114: 2.173913043 | H114: 2 | J114: 0 | N114: PROGRAMA AEREO (No brigadas)
A115: 11 | C115: OTROS | F115: 58 | G115: 63.04347826 | H115: 14 | J115: 44 | N115: ASESORIA Y ASISTENCIA TECNICA | Q115: 13
A116: TOTALES | F116: 92 | G116: 100 | H116: 27 | J116: 65 | N116: CENTROS AMIGABLES JOVENES

Sheet ALEJANDRIA
C4: ALCALDE | E4: UBER ARBEY AGUILAR CARMONA
C5: DIRECTOR LOCAL DE SALUD | E5: LID JOHANA MIRA MARTÍNEZ
C7: CERTIFICACION | E7: RANKING | F7: CATEGORIA MUNICIPAL
C8: SI | E8: 95 | F8: 6a.
C9: TOTAL CORREGIMIENTOS | E9: 0 | F9: TOTAL VEREDAS | I9: 14
A10: CARACTERISTICAS DEMOGRAFICAS | N10: VIGILANCIA DE LA SALUD PUBLICA - AÑO 2014
A11: POBLACION 2015
A12: TOTAL | B12: HOMBRES | C12: MUJERES | D12: CABECERA | E12: RESTO | N12: MORTALIDAD CANCER CUELLO UTERINO | S12: MORTALIDAD MATERNA
A13: 3466 | B13: 1739 | C13: 1727 | D13: 1812 | E13: 1654 | N13: # Casos | O13: Tasa x cienmil Mujeres | S13: # Casos | T13: Tasa x cienmil Nacidos vivos
A14: POR GRUPOS DE EDAD | N14: 1 | O14: 57.27376861 | S14: 0 | T14: 0
A15: 0 - 4 AÑOS | B15: 5 - 9 AÑOS | C15: 10 - 14 AÑOS | D15: 15 - 19 AÑOS | E15: 20 - 59 AÑOS | F15: > 60 AÑOS
A16: 235 | B16: 242 | C16: 245 | D16: 297 | E16: 1974 | F16: 473 | N16: MORTALIDAD INFANTIL | S16: MORTALIDAD PERINATAL
N17: # Casos | O17: Tasa x cienmil Nacidos vivos | S17: # Casos | T17: Tasa x cienmil Nacidos vivos
A18: DESPLAZADOS 2015 (a marzo) | D18: INDIGENAS FEB 2014 | G18: ROM | I18: AFRO | N18: 0 | O18: 0 | S18: 0 | T18: 0
A19: TOTAL | B19: HOMBRES | C19: MUJERES | D19: TOTAL | E19: HOMBRES | F19: MUJERES
A20: 2715 | B20: 1330.35 | C20: 1384.65 | D20: 0 | E20: 0 | F20: 0 | N20: MORTALIDAD VIH SIDA | S20: MORTALIDAD TUBERCULOSIS
A21: POBLACION TOTAL | B21: Afiliados al regimen Subsidiado * | D21: % De Aseguramiento al Regimen Subsidiado * | F21: Afiliados al Regimen Contributivo BDUA * | H21: % De Aseguramiento al Regimen Contributivo * | N21: # Casos | O21: Tasa x cienmil Habitantes | S21: # Casos | T21: Tasa x cienmil Habitantes
N22: 0 | O22: 0 | S22: 0 | T22: 0
N24: MORTALIDAD INFARTO AL MIOCARDIO | S24: MORTALIDAD < 5 AÑOS
A25: 3466 | B25: 2828 | D25: 81.59261396 | F25: 775 | H25: 22.36006924 | N25: # Casos | O25: Tasa x cienmil Habitantes | S25: # Casos | T25: Tasa x cienmil Niños
A26: NBI (pobre) 2012 | H26: * Agosto 2015 | N26: 5 | O26: 142.7755568 | S26: 0 | T26: 0
A27: Total | C27: Cabecera | E27: Resto
A28: Prop (%) | B28: cve (%) | C28: Prop (%) | D28: cve (%) | E28: Prop (%) | F28: cve (%)
A29: 33.13609467 | B29: - | C29: 24.03225806 | D29: - | E29: 42.24973089 | F29: - | N29: REGISTRO POBLACIONAL DE CANCER 2012
N30: Numero de casos registrados | P30: HOMBRES | Q30: MUJERES | R30: TOTAL
A31: PRESTACION DE SERVICIOS DE SALUD ** | P31: 2 | Q31: 1 | R31: =SUM(P31:Q31) -> 3
A32: EMPRESAS SOCIALES DEL ESTADO
A33: INSTITUCION PRESTADORA DE SERVICIOS DE SALUD | F33: DIRECTOR / GERENTE | N33: 10 PRIMERAS CAUSAS DE MORTALIDAD 2014
A34: ESE HOSPITAL PBRO LUIS FELIPE ARBELAEZ | F34: JORGE HERNAN GUARIN GIRALDO | N34: ORDEN | O34: CODIGO 105 CIE-10 | P34: CAUSA | T34: TOTAL GENERAL | U34: HOMBRES | V34: MUJERES | W34: SIN DATO
N36: 1 | O36: 051 | P36: ENFERMEDADES ISQUEMICAS DEL CORAZON | T36: 5 | U36: 1 | V36: 4
N37: 2 | O37: 060 | P37: ENFERMEDADES CRONICAS DE LAS VIAS RESPIRATORIAS INFERIORES | T37: 3 | U37: 1 | V37: 2
N38: 3 | O38: 050 | P38: ENFERMEDADES HIPERTENSIVAS | T38: 3 | U38: 2 | V38: 1
A39: PRESTADORES DE SERVICIOS DE SALUD | N39: 4 | O39: 059 | P39: NEUMONIA | T39: 2 | U39: 1 | V39: 1
A40: TOTALES | B40: IPS | C40: PROFESIONALES INDEPENDIENTES | E40: TRANSPORTE ESPECIAL | G40: OBJETO SOCIAL DIFERENTE | N40: 5 | O40: 065 | P40: ENFERMEDADES DEL APENDICE, HERNIA Y OBSTRUCCION INTESTINAL | T40: 2 | U40: 1 | V40: 1
N41: 6 | O41: 069 | P41: ENFERMEDADES DEL PERITONEO Y TODAS LAS DEMAS ENFERMEDADES DEL SISTEMA DIGESTIVO | T41: 1 | U41: 1 | V41: 0
B42: 1 | C42: 0 | E42: 0 | G42: 0 | N42: 7 | O42: 025 | P42: TUMOR MALIGNO DEL CUELLO DEL UTERO | T42: 1 | U42: 0 | V42: 1
A43: IPS PUBLICAS | B43: IPS PRIVADAS | C43: SERVICIOS PRESTADOS X PROFESION | N43: 8 | O43: 102 | P43: EVENTOS DE INTENCION NO DETERMINADA Y SECUELAS | T43: 1 | U43: 1 | V43: 0
C44: Odontólogos | D44: Médicos | E44: Otros | F44: Total | N44: 9 | O44: 031 | P44: TUMOR MALIGNOS DEL ENCEFALO, DEL OJO Y DE OTRAS PARTES DEL SISTEMA NERVIOSO CENTRAL | T44: 1 | U44: 1 | V44: 0
N45: 10 | O45: 020 | P45: TUMOR MALIGNO DE LA TRAQUEA, LOS BRONQUIOS Y EL PULMON | T45: 1 | U45: 1 | V45: 0
A46: 1 | B46: 0 | C46: 1 | D46: 0 | E46: 0 | F46: =C46+D46+E46 -> 1
A48: CAPACIDAD INSTALADA | N48: PORCENTAJE DE EMBARAZOS POR GRUPO EDAD RESIDENCIA HABITUAL DE LA MADRE 2014 | S48: TASAS DE FECUNDIDAD ESPECIFICA POR MIL MUJERES 2014
A49: CAMAS
A50: Adultos | B50: Cuidado Agudo Mental | C50: Cuidado Intensivo Adulto | D50: Cuidado Intensivo Neonatal | E50: Cuidado Intensivo Pediátrico | F50: Cuidado Intermedio Adulto | G50: Cuidado Intermedio Mental | I50: Cuidado Intermedio Neonatal
N51: 10 a 14 AÑOS | P51: 15 a 19 AÑOS | S51: 10 a 14 AÑOS | U51: 15 a 19 AÑOS
N52: No | O52: % | P52: No | Q52: % | S52: No | T52: TASA | U52: No | V52: TASA
A53: 1 | B53: 0 | C53: 0 | D53: 0 | E53: 0 | F53: 0 | G53: 0 | I53: 0 | N53: 1 | O53: 1.923076923 | P53: 17 | Q53: 32.69230769 | S53: 1 | T53: 7.936507937 | U53: 17 | V53: 116.4383562
A54: CAMAS
A55: Cuidado Intermedio Pediátrico | B55: Farmaco- de-pendencia | C55: Obste-tricia | D55: Pediátricas | E55: Quemados Adultos | F55: Quemados Pediátrico | G55: Salud Mental Psiquiatría | I55: TOTAL CAMAS
A58: 0 | B58: 0 | C58: 1 | D58: 1 | E58: 0 | F58: 0 | G58: 0 | I58: =A53+B53+C53+D53+E53+F53+G53+I53+A58+B58+C58+D58+E58+F58+G58 -> 3
A60: SALAS | E60: TOTAL SALAS | N60: INMUNIZACIONES PAI 2014
A61: PARTO | C61: QUIROFANO | N61: POLIOMIELITIS (V.O.P)
A62: 1 | C62: 0 | E62: =A62+C62 -> 1 | N62: Vacunados (Edades) | S62: Refuerzos | T62: Dosis Aplicadas
N63: <1 | O63: 1 | P63: 2 | Q63: 3 | R63: 4 | S63: Otros
A64: TOTAL DE SERVICIOS PRESTADOS SEGÚN LA COMPLEJIDAD | N64: 63 | O64: 1 | P64: 0 | Q64: 1 | R64: 0 | S64: 107 | T64: 290
A65: BAJA | C65: MEDIA | E65: ALTA
A66: 24 | C66: 0 | E66: 0 | N66: DIFTERIA, TOSFERINA Y TÉTANO (D.P.T)
N67: Vacunados (Edades) | S67: Refuerzos | T67: Dosis
A68: TOTAL DE AMBULANCIAS HABILITADAS SEGÚN TIPO Y MODALIDAD | N68: <1 | O68: 1 | P68: 2 | Q68: 3 | R68: 4 | S68: Otros | T68: Aplicadas
A69: TIPO | C69: MODALIDAD | F69: TOTAL GENERAL | N69: 63 | O69: 1 | P69: 0 | Q69: 1 | R69: 0 | S69: 107 | T69: 290
A70: BASICA | B70: MEDICADA | C70: AEREA | D70: TERRESTRE | E70: FLUVIAL | H70: ** Fuente: REPS-Minsalud julio 2015
A71: 2 | B71: 0 | C71: 0 | D71: 2 | E71: 0 | F71: =SUM(C71:E71) -> 2 | N71: TUBERCULOSIS (B.C.G)
A72: 10 PRIMERAS CAUSAS DE HOSPITALIZACION 2013 | N72: Vacunados (Edades) | S72: Otros | T72: Dosis Aplicadas
A73: ORDEN | B73: CODIGO CIE-10 | C73: CAUSA | F73: TOTAL GENERAL | G73: % | H73: HOMBRES | J73: MUJERES | N73: <1 | O73: 1
N74: 12 | O74: 11 | S74: 0 | T74: 23
A75: 1 | B75: J189 | C75: NEUMONIA NO ESPECIFICADA | F75: 20 | G75: 10.69518717 | H75: 10 | J75: 10
A76: 2 | B76: O800 | C76: PARTO UNICO ESPONTANEO PRESENTACION CEFALICA DE VERTICE | F76: 6 | G76: 3.20855615 | H76: 0 | J76: 6 | N76: TRIPLE VIRAL - S. R. P.
A77: 3 | B77: N390 | C77: INFECCION DE VIAS URINARIAS SITIO NO ESPECIFICADO | F77: 5 | G77: 2.673796791 | H77: 0 | J77: 5 | N77: Vacunados (Edades) | S77: Refuerzos | T77: Dosis Aplicadas
A78: 4 | B78: J449 | C78: ENFERMEDAD PULMONAR OBSTRUCTIVA CRONICA NO ESPECIFICADA | F78: 4 | G78: 2.139037433 | H78: 4 | J78: 0 | N78: 1 | O78: 2 | P78: 3 | Q78: 4 | R78: Ref. | S78: Otros
A79: 5 | B79: L030 | C79: CELULITIS DE LOS DEDOS DE LA MANO Y DEL PIE | F79: 4 | G79: 2.139037433 | H79: 1 | J79: 3 | N79: 52 | O79: 0 | P79: 0 | Q79: 0 | R79: 50 | S79: 0 | T79: 102
A80: 6 | B80: N110 | C80: PIELONEFRITIS CRONICA NO OBSTRUCTIVA ASOCIADA CON REFLUJO | F80: 4 | G80: 2.139037433 | H80: 0 | J80: 4
A81: 7 | B81: R104 | C81: OTROS DOLORES ABDOMINALES Y LOS NO ESPECIFICADOS | F81: 4 | G81: 2.139037433 | H81: 4 | J81: 0 | N81: AGUA POTABLE 2013
A82: 8 | B82: O471 | C82: FALSO TRABAJO DE PARTO ANTES DE LA 37 Y MAS SEMANAS COMPLETAS DE GESTACION | F82: 3 | G82: 1.604278075 | H82: 0 | J82: 3 | P82: NUMEROS ACUEDUCTOS | R82: COBERTURA ACUEDUCTOS CON AGUA POTABLE (%) | T82: COBERTURAS VIVIENDAS CON AGUA POTABLE (%)
A83: 9 | B83: A419 | C83: SEPTICEMIA NO ESPECIFICADA | F83: 3 | G83: 1.604278075 | H83: 3 | J83: 0
A84: 10 | B84: P369 | C84: SEPSIS BACTERIANA DEL RECIEN NACIDO NO ESPECIFICADA | F84: 3 | G84: 1.604278075 | H84: 1 | J84: 2
A85: 11 | C85: OTROS | F85: 131 | G85: 70.05347594 | H85: 39 | J85: 92 | N85: Urbano | P85: 1 | R85: 0 | T85: 0
A86: TOTALES | F86: 187 | G86: 100 | H86: 62 | J86: 125 | N86: Rural | P86: 5 | R86: 0 | T86: 0,0
A87: 10 PRIMERAS CAUSAS DE CONSULTA 2013 | N87: Total Municipal | P87: 6 | R87: 0 | T87: 0
A88: ORDEN | B88: CODIGO CIE-10 | C88: CAUSA | F88: TOTAL GENERAL | G88: % | H88: HOMBRES | J88: MUJERES | N88: CERTIFACION EN AGUA POTABLE | O88: INDICE RIESGO CALIDAD DEL AGUA POTABLE - IRCA- (a) | P88: INDICE RIESGO DE ABASTECIMIENTO MUNICIPAL - IRABA- (b) | R88: BUENAS PRACTICAS SANTIARIAS © | T88: CERTIFICAION SANITARIA MUNICIPAL EN AGUA POTABLE ©
A90: 1 | B90: I10X | C90: HIPERTENSION ESENCIAL (PRIMARIA) | F90: 2098 | G90: 10.32429506 | H90: 668 | J90: 1430
A91: 2 | B91: R104 | C91: OTROS DOLORES ABDOMINALES Y LOS NO ESPECIFICADOS | F91: 723 | G91: 3.557895773 | H91: 183 | J91: 540
A92: 3 | B92: N390 | C92: INFECCION DE VIAS URINARIAS SITIO NO ESPECIFICADO | F92: 492 | G92: 2.421140692 | H92: 106 | J92: 386 | N92: Urbano | O92: 9.1 | P92: 22.8 | R92: 16 | T92: 13.91
A93: 4 | B93: R51X | C93: CEFALEA | F93: 491 | G93: 2.416219674 | H93: 124 | J93: 367 | N93: Rural | O93: 56.3 | P93: 82.2 | R93: 93.4 | T93: 72.61
A94: 5 | B94: K297 | C94: GASTRITIS NO ESPECIFICADA | F94: 391 | G94: 1.924117908 | H94: 138 | J94: 253 | N94: Total | O94: 13.7 | P94: 24.7 | R94: 27.1 | T94: 19.92
A95: 6 | B95: M545 | C95: LUMBAGO NO ESPECIFICADO | F95: 389 | G95: 1.914275872 | H95: 193 | J95: 196 | N95: PROYECTOS DE INVERSION (En pesos)
A96: 7 | B96: M255 | C96: DOLOR EN ARTICULACION | F96: 319 | G96: 1.569804636 | H96: 88 | J96: 231 | Q96: 2012 | S96: 2013 | U96: 2014
A97: 8 | B97: J00X | C97: RINOFARINGITIS AGUDA (RESFRIADO COMUN) | F97: 267 | G97: 1.313911717 | H97: 83 | J97: 184 | N97: ADULTO MAYOR | Q97: 57800000 | S97: 14120920 | U97: 35000000
A98: 9 | B98: J449 | C98: ENFERMEDAD PULMONAR OBSTRUCTIVA CRONICA NO ESPECIFICADA | F98: 237 | G98: 1.166281187 | H98: 132 | J98: 105 | N98: DOTACION DISCAPACIDAD | U98: 2747752
A99: 10 | B99: A09X | C99: DIARREA Y GASTROENTERITIS DE PRESUNTO ORIGEN INFECCIOSO | F99: 237 | G99: 1.166281187 | H99: 118 | J99: 119 | N99: APS - SALUD CONTIGO | Q99: 45660000 | S99: 76700000 | U99: 65000000
A100: 11 | C100: OTROS | F100: 14677 | G100: 72.22577629 | H100: 5447 | J100: 9230 | N100: COFINANCIACION REG. SUBSIDIADO | Q100: 16985416.72 | S100: 14588048 | U100: 19257700
A101: TOTALES | F101: 20321 | G101: 100 | H101: 7280 | J101: 13041 | N101: SSR | Q101: 432401
A102: 10 PRIMERAS CAUSAS DE URGENCIAS 2013 | N102: PAI | Q102: 1109610
A103: ORDEN | B103: CODIGO CIE-10 | C103: CAUSA | F103: TOTAL GENERAL | G103: % | H103: HOMBRES | J103: MUJERES | N103: VECTORES | Q103: 386400
N104: ESTERILIZACION MASCOTAS | Q104: 0
A105: 1 | B105: J189 | C105: NEUMONIA NO ESPECIFICADA | F105: 4 | G105: 4.04040404 | H105: 4 | J105: 0 | N105: VACUNA ANTIRRABICA | Q105: 1140000
A106: 2 | B106: N041 | C106: SINDROME NEFROTICO: LESIONES GLOMERULARES FOCALES Y SEGMENTARIAS | F106: 4 | G106: 4.04040404 | H106: 4 | J106: 0 | N106: INFRAESTRUCTURA
A107: 3 | B107: N390 | C107: INFECCION DE VIAS URINARIAS SITIO NO ESPECIFICADO | F107: 4 | G107: 4.04040404 | H107: 0 | J107: 4 | N107: DOTACION EQUIPOS BIOMEDICOS
A108: 4 | B108: O200 | C108: AMENAZA DE ABORTO | F108: 2 | G108: 2.02020202 | H108: 0 | J108: 2 | N108: ESTAMPILLAS PROHOSPITALES | Q108: 62054000 | U108: 50257872
A109: 5 | B109: S525 | C109: FRACTURA DE LA EPIFISIS INFERIOR DEL RADIO | F109: 2 | G109: 2.02020202 | H109: 1 | J109: 1 | N109: EQUIPAMIENTO | S109: 40000000
A110: 6 | B110: R688 | C110: OTROS SINTOMAS Y SIGNOS GENERALES ESPECIFICADOS | F110: 2 | G110: 2.02020202 | H110: 2 | J110: 0 | N110: TELEMEDICINA
A111: 7 | B111: H659 | C111: OTITIS MEDIA NO SUPURATIVA SIN OTRA ESPECIFICACION | F111: 2 | G111: 2.02020202 | H111: 0 | J111: 2 | N111: AMBULANCIA
A112: 8 | B112: S961 | C112: TRAUMATISMO DEL TENDON Y MUSCULO DEL EXTENSOR LARGO DEL (DE LOS) DEDO(S) A NIVEL DEL PIE Y DEL TOBILLO | F112: 2 | G112: 2.02020202 | H112: 2 | J112: 0 | N112: TOTALES | Q112: =SUM(Q97:R111) -> 185567827.7 | S112: =SUM(S97:T111) -> 145408968 | U112: =SUM(U97:V111) -> 172263324
A113: 9 | B113: I469 | C113: PARO CARDIACO NO ESPECIFICADO | F113: 2 | G113: 2.02020202 | H113: 2 | J113: 0 | N113: PROYECTOS DE INVERSION (En Cantidad)
A114: 10 | B114: R102 | C114: DOLOR PELVICO Y PERINEAL | F114: 2 | G114: 2.02020202 | H114: 0 | J114: 2 | N114: PROGRAMA AEREO (No brigadas)
A115: 11 | C115: OTROS | F115: 73 | G115: 73.73737374 | H115: 22 | J115: 51 | N115: ASESORIA Y ASISTENCIA TECNICA | Q115: 14
A116: TOTALES | F116: 99 | G116: 100 | H116: 37 | J116: 62 | N116: CENTROS AMIGABLES JOVENES

Sheet AMAGA
C4: ALCALDE | E4: JUAN CARLOS AMAYA CANO
C5: DIRECTOR LOCAL DE SALUD | E5: DAVID ALEJANDRO QUIROS VELASQUEZ
C7: CERTIFICACION | E7: RANKING | F7: CATEGORIA MUNICIPAL
C8: SI | E8: 30 | F8: 6a.
C9: TOTAL CORREGIMIENTOS | E9: 3 | F9: TOTAL VEREDAS | I9: 21
A10: CARACTERISTICAS DEMOGRAFICAS | N10: VIGILANCIA DE LA SALUD PUBLICA - AÑO 2014
A11: POBLACION 2015
A12: TOTAL | B12: HOMBRES | C12: MUJERES | D12: CABECERA | E12: RESTO | N12: MORTALIDAD CANCER CUELLO UTERINO | S12: MORTALIDAD MATERNA
A13: 29555 | B13: 14960 | C13: 14595 | D13: 16757 | E13: 12798 | N13: # Casos | O13: Tasa x cienmil Mujeres | S13: # Casos | T13: Tasa x cienmil Nacidos vivos
A14: POR GRUPOS DE EDAD | N14: 1 | O14: 6.896551724 | S14: 0 | T14: 0
A15: 0 - 4 AÑOS | B15: 5 - 9 AÑOS | C15: 10 - 14 AÑOS | D15: 15 - 19 AÑOS | E15: 20 - 59 AÑOS | F15: > 60 AÑOS
A16: 2795 | B16: 2757 | C16: 2725 | D16: 2639 | E16: 15694 | F16: 2945 | N16: MORTALIDAD INFANTIL | S16: MORTALIDAD PERINATAL
N17: # Casos | O17: Tasa x cienmil Nacidos vivos | S17: # Casos | T17: Tasa x cienmil Nacidos vivos
A18: DESPLAZADOS 2015 (a marzo) | D18: INDIGENAS FEB 2014 | G18: ROM | I18: AFRO | N18: 1 | O18: 3.773584906 | S18: 4 | T18: 15.09433962
A19: TOTAL | B19: HOMBRES | C19: MUJERES | D19: TOTAL | E19: HOMBRES | F19: MUJERES
A20: 984 | B20: 482.16 | C20: 501.84 | D20: 0 | E20: 0 | F20: 0 | N20: MORTALIDAD VIH SIDA | S20: MORTALIDAD TUBERCULOSIS
A21: POBLACION TOTAL | B21: Afiliados al regimen Subsidiado * | D21: % De Aseguramiento al Regimen Subsidiado * | F21: Afiliados al Regimen Contributivo BDUA * | H21: % De Aseguramiento al Regimen Contributivo * | N21: # Casos | O21: Tasa x cienmil Habitantes | S21: # Casos | T21: Tasa x cienmil Habitantes
N22: 0 | O22: 0 | S22: 0 | T22: 0
N24: MORTALIDAD INFARTO AL MIOCARDIO | S24: MORTALIDAD < 5 AÑOS
A25: 29555 | B25: 11038 | D25: 37.34731856 | F25: 12383 | H25: 41.89815598 | N25: # Casos | O25: Tasa x cienmil Habitantes | S25: # Casos | T25: Tasa x cienmil Niños
A26: NBI (pobre) 2012 | H26: * Agosto 2015 | N26: 28 | O26: 95.43610893 | S26: 1 | T26: 35.79098067
A27: Total | C27: Cabecera | E27: Resto
A28: Prop (%) | B28: cve (%) | C28: Prop (%) | D28: cve (%) | E28: Prop (%) | F28: cve (%)
A29: 27.06904492 | B29: 4.963595369 | C29: 21.59150721 | D29: 6.138624647 | E29: 33.01178425 | F29: 7.28243046 | N29: REGISTRO POBLACIONAL DE CANCER 2012
N30: Numero de casos registrados | P30: HOMBRES | Q30: MUJERES | R30: TOTAL
A31: PRESTACION DE SERVICIOS DE SALUD ** | P31: 19 | Q31: 25 | R31: =SUM(P31:Q31) -> 44
A32: EMPRESAS SOCIALES DEL ESTADO
A33: INSTITUCION PRESTADORA DE SERVICIOS DE SALUD | F33: DIRECTOR / GERENTE | N33: 10 PRIMERAS CAUSAS DE MORTALIDAD 2014
A34: ESE HOSPITAL SAN FERNANDO | F34: JORGE IVAN CASTRO QUINTERO | N34: ORDEN | O34: CODIGO 105 CIE-10 | P34: CAUSA | T34: TOTAL GENERAL | U34: HOMBRES | V34: MUJERES | W34: SIN DATO
N36: 1 | O36: 051 | P36: ENFERMEDADES ISQUEMICAS DEL CORAZON | T36: 29 | U36: 17 | V36: 12
N37: 2 | O37: 060 | P37: ENFERMEDADES CRONICAS DE LAS VIAS RESPIRATORIAS INFERIORES | T37: 17 | U37: 8 | V37: 9
N38: 3 | O38: 089 | P38: SIGNOS, SINTOMAS Y AFECCIONES MAL DEFINIDAS | T38: 13 | U38: 6 | V38: 7
A39: PRESTADORES DE SERVICIOS DE SALUD | N39: 4 | O39: 095 | P39: AHOGAMIENTO Y SUMERSION ACCIDENTALES | T39: 11 | U39: 11 | V39: 0
A40: TOTALES | B40: IPS | C40: PROFESIONALES INDEPENDIENTES | E40: TRANSPORTE ESPECIAL | G40: OBJETO SOCIAL DIFERENTE | N40: 5 | O40: 101 | P40: AGRESIONES (HOMICIDIOS) Y SECUELAS | T40: 11 | U40: 10 | V40: 1
N41: 6 | O41: 020 | P41: TUMOR MALIGNO DE LA TRAQUEA, LOS BRONQUIOS Y EL PULMON | T41: 7 | U41: 5 | V41: 2
B42: 1 | C42: 8 | E42: 0 | G42: 0 | N42: 7 | O42: 031 | P42: TUMOR MALIGNOS DEL ENCEFALO, DEL OJO Y DE OTRAS PARTES DEL SISTEMA NERVIOSO CENTRAL | T42: 5 | U42: 2 | V42: 3
A43: IPS PUBLICAS | B43: IPS PRIVADAS | C43: SERVICIOS PRESTADOS X PROFESION | N43: 8 | O43: 059 | P43: NEUMONIA | T43: 5 | U43: 4 | V43: 1
C44: Odontólogos | D44: Médicos | E44: Otros | F44: Total | N44: 9 | O44: 055 | P44: ENFERMEDADES CEREBROVASCULARES | T44: 4 | U44: 3 | V44: 1
N45: 10 | O45: 041 | P45: DIABETES MELLITUS | T45: 4 | U45: 0 | V45: 4
A46: 1 | B46: 0 | C46: 8 | D46: 8 | E46: 2 | F46: =C46+D46+E46 -> 18
A48: CAPACIDAD INSTALADA | N48: PORCENTAJE DE EMBARAZOS POR GRUPO EDAD RESIDENCIA HABITUAL DE LA MADRE 2014 | S48: TASAS DE FECUNDIDAD ESPECIFICA POR MIL MUJERES 2014
A49: CAMAS
A50: Adultos | B50: Cuidado Agudo Mental | C50: Cuidado Intensivo Adulto | D50: Cuidado Intensivo Neonatal | E50: Cuidado Intensivo Pediátrico | F50: Cuidado Intermedio Adulto | G50: Cuidado Intermedio Mental | I50: Cuidado Intermedio Neonatal
N51: 10 a 14 AÑOS | P51: 15 a 19 AÑOS | S51: 10 a 14 AÑOS | U51: 15 a 19 AÑOS
N52: No | O52: % | P52: No | Q52: % | S52: No | T52: TASA | U52: No | V52: TASA
A53: 4 | B53: 0 | C53: 0 | D53: 0 | E53: 0 | F53: 0 | G53: 0 | I53: 0 | N53: 5 | O53: 1.811594203 | P53: 67 | Q53: 24.27536232 | S53: 5 | T53: 3.900156006 | U53: 67 | V53: 50.26256564
A54: CAMAS
A55: Cuidado Intermedio Pediátrico | B55: Farmaco- de-pendencia | C55: Obste-tricia | D55: Pediátricas | E55: Quemados Adultos | F55: Quemados Pediátrico | G55: Salud Mental Psiquiatría | I55: TOTAL CAMAS
A58: 0 | B58: 0 | C58: 3 | D58: 3 | E58: 0 | F58: 0 | G58: 0 | I58: =A53+B53+C53+D53+E53+F53+G53+I53+A58+B58+C58+D58+E58+F58+G58 -> 10
A60: SALAS | E60: TOTAL SALAS | N60: INMUNIZACIONES PAI 2014
A61: PARTO | C61: QUIROFANO | N61: POLIOMIELITIS (V.O.P)
A62: 1 | C62: 0 | E62: =A62+C62 -> 1 | N62: Vacunados (Edades) | S62: Refuerzos | T62: Dosis Aplicadas
N63: <1 | O63: 1 | P63: 2 | Q63: 3 | R63: 4 | S63: Otros
A64: TOTAL DE SERVICIOS PRESTADOS SEGÚN LA COMPLEJIDAD | N64: 267 | O64: 0 | P64: 1 | Q64: 1 | R64: 0 | S64: 585 | T64: 1409
A65: BAJA | C65: MEDIA | E65: ALTA
A66: 45 | C66: 3 | E66: 0 | N66: DIFTERIA, TOSFERINA Y TÉTANO (D.P.T)
N67: Vacunados (Edades) | S67: Refuerzos | T67: Dosis
A68: TOTAL DE AMBULANCIAS HABILITADAS SEGÚN TIPO Y MODALIDAD | N68: <1 | O68: 1 | P68: 2 | Q68: 3 | R68: 4 | S68: Otros | T68: Aplicadas
A69: TIPO | C69: MODALIDAD | F69: TOTAL GENERAL | N69: 269 | O69: 0 | P69: 1 | Q69: 1 | R69: 0 | S69: 583 | T69: 1451
A70: BASICA | B70: MEDICADA | C70: AEREA | D70: TERRESTRE | E70: FLUVIAL | H70: ** Fuente: REPS-Minsalud julio 2015
A71: 2 | B71: 0 | C71: 0 | D71: 2 | E71: 0 | F71: =SUM(C71:E71) -> 2 | N71: TUBERCULOSIS (B.C.G)
A72: 10 PRIMERAS CAUSAS DE HOSPITALIZACION 2013 | N72: Vacunados (Edades) | S72: Otros | T72: Dosis Aplicadas
A73: ORDEN | B73: CODIGO CIE-10 | C73: CAUSA | F73: TOTAL GENERAL | G73: % | H73: HOMBRES | J73: MUJERES | N73: <1 | O73: 1
N74: 21 | O74: 8 | S74: 0 | T74: 29
A75: 1 | B75: O800 | C75: PARTO UNICO ESPONTANEO PRESENTACION CEFALICA DE VERTICE | F75: 56 | G75: 5.410628019 | H75: 0 | J75: 56
A76: 2 | B76: O470 | C76: FALSO TRABAJO DE PARTO ANTES DE LA 37 SEMANAS COMPLETAS DE GESTACION | F76: 32 | G76: 3.09178744 | H76: 0 | J76: 32 | N76: TRIPLE VIRAL - S. R. P.
A77: 3 | B77: N390 | C77: INFECCION DE VIAS URINARIAS SITIO NO ESPECIFICADO | F77: 30 | G77: 2.898550725 | H77: 16 | J77: 14 | N77: Vacunados (Edades) | S77: Refuerzos | T77: Dosis Aplicadas
A78: 4 | B78: J441 | C78: ENFERMEDAD PULMONAR OBSTRUCTIVA CRONICA CON EXACERBACION AGUDA NO ESPECIFICADA | F78: 29 | G78: 2.801932367 | H78: 8 | J78: 21 | N78: 1 | O78: 2 | P78: 3 | Q78: 4 | R78: Ref. | S78: Otros
A79: 5 | B79: J159 | C79: NEUMONIA BACTERIANA NO ESPECIFICADA | F79: 22 | G79: 2.125603865 | H79: 12 | J79: 10 | N79: 268 | O79: 1 | P79: 1 | Q79: 1 | R79: 347 | S79: 21 | T79: 639
A80: 6 | B80: K359 | C80: APENDICITIS AGUDA NO ESPECIFICADA | F80: 18 | G80: 1.739130435 | H80: 8 | J80: 10
A81: 7 | B81: J189 | C81: NEUMONIA NO ESPECIFICADA | F81: 16 | G81: 1.54589372 | H81: 8 | J81: 8 | N81: AGUA POTABLE 2013
A82: 8 | B82: R104 | C82: OTROS DOLORES ABDOMINALES Y LOS NO ESPECIFICADOS | F82: 15 | G82: 1.449275362 | H82: 8 | J82: 7 | P82: NUMEROS ACUEDUCTOS | R82: COBERTURA ACUEDUCTOS CON AGUA POTABLE (%) | T82: COBERTURAS VIVIENDAS CON AGUA POTABLE (%)
A83: 9 | B83: I219 | C83: INFARTO AGUDO DEL MIOCARDIO SIN OTRA ESPECIFICACION | F83: 15 | G83: 1.449275362 | H83: 9 | J83: 6
A84: 10 | B84: O479 | C84: FALSO TRABAJO DE PARTO SIN OTRA ESPECIFICACION | F84: 14 | G84: 1.352657005 | H84: 0 | J84: 14
A85: 11 | C85: OTROS | F85: 788 | G85: 76.1352657 | H85: 336 | J85: 452 | N85: Urbano | P85: 1 | R85: 100 | T85: 100
A86: TOTALES | F86: 1035 | G86: 100 | H86: 405 | J86: 630 | N86: Rural | P86: 39 | R86: 5.128205128 | T86: 1.21
A87: 10 PRIMERAS CAUSAS DE CONSULTA 2013 | N87: Total Municipal | P87: 40 | R87: 7.5 | T87: 45.4
A88: ORDEN | B88: CODIGO CIE-10 | C88: CAUSA | F88: TOTAL GENERAL | G88: % | H88: HOMBRES | J88: MUJERES | N88: CERTIFACION EN AGUA POTABLE | O88: INDICE RIESGO CALIDAD DEL AGUA POTABLE - IRCA- (a) | P88: INDICE RIESGO DE ABASTECIMIENTO MUNICIPAL - IRABA- (b) | R88: BUENAS PRACTICAS SANTIARIAS © | T88: CERTIFICAION SANITARIA MUNICIPAL EN AGUA POTABLE ©
A90: 1 | B90: I10X | C90: HIPERTENSION ESENCIAL (PRIMARIA) | F90: 6244 | G90: 11.15976479 | H90: 1902 | J90: 4342
A91: 2 | B91: R104 | C91: OTROS DOLORES ABDOMINALES Y LOS NO ESPECIFICADOS | F91: 1879 | G91: 3.358295652 | H91: 612 | J91: 1267
A92: 3 | B92: K050 | C92: GINGIVITIS AGUDA | F92: 1233 | G92: 2.203713964 | H92: 495 | J92: 738 | N92: Urbano | O92: 1.6 | P92: 19.7 | R92: 5 | T92: 6.24
A93: 4 | B93: R51X | C93: CEFALEA | F93: 1006 | G93: 1.798001823 | H93: 306 | J93: 700 | N93: Rural | O93: 83.4 | P93: 66.3 | R93: 58.7 | T93: 72.57
A94: 5 | B94: M545 | C94: LUMBAGO NO ESPECIFICADO | F94: 933 | G94: 1.667530518 | H94: 510 | J94: 423 | N94: Total | O94: 31.4 | P94: 21.1 | R94: 23.7 | T94: 27.03
A95: 6 | B95: N390 | C95: INFECCION DE VIAS URINARIAS SITIO NO ESPECIFICADO | F95: 763 | G95: 1.363693232 | H95: 211 | J95: 552 | N95: PROYECTOS DE INVERSION (En pesos)
A96: 7 | B96: K021 | C96: CARIES DE LA DENTINA | F96: 742 | G96: 1.32616039 | H96: 305 | J96: 437 | Q96: 2012 | S96: 2013 | U96: 2014
A97: 8 | B97: M255 | C97: DOLOR EN ARTICULACION | F97: 597 | G97: 1.067005058 | H97: 229 | J97: 368 | N97: ADULTO MAYOR | Q97: 57000000 | S97: 70000000 | U97: 50000000
A98: 9 | B98: A09X | C98: DIARREA Y GASTROENTERITIS DE PRESUNTO ORIGEN INFECCIOSO | F98: 563 | G98: 1.006237601 | H98: 298 | J98: 265 | N98: DOTACION DISCAPACIDAD | U98: 2747752
A99: 10 | B99: E119 | C99: DIABETES MELLITUS NO INSULINODEPENDIENTE SIN MENCION DE COMPLICACION | F99: 536 | G99: 0.9579810906 | H99: 186 | J99: 350 | N99: APS - SALUD CONTIGO | S99: 76000000 | U99: 57670000
A100: 11 | C100: OTROS | F100: 41455 | G100: 74.09161588 | H100: 16719 | J100: 24736 | N100: COFINANCIACION REG. SUBSIDIADO | Q100: 240283375.6 | S100: 206369115 | U100: 272428125
A101: TOTALES | F101: 55951 | G101: 100 | H101: 21773 | J101: 34178 | N101: SSR | Q101: 3495131
A102: 10 PRIMERAS CAUSAS DE URGENCIAS 2013 | N102: PAI | Q102: 8969063
A103: ORDEN | B103: CODIGO CIE-10 | C103: CAUSA | F103: TOTAL GENERAL | G103: % | H103: HOMBRES | J103: MUJERES | N103: VECTORES | Q103: 386400
N104: ESTERILIZACION MASCOTAS | Q104: 0
A105: 1 | B105: O800 | C105: PARTO UNICO ESPONTANEO PRESENTACION CEFALICA DE VERTICE | F105: 31 | G105: 3.668639053 | H105: 0 | J105: 31 | N105: VACUNA ANTIRRABICA | Q105: 4928000
A106: 2 | B106: R104 | C106: OTROS DOLORES ABDOMINALES Y LOS NO ESPECIFICADOS | F106: 26 | G106: 3.076923077 | H106: 11 | J106: 15 | N106: INFRAESTRUCTURA
A107: 3 | B107: O470 | C107: FALSO TRABAJO DE PARTO ANTES DE LA 37 SEMANAS COMPLETAS DE GESTACION | F107: 26 | G107: 3.076923077 | H107: 0 | J107: 26 | N107: DOTACION EQUIPOS BIOMEDICOS
A108: 4 | B108: N390 | C108: INFECCION DE VIAS URINARIAS SITIO NO ESPECIFICADO | F108: 15 | G108: 1.775147929 | H108: 9 | J108: 6 | N108: ESTAMPILLAS PROHOSPITALES | U108: 58783887
A109: 5 | B109: J441 | C109: ENFERMEDAD PULMONAR OBSTRUCTIVA CRONICA CON EXACERBACION AGUDA NO ESPECIFICADA | F109: 11 | G109: 1.301775148 | H109: 4 | J109: 7 | N109: EQUIPAMIENTO
A110: 6 | B110: K922 | C110: HEMORRAGIA GASTROINTESTINAL NO ESPECIFICADA | F110: 11 | G110: 1.301775148 | H110: 5 | J110: 6 | N110: TELEMEDICINA
A111: 7 | B111: R102 | C111: DOLOR PELVICO Y PERINEAL | F111: 10 | G111: 1.183431953 | H111: 1 | J111: 9 | N111: AMBULANCIA
A112: 8 | B112: S069 | C112: TRAUMATISMO INTRACRANEAL NO ESPECIFICADO | F112: 10 | G112: 1.183431953 | H112: 7 | J112: 3 | N112: TOTALES | Q112: =SUM(Q97:R111) -> 315061969.6 | S112: =SUM(S97:T111) -> 352369115 | U112: =SUM(U97:V111) -> 441629764
A113: 9 | B113: R51X | C113: CEFALEA | F113: 10 | G113: 1.183431953 | H113: 2 | J113: 8 | N113: PROYECTOS DE INVERSION (En Cantidad)
A114: 10 | B114: K359 | C114: APENDICITIS AGUDA NO ESPECIFICADA | F114: 10 | G114: 1.183431953 | H114: 5 | J114: 5 | N114: PROGRAMA AEREO (No brigadas)
A115: 11 | C115: OTROS | F115: 685 | G115: 81.06508876 | H115: 340 | J115: 345 | N115: ASESORIA Y ASISTENCIA TECNICA | Q115: 20
A116: TOTALES | F116: 845 | G116: 100 | H116: 384 | J116: 461 | N116: CENTROS AMIGABLES JOVENES

Sheet AMALFI
C4: ALCALDE | E4: OSCAR MARIO GARCÍA RENDÓN
C5: DIRECTOR LOCAL DE SALUD | E5: JESSICA ALEJANDRA ZAPATA RESTREPO
C7: CERTIFICACION | E7: RANKING | F7: CATEGORIA MUNICIPAL
C8: SI | E8: 1 | F8: 6a.
C9: TOTAL CORREGIMIENTOS | E9: 1 | F9: TOTAL VEREDAS | I9: 46
A10: CARACTERISTICAS DEMOGRAFICAS | N10: VIGILANCIA DE LA SALUD PUBLICA - AÑO 2014
A11: POBLACION 2015
A12: TOTAL | B12: HOMBRES | C12: MUJERES | D12: CABECERA | E12: RESTO | N12: MORTALIDAD CANCER CUELLO UTERINO | S12: MORTALIDAD MATERNA
A13: 22088 | B13: 11383 | C13: 10705 | D13: 12236 | E13: 9852 | N13: # Casos | O13: Tasa x cienmil Mujeres | S13: # Casos | T13: Tasa x cienmil Nacidos vivos
A14: POR GRUPOS DE EDAD | N14: 0 | O14: 0 | S14: 0 | T14: 0
A15: 0 - 4 AÑOS | B15: 5 - 9 AÑOS | C15: 10 - 14 AÑOS | D15: 15 - 19 AÑOS | E15: 20 - 59 AÑOS | F15: > 60 AÑOS
A16: 2442 | B16: 2243 | C16: 2137 | D16: 2194 | E16: 10901 | F16: 2171 | N16: MORTALIDAD INFANTIL | S16: MORTALIDAD PERINATAL
N17: # Casos | O17: Tasa x cienmil Nacidos vivos | S17: # Casos | T17: Tasa x cienmil Nacidos vivos
A18: DESPLAZADOS 2015 (a marzo) | D18: INDIGENAS FEB 2014 | G18: ROM | I18: AFRO | N18: 0 | O18: 0 | S18: 1 | T18: 3.389830508
A19: TOTAL | B19: HOMBRES | C19: MUJERES | D19: TOTAL | E19: HOMBRES | F19: MUJERES
A20: 2866 | B20: 1404.34 | C20: 1461.66 | D20: 0 | E20: 0 | F20: 0 | N20: MORTALIDAD VIH SIDA | S20: MORTALIDAD TUBERCULOSIS
A21: POBLACION TOTAL | B21: Afiliados al regimen Subsidiado * | D21: % De Aseguramiento al Regimen Subsidiado * | F21: Afiliados al Regimen Contributivo BDUA * | H21: % De Aseguramiento al Regimen Contributivo * | N21: # Casos | O21: Tasa x cienmil Habitantes | S21: # Casos | T21: Tasa x cienmil Habitantes
N22: 0 | O22: 0 | S22: 1 | T22: 4.559547693
N24: MORTALIDAD INFARTO AL MIOCARDIO | S24: MORTALIDAD < 5 AÑOS
A25: 22088 | B25: 17278 | D25: 78.22346976 | F25: 4466 | H25: 20.21912351 | N25: # Casos | O25: Tasa x cienmil Habitantes | S25: # Casos | T25: Tasa x cienmil Niños
A26: NBI (pobre) 2012 | H26: * Agosto 2015 | N26: 7 | O26: 31.91683385 | S26: 1 | T26: 41.22011542
A27: Total | C27: Cabecera | E27: Resto
A28: Prop (%) | B28: cve (%) | C28: Prop (%) | D28: cve (%) | E28: Prop (%) | F28: cve (%)
A29: 45.2854895 | B29: 2.807784801 | C29: 25.6681709 | D29: 4.813215789 | E29: 68.81333731 | F29: 3.446542693 | N29: REGISTRO POBLACIONAL DE CANCER 2012
N30: Numero de casos registrados | P30: HOMBRES | Q30: MUJERES | R30: TOTAL
A31: PRESTACION DE SERVICIOS DE SALUD ** | P31: 12 | Q31: 9 | R31: =SUM(P31:Q31) -> 21
A32: EMPRESAS SOCIALES DEL ESTADO
A33: INSTITUCION PRESTADORA DE SERVICIOS DE SALUD | F33: DIRECTOR / GERENTE | N33: 10 PRIMERAS CAUSAS DE MORTALIDAD 2014
A34: E.S.E HOSPITAL EL CARMEN | F34: RICARDO LUIS ARZUZA MENDOZA | N34: ORDEN | O34: CODIGO 105 CIE-10 | P34: CAUSA | T34: TOTAL GENERAL | U34: HOMBRES | V34: MUJERES | W34: SIN DATO
N36: 1 | O36: 101 | P36: AGRESIONES (HOMICIDIOS) Y SECUELAS | T36: 20 | U36: 14 | V36: 6
N37: 2 | O37: 051 | P37: ENFERMEDADES ISQUEMICAS DEL CORAZON | T37: 8 | U37: 4 | V37: 4
N38: 3 | O38: 020 | P38: TUMOR MALIGNO DE LA TRAQUEA, LOS BRONQUIOS Y EL PULMON | T38: 6 | U38: 2 | V38: 4
A39: PRESTADORES DE SERVICIOS DE SALUD | N39: 4 | O39: 055 | P39: ENFERMEDADES CEREBROVASCULARES | T39: 6 | U39: 4 | V39: 2
A40: TOTALES | B40: IPS | C40: PROFESIONALES INDEPENDIENTES | E40: TRANSPORTE ESPECIAL | G40: OBJETO SOCIAL DIFERENTE | N40: 5 | O40: 050 | P40: ENFERMEDADES HIPERTENSIVAS | T40: 5 | U40: 3 | V40: 2
N41: 6 | O41: 060 | P41: ENFERMEDADES CRONICAS DE LAS VIAS RESPIRATORIAS INFERIORES | T41: 4 | U41: 2 | V41: 2
B42: 1 | C42: 8 | E42: 0 | G42: 0 | N42: 7 | O42: 089 | P42: SIGNOS, SINTOMAS Y AFECCIONES MAL DEFINIDAS | T42: 3 | U42: 1 | V42: 2
A43: IPS PUBLICAS | B43: IPS PRIVADAS | C43: SERVICIOS PRESTADOS X PROFESION | N43: 8 | O43: 041 | P43: DIABETES MELLITUS | T43: 3 | U43: 1 | V43: 2
C44: Odontólogos | D44: Médicos | E44: Otros | F44: Total | N44: 9 | O44: 090 | P44: ACCIDENTES DE TRANSPORTE DE MOTOR Y SECUELAS | T44: 3 | U44: 3 | V44: 0
N45: 10 | O45: 063 | P45: ULCERA | T45: 2 | U45: 2 | V45: 0
A46: 1 | B46: 0 | C46: 3 | D46: 3 | E46: 7 | F46: =C46+D46+E46 -> 13
A48: CAPACIDAD INSTALADA | N48: PORCENTAJE DE EMBARAZOS POR GRUPO EDAD RESIDENCIA HABITUAL DE LA MADRE 2014 | S48: TASAS DE FECUNDIDAD ESPECIFICA POR MIL MUJERES 2014
A49: CAMAS
A50: Adultos | B50: Cuidado Agudo Mental | C50: Cuidado Intensivo Adulto | D50: Cuidado Intensivo Neonatal | E50: Cuidado Intensivo Pediátrico | F50: Cuidado Intermedio Adulto | G50: Cuidado Intermedio Mental | I50: Cuidado Intermedio Neonatal
N51: 10 a 14 AÑOS | P51: 15 a 19 AÑOS | S51: 10 a 14 AÑOS | U51: 15 a 19 AÑOS
N52: No | O52: % | P52: No | Q52: % | S52: No | T52: TASA | U52: No | V52: TASA
A53: 8 | B53: 0 | C53: 0 | D53: 0 | E53: 0 | F53: 0 | G53: 0 | I53: 0 | N53: 5 | O53: 1.650165017 | P53: 89 | Q53: 29.37293729 | S53: 5 | T53: 4.739336493 | U53: 89 | V53: 80.68902992
A54: CAMAS
A55: Cuidado Intermedio Pediátrico | B55: Farmaco- de-pendencia | C55: Obste-tricia | D55: Pediátricas | E55: Quemados Adultos | F55: Quemados Pediátrico | G55: Salud Mental Psiquiatría | I55: TOTAL CAMAS
A58: 0 | B58: 0 | C58: 5 | D58: 3 | E58: 0 | F58: 0 | G58: 0 | I58: =A53+B53+C53+D53+E53+F53+G53+I53+A58+B58+C58+D58+E58+F58+G58 -> 16
A60: SALAS | E60: TOTAL SALAS | N60: INMUNIZACIONES PAI 2014
A61: PARTO | C61: QUIROFANO | N61: POLIOMIELITIS (V.O.P)
A62: 1 | C62: 0 | E62: =A62+C62 -> 1 | N62: Vacunados (Edades) | S62: Refuerzos | T62: Dosis Aplicadas
N63: <1 | O63: 1 | P63: 2 | Q63: 3 | R63: 4 | S63: Otros
A64: TOTAL DE SERVICIOS PRESTADOS SEGÚN LA COMPLEJIDAD | N64: 344 | O64: 0 | P64: 1 | Q64: 0 | R64: 0 | S64: 802 | T64: 1795
A65: BAJA | C65: MEDIA | E65: ALTA
A66: 27 | C66: 11 | E66: 0 | N66: DIFTERIA, TOSFERINA Y TÉTANO (D.P.T)
N67: Vacunados (Edades) | S67: Refuerzos | T67: Dosis
A68: TOTAL DE AMBULANCIAS HABILITADAS SEGÚN TIPO Y MODALIDAD | N68: <1 | O68: 1 | P68: 2 | Q68: 3 | R68: 4 | S68: Otros | T68: Aplicadas
A69: TIPO | C69: MODALIDAD | F69: TOTAL GENERAL | N69: 342 | O69: 0 | P69: 1 | Q69: 0 | R69: 0 | S69: 804 | T69: 1793
A70: BASICA | B70: MEDICADA | C70: AEREA | D70: TERRESTRE | E70: FLUVIAL | H70: ** Fuente: REPS-Minsalud julio 2015
A71: 2 | B71: 0 | C71: 0 | D71: 2 | E71: 0 | F71: =SUM(C71:E71) -> 2 | N71: TUBERCULOSIS (B.C.G)
A72: 10 PRIMERAS CAUSAS DE HOSPITALIZACION 2013 | N72: Vacunados (Edades) | S72: Otros | T72: Dosis Aplicadas
A73: ORDEN | B73: CODIGO CIE-10 | C73: CAUSA | F73: TOTAL GENERAL | G73: % | H73: HOMBRES | J73: MUJERES | N73: <1 | O73: 1
N74: 141 | O74: 1 | S74: 0 | T74: 142
A75: 1 | B75: O471 | C75: FALSO TRABAJO DE PARTO ANTES DE LA 37 Y MAS SEMANAS COMPLETAS DE GESTACION | F75: 56 | G75: 6.414662085 | H75: 0 | J75: 56
A76: 2 | B76: O800 | C76: PARTO UNICO ESPONTANEO PRESENTACION CEFALICA DE VERTICE | F76: 37 | G76: 4.238258877 | H76: 0 | J76: 37 | N76: TRIPLE VIRAL - S. R. P.
A77: 3 | B77: N390 | C77: INFECCION DE VIAS URINARIAS SITIO NO ESPECIFICADO | F77: 33 | G77: 3.780068729 | H77: 10 | J77: 23 | N77: Vacunados (Edades) | S77: Refuerzos | T77: Dosis Aplicadas
A78: 4 | B78: J159 | C78: NEUMONIA BACTERIANA NO ESPECIFICADA | F78: 29 | G78: 3.32187858 | H78: 18 | J78: 11 | N78: 1 | O78: 2 | P78: 3 | Q78: 4 | R78: Ref. | S78: Otros
A79: 5 | B79: L031 | C79: CELULITIS DE OTRAS PARTES DE LOS MIEMBROS | F79: 23 | G79: 2.634593356 | H79: 15 | J79: 8 | N79: 340 | O79: 4 | P79: 0 | Q79: 1 | R79: 445 | S79: 7 | T79: 797
A80: 6 | B80: O622 | C80: OTRAS INERCIAS UTERINAS | F80: 17 | G80: 1.947308133 | H80: 0 | J80: 17
A81: 7 | B81: J189 | C81: NEUMONIA NO ESPECIFICADA | F81: 17 | G81: 1.947308133 | H81: 11 | J81: 6 | N81: AGUA POTABLE 2013
A82: 8 | B82: O623 | C82: TRABAJO DE PARTO PRECIPITADO | F82: 16 | G82: 1.832760596 | H82: 0 | J82: 16 | P82: NUMEROS ACUEDUCTOS | R82: COBERTURA ACUEDUCTOS CON AGUA POTABLE (%) | T82: COBERTURAS VIVIENDAS CON AGUA POTABLE (%)
A83: 9 | B83: O470 | C83: FALSO TRABAJO DE PARTO ANTES DE LA 37 SEMANAS COMPLETAS DE GESTACION | F83: 14 | G83: 1.603665521 | H83: 0 | J83: 14
A84: 10 | B84: R104 | C84: OTROS DOLORES ABDOMINALES Y LOS NO ESPECIFICADOS | F84: 13 | G84: 1.489117984 | H84: 3 | J84: 10
A85: 11 | C85: OTROS | F85: 618 | G85: 70.79037801 | H85: 235 | J85: 383 | N85: Urbano | P85: 2 | R85: 100 | T85: 100
A86: TOTALES | F86: 873 | G86: 100 | H86: 292 | J86: 581 | N86: Rural | P86: 6 | R86: 0 | T86: 0
A87: 10 PRIMERAS CAUSAS DE CONSULTA 2013 | N87: Total Municipal | P87: 8 | R87: 25 | T87: 49.2
A88: ORDEN | B88: CODIGO CIE-10 | C88: CAUSA | F88: TOTAL GENERAL | G88: % | H88: HOMBRES | J88: MUJERES | N88: CERTIFACION EN AGUA POTABLE | O88: INDICE RIESGO CALIDAD DEL AGUA POTABLE - IRCA- (a) | P88: INDICE RIESGO DE ABASTECIMIENTO MUNICIPAL - IRABA- (b) | R88: BUENAS PRACTICAS SANTIARIAS © | T88: CERTIFICAION SANITARIA MUNICIPAL EN AGUA POTABLE ©
A90: 1 | B90: I10X | C90: HIPERTENSION ESENCIAL (PRIMARIA) | F90: 41566 | G90: 21.14274379 | H90: 13456 | J90: 28110
A91: 2 | B91: K021 | C91: CARIES DE LA DENTINA | F91: 8187 | G91: 4.164356526 | H91: 3445 | J91: 4742
A92: 3 | B92: N390 | C92: INFECCION DE VIAS URINARIAS SITIO NO ESPECIFICADO | F92: 3299 | G92: 1.678052056 | H92: 798 | J92: 2501 | N92: Urbano | O92: 0.8 | P92: 15.6 | R92: 0 | T92: 3.52
A93: 4 | B93: M545 | C93: LUMBAGO NO ESPECIFICADO | F93: 2301 | G93: 1.170414604 | H93: 867 | J93: 1434 | N93: Rural | O93: 69.5 | P93: 80.3 | R93: 90.6 | T93: 77.99
A94: 5 | B94: R104 | C94: OTROS DOLORES ABDOMINALES Y LOS NO ESPECIFICADOS | F94: 2164 | G94: 1.100728902 | H94: 638 | J94: 1526 | N94: Total | O94: 8 | P94: 16.9 | R94: 7.4 | T94: 9.6
A95: 6 | B95: J00X | C95: RINOFARINGITIS AGUDA (RESFRIADO COMUN) | F95: 1919 | G95: 0.9761084859 | H95: 817 | J95: 1102 | N95: PROYECTOS DE INVERSION (En pesos)
A96: 7 | B96: R51X | C96: CEFALEA | F96: 1860 | G96: 0.946097855 | H96: 598 | J96: 1262 | Q96: 2012 | S96: 2013 | U96: 2014
A97: 8 | B97: M255 | C97: DOLOR EN ARTICULACION | F97: 1776 | G97: 0.9033708551 | H97: 788 | J97: 988 | N97: ADULTO MAYOR | Q97: 66825400 | S97: 34211138 | U97: 35000000
A98: 9 | B98: K040 | C98: PULPITIS | F98: 1544 | G98: 0.7853629506 | H98: 773 | J98: 771 | N98: DOTACION DISCAPACIDAD | U98: 2918752
A99: 10 | B99: K041 | C99: NECROSIS DE LA PULPA | F99: 1503 | G99: 0.7645081054 | H99: 652 | J99: 851 | N99: APS - SALUD CONTIGO | Q99: 45000000 | S99: 50000000 | U99: 50000000
A100: 11 | C100: OTROS | F100: 130478 | G100: 66.36825587 | H100: 42827 | J100: 87651 | N100: COFINANCIACION REG. SUBSIDIADO | Q100: 1341647829 | S100: 1152283942 | U100: 1521131464
A101: TOTALES | F101: 196597 | G101: 100 | H101: 65659 | J101: 130938 | N101: SSR | Q101: 2614363
A102: 10 PRIMERAS CAUSAS DE URGENCIAS 2013 | N102: PAI | Q102: 6708873
A103: ORDEN | B103: CODIGO CIE-10 | C103: CAUSA | F103: TOTAL GENERAL | G103: % | H103: HOMBRES | J103: MUJERES | N103: VECTORES | Q103: 386400
N104: ESTERILIZACION MASCOTAS | Q104: 6278000
A105: 1 | B105: O800 | C105: PARTO UNICO ESPONTANEO PRESENTACION CEFALICA DE VERTICE | F105: 12 | G105: 2.992518703 | H105: 0 | J105: 12 | N105: VACUNA ANTIRRABICA | Q105: 1752000
A106: 2 | B106: N390 | C106: INFECCION DE VIAS URINARIAS SITIO NO ESPECIFICADO | F106: 11 | G106: 2.743142145 | H106: 5 | J106: 6 | N106: INFRAESTRUCTURA
A107: 3 | B107: R104 | C107: OTROS DOLORES ABDOMINALES Y LOS NO ESPECIFICADOS | F107: 10 | G107: 2.493765586 | H107: 4 | J107: 6 | N107: DOTACION EQUIPOS BIOMEDICOS
A108: 4 | B108: C921 | C108: LEUCEMIA MIELOIDE CRONICA | F108: 8 | G108: 1.995012469 | H108: 8 | J108: 0 | N108: ESTAMPILLAS PROHOSPITALES | U108: 101027206
A109: 5 | B109: O620 | C109: CONTRACCIONES PRIMARIAS INADECUADAS | F109: 8 | G109: 1.995012469 | H109: 0 | J109: 8 | N109: EQUIPAMIENTO
A110: 6 | B110: O470 | C110: FALSO TRABAJO DE PARTO ANTES DE LA 37 SEMANAS COMPLETAS DE GESTACION | F110: 8 | G110: 1.995012469 | H110: 0 | J110: 8 | N110: TELEMEDICINA | S110: 25854400
A111: 7 | B111: A09X | C111: DIARREA Y GASTROENTERITIS DE PRESUNTO ORIGEN INFECCIOSO | F111: 7 | G111: 1.74563591 | H111: 2 | J111: 5 | N111: AMBULANCIA
A112: 8 | B112: O16X | C112: HIPERTENSION MATERNA NO ESPECIFICADA | F112: 7 | G112: 1.74563591 | H112: 0 | J112: 7 | N112: TOTALES | Q112: =SUM(Q97:R111) -> 1471212865 | S112: =SUM(S97:T111) -> 1262349480 | U112: =SUM(U97:V111) -> 1710077422
A113: 9 | B113: I200 | C113: ANGINA INESTABLE | F113: 6 | G113: 1.496259352 | H113: 2 | J113: 4 | N113: PROYECTOS DE INVERSION (En Cantidad)
A114: 10 | B114: J159 | C114: NEUMONIA BACTERIANA NO ESPECIFICADA | F114: 6 | G114: 1.496259352 | H114: 1 | J114: 5 | N114: PROGRAMA AEREO (No brigadas)
A115: 11 | C115: OTROS | F115: 318 | G115: 79.30174564 | H115: 144 | J115: 174 | N115: ASESORIA Y ASISTENCIA TECNICA | Q115: 15
A116: TOTALES | F116: 401 | G116: 100 | H116: 166 | J116: 235 | N116: CENTROS AMIGABLES JOVENES

Sheet ANDES
C4: ALCALDE | E4: ELKIN DARÍO JARAMILLO JARAMILLO
C5: DIRECTOR LOCAL DE SALUD | E5: ALEJANDRA MARIA ARANGO ALVAREZ
C7: CERTIFICACION | E7: RANKING | F7: CATEGORIA MUNICIPAL
C8: SI | E8: 20 | F8: 6a.
C9: TOTAL CORREGIMIENTOS | E9: 5 | F9: TOTAL VEREDAS | I9: 59
A10: CARACTERISTICAS DEMOGRAFICAS | N10: VIGILANCIA DE LA SALUD PUBLICA - AÑO 2014
A11: POBLACION 2015
A12: TOTAL | B12: HOMBRES | C12: MUJERES | D12: CABECERA | E12: RESTO | N12: MORTALIDAD CANCER CUELLO UTERINO | S12: MORTALIDAD MATERNA
A13: 45814 | B13: 23343 | C13: 22471 | D13: 22667 | E13: 23147 | N13: # Casos | O13: Tasa x cienmil Mujeres | S13: # Casos | T13: Tasa x cienmil Nacidos vivos
A14: POR GRUPOS DE EDAD | N14: 0 | O14: 0 | S14: 0 | T14: 0
A15: 0 - 4 AÑOS | B15: 5 - 9 AÑOS | C15: 10 - 14 AÑOS | D15: 15 - 19 AÑOS | E15: 20 - 59 AÑOS | F15: > 60 AÑOS
A16: 4363 | B16: 4248 | C16: 4247 | D16: 4074 | E16: 24496 | F16: 4386 | N16: MORTALIDAD INFANTIL | S16: MORTALIDAD PERINATAL
N17: # Casos | O17: Tasa x cienmil Nacidos vivos | S17: # Casos | T17: Tasa x cienmil Nacidos vivos
A18: DESPLAZADOS 2015 (a marzo) | D18: INDIGENAS FEB 2014 | G18: ROM | I18: AFRO | N18: 6 | O18: 12.93103448 | S18: 4 | T18: 8.620689655
A19: TOTAL | B19: HOMBRES | C19: MUJERES | D19: TOTAL | E19: HOMBRES | F19: MUJERES
A20: 2178 | B20: 1067.22 | C20: 1110.78 | D20: 0 | E20: 0 | F20: 0 | N20: MORTALIDAD VIH SIDA | S20: MORTALIDAD TUBERCULOSIS
A21: POBLACION TOTAL | B21: Afiliados al regimen Subsidiado * | D21: % De Aseguramiento al Regimen Subsidiado * | F21: Afiliados al Regimen Contributivo BDUA * | H21: % De Aseguramiento al Regimen Contributivo * | N21: # Casos | O21: Tasa x cienmil Habitantes | S21: # Casos | T21: Tasa x cienmil Habitantes
N22: 2 | O22: 4.403637404 | S22: 4 | T22: 8.807274809
N24: MORTALIDAD INFARTO AL MIOCARDIO | S24: MORTALIDAD < 5 AÑOS
A25: 45814 | B25: 29879 | D25: 63.92587419 | F25: 8359 | H25: 18.24551447 | N25: # Casos | O25: Tasa x cienmil Habitantes | S25: # Casos | T25: Tasa x cienmil Niños
A26: NBI (pobre) 2012 | H26: * Agosto 2015 | N26: 25 | O26: 55.04546756 | S26: 6 | T26: 137.8993335
A27: Total | C27: Cabecera | E27: Resto
A28: Prop (%) | B28: cve (%) | C28: Prop (%) | D28: cve (%) | E28: Prop (%) | F28: cve (%)
A29: 30.49314016 | B29: 4.356948428 | C29: 21.2792453 | D29: 5.262184067 | E29: 38.18475742 | F29: 5.895794619 | N29: REGISTRO POBLACIONAL DE CANCER 2012
N30: Numero de casos registrados | P30: HOMBRES | Q30: MUJERES | R30: TOTAL
A31: PRESTACION DE SERVICIOS DE SALUD ** | P31: 16 | Q31: 21 | R31: =SUM(P31:Q31) -> 37
A32: EMPRESAS SOCIALES DEL ESTADO
A33: INSTITUCION PRESTADORA DE SERVICIOS DE SALUD | F33: DIRECTOR / GERENTE | N33: 10 PRIMERAS CAUSAS DE MORTALIDAD 2014
A34: EMPRESA SOCIAL DEL ESTADO HOSPITAL SAN RAFAEL | F34: GUIDO MANUEL HERNÁNDEZ PATERNINA | N34: ORDEN | O34: CODIGO 105 CIE-10 | P34: CAUSA | T34: TOTAL GENERAL | U34: HOMBRES | V34: MUJERES | W34: SIN DATO
N36: 1 | O36: 101 | P36: AGRESIONES (HOMICIDIOS) Y SECUELAS | T36: 27 | U36: 24 | V36: 3
N37: 2 | O37: 051 | P37: ENFERMEDADES ISQUEMICAS DEL CORAZON | T37: 26 | U37: 18 | V37: 8
N38: 3 | O38: 060 | P38: ENFERMEDADES CRONICAS DE LAS VIAS RESPIRATORIAS INFERIORES | T38: 22 | U38: 12 | V38: 10
A39: PRESTADORES DE SERVICIOS DE SALUD | N39: 4 | O39: 020 | P39: TUMOR MALIGNO DE LA TRAQUEA, LOS BRONQUIOS Y EL PULMON | T39: 14 | U39: 7 | V39: 7
A40: TOTALES | B40: IPS | C40: PROFESIONALES INDEPENDIENTES | E40: TRANSPORTE ESPECIAL | G40: OBJETO SOCIAL DIFERENTE | N40: 5 | O40: 050 | P40: ENFERMEDADES HIPERTENSIVAS | T40: 10 | U40: 4 | V40: 6
N41: 6 | O41: 041 | P41: DIABETES MELLITUS | T41: 7 | U41: 4 | V41: 3
B42: 1 | C42: 27 | E42: 1 | G42: 1 | N42: 7 | O42: 055 | P42: ENFERMEDADES CEREBROVASCULARES | T42: 5 | U42: 3 | V42: 2
A43: IPS PUBLICAS | B43: IPS PRIVADAS | C43: SERVICIOS PRESTADOS X PROFESION | N43: 8 | O43: 024 | P43: TUMOR MALIGNO DE LA MAMA DE LA MUJER | T43: 5 | U43: 0 | V43: 5
C44: Odontólogos | D44: Médicos | E44: Otros | F44: Total | N44: 9 | O44: 002 | P44: TUBERCULOSISI Y SECUELAS | T44: 4 | U44: 3 | V44: 1
N45: 10 | O45: 089 | P45: SIGNOS, SINTOMAS Y AFECCIONES MAL DEFINIDAS | T45: 4 | U45: 3 | V45: 1
A46: 1 | B46: 2 | C46: 14 | D46: 7 | E46: 16 | F46: =C46+D46+E46 -> 37
A48: CAPACIDAD INSTALADA | N48: PORCENTAJE DE EMBARAZOS POR GRUPO EDAD RESIDENCIA HABITUAL DE LA MADRE 2014 | S48: TASAS DE FECUNDIDAD ESPECIFICA POR MIL MUJERES 2014
A49: CAMAS
A50: Adultos | B50: Cuidado Agudo Mental | C50: Cuidado Intensivo Adulto | D50: Cuidado Intensivo Neonatal | E50: Cuidado Intensivo Pediátrico | F50: Cuidado Intermedio Adulto | G50: Cuidado Intermedio Mental | I50: Cuidado Intermedio Neonatal
N51: 10 a 14 AÑOS | P51: 15 a 19 AÑOS | S51: 10 a 14 AÑOS | U51: 15 a 19 AÑOS
N52: No | O52: % | P52: No | Q52: % | S52: No | T52: TASA | U52: No | V52: TASA
A53: 10 | B53: 0 | C53: 0 | D53: 0 | E53: 0 | F53: 0 | G53: 0 | I53: 0 | N53: 6 | O53: 1.276595745 | P53: 118 | Q53: 25.10638298 | S53: 6 | T53: 3.019627579 | U53: 118 | V53: 58.04230202
A54: CAMAS
A55: Cuidado Intermedio Pediátrico | B55: Farmaco- de-pendencia | C55: Obste-tricia | D55: Pediátricas | E55: Quemados Adultos | F55: Quemados Pediátrico | G55: Salud Mental Psiquiatría | I55: TOTAL CAMAS
A58: 0 | B58: 0 | C58: 6 | D58: 4 | E58: 0 | F58: 0 | G58: 0 | I58: =A53+B53+C53+D53+E53+F53+G53+I53+A58+B58+C58+D58+E58+F58+G58 -> 20
A60: SALAS | E60: TOTAL SALAS | N60: INMUNIZACIONES PAI 2014
A61: PARTO | C61: QUIROFANO | N61: POLIOMIELITIS (V.O.P)
A62: 1 | C62: 1 | E62: =A62+C62 -> 2 | N62: Vacunados (Edades) | S62: Refuerzos | T62: Dosis Aplicadas
N63: <1 | O63: 1 | P63: 2 | Q63: 3 | R63: 4 | S63: Otros
A64: TOTAL DE SERVICIOS PRESTADOS SEGÚN LA COMPLEJIDAD | N64: 500 | O64: 5 | P64: 1 | Q64: 0 | R64: 2 | S64: 1102 | T64: 2645
A65: BAJA | C65: MEDIA | E65: ALTA
A66: 64 | C66: 19 | E66: 0 | N66: DIFTERIA, TOSFERINA Y TÉTANO (D.P.T)
N67: Vacunados (Edades) | S67: Refuerzos | T67: Dosis
A68: TOTAL DE AMBULANCIAS HABILITADAS SEGÚN TIPO Y MODALIDAD | N68: <1 | O68: 1 | P68: 2 | Q68: 3 | R68: 4 | S68: Otros | T68: Aplicadas
A69: TIPO | C69: MODALIDAD | F69: TOTAL GENERAL | N69: 502 | O69: 5 | P69: 1 | Q69: 0 | R69: 1 | S69: 1098 | T69: 2645
A70: BASICA | B70: MEDICADA | C70: AEREA | D70: TERRESTRE | E70: FLUVIAL | H70: ** Fuente: REPS-Minsalud julio 2015
A71: 3 | B71: 0 | C71: 0 | D71: 3 | E71: 0 | F71: =SUM(C71:E71) -> 3 | N71: TUBERCULOSIS (B.C.G)
A72: 10 PRIMERAS CAUSAS DE HOSPITALIZACION 2013 | N72: Vacunados (Edades) | S72: Otros | T72: Dosis Aplicadas
A73: ORDEN | B73: CODIGO CIE-10 | C73: CAUSA | F73: TOTAL GENERAL | G73: % | H73: HOMBRES | J73: MUJERES | N73: <1 | O73: 1
N74: 258 | O74: 8 | S74: 5 | T74: 271
A75: 1 | B75: J180 | C75: BRONCONEUMONIA NO ESPECIFICADA | F75: 150 | G75: 5.319148936 | H75: 66 | J75: 84
A76: 2 | B76: N390 | C76: INFECCION DE VIAS URINARIAS SITIO NO ESPECIFICADO | F76: 122 | G76: 4.326241135 | H76: 36 | J76: 86 | N76: TRIPLE VIRAL - S. R. P.
A77: 3 | B77: O470 | C77: FALSO TRABAJO DE PARTO ANTES DE LA 37 SEMANAS COMPLETAS DE GESTACION | F77: 80 | G77: 2.836879433 | H77: 0 | J77: 80 | N77: Vacunados (Edades) | S77: Refuerzos | T77: Dosis Aplicadas
A78: 4 | B78: J189 | C78: NEUMONIA NO ESPECIFICADA | F78: 76 | G78: 2.695035461 | H78: 41 | J78: 35 | N78: 1 | O78: 2 | P78: 3 | Q78: 4 | R78: Ref. | S78: Otros
A79: 5 | B79: O479 | C79: FALSO TRABAJO DE PARTO SIN OTRA ESPECIFICACION | F79: 72 | G79: 2.553191489 | H79: 0 | J79: 72 | N79: 541 | O79: 2 | P79: 0 | Q79: 0 | R79: 553 | S79: 3 | T79: 1099
A80: 6 | B80: J441 | C80: ENFERMEDAD PULMONAR OBSTRUCTIVA CRONICA CON EXACERBACION AGUDA NO ESPECIFICADA | F80: 70 | G80: 2.482269504 | H80: 44 | J80: 26
A81: 7 | B81: J159 | C81: NEUMONIA BACTERIANA NO ESPECIFICADA | F81: 64 | G81: 2.269503546 | H81: 49 | J81: 15 | N81: AGUA POTABLE 2013
A82: 8 | B82: R104 | C82: OTROS DOLORES ABDOMINALES Y LOS NO ESPECIFICADOS | F82: 59 | G82: 2.092198582 | H82: 25 | J82: 34 | P82: NUMEROS ACUEDUCTOS | R82: COBERTURA ACUEDUCTOS CON AGUA POTABLE (%) | T82: COBERTURAS VIVIENDAS CON AGUA POTABLE (%)
A83: 9 | B83: P599 | C83: ICTERICIA NEONATAL NO ESPECIFICADA | F83: 58 | G83: 2.056737589 | H83: 42 | J83: 16
A84: 10 | B84: O800 | C84: PARTO UNICO ESPONTANEO PRESENTACION CEFALICA DE VERTICE | F84: 56 | G84: 1.985815603 | H84: 0 | J84: 56
A85: 11 | C85: OTROS | F85: 2013 | G85: 71.38297872 | H85: 694 | J85: 1319 | N85: Urbano | P85: 1 | R85: 100 | T85: 99
A86: TOTALES | F86: 2820 | G86: 100 | H86: 997 | J86: 1823 | N86: Rural | P86: 36 | R86: 0 | T86: 0
A87: 10 PRIMERAS CAUSAS DE CONSULTA 2013 | N87: Total Municipal | P87: 37 | R87: 2.702702703 | T87: 48.6
A88: ORDEN | B88: CODIGO CIE-10 | C88: CAUSA | F88: TOTAL GENERAL | G88: % | H88: HOMBRES | J88: MUJERES | N88: CERTIFACION EN AGUA POTABLE | O88: INDICE RIESGO CALIDAD DEL AGUA POTABLE - IRCA- (a) | P88: INDICE RIESGO DE ABASTECIMIENTO MUNICIPAL - IRABA- (b) | R88: BUENAS PRACTICAS SANTIARIAS © | T88: CERTIFICAION SANITARIA MUNICIPAL EN AGUA POTABLE ©
A90: 1 | B90: I10X | C90: HIPERTENSION ESENCIAL (PRIMARIA) | F90: 43792 | G90: 12.39102816 | H90: 14092 | J90: 29700
A91: 2 | B91: Z001 | C91: CONTROL DE SALUD DE RUTINA DEL NI¥O | F91: 15474 | G91: 4.378397191 | H91: 8119 | J91: 7355
A92: 3 | B92: K021 | C92: CARIES DE LA DENTINA | F92: 13050 | G92: 3.692521865 | H92: 5506 | J92: 7544 | N92: Urbano | O92: 4 | P92: 21.2 | R92: 1 | T92: 6.54
A93: 4 | B93: R104 | C93: OTROS DOLORES ABDOMINALES Y LOS NO ESPECIFICADOS | F93: 12059 | G93: 3.412116565 | H93: 4363 | J93: 7696 | N93: Rural | O93: 39.1 | P93: 78.8 | R93: 77.4 | T93: 58.53
A94: 5 | B94: Z000 | C94: EXAMEN MEDICO GENERAL | F94: 9772 | G94: 2.765005645 | H94: 3874 | J94: 5898 | N94: Total | O94: 11.3 | P94: 24.4 | R94: 12.8 | T94: 14.37
A95: 6 | B95: Z304 | C95: SUPERVISION DEL USO DE DROGAS ANTICONCEPTIVAS | F95: 8445 | G95: 2.389528517 | H95: 4 | J95: 8441 | N95: PROYECTOS DE INVERSION (En pesos)
A96: 7 | B96: J00X | C96: RINOFARINGITIS AGUDA (RESFRIADO COMUN) | F96: 8196 | G96: 2.319073502 | H96: 3713 | J96: 4483 | Q96: 2012 | S96: 2013 | U96: 2014
A97: 8 | B97: N390 | C97: INFECCION DE VIAS URINARIAS SITIO NO ESPECIFICADO | F97: 7276 | G97: 2.058757785 | H97: 2031 | J97: 5245 | N97: ADULTO MAYOR | Q97: 60000000 | S97: 19255800 | U97: 42000000
A98: 9 | B98: R51X | C98: CEFALEA | F98: 7234 | G98: 2.046873806 | H98: 1843 | J98: 5391 | N98: DOTACION DISCAPACIDAD | Q98: 18036832 | U98: 2747752
A99: 10 | B99: M545 | C99: LUMBAGO NO ESPECIFICADO | F99: 5674 | G99: 1.605468894 | H99: 2471 | J99: 3203 | N99: APS - SALUD CONTIGO | Q99: 130200000 | S99: 97600000 | U99: 60000000
A100: 11 | C100: OTROS | F100: 222445 | G100: 62.94122807 | H100: 81399 | J100: 141046 | N100: COFINANCIACION REG. SUBSIDIADO | Q100: 1255368766 | S100: 1078182544 | U100: 1423310117
A101: TOTALES | F101: 353417 | G101: 100 | H101: 127415 | J101: 226002 | N101: SSR | Q101: 5391165
A102: 10 PRIMERAS CAUSAS DE URGENCIAS 2013 | N102: PAI | Q102: 13834586
A103: ORDEN | B103: CODIGO CIE-10 | C103: CAUSA | F103: TOTAL GENERAL | G103: % | H103: HOMBRES | J103: MUJERES | N103: VECTORES | Q103: 386400
N104: ESTERILIZACION MASCOTAS | Q104: 0
A105: 1 | B105: R104 | C105: OTROS DOLORES ABDOMINALES Y LOS NO ESPECIFICADOS | F105: 46 | G105: 5.51558753 | H105: 28 | J105: 18 | N105: VACUNA ANTIRRABICA | Q105: 2690000
A106: 2 | B106: O800 | C106: PARTO UNICO ESPONTANEO PRESENTACION CEFALICA DE VERTICE | F106: 20 | G106: 2.398081535 | H106: 0 | J106: 20 | N106: INFRAESTRUCTURA
A107: 3 | B107: S069 | C107: TRAUMATISMO INTRACRANEAL NO ESPECIFICADO | F107: 20 | G107: 2.398081535 | H107: 18 | J107: 2 | N107: DOTACION EQUIPOS BIOMEDICOS
A108: 4 | B108: R51X | C108: CEFALEA | F108: 17 | G108: 2.038369305 | H108: 5 | J108: 12 | N108: ESTAMPILLAS PROHOSPITALES | U108: 30038301
A109: 5 | B109: J189 | C109: NEUMONIA NO ESPECIFICADA | F109: 15 | G109: 1.798561151 | H109: 2 | J109: 13 | N109: EQUIPAMIENTO
A110: 6 | B110: O470 | C110: FALSO TRABAJO DE PARTO ANTES DE LA 37 SEMANAS COMPLETAS DE GESTACION | F110: 15 | G110: 1.798561151 | H110: 0 | J110: 15 | N110: TELEMEDICINA
A111: 7 | B111: S019 | C111: HERIDA DE LA CABEZA PARTE NO ESPECIFICADA | F111: 13 | G111: 1.558752998 | H111: 12 | J111: 1 | N111: AMBULANCIA | Q111: 122000000
A112: 8 | B112: J441 | C112: ENFERMEDAD PULMONAR OBSTRUCTIVA CRONICA CON EXACERBACION AGUDA NO ESPECIFICADA | F112: 11 | G112: 1.318944844 | H112: 8 | J112: 3 | N112: TOTALES | Q112: =SUM(Q97:R111) -> 1607907749 | S112: =SUM(S97:T111) -> 1195038344 | U112: =SUM(U97:V111) -> 1558096170
A113: 9 | B113: T07X | C113: TRAUMATISMOS MULTIPLES NO ESPECIFICADOS | F113: 11 | G113: 1.318944844 | H113: 9 | J113: 2 | N113: PROYECTOS DE INVERSION (En Cantidad)
A114: 10 | B114: O16X | C114: HIPERTENSION MATERNA NO ESPECIFICADA | F114: 9 | G114: 1.079136691 | H114: 0 | J114: 9 | N114: PROGRAMA AEREO (No brigadas)
A115: 11 | C115: OTROS | F115: 657 | G115: 78.77697842 | H115: 291 | J115: 366 | N115: ASESORIA Y ASISTENCIA TECNICA | Q115: 24
A116: TOTALES | F116: 834 | G116: 100 | H116: 373 | J116: 461 | N116: CENTROS AMIGABLES JOVENES | S116: SI

Sheet ANGELOPOLIS
C4: ALCALDE | E4: JAIME ALBERTO GOMEZ GOMEZ
C5: DIRECTOR LOCAL DE SALUD | E5: MARISOL HERRERA ORTIZ
C7: CERTIFICACION | E7: RANKING | F7: CATEGORIA MUNICIPAL
C8: SI | E8: 50 | F8: 6a.
C9: TOTAL CORREGIMIENTOS | E9: 1 | F9: TOTAL VEREDAS | I9: 12
A10: CARACTERISTICAS DEMOGRAFICAS | N10: VIGILANCIA DE LA SALUD PUBLICA - AÑO 2014
A11: POBLACION 2015
A12: TOTAL | B12: HOMBRES | C12: MUJERES | D12: CABECERA | E12: RESTO | N12: MORTALIDAD CANCER CUELLO UTERINO | S12: MORTALIDAD MATERNA
A13: 8946 | B13: 4518 | C13: 4428 | D13: 5299 | E13: 3647 | N13: # Casos | O13: Tasa x cienmil Mujeres | S13: # Casos | T13: Tasa x cienmil Nacidos vivos
A14: POR GRUPOS DE EDAD | N14: 0 | O14: 0 | S14: 0 | T14: 0
A15: 0 - 4 AÑOS | B15: 5 - 9 AÑOS | C15: 10 - 14 AÑOS | D15: 15 - 19 AÑOS | E15: 20 - 59 AÑOS | F15: > 60 AÑOS
A16: 699 | B16: 715 | C16: 700 | D16: 721 | E16: 4921 | F16: 1190 | N16: MORTALIDAD INFANTIL | S16: MORTALIDAD PERINATAL
N17: # Casos | O17: Tasa x cienmil Nacidos vivos | S17: # Casos | T17: Tasa x cienmil Nacidos vivos
A18: DESPLAZADOS 2015 (a marzo) | D18: INDIGENAS FEB 2014 | G18: ROM | I18: AFRO | N18: 2 | O18: 32.78688525 | S18: 2 | T18: 32.78688525
A19: TOTAL | B19: HOMBRES | C19: MUJERES | D19: TOTAL | E19: HOMBRES | F19: MUJERES
A20: 547 | B20: 268.03 | C20: 278.97 | D20: 0 | E20: 0 | F20: 0 | N20: MORTALIDAD VIH SIDA | S20: MORTALIDAD TUBERCULOSIS
A21: POBLACION TOTAL | B21: Afiliados al regimen Subsidiado * | D21: % De Aseguramiento al Regimen Subsidiado * | F21: Afiliados al Regimen Contributivo BDUA * | H21: % De Aseguramiento al Regimen Contributivo * | N21: # Casos | O21: Tasa x cienmil Habitantes | S21: # Casos | T21: Tasa x cienmil Habitantes
N22: 0 | O22: 0 | S22: 0 | T22: 0
N24: MORTALIDAD INFARTO AL MIOCARDIO | S24: MORTALIDAD < 5 AÑOS
A25: 8946 | B25: 3173 | D25: 35.46836575 | F25: 1481 | H25: 16.55488486 | N25: # Casos | O25: Tasa x cienmil Habitantes | S25: # Casos | T25: Tasa x cienmil Niños
A26: NBI (pobre) 2012 | H26: * Agosto 2015 | N26: 6 | O26: 68.13536225 | S26: 2 | T26: 289.017341
A27: Total | C27: Cabecera | E27: Resto
A28: Prop (%) | B28: cve (%) | C28: Prop (%) | D28: cve (%) | E28: Prop (%) | F28: cve (%)
A29: 25.97277233 | B29: 3.133489889 | C29: 20.98882814 | D29: - | E29: 32.12519403 | F29: 5.660713414 | N29: REGISTRO POBLACIONAL DE CANCER 2012
N30: Numero de casos registrados | P30: HOMBRES | Q30: MUJERES | R30: TOTAL
A31: PRESTACION DE SERVICIOS DE SALUD ** | P31: 6 | Q31: 4 | R31: =SUM(P31:Q31) -> 10
A32: EMPRESAS SOCIALES DEL ESTADO
A33: INSTITUCION PRESTADORA DE SERVICIOS DE SALUD | F33: DIRECTOR / GERENTE | N33: 10 PRIMERAS CAUSAS DE MORTALIDAD 2014
A34: NUEVA EMPRESA SOCIAL DEL ESTADO HOSPITAL LA MISERICORDIA | F34: RENE OMAR JIMENEZ ARANGO | N34: ORDEN | O34: CODIGO 105 CIE-10 | P34: CAUSA | T34: TOTAL GENERAL | U34: HOMBRES | V34: MUJERES | W34: SIN DATO
N36: 1 | O36: 051 | P36: ENFERMEDADES ISQUEMICAS DEL CORAZON | T36: 6 | U36: 3 | V36: 3
N37: 2 | O37: 060 | P37: ENFERMEDADES CRONICAS DE LAS VIAS RESPIRATORIAS INFERIORES | T37: 6 | U37: 3 | V37: 3
N38: 3 | O38: 050 | P38: ENFERMEDADES HIPERTENSIVAS | T38: 4 | U38: 3 | V38: 1
A39: PRESTADORES DE SERVICIOS DE SALUD | N39: 4 | O39: 089 | P39: SIGNOS, SINTOMAS Y AFECCIONES MAL DEFINIDAS | T39: 2 | U39: 1 | V39: 1
A40: TOTALES | B40: IPS | C40: PROFESIONALES INDEPENDIENTES | E40: TRANSPORTE ESPECIAL | G40: OBJETO SOCIAL DIFERENTE | N40: 5 | O40: 090 | P40: ACCIDENTES DE TRANSPORTE DE MOTOR Y SECUELAS | T40: 2 | U40: 2 | V40: 0
N41: 6 | O41: 065 | P41: ENFERMEDADES DEL APENDICE, HERNIA Y OBSTRUCCION INTESTINAL | T41: 2 | U41: 0 | V41: 2
B42: 1 | C42: 1 | E42: 0 | G42: 0 | N42: 7 | O42: 082 | P42: TRASTORNOS RESPIRATORIOS ESPECIFICOS DEL PERIODO PERINATAL | T42: 1 | U42: 0 | V42: 1
A43: IPS PUBLICAS | B43: IPS PRIVADAS | C43: SERVICIOS PRESTADOS X PROFESION | N43: 8 | O43: 097 | P43: EXPOSICION A LA CORRIENTE ELECTRICA, RADIACION Y TEMPERATURA Y PRESION DEL AIRE AMBIENTALES EXTREMAS | T43: 1 | U43: 1 | V43: 0
C44: Odontólogos | D44: Médicos | E44: Otros | F44: Total | N44: 9 | O44: 019 | P44: TUMOR MALIGNO DE LA LARINGE | T44: 1 | U44: 1 | V44: 0
N45: 10 | O45: 054 | P45: INSUFICIENCIA CARDIACA | T45: 1 | U45: 0 | V45: 1
A46: 1 | B46: 0 | C46: 2 | D46: 0 | E46: 0 | F46: =C46+D46+E46 -> 2
A48: CAPACIDAD INSTALADA | N48: PORCENTAJE DE EMBARAZOS POR GRUPO EDAD RESIDENCIA HABITUAL DE LA MADRE 2014 | S48: TASAS DE FECUNDIDAD ESPECIFICA POR MIL MUJERES 2014
A49: CAMAS
A50: Adultos | B50: Cuidado Agudo Mental | C50: Cuidado Intensivo Adulto | D50: Cuidado Intensivo Neonatal | E50: Cuidado Intensivo Pediátrico | F50: Cuidado Intermedio Adulto | G50: Cuidado Intermedio Mental | I50: Cuidado Intermedio Neonatal
N51: 10 a 14 AÑOS | P51: 15 a 19 AÑOS | S51: 10 a 14 AÑOS | U51: 15 a 19 AÑOS
N52: No | O52: % | P52: No | Q52: % | S52: No | T52: TASA | U52: No | V52: TASA
A53: 3 | B53: 0 | C53: 0 | D53: 0 | E53: 0 | F53: 0 | G53: 0 | I53: 0 | N53: 2 | O53: 3.225806452 | P53: 24 | Q53: 38.70967742 | S53: 2 | T53: 6.024096386 | U53: 24 | V53: 68.37606838
A54: CAMAS
A55: Cuidado Intermedio Pediátrico | B55: Farmaco- de-pendencia | C55: Obste-tricia | D55: Pediátricas | E55: Quemados Adultos | F55: Quemados Pediátrico | G55: Salud Mental Psiquiatría | I55: TOTAL CAMAS
A58: 0 | B58: 0 | C58: 2 | D58: 1 | E58: 0 | F58: 0 | G58: 0 | I58: =A53+B53+C53+D53+E53+F53+G53+I53+A58+B58+C58+D58+E58+F58+G58 -> 6
A60: SALAS | E60: TOTAL SALAS | N60: INMUNIZACIONES PAI 2014
A61: PARTO | C61: QUIROFANO | N61: POLIOMIELITIS (V.O.P)
A62: 1 | C62: 0 | E62: =A62+C62 -> 1 | N62: Vacunados (Edades) | S62: Refuerzos | T62: Dosis Aplicadas
N63: <1 | O63: 1 | P63: 2 | Q63: 3 | R63: 4 | S63: Otros
A64: TOTAL DE SERVICIOS PRESTADOS SEGÚN LA COMPLEJIDAD | N64: 50 | O64: 0 | P64: 0 | Q64: 0 | R64: 0 | S64: 134 | T64: 280
A65: BAJA | C65: MEDIA | E65: ALTA
A66: 25 | C66: 0 | E66: 0 | N66: DIFTERIA, TOSFERINA Y TÉTANO (D.P.T)
N67: Vacunados (Edades) | S67: Refuerzos | T67: Dosis
A68: TOTAL DE AMBULANCIAS HABILITADAS SEGÚN TIPO Y MODALIDAD | N68: <1 | O68: 1 | P68: 2 | Q68: 3 | R68: 4 | S68: Otros | T68: Aplicadas
A69: TIPO | C69: MODALIDAD | F69: TOTAL GENERAL | N69: 50 | O69: 0 | P69: 0 | Q69: 0 | R69: 0 | S69: 134 | T69: 281
A70: BASICA | B70: MEDICADA | C70: AEREA | D70: TERRESTRE | E70: FLUVIAL | H70: ** Fuente: REPS-Minsalud julio 2015
A71: 1 | B71: 0 | C71: 0 | D71: 1 | E71: 0 | F71: =SUM(C71:E71) -> 1 | N71: TUBERCULOSIS (B.C.G)
A72: 10 PRIMERAS CAUSAS DE HOSPITALIZACION 2013 | N72: Vacunados (Edades) | S72: Otros | T72: Dosis Aplicadas
A73: ORDEN | B73: CODIGO CIE-10 | C73: CAUSA | F73: TOTAL GENERAL | G73: % | H73: HOMBRES | J73: MUJERES | N73: <1 | O73: 1
N74: 15 | O74: 0 | S74: 0 | T74: 15
A75: 1 | B75: J189 | C75: NEUMONIA NO ESPECIFICADA | F75: 30 | G75: 11.15241636 | H75: 14 | J75: 16
A76: 2 | B76: N390 | C76: INFECCION DE VIAS URINARIAS SITIO NO ESPECIFICADO | F76: 19 | G76: 7.063197026 | H76: 10 | J76: 9 | N76: TRIPLE VIRAL - S. R. P.
A77: 3 | B77: O800 | C77: PARTO UNICO ESPONTANEO PRESENTACION CEFALICA DE VERTICE | F77: 15 | G77: 5.576208178 | H77: 0 | J77: 15 | N77: Vacunados (Edades) | S77: Refuerzos | T77: Dosis Aplicadas
A78: 4 | B78: N059 | C78: SINDROME NEFRITICO NO ESPECIFICADO: NO ESPECIFICADA | F78: 14 | G78: 5.204460967 | H78: 2 | J78: 12 | N78: 1 | O78: 2 | P78: 3 | Q78: 4 | R78: Ref. | S78: Otros
A79: 5 | B79: N939 | C79: HEMORRAGIA VAGINAL Y UTERINA ANORMAL NO ESPECIFICADA | F79: 7 | G79: 2.602230483 | H79: 0 | J79: 7 | N79: 53 | O79: 0 | P79: 0 | Q79: 0 | R79: 77 | S79: 0 | T79: 130
A80: 6 | B80: A46X | C80: ERISIPELA | F80: 6 | G80: 2.230483271 | H80: 6 | J80: 0
A81: 7 | B81: J441 | C81: ENFERMEDAD PULMONAR OBSTRUCTIVA CRONICA CON EXACERBACION AGUDA NO ESPECIFICADA | F81: 6 | G81: 2.230483271 | H81: 1 | J81: 5 | N81: AGUA POTABLE 2013
A82: 8 | B82: K359 | C82: APENDICITIS AGUDA NO ESPECIFICADA | F82: 6 | G82: 2.230483271 | H82: 2 | J82: 4 | P82: NUMEROS ACUEDUCTOS | R82: COBERTURA ACUEDUCTOS CON AGUA POTABLE (%) | T82: COBERTURAS VIVIENDAS CON AGUA POTABLE (%)
A83: 9 | B83: J159 | C83: NEUMONIA BACTERIANA NO ESPECIFICADA | F83: 5 | G83: 1.858736059 | H83: 2 | J83: 3
A84: 10 | B84: O16X | C84: HIPERTENSION MATERNA NO ESPECIFICADA | F84: 5 | G84: 1.858736059 | H84: 0 | J84: 5
A85: 11 | C85: OTROS | F85: 156 | G85: 57.99256506 | H85: 57 | J85: 99 | N85: Urbano | P85: 1 | R85: 100 | T85: 100
A86: TOTALES | F86: 269 | G86: 100 | H86: 94 | J86: 175 | N86: Rural | P86: 13 | R86: 0 | T86: 0,0
A87: 10 PRIMERAS CAUSAS DE CONSULTA 2013 | N87: Total Municipal | P87: 14 | R87: 7.142857143 | T87: 32.9
A88: ORDEN | B88: CODIGO CIE-10 | C88: CAUSA | F88: TOTAL GENERAL | G88: % | H88: HOMBRES | J88: MUJERES | N88: CERTIFACION EN AGUA POTABLE | O88: INDICE RIESGO CALIDAD DEL AGUA POTABLE - IRCA- (a) | P88: INDICE RIESGO DE ABASTECIMIENTO MUNICIPAL - IRABA- (b) | R88: BUENAS PRACTICAS SANTIARIAS © | T88: CERTIFICAION SANITARIA MUNICIPAL EN AGUA POTABLE ©
A90: 1 | B90: I10X | C90: HIPERTENSION ESENCIAL (PRIMARIA) | F90: 4409 | G90: 20.73164997 | H90: 1630 | J90: 2779
A91: 2 | B91: K021 | C91: CARIES DE LA DENTINA | F91: 1306 | G91: 6.140969577 | H91: 586 | J91: 720
A92: 3 | B92: R104 | C92: OTROS DOLORES ABDOMINALES Y LOS NO ESPECIFICADOS | F92: 570 | G92: 2.680208774 | H92: 194 | J92: 376 | N92: Urbano | O92: 4.5 | P92: 55.3 | R92: 34 | T92: 23.51
A93: 4 | B93: N390 | C93: INFECCION DE VIAS URINARIAS SITIO NO ESPECIFICADO | F93: 438 | G93: 2.059528848 | H93: 107 | J93: 331 | N93: Rural | O93: 92.5 | P93: 68.4 | R93: 65.1 | T93: 79.46
A94: 5 | B94: A09X | C94: DIARREA Y GASTROENTERITIS DE PRESUNTO ORIGEN INFECCIOSO | F94: 345 | G94: 1.622231626 | H94: 168 | J94: 177 | N94: Total | O94: 25.8 | P94: 43.9 | R94: 46.2 | T94: 35.54
A95: 6 | B95: M545 | C95: LUMBAGO NO ESPECIFICADO | F95: 319 | G95: 1.499976489 | H95: 196 | J95: 123 | N95: PROYECTOS DE INVERSION (En pesos)
A96: 7 | B96: R51X | C96: CEFALEA | F96: 304 | G96: 1.42944468 | H96: 85 | J96: 219 | Q96: 2012 | S96: 2013 | U96: 2014
A97: 8 | B97: G439 | C97: MIGRAÑA NO ESPECIFICADA | F97: 282 | G97: 1.325998025 | H97: 36 | J97: 246 | N97: ADULTO MAYOR | Q97: 57000000 | S97: 20000000 | U97: 30000000
A98: 9 | B98: J449 | C98: ENFERMEDAD PULMONAR OBSTRUCTIVA CRONICA NO ESPECIFICADA | F98: 233 | G98: 1.095594113 | H98: 144 | J98: 89 | N98: DOTACION DISCAPACIDAD | U98: 2747752
A99: 10 | B99: K297 | C99: GASTRITIS NO ESPECIFICADA | F99: 224 | G99: 1.053275027 | H99: 90 | J99: 134 | N99: APS - SALUD CONTIGO | S99: 52500000
A100: 11 | C100: OTROS | F100: 12837 | G100: 60.36112287 | H100: 4837 | J100: 8000 | N100: COFINANCIACION REG. SUBSIDIADO | Q100: 192010396.7 | S100: 164909518 | U100: 217697260
A101: TOTALES | F101: 21267 | G101: 100 | H101: 8073 | J101: 13194 | N101: SSR | Q101: 1034255
A102: 10 PRIMERAS CAUSAS DE URGENCIAS 2013 | N102: PAI | Q102: 2654063
A103: ORDEN | B103: CODIGO CIE-10 | C103: CAUSA | F103: TOTAL GENERAL | G103: % | H103: HOMBRES | J103: MUJERES | N103: VECTORES | Q103: 386400
N104: ESTERILIZACION MASCOTAS | Q104: 0
A105: 1 | B105: R104 | C105: OTROS DOLORES ABDOMINALES Y LOS NO ESPECIFICADOS | F105: 22 | G105: 6.077348066 | H105: 8 | J105: 14 | N105: VACUNA ANTIRRABICA | Q105: 986000
A106: 2 | B106: T07X | C106: TRAUMATISMOS MULTIPLES NO ESPECIFICADOS | F106: 12 | G106: 3.314917127 | H106: 8 | J106: 4 | N106: INFRAESTRUCTURA
A107: 3 | B107: J449 | C107: ENFERMEDAD PULMONAR OBSTRUCTIVA CRONICA NO ESPECIFICADA | F107: 12 | G107: 3.314917127 | H107: 9 | J107: 3 | N107: DOTACION EQUIPOS BIOMEDICOS
A108: 4 | B108: R509 | C108: FIEBRE NO ESPECIFICADA | F108: 10 | G108: 2.762430939 | H108: 6 | J108: 4 | N108: ESTAMPILLAS PROHOSPITALES | U108: 5964393
A109: 5 | B109: A09X | C109: DIARREA Y GASTROENTERITIS DE PRESUNTO ORIGEN INFECCIOSO | F109: 10 | G109: 2.762430939 | H109: 6 | J109: 4 | N109: EQUIPAMIENTO
A110: 6 | B110: J441 | C110: ENFERMEDAD PULMONAR OBSTRUCTIVA CRONICA CON EXACERBACION AGUDA NO ESPECIFICADA | F110: 10 | G110: 2.762430939 | H110: 2 | J110: 8 | N110: TELEMEDICINA
A111: 7 | B111: R072 | C111: DOLOR PRECORDIAL | F111: 8 | G111: 2.209944751 | H111: 7 | J111: 1 | N111: AMBULANCIA
A112: 8 | B112: N390 | C112: INFECCION DE VIAS URINARIAS SITIO NO ESPECIFICADO | F112: 7 | G112: 1.933701657 | H112: 5 | J112: 2 | N112: TOTALES | Q112: =SUM(Q97:R111) -> 254071114.7 | S112: =SUM(S97:T111) -> 237409518 | U112: =SUM(U97:V111) -> 256409405
A113: 9 | B113: J459 | C113: ASMA NO ESPECIFICADA | F113: 7 | G113: 1.933701657 | H113: 6 | J113: 1 | N113: PROYECTOS DE INVERSION (En Cantidad)
A114: 10 | B114: J189 | C114: NEUMONIA NO ESPECIFICADA | F114: 6 | G114: 1.657458564 | H114: 3 | J114: 3 | N114: PROGRAMA AEREO (No brigadas)
A115: 11 | C115: OTROS | F115: 258 | G115: 71.27071823 | H115: 131 | J115: 127 | N115: ASESORIA Y ASISTENCIA TECNICA | Q115: 15
A116: TOTALES | F116: 362 | G116: 100 | H116: 191 | J116: 171 | N116: CENTROS AMIGABLES JOVENES

Sheet ANGOSTURA
C4: ALCALDE | E4: JOSE MIGUEL VÁSQUEZ ARANGO
C5: DIRECTOR LOCAL DE SALUD | E5: DIONY JANNETH ZAPATA VELASQUEZ
C7: CERTIFICACION | E7: RANKING | F7: CATEGORIA MUNICIPAL
C8: SI | E8: 60 | F8: 6a.
C9: TOTAL CORREGIMIENTOS | E9: 1 | F9: TOTAL VEREDAS | I9: 46
A10: CARACTERISTICAS DEMOGRAFICAS | N10: VIGILANCIA DE LA SALUD PUBLICA - AÑO 2014
A11: POBLACION 2015
A12: TOTAL | B12: HOMBRES | C12: MUJERES | D12: CABECERA | E12: RESTO | N12: MORTALIDAD CANCER CUELLO UTERINO | S12: MORTALIDAD MATERNA
A13: 11354 | B13: 5841 | C13: 5513 | D13: 1822 | E13: 9532 | N13: # Casos | O13: Tasa x cienmil Mujeres | S13: # Casos | T13: Tasa x cienmil Nacidos vivos
A14: POR GRUPOS DE EDAD | N14: 0 | O14: 0 | S14: 0 | T14: 0
A15: 0 - 4 AÑOS | B15: 5 - 9 AÑOS | C15: 10 - 14 AÑOS | D15: 15 - 19 AÑOS | E15: 20 - 59 AÑOS | F15: > 60 AÑOS
A16: 1326 | B16: 1153 | C16: 1152 | D16: 1289 | E16: 5332 | F16: 1102 | N16: MORTALIDAD INFANTIL | S16: MORTALIDAD PERINATAL
N17: # Casos | O17: Tasa x cienmil Nacidos vivos | S17: # Casos | T17: Tasa x cienmil Nacidos vivos
A18: DESPLAZADOS 2015 (a marzo) | D18: INDIGENAS FEB 2014 | G18: ROM | I18: AFRO | N18: 2 | O18: 14.38848921 | S18: 1 | T18: 7.194244604
A19: TOTAL | B19: HOMBRES | C19: MUJERES | D19: TOTAL | E19: HOMBRES | F19: MUJERES
A20: 1116 | B20: 546.84 | C20: 569.16 | D20: 0 | E20: 0 | F20: 0 | N20: MORTALIDAD VIH SIDA | S20: MORTALIDAD TUBERCULOSIS
A21: POBLACION TOTAL | B21: Afiliados al regimen Subsidiado * | D21: % De Aseguramiento al Regimen Subsidiado * | F21: Afiliados al Regimen Contributivo BDUA * | H21: % De Aseguramiento al Regimen Contributivo * | N21: # Casos | O21: Tasa x cienmil Habitantes | S21: # Casos | T21: Tasa x cienmil Habitantes
N22: 0 | O22: 0 | S22: 0 | T22: 0
N24: MORTALIDAD INFARTO AL MIOCARDIO | S24: MORTALIDAD < 5 AÑOS
A25: 11354 | B25: 9589 | D25: 84.45481769 | F25: 862 | H25: 7.592038048 | N25: # Casos | O25: Tasa x cienmil Habitantes | S25: # Casos | T25: Tasa x cienmil Niños
A26: NBI (pobre) 2012 | H26: * Agosto 2015 | N26: 4 | O26: 34.89183531 | S26: 4 | T26: 300.3003003
A27: Total | C27: Cabecera | E27: Resto
A28: Prop (%) | B28: cve (%) | C28: Prop (%) | D28: cve (%) | E28: Prop (%) | F28: cve (%)
A29: 55.15901918 | B29: - | C29: 25.57345046 | D29: - | E29: 61.03996896 | F29: - | N29: REGISTRO POBLACIONAL DE CANCER 2012
N30: Numero de casos registrados | P30: HOMBRES | Q30: MUJERES | R30: TOTAL
A31: PRESTACION DE SERVICIOS DE SALUD ** | P31: 7 | Q31: 7 | R31: =SUM(P31:Q31) -> 14
A32: EMPRESAS SOCIALES DEL ESTADO
A33: INSTITUCION PRESTADORA DE SERVICIOS DE SALUD | F33: DIRECTOR / GERENTE | N33: 10 PRIMERAS CAUSAS DE MORTALIDAD 2014
A34: ESE HOSPITAL SAN RAFAEL | F34: JAVIER ENRIQUE ARTEAGA JIMENEZ | N34: ORDEN | O34: CODIGO 105 CIE-10 | P34: CAUSA | T34: TOTAL GENERAL | U34: HOMBRES | V34: MUJERES | W34: SIN DATO
N36: 1 | O36: 060 | P36: ENFERMEDADES CRONICAS DE LAS VIAS RESPIRATORIAS INFERIORES | T36: 8 | U36: 6 | V36: 2
N37: 2 | O37: 051 | P37: ENFERMEDADES ISQUEMICAS DEL CORAZON | T37: 5 | U37: 1 | V37: 4
N38: 3 | O38: 089 | P38: SIGNOS, SINTOMAS Y AFECCIONES MAL DEFINIDAS | T38: 5 | U38: 3 | V38: 2
A39: PRESTADORES DE SERVICIOS DE SALUD | N39: 4 | O39: 101 | P39: AGRESIONES (HOMICIDIOS) Y SECUELAS | T39: 5 | U39: 5 | V39: 0
A40: TOTALES | B40: IPS | C40: PROFESIONALES INDEPENDIENTES | E40: TRANSPORTE ESPECIAL | G40: OBJETO SOCIAL DIFERENTE | N40: 5 | O40: 050 | P40: ENFERMEDADES HIPERTENSIVAS | T40: 5 | U40: 2 | V40: 3
N41: 6 | O41: 041 | P41: DIABETES MELLITUS | T41: 4 | U41: 1 | V41: 3
B42: 1 | C42: 1 | E42: 0 | G42: 0 | N42: 7 | O42: 055 | P42: ENFERMEDADES CEREBROVASCULARES | T42: 3 | U42: 2 | V42: 1
A43: IPS PUBLICAS | B43: IPS PRIVADAS | C43: SERVICIOS PRESTADOS X PROFESION | N43: 8 | O43: 105 | P43: OTROS ACCIDENTES Y SECUELAS | T43: 2 | U43: 2 | V43: 0
C44: Odontólogos | D44: Médicos | E44: Otros | F44: Total | N44: 9 | O44: 088 | P44: LAS DEMAS MALFORMACIONES CONGENITAS, DEFORMIDADES Y ANOMALIAS CONGENITAS | T44: 1 | U44: 1 | V44: 0
N45: 10 | O45: 082 | P45: TRASTORNOS RESPIRATORIOS ESPECIFICOS DEL PERIODO PERINATAL | T45: 1 | U45: 0 | V45: 1
A46: 1 | B46: 0 | C46: 1 | D46: 1 | E46: 3 | F46: =C46+D46+E46 -> 5
A48: CAPACIDAD INSTALADA | N48: PORCENTAJE DE EMBARAZOS POR GRUPO EDAD RESIDENCIA HABITUAL DE LA MADRE 2014 | S48: TASAS DE FECUNDIDAD ESPECIFICA POR MIL MUJERES 2014
A49: CAMAS
A50: Adultos | B50: Cuidado Agudo Mental | C50: Cuidado Intensivo Adulto | D50: Cuidado Intensivo Neonatal | E50: Cuidado Intensivo Pediátrico | F50: Cuidado Intermedio Adulto | G50: Cuidado Intermedio Mental | I50: Cuidado Intermedio Neonatal
N51: 10 a 14 AÑOS | P51: 15 a 19 AÑOS | S51: 10 a 14 AÑOS | U51: 15 a 19 AÑOS
N52: No | O52: % | P52: No | Q52: % | S52: No | T52: TASA | U52: No | V52: TASA
A53: 4 | B53: 0 | C53: 0 | D53: 0 | E53: 0 | F53: 0 | G53: 0 | I53: 0 | N53: 2 | O53: 1.428571429 | P53: 37 | Q53: 26.42857143 | S53: 2 | T53: 3.210272873 | U53: 37 | V53: 60.95551895
A54: CAMAS
A55: Cuidado Intermedio Pediátrico | B55: Farmaco- de-pendencia | C55: Obste-tricia | D55: Pediátricas | E55: Quemados Adultos | F55: Quemados Pediátrico | G55: Salud Mental Psiquiatría | I55: TOTAL CAMAS
A58: 0 | B58: 0 | C58: 1 | D58: 1 | E58: 0 | F58: 0 | G58: 0 | I58: =A53+B53+C53+D53+E53+F53+G53+I53+A58+B58+C58+D58+E58+F58+G58 -> 6
A60: SALAS | E60: TOTAL SALAS | N60: INMUNIZACIONES PAI 2014
A61: PARTO | C61: QUIROFANO | N61: POLIOMIELITIS (V.O.P)
A62: 1 | C62: 0 | E62: =A62+C62 -> 1 | N62: Vacunados (Edades) | S62: Refuerzos | T62: Dosis Aplicadas
N63: <1 | O63: 1 | P63: 2 | Q63: 3 | R63: 4 | S63: Otros
A64: TOTAL DE SERVICIOS PRESTADOS SEGÚN LA COMPLEJIDAD | N64: 133 | O64: 0 | P64: 0 | Q64: 0 | R64: 1 | S64: 324 | T64: 748
A65: BAJA | C65: MEDIA | E65: ALTA
A66: 22 | C66: 0 | E66: 0 | N66: DIFTERIA, TOSFERINA Y TÉTANO (D.P.T)
N67: Vacunados (Edades) | S67: Refuerzos | T67: Dosis
A68: TOTAL DE AMBULANCIAS HABILITADAS SEGÚN TIPO Y MODALIDAD | N68: <1 | O68: 1 | P68: 2 | Q68: 3 | R68: 4 | S68: Otros | T68: Aplicadas
A69: TIPO | C69: MODALIDAD | F69: TOTAL GENERAL | N69: 133 | O69: 0 | P69: 0 | Q69: 0 | R69: 0 | S69: 324 | T69: 749
A70: BASICA | B70: MEDICADA | C70: AEREA | D70: TERRESTRE | E70: FLUVIAL | H70: ** Fuente: REPS-Minsalud julio 2015
A71: 1 | B71: 0 | C71: 0 | D71: 1 | E71: 0 | F71: =SUM(C71:E71) -> 1 | N71: TUBERCULOSIS (B.C.G)
A72: 10 PRIMERAS CAUSAS DE HOSPITALIZACION 2013 | N72: Vacunados (Edades) | S72: Otros | T72: Dosis Aplicadas
A73: ORDEN | B73: CODIGO CIE-10 | C73: CAUSA | F73: TOTAL GENERAL | G73: % | H73: HOMBRES | J73: MUJERES | N73: <1 | O73: 1
N74: 46 | O74: 0 | S74: 0 | T74: 46
A75: 1 | B75: O800 | C75: PARTO UNICO ESPONTANEO PRESENTACION CEFALICA DE VERTICE | F75: 19 | G75: 5.428571429 | H75: 0 | J75: 19
A76: 2 | B76: L031 | C76: CELULITIS DE OTRAS PARTES DE LOS MIEMBROS | F76: 18 | G76: 5.142857143 | H76: 10 | J76: 8 | N76: TRIPLE VIRAL - S. R. P.
A77: 3 | B77: O479 | C77: FALSO TRABAJO DE PARTO SIN OTRA ESPECIFICACION | F77: 10 | G77: 2.857142857 | H77: 0 | J77: 10 | N77: Vacunados (Edades) | S77: Refuerzos | T77: Dosis Aplicadas
A78: 4 | B78: I200 | C78: ANGINA INESTABLE | F78: 10 | G78: 2.857142857 | H78: 3 | J78: 7 | N78: 1 | O78: 2 | P78: 3 | Q78: 4 | R78: Ref. | S78: Otros
A79: 5 | B79: O624 | C79: CONTRACCIONES UTERINAS HIPERTONICAS INCOORDINADAS Y PROLONGADAS | F79: 9 | G79: 2.571428571 | H79: 0 | J79: 9 | N79: 134 | O79: 1 | P79: 0 | Q79: 1 | R79: 178 | S79: 3 | T79: 317
A80: 6 | B80: N390 | C80: INFECCION DE VIAS URINARIAS SITIO NO ESPECIFICADO | F80: 6 | G80: 1.714285714 | H80: 3 | J80: 3
A81: 7 | B81: R104 | C81: OTROS DOLORES ABDOMINALES Y LOS NO ESPECIFICADOS | F81: 6 | G81: 1.714285714 | H81: 3 | J81: 3 | N81: AGUA POTABLE 2013
A82: 8 | B82: D259 | C82: LEIOMIOMA DEL UTERO SIN OTRA ESPECIFICACION | F82: 5 | G82: 1.428571429 | H82: 0 | J82: 5 | P82: NUMEROS ACUEDUCTOS | R82: COBERTURA ACUEDUCTOS CON AGUA POTABLE (%) | T82: COBERTURAS VIVIENDAS CON AGUA POTABLE (%)
A83: 9 | B83: O809 | C83: PARTO UNICO ESPONTANEO SIN OTRA ESPECIFICACION | F83: 5 | G83: 1.428571429 | H83: 0 | J83: 5
A84: 10 | B84: J459 | C84: ASMA NO ESPECIFICADA | F84: 5 | G84: 1.428571429 | H84: 5 | J84: 0
A85: 11 | C85: OTROS | F85: 257 | G85: 73.42857143 | H85: 111 | J85: 146 | N85: Urbano | P85: 1 | R85: 100 | T85: 100
A86: TOTALES | F86: 350 | G86: 100 | H86: 135 | J86: 215 | N86: Rural | P86: 25 | R86: 0 | T86: 0,0
A87: 10 PRIMERAS CAUSAS DE CONSULTA 2013 | N87: Total Municipal | P87: 26 | R87: 3.846153846 | T87: 21.3
A88: ORDEN | B88: CODIGO CIE-10 | C88: CAUSA | F88: TOTAL GENERAL | G88: % | H88: HOMBRES | J88: MUJERES | N88: CERTIFACION EN AGUA POTABLE | O88: INDICE RIESGO CALIDAD DEL AGUA POTABLE - IRCA- (a) | P88: INDICE RIESGO DE ABASTECIMIENTO MUNICIPAL - IRABA- (b) | R88: BUENAS PRACTICAS SANTIARIAS © | T88: CERTIFICAION SANITARIA MUNICIPAL EN AGUA POTABLE ©
A90: 1 | B90: I10X | C90: HIPERTENSION ESENCIAL (PRIMARIA) | F90: 3402 | G90: 7.615679076 | H90: 1144 | J90: 2258
A91: 2 | B91: K021 | C91: CARIES DE LA DENTINA | F91: 1647 | G91: 3.686955743 | H91: 700 | J91: 947
A92: 3 | B92: K051 | C92: GINGIVITIS CRONICA | F92: 1227 | G92: 2.74674845 | H92: 473 | J92: 754 | N92: Urbano | O92: 3 | P92: 9.5 | R92: 13 | T92: 7.3
A93: 4 | B93: R51X | C93: CEFALEA | F93: 990 | G93: 2.216202906 | H93: 310 | J93: 680 | N93: Rural | O93: 62.4 | P93: 46.2 | R93: 59.7 | T93: 58.35
A94: 5 | B94: R104 | C94: OTROS DOLORES ABDOMINALES Y LOS NO ESPECIFICADOS | F94: 579 | G94: 1.296142912 | H94: 191 | J94: 388 | N94: Total | O94: 28.3 | P94: 34.2 | R94: 44.5 | T94: 34.34
A95: 6 | B95: N390 | C95: INFECCION DE VIAS URINARIAS SITIO NO ESPECIFICADO | F95: 531 | G95: 1.188690649 | H95: 135 | J95: 396 | N95: PROYECTOS DE INVERSION (En pesos)
A96: 7 | B96: R101 | C96: DOLOR ABDOMINAL LOCALIZADO EN PARTE SUPERIOR | F96: 456 | G96: 1.02079649 | H96: 127 | J96: 329 | Q96: 2012 | S96: 2013 | U96: 2014
A97: 8 | B97: J00X | C97: RINOFARINGITIS AGUDA (RESFRIADO COMUN) | F97: 445 | G97: 0.9961720132 | H97: 187 | J97: 258 | N97: ADULTO MAYOR | Q97: 60000000 | S97: 24390680 | U97: 30000000
A98: 9 | B98: R05X | C98: TOS | F98: 373 | G98: 0.83499362 | H98: 162 | J98: 211 | N98: DOTACION DISCAPACIDAD | S98: 13101788 | U98: 2918752
A99: 10 | B99: M545 | C99: LUMBAGO NO ESPECIFICADO | F99: 368 | G99: 0.8238006761 | H99: 151 | J99: 217 | N99: APS - SALUD CONTIGO | S99: 0
A100: 11 | C100: OTROS | F100: 34653 | G100: 77.57381747 | H100: 11734 | J100: 22919 | N100: COFINANCIACION REG. SUBSIDIADO | Q100: 430576257.5 | S100: 369803533 | U100: 488178104
A101: TOTALES | F101: 44671 | G101: 100 | H101: 15314 | J101: 29357 | N101: SSR | Q101: 1414526
A102: 10 PRIMERAS CAUSAS DE URGENCIAS 2013 | N102: PAI | Q102: 3629899
A103: ORDEN | B103: CODIGO CIE-10 | C103: CAUSA | F103: TOTAL GENERAL | G103: % | H103: HOMBRES | J103: MUJERES | N103: VECTORES | Q103: 386400
N104: ESTERILIZACION MASCOTAS | Q104: 3870000
A105: 1 | B105: J449 | C105: ENFERMEDAD PULMONAR OBSTRUCTIVA CRONICA NO ESPECIFICADA | F105: 6 | G105: 4.316546763 | H105: 5 | J105: 1 | N105: VACUNA ANTIRRABICA | Q105: 1244000
A106: 2 | B106: I219 | C106: INFARTO AGUDO DEL MIOCARDIO SIN OTRA ESPECIFICACION | F106: 5 | G106: 3.597122302 | H106: 5 | J106: 0 | N106: INFRAESTRUCTURA
A107: 3 | B107: Z000 | C107: EXAMEN MEDICO GENERAL | F107: 4 | G107: 2.877697842 | H107: 0 | J107: 4 | N107: DOTACION EQUIPOS BIOMEDICOS
A108: 4 | B108: O800 | C108: PARTO UNICO ESPONTANEO PRESENTACION CEFALICA DE VERTICE | F108: 4 | G108: 2.877697842 | H108: 0 | J108: 4 | N108: ESTAMPILLAS PROHOSPITALES
A109: 5 | B109: D381 | C109: TUMOR DE COMPORTAMIENTO INCIERTO O DESCONOCIDO DE LA TRAQUEA DE LOS BRONQUIOS Y DEL PULMON | F109: 4 | G109: 2.877697842 | H109: 4 | J109: 0 | N109: EQUIPAMIENTO
A110: 6 | B110: E102 | C110: DIABETES MELLITUS INSULINODEPENDIENTE CON COMPLICACIONES RENALES | F110: 3 | G110: 2.158273381 | H110: 0 | J110: 3 | N110: TELEMEDICINA
A111: 7 | B111: R102 | C111: DOLOR PELVICO Y PERINEAL | F111: 3 | G111: 2.158273381 | H111: 0 | J111: 3 | N111: AMBULANCIA
A112: 8 | B112: I10X | C112: HIPERTENSION ESENCIAL (PRIMARIA) | F112: 3 | G112: 2.158273381 | H112: 3 | J112: 0 | N112: TOTALES | Q112: =SUM(Q97:R111) -> 501121082.5 | S112: =SUM(S97:T111) -> 407296001 | U112: =SUM(U97:V111) -> 521096856
A113: 9 | B113: F313 | C113: TRASTORNO AFECTIVO BIPOLAR EPISODIO DEPRESIVO PRESENTE LEVE O MODERADO | F113: 3 | G113: 2.158273381 | H113: 3 | J113: 0 | N113: PROYECTOS DE INVERSION (En Cantidad)
A114: 10 | B114: R51X | C114: CEFALEA | F114: 3 | G114: 2.158273381 | H114: 3 | J114: 0 | N114: PROGRAMA AEREO (No brigadas)
A115: 11 | C115: OTROS | F115: 101 | G115: 72.6618705 | H115: 35 | J115: 66 | N115: ASESORIA Y ASISTENCIA TECNICA | Q115: 13
A116: TOTALES | F116: 139 | G116: 100 | H116: 58 | J116: 81 | N116: CENTROS AMIGABLES JOVENES

Sheet ANORI
C4: ALCALDE | E4: GILDARDO ALONSO ROLDAN FORONDA
C5: DIRECTOR LOCAL DE SALUD | E5: CLAUDIA PATRICIA VELEZ BARRERA
C7: CERTIFICACION | E7: RANKING | F7: CATEGORIA MUNICIPAL
C8: SI | E8: 4 | F8: 6a.
C9: TOTAL CORREGIMIENTOS | E9: 1 | F9: TOTAL VEREDAS | I9: 52
A10: CARACTERISTICAS DEMOGRAFICAS | N10: VIGILANCIA DE LA SALUD PUBLICA - AÑO 2014
A11: POBLACION 2015
A12: TOTAL | B12: HOMBRES | C12: MUJERES | D12: CABECERA | E12: RESTO | N12: MORTALIDAD CANCER CUELLO UTERINO | S12: MORTALIDAD MATERNA
A13: 17086 | B13: 8796 | C13: 8290 | D13: 6763 | E13: 10323 | N13: # Casos | O13: Tasa x cienmil Mujeres | S13: # Casos | T13: Tasa x cienmil Nacidos vivos
A14: POR GRUPOS DE EDAD | N14: 0 | O14: 0 | S14: 0 | T14: 0
A15: 0 - 4 AÑOS | B15: 5 - 9 AÑOS | C15: 10 - 14 AÑOS | D15: 15 - 19 AÑOS | E15: 20 - 59 AÑOS | F15: > 60 AÑOS
A16: 1731 | B16: 1668 | C16: 1580 | D16: 1610 | E16: 8492 | F16: 2005 | N16: MORTALIDAD INFANTIL | S16: MORTALIDAD PERINATAL
N17: # Casos | O17: Tasa x cienmil Nacidos vivos | S17: # Casos | T17: Tasa x cienmil Nacidos vivos
A18: DESPLAZADOS 2015 (a marzo) | D18: INDIGENAS FEB 2014 | G18: ROM | I18: AFRO | N18: 2 | O18: 8.928571429 | S18: 5 | T18: 22.32142857
A19: TOTAL | B19: HOMBRES | C19: MUJERES | D19: TOTAL | E19: HOMBRES | F19: MUJERES
A20: 5045 | B20: 2472.05 | C20: 2572.95 | D20: 0 | E20: 0 | F20: 0 | N20: MORTALIDAD VIH SIDA | S20: MORTALIDAD TUBERCULOSIS
A21: POBLACION TOTAL | B21: Afiliados al regimen Subsidiado * | D21: % De Aseguramiento al Regimen Subsidiado * | F21: Afiliados al Regimen Contributivo BDUA * | H21: % De Aseguramiento al Regimen Contributivo * | N21: # Casos | O21: Tasa x cienmil Habitantes | S21: # Casos | T21: Tasa x cienmil Habitantes
N22: 0 | O22: 0 | S22: 0 | T22: 0
N24: MORTALIDAD INFARTO AL MIOCARDIO | S24: MORTALIDAD < 5 AÑOS
A25: 17086 | B25: 13884 | D25: 81.25951071 | F25: 1226 | H25: 7.175465293 | N25: # Casos | O25: Tasa x cienmil Habitantes | S25: # Casos | T25: Tasa x cienmil Niños
A26: NBI (pobre) 2012 | H26: * Agosto 2015 | N26: 8 | O26: 47.42145821 | S26: 2 | T26: 116.6180758
A27: Total | C27: Cabecera | E27: Resto
A28: Prop (%) | B28: cve (%) | C28: Prop (%) | D28: cve (%) | E28: Prop (%) | F28: cve (%)
A29: 48.1400665 | B29: - | C29: 41.61036036 | D29: - | E29: 56.23836127 | F29: - | N29: REGISTRO POBLACIONAL DE CANCER 2012
N30: Numero de casos registrados | P30: HOMBRES | Q30: MUJERES | R30: TOTAL
A31: PRESTACION DE SERVICIOS DE SALUD ** | P31: 2 | Q31: 5 | R31: =SUM(P31:Q31) -> 7
A32: EMPRESAS SOCIALES DEL ESTADO
A33: INSTITUCION PRESTADORA DE SERVICIOS DE SALUD | F33: DIRECTOR / GERENTE | N33: 10 PRIMERAS CAUSAS DE MORTALIDAD 2014
A34: ESE HOSPITAL SAN JUAN DE DIOS DE ANORI | F34: HUGO ALEXANDER MANCO GUZMAN | N34: ORDEN | O34: CODIGO 105 CIE-10 | P34: CAUSA | T34: TOTAL GENERAL | U34: HOMBRES | V34: MUJERES | W34: SIN DATO
N36: 1 | O36: 101 | P36: AGRESIONES (HOMICIDIOS) Y SECUELAS | T36: 15 | U36: 15 | V36: 0
N37: 2 | O37: 051 | P37: ENFERMEDADES ISQUEMICAS DEL CORAZON | T37: 9 | U37: 6 | V37: 3
N38: 3 | O38: 105 | P38: OTROS ACCIDENTES Y SECUELAS | T38: 5 | U38: 4 | V38: 1
A39: PRESTADORES DE SERVICIOS DE SALUD | N39: 4 | O39: 092 | P39: LOS DEMAS ACCIDENTES DE TRANSPORTE Y LOS NO ESPECIFICADOS Y SECUELAS | T39: 5 | U39: 5 | V39: 0
A40: TOTALES | B40: IPS | C40: PROFESIONALES INDEPENDIENTES | E40: TRANSPORTE ESPECIAL | G40: OBJETO SOCIAL DIFERENTE | N40: 5 | O40: 060 | P40: ENFERMEDADES CRONICAS DE LAS VIAS RESPIRATORIAS INFERIORES | T40: 3 | U40: 2 | V40: 1
N41: 6 | O41: 050 | P41: ENFERMEDADES HIPERTENSIVAS | T41: 3 | U41: 3 | V41: 0
B42: 1 | C42: 2 | E42: 0 | G42: 0 | N42: 7 | O42: 047 | P42: TODAS LAS DEMAS ENFERMEDADES DEL SISTEMA NERVIOSO | T42: 2 | U42: 2 | V42: 0
A43: IPS PUBLICAS | B43: IPS PRIVADAS | C43: SERVICIOS PRESTADOS X PROFESION | N43: 8 | O43: 100 | P43: LESIONES AUTOINFLIGIDAS INTENCIONALMENTE (SUICIDIOS) Y SECUELAS | T43: 2 | U43: 1 | V43: 1
C44: Odontólogos | D44: Médicos | E44: Otros | F44: Total | N44: 9 | O44: 055 | P44: ENFERMEDADES CEREBROVASCULARES | T44: 2 | U44: 2 | V44: 0
N45: 10 | O45: 103 | P45: INTERVENCION LEGAL Y OPERACIONES DE GUERRA Y SECUELAS | T45: 2 | U45: 2 | V45: 0
A46: 1 | B46: 0 | C46: 1 | D46: 1 | E46: 1 | F46: =C46+D46+E46 -> 3
A48: CAPACIDAD INSTALADA | N48: PORCENTAJE DE EMBARAZOS POR GRUPO EDAD RESIDENCIA HABITUAL DE LA MADRE 2014 | S48: TASAS DE FECUNDIDAD ESPECIFICA POR MIL MUJERES 2014
A49: CAMAS
A50: Adultos | B50: Cuidado Agudo Mental | C50: Cuidado Intensivo Adulto | D50: Cuidado Intensivo Neonatal | E50: Cuidado Intensivo Pediátrico | F50: Cuidado Intermedio Adulto | G50: Cuidado Intermedio Mental | I50: Cuidado Intermedio Neonatal
N51: 10 a 14 AÑOS | P51: 15 a 19 AÑOS | S51: 10 a 14 AÑOS | U51: 15 a 19 AÑOS
N52: No | O52: % | P52: No | Q52: % | S52: No | T52: TASA | U52: No | V52: TASA
A53: 2 | B53: 0 | C53: 0 | D53: 0 | E53: 0 | F53: 0 | G53: 0 | I53: 0 | N53: 5 | O53: 2.173913043 | P53: 81 | Q53: 35.2173913 | S53: 5 | T53: 6.587615283 | U53: 81 | V53: 105.8823529
A54: CAMAS
A55: Cuidado Intermedio Pediátrico | B55: Farmaco- de-pendencia | C55: Obste-tricia | D55: Pediátricas | E55: Quemados Adultos | F55: Quemados Pediátrico | G55: Salud Mental Psiquiatría | I55: TOTAL CAMAS
A58: 0 | B58: 0 | C58: 2 | D58: 1 | E58: 0 | F58: 0 | G58: 0 | I58: =A53+B53+C53+D53+E53+F53+G53+I53+A58+B58+C58+D58+E58+F58+G58 -> 5
A60: SALAS | E60: TOTAL SALAS | N60: INMUNIZACIONES PAI 2014
A61: PARTO | C61: QUIROFANO | N61: POLIOMIELITIS (V.O.P)
A62: 1 | C62: 0 | E62: =A62+C62 -> 1 | N62: Vacunados (Edades) | S62: Refuerzos | T62: Dosis Aplicadas
N63: <1 | O63: 1 | P63: 2 | Q63: 3 | R63: 4 | S63: Otros
A64: TOTAL DE SERVICIOS PRESTADOS SEGÚN LA COMPLEJIDAD | N64: 214 | O64: 6 | P64: 0 | Q64: 2 | R64: 0 | S64: 468 | T64: 1114
A65: BAJA | C65: MEDIA | E65: ALTA
A66: 35 | C66: 0 | E66: 0 | N66: DIFTERIA, TOSFERINA Y TÉTANO (D.P.T)
N67: Vacunados (Edades) | S67: Refuerzos | T67: Dosis
A68: TOTAL DE AMBULANCIAS HABILITADAS SEGÚN TIPO Y MODALIDAD | N68: <1 | O68: 1 | P68: 2 | Q68: 3 | R68: 4 | S68: Otros | T68: Aplicadas
A69: TIPO | C69: MODALIDAD | F69: TOTAL GENERAL | N69: 217 | O69: 2 | P69: 1 | Q69: 1 | R69: 0 | S69: 461 | T69: 1117
A70: BASICA | B70: MEDICADA | C70: AEREA | D70: TERRESTRE | E70: FLUVIAL | H70: ** Fuente: REPS-Minsalud julio 2015
A71: 2 | B71: 0 | C71: 0 | D71: 2 | E71: 0 | F71: =SUM(C71:E71) -> 2 | N71: TUBERCULOSIS (B.C.G)
A72: 10 PRIMERAS CAUSAS DE HOSPITALIZACION 2013 | N72: Vacunados (Edades) | S72: Otros | T72: Dosis Aplicadas
A73: ORDEN | B73: CODIGO CIE-10 | C73: CAUSA | F73: TOTAL GENERAL | G73: % | H73: HOMBRES | J73: MUJERES | N73: <1 | O73: 1
N74: 109 | O74: 1 | S74: 0 | T74: 110
A75: 1 | B75: O479 | C75: FALSO TRABAJO DE PARTO SIN OTRA ESPECIFICACION | F75: 16 | G75: 4.199475066 | H75: 0 | J75: 16
A76: 2 | B76: O800 | C76: PARTO UNICO ESPONTANEO PRESENTACION CEFALICA DE VERTICE | F76: 13 | G76: 3.412073491 | H76: 0 | J76: 13 | N76: TRIPLE VIRAL - S. R. P.
A77: 3 | B77: O622 | C77: OTRAS INERCIAS UTERINAS | F77: 10 | G77: 2.624671916 | H77: 0 | J77: 10 | N77: Vacunados (Edades) | S77: Refuerzos | T77: Dosis Aplicadas
A78: 4 | B78: J159 | C78: NEUMONIA BACTERIANA NO ESPECIFICADA | F78: 9 | G78: 2.362204724 | H78: 4 | J78: 5 | N78: 1 | O78: 2 | P78: 3 | Q78: 4 | R78: Ref. | S78: Otros
A79: 5 | B79: R104 | C79: OTROS DOLORES ABDOMINALES Y LOS NO ESPECIFICADOS | F79: 9 | G79: 2.362204724 | H79: 2 | J79: 7 | N79: 254 | O79: 3 | P79: 1 | Q79: 0 | R79: 144 | S79: 43 | T79: 445
A80: 6 | B80: O471 | C80: FALSO TRABAJO DE PARTO ANTES DE LA 37 Y MAS SEMANAS COMPLETAS DE GESTACION | F80: 8 | G80: 2.099737533 | H80: 0 | J80: 8
A81: 7 | B81: R509 | C81: FIEBRE NO ESPECIFICADA | F81: 7 | G81: 1.837270341 | H81: 6 | J81: 1 | N81: AGUA POTABLE 2013
A82: 8 | B82: O48X | C82: EMBARAZO PROLONGADO | F82: 6 | G82: 1.57480315 | H82: 0 | J82: 6 | P82: NUMEROS ACUEDUCTOS | R82: COBERTURA ACUEDUCTOS CON AGUA POTABLE (%) | T82: COBERTURAS VIVIENDAS CON AGUA POTABLE (%)
A83: 9 | B83: N939 | C83: HEMORRAGIA VAGINAL Y UTERINA ANORMAL NO ESPECIFICADA | F83: 6 | G83: 1.57480315 | H83: 0 | J83: 6
A84: 10 | B84: N390 | C84: INFECCION DE VIAS URINARIAS SITIO NO ESPECIFICADO | F84: 5 | G84: 1.312335958 | H84: 0 | J84: 5
A85: 11 | C85: OTROS | F85: 292 | G85: 76.64041995 | H85: 133 | J85: 159 | N85: Urbano | P85: 1 | R85: 100 | T85: 100
A86: TOTALES | F86: 381 | G86: 100 | H86: 145 | J86: 236 | N86: Rural | P86: 21 | R86: 0 | T86: 0
A87: 10 PRIMERAS CAUSAS DE CONSULTA 2013 | N87: Total Municipal | P87: 22 | R87: 4.545454545 | T87: 34.6
A88: ORDEN | B88: CODIGO CIE-10 | C88: CAUSA | F88: TOTAL GENERAL | G88: % | H88: HOMBRES | J88: MUJERES | N88: CERTIFACION EN AGUA POTABLE | O88: INDICE RIESGO CALIDAD DEL AGUA POTABLE - IRCA- (a) | P88: INDICE RIESGO DE ABASTECIMIENTO MUNICIPAL - IRABA- (b) | R88: BUENAS PRACTICAS SANTIARIAS © | T88: CERTIFICAION SANITARIA MUNICIPAL EN AGUA POTABLE ©
A90: 1 | B90: I10X | C90: HIPERTENSION ESENCIAL (PRIMARIA) | F90: 6931 | G90: 19.00414028 | H90: 2311 | J90: 4620
A91: 2 | B91: K021 | C91: CARIES DE LA DENTINA | F91: 1296 | G91: 3.553508267 | H91: 530 | J91: 766
A92: 3 | B92: N390 | C92: INFECCION DE VIAS URINARIAS SITIO NO ESPECIFICADO | F92: 1188 | G92: 3.257382578 | H92: 207 | J92: 981 | N92: Urbano | O92: 4.6 | P92: 20.5 | R92: 1 | T92: 6.7
A93: 4 | B93: R51X | C93: CEFALEA | F93: 813 | G93: 2.22916838 | H93: 176 | J93: 637 | N93: Rural | O93: 45.4 | P93: 80.6 | R93: 91.2 | T93: 66.18
A94: 5 | B94: J00X | C94: RINOFARINGITIS AGUDA (RESFRIADO COMUN) | F94: 788 | G94: 2.160620767 | H94: 284 | J94: 504 | N94: Total | O94: 5.7 | P94: 24.6 | R94: 15.7 | T94: 12.48
A95: 6 | B95: R104 | C95: OTROS DOLORES ABDOMINALES Y LOS NO ESPECIFICADOS | F95: 691 | G95: 1.894656028 | H95: 173 | J95: 518 | N95: PROYECTOS DE INVERSION (En pesos)
A96: 7 | B96: M545 | C96: LUMBAGO NO ESPECIFICADO | F96: 567 | G96: 1.554659867 | H96: 215 | J96: 352 | Q96: 2012 | S96: 2013 | U96: 2014
A97: 8 | B97: R509 | C97: FIEBRE NO ESPECIFICADA | F97: 399 | G97: 1.094019906 | H97: 201 | J97: 198 | N97: ADULTO MAYOR | Q97: 96000000 | S97: 35687416 | U97: 30000000
A98: 9 | B98: R42X | C98: MAREO Y DESVANECIMIENTO | F98: 362 | G98: 0.9925694387 | H98: 88 | J98: 274 | N98: DOTACION DISCAPACIDAD | U98: 2747752
A99: 10 | B99: N771 | C99: VAGINITIS VULVITIS Y VULVOVAGINITIS EN ENFERMEDADES INFECCIOSAS Y PARASITARIAS CLASIFICADAS EN OTRA PARTE | F99: 353 | G99: 0.967892298 | H99: 0 | J99: 353 | N99: APS - SALUD CONTIGO | Q99: 30000000 | S99: 50800000 | U99: 49400000
A100: 11 | C100: OTROS | F100: 23083 | G100: 63.29138219 | H100: 8712 | J100: 14371 | N100: COFINANCIACION REG. SUBSIDIADO | Q100: 914316722.4 | S100: 785267530 | U100: 1036632643
A101: TOTALES | F101: 36471 | G101: 100 | H101: 12897 | J101: 23574 | N101: SSR | Q101: 1939287
A102: 10 PRIMERAS CAUSAS DE URGENCIAS 2013 | N102: PAI | Q102: 5104827
A103: ORDEN | B103: CODIGO CIE-10 | C103: CAUSA | F103: TOTAL GENERAL | G103: % | H103: HOMBRES | J103: MUJERES | N103: VECTORES | Q103: 29483600 | S103: 142857000
N104: ESTERILIZACION MASCOTAS | Q104: 0
A105: 1 | B105: O800 | C105: PARTO UNICO ESPONTANEO PRESENTACION CEFALICA DE VERTICE | F105: 10 | G105: 3.759398496 | H105: 0 | J105: 10 | N105: VACUNA ANTIRRABICA | Q105: 1144000
A106: 2 | B106: O200 | C106: AMENAZA DE ABORTO | F106: 7 | G106: 2.631578947 | H106: 0 | J106: 7 | N106: INFRAESTRUCTURA
A107: 3 | B107: R104 | C107: OTROS DOLORES ABDOMINALES Y LOS NO ESPECIFICADOS | F107: 7 | G107: 2.631578947 | H107: 3 | J107: 4 | N107: DOTACION EQUIPOS BIOMEDICOS
A108: 4 | B108: O479 | C108: FALSO TRABAJO DE PARTO SIN OTRA ESPECIFICACION | F108: 6 | G108: 2.255639098 | H108: 0 | J108: 6 | N108: ESTAMPILLAS PROHOSPITALES | Q108: 269314000 | U108: 143283631
A109: 5 | B109: A878 | C109: OTRAS MENINGITIS VIRALES | F109: 6 | G109: 2.255639098 | H109: 6 | J109: 0 | N109: EQUIPAMIENTO
A110: 6 | B110: I10X | C110: HIPERTENSION ESENCIAL (PRIMARIA) | F110: 5 | G110: 1.879699248 | H110: 2 | J110: 3 | N110: TELEMEDICINA | S110: 25854400
A111: 7 | B111: O470 | C111: FALSO TRABAJO DE PARTO ANTES DE LA 37 SEMANAS COMPLETAS DE GESTACION | F111: 5 | G111: 1.879699248 | H111: 0 | J111: 5 | N111: AMBULANCIA
A112: 8 | B112: I251 | C112: ENFERMEDAD ATEROSCLEROTICA DEL CORAZON | F112: 5 | G112: 1.879699248 | H112: 2 | J112: 3 | N112: TOTALES | Q112: =SUM(Q97:R111) -> 1347302436 | S112: =SUM(S97:T111) -> 1040466346 | U112: =SUM(U97:V111) -> 1262064026
A113: 9 | B113: S822 | C113: FRACTURA DE LA DIAFISIS DE LA TIBIA | F113: 5 | G113: 1.879699248 | H113: 5 | J113: 0 | N113: PROYECTOS DE INVERSION (En Cantidad)
A114: 10 | B114: J189 | C114: NEUMONIA NO ESPECIFICADA | F114: 5 | G114: 1.879699248 | H114: 3 | J114: 2 | N114: PROGRAMA AEREO (No brigadas)
A115: 11 | C115: OTROS | F115: 205 | G115: 77.06766917 | H115: 83 | J115: 122 | N115: ASESORIA Y ASISTENCIA TECNICA | Q115: 17
A116: TOTALES | F116: 266 | G116: 100 | H116: 104 | J116: 162 | N116: CENTROS AMIGABLES JOVENES

Sheet ANZA
C4: ALCALDE | E4: LUIS GONZAGA MARTÍNEZ SIERRA
C5: DIRECTOR LOCAL DE SALUD | E5: YODILMA AMPARO MOLINA ATEHORTUA
C7: CERTIFICACION | E7: RANKING | F7: CATEGORIA MUNICIPAL
C8: SI | E8: 3 | F8: 6a.
C9: TOTAL CORREGIMIENTOS | E9: 1 | F9: TOTAL VEREDAS | I9: 19
A10: CARACTERISTICAS DEMOGRAFICAS | N10: VIGILANCIA DE LA SALUD PUBLICA - AÑO 2014
A11: POBLACION 2015
A12: TOTAL | B12: HOMBRES | C12: MUJERES | D12: CABECERA | E12: RESTO | N12: MORTALIDAD CANCER CUELLO UTERINO | S12: MORTALIDAD MATERNA
A13: 7568 | B13: 4010 | C13: 3558 | D13: 1260 | E13: 6308 | N13: # Casos | O13: Tasa x cienmil Mujeres | S13: # Casos | T13: Tasa x cienmil Nacidos vivos
A14: POR GRUPOS DE EDAD | N14: 0 | O14: 0 | S14: 0 | T14: 0
A15: 0 - 4 AÑOS | B15: 5 - 9 AÑOS | C15: 10 - 14 AÑOS | D15: 15 - 19 AÑOS | E15: 20 - 59 AÑOS | F15: > 60 AÑOS
A16: 783 | B16: 744 | C16: 719 | D16: 723 | E16: 3794 | F16: 805 | N16: MORTALIDAD INFANTIL | S16: MORTALIDAD PERINATAL
N17: # Casos | O17: Tasa x cienmil Nacidos vivos | S17: # Casos | T17: Tasa x cienmil Nacidos vivos
A18: DESPLAZADOS 2015 (a marzo) | D18: INDIGENAS FEB 2014 | G18: ROM | I18: AFRO | N18: 2 | O18: 22.47191011 | S18: 1 | T18: 11.23595506
A19: TOTAL | B19: HOMBRES | C19: MUJERES | D19: TOTAL | E19: HOMBRES | F19: MUJERES
A20: 2024 | B20: 991.76 | C20: 1032.24 | D20: 0 | E20: 0 | F20: 0 | N20: MORTALIDAD VIH SIDA | S20: MORTALIDAD TUBERCULOSIS
A21: POBLACION TOTAL | B21: Afiliados al regimen Subsidiado * | D21: % De Aseguramiento al Regimen Subsidiado * | F21: Afiliados al Regimen Contributivo BDUA * | H21: % De Aseguramiento al Regimen Contributivo * | N21: # Casos | O21: Tasa x cienmil Habitantes | S21: # Casos | T21: Tasa x cienmil Habitantes
N22: 1 | O22: 13.23451562 | S22: 0 | T22: 0
N24: MORTALIDAD INFARTO AL MIOCARDIO | S24: MORTALIDAD < 5 AÑOS
A25: 7568 | B25: 5548 | D25: 73.30866808 | F25: 1333 | H25: 17.61363636 | N25: # Casos | O25: Tasa x cienmil Habitantes | S25: # Casos | T25: Tasa x cienmil Niños
A26: NBI (pobre) 2012 | H26: * Agosto 2015 | N26: 4 | O26: 52.93806247 | S26: 2 | T26: 254.1296061
A27: Total | C27: Cabecera | E27: Resto
A28: Prop (%) | B28: cve (%) | C28: Prop (%) | D28: cve (%) | E28: Prop (%) | F28: cve (%)
A29: 51.336318 | B29: - | C29: 30.33707865 | D29: - | E29: 55.24621822 | F29: - | N29: REGISTRO POBLACIONAL DE CANCER 2012
N30: Numero de casos registrados | P30: HOMBRES | Q30: MUJERES | R30: TOTAL
A31: PRESTACION DE SERVICIOS DE SALUD ** | P31: 6 | Q31: 3 | R31: =SUM(P31:Q31) -> 9
A32: EMPRESAS SOCIALES DEL ESTADO
A33: INSTITUCION PRESTADORA DE SERVICIOS DE SALUD | F33: DIRECTOR / GERENTE | N33: 10 PRIMERAS CAUSAS DE MORTALIDAD 2014
A34: ESE HOSPITAL SAN FRANCISCO DE ASIS | F34: DIANA ALEXANDRA MADRIGAL ARANGO | N34: ORDEN | O34: CODIGO 105 CIE-10 | P34: CAUSA | T34: TOTAL GENERAL | U34: HOMBRES | V34: MUJERES | W34: SIN DATO
N36: 1 | O36: 090 | P36: ACCIDENTES DE TRANSPORTE DE MOTOR Y SECUELAS | T36: 5 | U36: 3 | V36: 2
N37: 2 | O37: 051 | P37: ENFERMEDADES ISQUEMICAS DEL CORAZON | T37: 4 | U37: 0 | V37: 4
N38: 3 | O38: 050 | P38: ENFERMEDADES HIPERTENSIVAS | T38: 2 | U38: 1 | V38: 1
A39: PRESTADORES DE SERVICIOS DE SALUD | N39: 4 | O39: 015 | P39: TUMOR MALIGNO DEL HIGADO | T39: 2 | U39: 1 | V39: 1
A40: TOTALES | B40: IPS | C40: PROFESIONALES INDEPENDIENTES | E40: TRANSPORTE ESPECIAL | G40: OBJETO SOCIAL DIFERENTE | N40: 5 | O40: 054 | P40: INSUFICIENCIA CARDIACA | T40: 2 | U40: 2 | V40: 0
N41: 6 | O41: 034 | P41: TUMOR MALIGNO DE SITIOS NO ESPECIFICADOS | T41: 1 | U41: 0 | V41: 1
B42: 1 | C42: 0 | E42: 0 | G42: 0 | N42: 7 | O42: 087 | P42: MALFORMACIONES CONGENITAS DEL SISTEMA CIRCULATORIO | T42: 1 | U42: 1 | V42: 0
A43: IPS PUBLICAS | B43: IPS PRIVADAS | C43: SERVICIOS PRESTADOS X PROFESION | N43: 8 | O43: 074 | P43: INSUFICIENCIA RENAL | T43: 1 | U43: 1 | V43: 0
C44: Odontólogos | D44: Médicos | E44: Otros | F44: Total | N44: 9 | O44: 035 | P44: LEUCEMIA | T44: 1 | U44: 1 | V44: 0
N45: 10 | O45: 009 | P45: ENFERMEDAD POR EL VIH (SIDA) | T45: 1 | U45: 1 | V45: 0
A46: 1 | B46: 0 | C46: 0 | D46: 0 | E46: 0 | F46: =C46+D46+E46 -> 0
A48: CAPACIDAD INSTALADA | N48: PORCENTAJE DE EMBARAZOS POR GRUPO EDAD RESIDENCIA HABITUAL DE LA MADRE 2014 | S48: TASAS DE FECUNDIDAD ESPECIFICA POR MIL MUJERES 2014
A49: CAMAS
A50: Adultos | B50: Cuidado Agudo Mental | C50: Cuidado Intensivo Adulto | D50: Cuidado Intensivo Neonatal | E50: Cuidado Intensivo Pediátrico | F50: Cuidado Intermedio Adulto | G50: Cuidado Intermedio Mental | I50: Cuidado Intermedio Neonatal
N51: 10 a 14 AÑOS | P51: 15 a 19 AÑOS | S51: 10 a 14 AÑOS | U51: 15 a 19 AÑOS
N52: No | O52: % | P52: No | Q52: % | S52: No | T52: TASA | U52: No | V52: TASA
A53: 2 | B53: 0 | C53: 0 | D53: 0 | E53: 0 | F53: 0 | G53: 0 | I53: 0 | N53: 0 | O53: 0 | P53: 28 | Q53: 29.47368421 | S53: 0 | T53: 0 | U53: 28 | V53: 84.59214502
A54: CAMAS
A55: Cuidado Intermedio Pediátrico | B55: Farmaco- de-pendencia | C55: Obste-tricia | D55: Pediátricas | E55: Quemados Adultos | F55: Quemados Pediátrico | G55: Salud Mental Psiquiatría | I55: TOTAL CAMAS
A58: 0 | B58: 0 | C58: 1 | D58: 1 | E58: 0 | F58: 0 | G58: 0 | I58: =A53+B53+C53+D53+E53+F53+G53+I53+A58+B58+C58+D58+E58+F58+G58 -> 4
A60: SALAS | E60: TOTAL SALAS | N60: INMUNIZACIONES PAI 2014
A61: PARTO | C61: QUIROFANO | N61: POLIOMIELITIS (V.O.P)
A62: 1 | C62: 0 | E62: =A62+C62 -> 1 | N62: Vacunados (Edades) | S62: Refuerzos | T62: Dosis Aplicadas
N63: <1 | O63: 1 | P63: 2 | Q63: 3 | R63: 4 | S63: Otros
A64: TOTAL DE SERVICIOS PRESTADOS SEGÚN LA COMPLEJIDAD | N64: 110 | O64: 0 | P64: 1 | Q64: 0 | R64: 0 | S64: 231 | T64: 542
A65: BAJA | C65: MEDIA | E65: ALTA
A66: 26 | C66: 0 | E66: 0 | N66: DIFTERIA, TOSFERINA Y TÉTANO (D.P.T)
N67: Vacunados (Edades) | S67: Refuerzos | T67: Dosis
A68: TOTAL DE AMBULANCIAS HABILITADAS SEGÚN TIPO Y MODALIDAD | N68: <1 | O68: 1 | P68: 2 | Q68: 3 | R68: 4 | S68: Otros | T68: Aplicadas
A69: TIPO | C69: MODALIDAD | F69: TOTAL GENERAL | N69: 106 | O69: 0 | P69: 1 | Q69: 0 | R69: 0 | S69: 234 | T69: 544
A70: BASICA | B70: MEDICADA | C70: AEREA | D70: TERRESTRE | E70: FLUVIAL | H70: ** Fuente: REPS-Minsalud julio 2015
A71: 2 | B71: 0 | C71: 0 | D71: 2 | E71: 0 | F71: =SUM(C71:E71) -> 2 | N71: TUBERCULOSIS (B.C.G)
A72: 10 PRIMERAS CAUSAS DE HOSPITALIZACION 2013 | N72: Vacunados (Edades) | S72: Otros | T72: Dosis Aplicadas
A73: ORDEN | B73: CODIGO CIE-10 | C73: CAUSA | F73: TOTAL GENERAL | G73: % | H73: HOMBRES | J73: MUJERES | N73: <1 | O73: 1
N74: 38 | O74: 0 | S74: 0 | T74: 38
A75: 1 | B75: N390 | C75: INFECCION DE VIAS URINARIAS SITIO NO ESPECIFICADO | F75: 19 | G75: 4.896907216 | H75: 5 | J75: 14
A76: 2 | B76: R104 | C76: OTROS DOLORES ABDOMINALES Y LOS NO ESPECIFICADOS | F76: 16 | G76: 4.12371134 | H76: 3 | J76: 13 | N76: TRIPLE VIRAL - S. R. P.
A77: 3 | B77: O471 | C77: FALSO TRABAJO DE PARTO ANTES DE LA 37 Y MAS SEMANAS COMPLETAS DE GESTACION | F77: 14 | G77: 3.608247423 | H77: 0 | J77: 14 | N77: Vacunados (Edades) | S77: Refuerzos | T77: Dosis Aplicadas
A78: 4 | B78: C64X | C78: TUMOR MALIGNO DEL RI¥ON EXCEPTO DE LA PELVIS RENAL | F78: 14 | G78: 3.608247423 | H78: 14 | J78: 0 | N78: 1 | O78: 2 | P78: 3 | Q78: 4 | R78: Ref. | S78: Otros
A79: 5 | B79: J159 | C79: NEUMONIA BACTERIANA NO ESPECIFICADA | F79: 13 | G79: 3.350515464 | H79: 8 | J79: 5 | N79: 99 | O79: 0 | P79: 0 | Q79: 0 | R79: 122 | S79: 0 | T79: 221
A80: 6 | B80: O479 | C80: FALSO TRABAJO DE PARTO SIN OTRA ESPECIFICACION | F80: 12 | G80: 3.092783505 | H80: 0 | J80: 12
A81: 7 | B81: O800 | C81: PARTO UNICO ESPONTANEO PRESENTACION CEFALICA DE VERTICE | F81: 10 | G81: 2.577319588 | H81: 0 | J81: 10 | N81: AGUA POTABLE 2013
A82: 8 | B82: K359 | C82: APENDICITIS AGUDA NO ESPECIFICADA | F82: 9 | G82: 2.319587629 | H82: 5 | J82: 4 | P82: NUMEROS ACUEDUCTOS | R82: COBERTURA ACUEDUCTOS CON AGUA POTABLE (%) | T82: COBERTURAS VIVIENDAS CON AGUA POTABLE (%)
A83: 9 | B83: R509 | C83: FIEBRE NO ESPECIFICADA | F83: 8 | G83: 2.06185567 | H83: 5 | J83: 3
A84: 10 | B84: O470 | C84: FALSO TRABAJO DE PARTO ANTES DE LA 37 SEMANAS COMPLETAS DE GESTACION | F84: 7 | G84: 1.804123711 | H84: 0 | J84: 7
A85: 11 | C85: OTROS | F85: 266 | G85: 68.55670103 | H85: 97 | J85: 169 | N85: Urbano | P85: 1 | R85: 100 | T85: 100
A86: TOTALES | F86: 388 | G86: 100 | H86: 137 | J86: 251 | N86: Rural | P86: 19 | R86: 0 | T86: 0
A87: 10 PRIMERAS CAUSAS DE CONSULTA 2013 | N87: Total Municipal | P87: 20 | R87: 5 | T87: 21.8
A88: ORDEN | B88: CODIGO CIE-10 | C88: CAUSA | F88: TOTAL GENERAL | G88: % | H88: HOMBRES | J88: MUJERES | N88: CERTIFACION EN AGUA POTABLE | O88: INDICE RIESGO CALIDAD DEL AGUA POTABLE - IRCA- (a) | P88: INDICE RIESGO DE ABASTECIMIENTO MUNICIPAL - IRABA- (b) | R88: BUENAS PRACTICAS SANTIARIAS © | T88: CERTIFICAION SANITARIA MUNICIPAL EN AGUA POTABLE ©
A90: 1 | B90: I10X | C90: HIPERTENSION ESENCIAL (PRIMARIA) | F90: 3326 | G90: 13.28646187 | H90: 1075 | J90: 2251
A91: 2 | B91: R509 | C91: FIEBRE NO ESPECIFICADA | F91: 1255 | G91: 5.013382335 | H91: 510 | J91: 745
A92: 3 | B92: K021 | C92: CARIES DE LA DENTINA | F92: 733 | G92: 2.928134862 | H92: 311 | J92: 422 | N92: Urbano | O92: 1.6 | P92: 38.9 | R92: 44 | T92: 21.78
A93: 4 | B93: R51X | C93: CEFALEA | F93: 525 | G93: 2.097231654 | H93: 99 | J93: 426 | N93: Rural | O93: 97.3 | P93: 70.3 | R93: 84 | T93: 87.91
A94: 5 | B94: J00X | C94: RINOFARINGITIS AGUDA (RESFRIADO COMUN) | F94: 514 | G94: 2.053289658 | H94: 202 | J94: 312 | N94: Total | O94: 69.8 | P94: 52.5 | R94: 72.7 | T94: 67.21
A95: 6 | B95: N390 | C95: INFECCION DE VIAS URINARIAS SITIO NO ESPECIFICADO | F95: 438 | G95: 1.749690409 | H95: 90 | J95: 348 | N95: PROYECTOS DE INVERSION (En pesos)
A96: 7 | B96: B829 | C96: PARASITOSIS INTESTINAL SIN OTRA ESPECIFICACION | F96: 376 | G96: 1.502017337 | H96: 138 | J96: 238 | Q96: 2012 | S96: 2013 | U96: 2014
A97: 8 | B97: M545 | C97: LUMBAGO NO ESPECIFICADO | F97: 336 | G97: 1.342228259 | H97: 139 | J97: 197 | N97: ADULTO MAYOR | Q97: 60000000 | S97: 27279050 | U97: 30000000
A98: 9 | B98: K051 | C98: GINGIVITIS CRONICA | F98: 302 | G98: 1.206407542 | H98: 120 | J98: 182 | N98: DOTACION DISCAPACIDAD | U98: 2918752
A99: 10 | B99: R101 | C99: DOLOR ABDOMINAL LOCALIZADO EN PARTE SUPERIOR | F99: 279 | G99: 1.114528822 | H99: 107 | J99: 172 | N99: APS - SALUD CONTIGO | S99: 50486000 | U99: 15000500
A100: 11 | C100: OTROS | F100: 16949 | G100: 67.70662725 | H100: 5942 | J100: 11007 | N100: COFINANCIACION REG. SUBSIDIADO | Q100: 0 | S100: 0
A101: TOTALES | F101: 25033 | G101: 100 | H101: 8733 | J101: 16300 | N101: SSR | Q101: 910643
A102: 10 PRIMERAS CAUSAS DE URGENCIAS 2013 | N102: PAI | Q102: 2336854
A103: ORDEN | B103: CODIGO CIE-10 | C103: CAUSA | F103: TOTAL GENERAL | G103: % | H103: HOMBRES | J103: MUJERES | N103: VECTORES | Q103: 386400
N104: ESTERILIZACION MASCOTAS | Q104: 0
A105: 1 | B105: R101 | C105: DOLOR ABDOMINAL LOCALIZADO EN PARTE SUPERIOR | F105: 44 | G105: 6.386066763 | H105: 17 | J105: 27 | N105: VACUNA ANTIRRABICA | Q105: 1680000
A106: 2 | B106: R509 | C106: FIEBRE NO ESPECIFICADA | F106: 37 | G106: 5.370101597 | H106: 17 | J106: 20 | N106: INFRAESTRUCTURA
A107: 3 | B107: R104 | C107: OTROS DOLORES ABDOMINALES Y LOS NO ESPECIFICADOS | F107: 26 | G107: 3.773584906 | H107: 9 | J107: 17 | N107: DOTACION EQUIPOS BIOMEDICOS
A108: 4 | B108: R51X | C108: CEFALEA | F108: 26 | G108: 3.773584906 | H108: 6 | J108: 20 | N108: ESTAMPILLAS PROHOSPITALES | U108: 10224283
A109: 5 | B109: J459 | C109: ASMA NO ESPECIFICADA | F109: 18 | G109: 2.612481858 | H109: 6 | J109: 12 | N109: EQUIPAMIENTO
A110: 6 | B110: R42X | C110: MAREO Y DESVANECIMIENTO | F110: 17 | G110: 2.467343977 | H110: 6 | J110: 11 | N110: TELEMEDICINA
A111: 7 | B111: C64X | C111: TUMOR MALIGNO DEL RI¥ON EXCEPTO DE LA PELVIS RENAL | F111: 14 | G111: 2.031930334 | H111: 14 | J111: 0 | N111: AMBULANCIA | U111: 74000000
A112: 8 | B112: K297 | C112: GASTRITIS NO ESPECIFICADA | F112: 14 | G112: 2.031930334 | H112: 4 | J112: 10 | N112: TOTALES | Q112: =SUM(Q97:R111) -> 65313897 | S112: =SUM(S97:T111) -> 77765050 | U112: =SUM(U97:V111) -> 132143535
A113: 9 | B113: N390 | C113: INFECCION DE VIAS URINARIAS SITIO NO ESPECIFICADO | F113: 14 | G113: 2.031930334 | H113: 7 | J113: 7 | N113: PROYECTOS DE INVERSION (En Cantidad)
A114: 10 | B114: J449 | C114: ENFERMEDAD PULMONAR OBSTRUCTIVA CRONICA NO ESPECIFICADA | F114: 11 | G114: 1.596516691 | H114: 2 | J114: 9 | N114: PROGRAMA AEREO (No brigadas)
A115: 11 | C115: OTROS | F115: 468 | G115: 67.9245283 | H115: 206 | J115: 262 | N115: ASESORIA Y ASISTENCIA TECNICA | Q115: 14
A116: TOTALES | F116: 689 | G116: 100 | H116: 294 | J116: 395 | N116: CENTROS AMIGABLES JOVENES

Sheet APARTADO
C4: ALCALDE | E4: LUIS GONZALO GIRALDO AGUIRRE
C5: DIRECTOR LOCAL DE SALUD | E5: JOSÉ ALONSO ALVAREZ QUINTANA
C7: CERTIFICACION | E7: RANKING | F7: CATEGORIA MUNICIPAL
C8: SI | E8: 80 | F8: 4a.
C9: TOTAL CORREGIMIENTOS | E9: 4 | F9: TOTAL VEREDAS | I9: 50
A10: CARACTERISTICAS DEMOGRAFICAS | N10: VIGILANCIA DE LA SALUD PUBLICA - AÑO 2014
A11: POBLACION 2015
A12: TOTAL | B12: HOMBRES | C12: MUJERES | D12: CABECERA | E12: RESTO | N12: MORTALIDAD CANCER CUELLO UTERINO | S12: MORTALIDAD MATERNA
A13: 178257 | B13: 90140 | C13: 88117 | D13: 154284 | E13: 23973 | N13: # Casos | O13: Tasa x cienmil Mujeres | S13: # Casos | T13: Tasa x cienmil Nacidos vivos
A14: POR GRUPOS DE EDAD | N14: 3 | O14: 3.508074418 | S14: 3 | T14: 147.8560867
A15: 0 - 4 AÑOS | B15: 5 - 9 AÑOS | C15: 10 - 14 AÑOS | D15: 15 - 19 AÑOS | E15: 20 - 59 AÑOS | F15: > 60 AÑOS
A16: 22005 | B16: 20127 | C16: 19643 | D16: 19659 | E16: 86354 | F16: 10469 | N16: MORTALIDAD INFANTIL | S16: MORTALIDAD PERINATAL
N17: # Casos | O17: Tasa x cienmil Nacidos vivos | S17: # Casos | T17: Tasa x cienmil Nacidos vivos
A18: DESPLAZADOS 2015 (a marzo) | D18: INDIGENAS FEB 2014 | G18: ROM | I18: AFRO | N18: 26 | O18: 12.81419418 | S18: 36 | T18: 17.74273041
A19: TOTAL | B19: HOMBRES | C19: MUJERES | D19: TOTAL | E19: HOMBRES | F19: MUJERES
A20: 57555 | B20: 28201.95 | C20: 29353.05 | D20: 874 | E20: 461 | F20: 413 | N20: MORTALIDAD VIH SIDA | S20: MORTALIDAD TUBERCULOSIS
A21: POBLACION TOTAL | B21: Afiliados al regimen Subsidiado * | D21: % De Aseguramiento al Regimen Subsidiado * | F21: Afiliados al Regimen Contributivo BDUA * | H21: % De Aseguramiento al Regimen Contributivo * | N21: # Casos | O21: Tasa x cienmil Habitantes | S21: # Casos | T21: Tasa x cienmil Habitantes
N22: 5 | O22: 2.890039767 | S22: 7 | T22: 4.046055674
N24: MORTALIDAD INFARTO AL MIOCARDIO | S24: MORTALIDAD < 5 AÑOS
A25: 178257 | B25: 52486 | D25: 28.88918808 | F25: 82192 | H25: 46.10870821 | N25: # Casos | O25: Tasa x cienmil Habitantes | S25: # Casos | T25: Tasa x cienmil Niños
A26: NBI (pobre) 2012 | H26: * Agosto 2015 | N26: 39 | O26: 22.54231018 | S26: 30 | T26: 140.193467
A27: Total | C27: Cabecera | E27: Resto
A28: Prop (%) | B28: cve (%) | C28: Prop (%) | D28: cve (%) | E28: Prop (%) | F28: cve (%)
A29: 24.5338345 | B29: 7.35546584 | C29: 21.17799905 | D29: 9.784719891 | E29: 44.25559916 | F29: 5.393941531 | N29: REGISTRO POBLACIONAL DE CANCER 2012
N30: Numero de casos registrados | P30: HOMBRES | Q30: MUJERES | R30: TOTAL
A31: PRESTACION DE SERVICIOS DE SALUD ** | P31: 46 | Q31: 54 | R31: =SUM(P31:Q31) -> 100
A32: EMPRESAS SOCIALES DEL ESTADO
A33: INSTITUCION PRESTADORA DE SERVICIOS DE SALUD | F33: DIRECTOR / GERENTE | N33: 10 PRIMERAS CAUSAS DE MORTALIDAD 2014
N34: ORDEN | O34: CODIGO 105 CIE-10 | P34: CAUSA | T34: TOTAL GENERAL | U34: HOMBRES | V34: MUJERES | W34: SIN DATO
N36: 1 | O36: 051 | P36: ENFERMEDADES ISQUEMICAS DEL CORAZON | T36: 42 | U36: 31 | V36: 11
N37: 2 | O37: 055 | P37: ENFERMEDADES CEREBROVASCULARES | T37: 32 | U37: 13 | V37: 19
N38: 3 | O38: 060 | P38: ENFERMEDADES CRONICAS DE LAS VIAS RESPIRATORIAS INFERIORES | T38: 23 | U38: 10 | V38: 13
A39: PRESTADORES DE SERVICIOS DE SALUD | N39: 4 | O39: 101 | P39: AGRESIONES (HOMICIDIOS) Y SECUELAS | T39: 16 | U39: 14 | V39: 2
A40: TOTALES | B40: IPS | C40: PROFESIONALES INDEPENDIENTES | E40: TRANSPORTE ESPECIAL | G40: OBJETO SOCIAL DIFERENTE | N40: 5 | O40: 050 | P40: ENFERMEDADES HIPERTENSIVAS | T40: 16 | U40: 10 | V40: 6
N41: 6 | O41: 020 | P41: TUMOR MALIGNO DE LA TRAQUEA, LOS BRONQUIOS Y EL PULMON | T41: 14 | U41: 7 | V41: 7
B42: 38 | C42: 44 | E42: 1 | G42: 5 | N42: 7 | O42: 041 | P42: DIABETES MELLITUS | T42: 13 | U42: 4 | V42: 9
A43: IPS PUBLICAS | B43: IPS PRIVADAS | C43: SERVICIOS PRESTADOS X PROFESION | N43: 8 | O43: 059 | P43: NEUMONIA | T43: 12 | U43: 6 | V43: 6
C44: Odontólogos | D44: Médicos | E44: Otros | F44: Total | N44: 9 | O44: 066 | P44: ENFERMEDADES DEL HIGADO | T44: 10 | U44: 5 | V44: 5
N45: 10 | O45: 013 | P45: TUMOR MALIGNO DEL ESTOMAGO | T45: 9 | U45: 5 | V45: 4
A46: 0 | B46: 44 | C46: 27 | D46: 8 | E46: 51 | F46: =C46+D46+E46 -> 86
A48: CAPACIDAD INSTALADA | N48: PORCENTAJE DE EMBARAZOS POR GRUPO EDAD RESIDENCIA HABITUAL DE LA MADRE 2014 | S48: TASAS DE FECUNDIDAD ESPECIFICA POR MIL MUJERES 2014
A49: CAMAS
A50: Adultos | B50: Cuidado Agudo Mental | C50: Cuidado Intensivo Adulto | D50: Cuidado Intensivo Neonatal | E50: Cuidado Intensivo Pediátrico | F50: Cuidado Intermedio Adulto | G50: Cuidado Intermedio Mental | I50: Cuidado Intermedio Neonatal
N51: 10 a 14 AÑOS | P51: 15 a 19 AÑOS | S51: 10 a 14 AÑOS | U51: 15 a 19 AÑOS
N52: No | O52: % | P52: No | Q52: % | S52: No | T52: TASA | U52: No | V52: TASA
A53: 157 | B53: 0 | C53: 20 | D53: 5 | E53: 0 | F53: 17 | G53: 0 | I53: 2 | N53: 37 | O53: 1.752723828 | P53: 583 | Q53: 27.61724301 | S53: 37 | T53: 3.817975441 | U53: 583 | V53: 61.27811646
A54: CAMAS
A55: Cuidado Intermedio Pediátrico | B55: Farmaco- de-pendencia | C55: Obste-tricia | D55: Pediátricas | E55: Quemados Adultos | F55: Quemados Pediátrico | G55: Salud Mental Psiquiatría | I55: TOTAL CAMAS
A58: 0 | B58: 0 | C58: 40 | D58: 53 | E58: 0 | F58: 0 | G58: 0 | I58: =A53+B53+C53+D53+E53+F53+G53+I53+A58+B58+C58+D58+E58+F58+G58 -> 294
A60: SALAS | E60: TOTAL SALAS | N60: INMUNIZACIONES PAI 2014
A61: PARTO | C61: QUIROFANO | N61: POLIOMIELITIS (V.O.P)
A62: 3 | C62: 11 | E62: =A62+C62 -> 14 | N62: Vacunados (Edades) | S62: Refuerzos | T62: Dosis Aplicadas
N63: <1 | O63: 1 | P63: 2 | Q63: 3 | R63: 4 | S63: Otros
A64: TOTAL DE SERVICIOS PRESTADOS SEGÚN LA COMPLEJIDAD | N64: 1823 | O64: 53 | P64: 9 | Q64: 1 | R64: 6 | S64: 3931 | T64: 9571
A65: BAJA | C65: MEDIA | E65: ALTA
A66: 271 | C66: 224 | E66: 16 | N66: DIFTERIA, TOSFERINA Y TÉTANO (D.P.T)
N67: Vacunados (Edades) | S67: Refuerzos | T67: Dosis
A68: TOTAL DE AMBULANCIAS HABILITADAS SEGÚN TIPO Y MODALIDAD | N68: <1 | O68: 1 | P68: 2 | Q68: 3 | R68: 4 | S68: Otros | T68: Aplicadas
A69: TIPO | C69: MODALIDAD | F69: TOTAL GENERAL | N69: 1828 | O69: 36 | P69: 10 | Q69: 2 | R69: 5 | S69: 3961 | T69: 9580
A70: BASICA | B70: MEDICADA | C70: AEREA | D70: TERRESTRE | E70: FLUVIAL | H70: ** Fuente: REPS-Minsalud julio 2015
A71: 12 | B71: 8 | C71: 0 | D71: 20 | E71: 0 | F71: =SUM(C71:E71) -> 20 | N71: TUBERCULOSIS (B.C.G)
A72: 10 PRIMERAS CAUSAS DE HOSPITALIZACION 2013 | N72: Vacunados (Edades) | S72: Otros | T72: Dosis Aplicadas
A73: ORDEN | B73: CODIGO CIE-10 | C73: CAUSA | F73: TOTAL GENERAL | G73: % | H73: HOMBRES | J73: MUJERES | N73: <1 | O73: 1
N74: 2671 | O74: 33 | S74: 1009 | T74: 3713
A75: 1 | B75: O800 | C75: PARTO UNICO ESPONTANEO PRESENTACION CEFALICA DE VERTICE | F75: 668 | G75: 10.99045739 | H75: 0 | J75: 668
A76: 2 | B76: N390 | C76: INFECCION DE VIAS URINARIAS SITIO NO ESPECIFICADO | F76: 170 | G76: 2.796972688 | H76: 56 | J76: 114 | N76: TRIPLE VIRAL - S. R. P.
A77: 3 | B77: R509 | C77: FIEBRE NO ESPECIFICADA | F77: 134 | G77: 2.20467259 | H77: 50 | J77: 84 | N77: Vacunados (Edades) | S77: Refuerzos | T77: Dosis Aplicadas
A78: 4 | B78: R104 | C78: OTROS DOLORES ABDOMINALES Y LOS NO ESPECIFICADOS | F78: 123 | G78: 2.023692004 | H78: 45 | J78: 78 | N78: 1 | O78: 2 | P78: 3 | Q78: 4 | R78: Ref. | S78: Otros
A79: 5 | B79: O034 | C79: ABORTO ESPONTANEO: INCOMPLETO SIN COMPLICACION | F79: 114 | G79: 1.875616979 | H79: 0 | J79: 114 | N79: 1795 | O79: 19 | P79: 4 | Q79: 4 | R79: 2092 | S79: 238 | T79: 4152
A80: 6 | B80: K359 | C80: APENDICITIS AGUDA NO ESPECIFICADA | F80: 107 | G80: 1.760447516 | H80: 60 | J80: 47
A81: 7 | B81: O821 | C81: PARTO POR CESAREA DE EMERGENCIA | F81: 100 | G81: 1.645278052 | H81: 0 | J81: 100 | N81: AGUA POTABLE 2013
A82: 8 | B82: O470 | C82: FALSO TRABAJO DE PARTO ANTES DE LA 37 SEMANAS COMPLETAS DE GESTACION | F82: 91 | G82: 1.497203027 | H82: 0 | J82: 91 | P82: NUMEROS ACUEDUCTOS | R82: COBERTURA ACUEDUCTOS CON AGUA POTABLE (%) | T82: COBERTURAS VIVIENDAS CON AGUA POTABLE (%)
A83: 9 | B83: J159 | C83: NEUMONIA BACTERIANA NO ESPECIFICADA | F83: 77 | G83: 1.2668641 | H83: 41 | J83: 36
A84: 10 | B84: O234 | C84: INFECCION NO ESPECIFICADA DE LAS VIAS URINARIAS EN EL EMBARAZO | F84: 59 | G84: 0.9707140507 | H84: 0 | J84: 59
A85: 11 | C85: OTROS | F85: 4435 | G85: 72.96808161 | H85: 1568 | J85: 2867 | N85: Urbano | P85: 1 | R85: 100 | T85: 93.2
A86: TOTALES | F86: 6078 | G86: 100 | H86: 1820 | J86: 4258 | N86: Rural | P86: 10 | R86: 0 | T86: 0
A87: 10 PRIMERAS CAUSAS DE CONSULTA 2013 | N87: Total Municipal | P87: 11 | R87: 9.090909091 | T87: 82.7
A88: ORDEN | B88: CODIGO CIE-10 | C88: CAUSA | F88: TOTAL GENERAL | G88: % | H88: HOMBRES | J88: MUJERES | N88: CERTIFACION EN AGUA POTABLE | O88: INDICE RIESGO CALIDAD DEL AGUA POTABLE - IRCA- (a) | P88: INDICE RIESGO DE ABASTECIMIENTO MUNICIPAL - IRABA- (b) | R88: BUENAS PRACTICAS SANTIARIAS © | T88: CERTIFICAION SANITARIA MUNICIPAL EN AGUA POTABLE ©
A90: 1 | B90: I10X | C90: HIPERTENSION ESENCIAL (PRIMARIA) | F90: 78609 | G90: 7.347287843 | H90: 22430 | J90: 56179
A91: 2 | B91: J00X | C91: RINOFARINGITIS AGUDA (RESFRIADO COMUN) | F91: 58794 | G91: 5.495254252 | H91: 26593 | J91: 32201
A92: 3 | B92: R51X | C92: CEFALEA | F92: 24709 | G92: 2.309457382 | H92: 5352 | J92: 19357 | N92: Urbano | O92: 4.7 | P92: 21 | R92: 4 | T92: 7.75
A93: 4 | B93: R104 | C93: OTROS DOLORES ABDOMINALES Y LOS NO ESPECIFICADOS | F93: 23496 | G93: 2.19608283 | H93: 6842 | J93: 16654 | N93: Rural | O93: 43.3 | P93: 60.2 | R93: 25.3 | T93: 41.28
A94: 5 | B94: R688 | C94: OTROS SINTOMAS Y SIGNOS GENERALES ESPECIFICADOS | F94: 23414 | G94: 2.188418598 | H94: 10149 | J94: 13265 | N94: Total | O94: 3.7 | P94: 19.8 | R94: 5.4 | T94: 7.43
A95: 6 | B95: R509 | C95: FIEBRE NO ESPECIFICADA | F95: 22317 | G95: 2.08588613 | H95: 11111 | J95: 11206 | N95: PROYECTOS DE INVERSION (En pesos)
A96: 7 | B96: N390 | C96: INFECCION DE VIAS URINARIAS SITIO NO ESPECIFICADO | F96: 20770 | G96: 1.941293853 | H96: 5261 | J96: 15509 | Q96: 2012 | S96: 2013 | U96: 2014
A97: 8 | B97: M545 | C97: LUMBAGO NO ESPECIFICADO | F97: 18033 | G97: 1.685476748 | H97: 7320 | J97: 10713 | N97: ADULTO MAYOR | Q97: 100000000 | S97: 44999705 | U97: 45000000
A98: 9 | B98: B829 | C98: PARASITOSIS INTESTINAL SIN OTRA ESPECIFICACION | F98: 13825 | G98: 1.2921708 | H98: 6713 | J98: 7112 | N98: DOTACION DISCAPACIDAD | Q98: 20566854 | S98: 14959600 | U98: 2747752
A99: 10 | B99: N760 | C99: VAGINITIS AGUDA | F99: 12995 | G99: 1.214593819 | H99: 0 | J99: 12995 | N99: APS - SALUD CONTIGO | Q99: 104090000 | S99: 111251008
A100: 11 | C100: OTROS | F100: 772943 | G100: 72.24407775 | H100: 254464 | J100: 518479 | N100: COFINANCIACION REG. SUBSIDIADO | Q100: 4193427920 | S100: 3601555899 | U100: 4754418420
A101: TOTALES | F101: 1069905 | G101: 100 | H101: 356235 | J101: 713670 | N101: SSR | Q101: 19704668
A102: 10 PRIMERAS CAUSAS DE URGENCIAS 2013 | N102: PAI | Q102: 50565314
A103: ORDEN | B103: CODIGO CIE-10 | C103: CAUSA | F103: TOTAL GENERAL | G103: % | H103: HOMBRES | J103: MUJERES | N103: VECTORES | Q103: 25380673 | S103: 119034901
N104: ESTERILIZACION MASCOTAS | Q104: 0
A105: 1 | B105: R51X | C105: CEFALEA | F105: 302 | G105: 4.193861964 | H105: 94 | J105: 208 | N105: VACUNA ANTIRRABICA | Q105: 8922000
A106: 2 | B106: R104 | C106: OTROS DOLORES ABDOMINALES Y LOS NO ESPECIFICADOS | F106: 295 | G106: 4.096653243 | H106: 100 | J106: 195 | N106: INFRAESTRUCTURA
A107: 3 | B107: R509 | C107: FIEBRE NO ESPECIFICADA | F107: 269 | G107: 3.735592279 | H107: 162 | J107: 107 | N107: DOTACION EQUIPOS BIOMEDICOS
A108: 4 | B108: A09X | C108: DIARREA Y GASTROENTERITIS DE PRESUNTO ORIGEN INFECCIOSO | F108: 240 | G108: 3.332870435 | H108: 127 | J108: 113 | N108: ESTAMPILLAS PROHOSPITALES
A109: 5 | B109: N390 | C109: INFECCION DE VIAS URINARIAS SITIO NO ESPECIFICADO | F109: 195 | G109: 2.707957228 | H109: 45 | J109: 150 | N109: EQUIPAMIENTO
A110: 6 | B110: O800 | C110: PARTO UNICO ESPONTANEO PRESENTACION CEFALICA DE VERTICE | F110: 165 | G110: 2.291348424 | H110: 0 | J110: 165 | N110: TELEMEDICINA
A111: 7 | B111: J039 | C111: AMIGDALITIS AGUDA NO ESPECIFICADA | F111: 129 | G111: 1.791417859 | H111: 70 | J111: 59 | N111: AMBULANCIA
A112: 8 | B112: M545 | C112: LUMBAGO NO ESPECIFICADO | F112: 121 | G112: 1.680322177 | H112: 64 | J112: 57 | N112: TOTALES | Q112: =SUM(Q97:R111) -> 4522657429 | S112: =SUM(S97:T111) -> 3891801113 | U112: =SUM(U97:V111) -> 4802166172
A113: 9 | B113: K297 | C113: GASTRITIS NO ESPECIFICADA | F113: 107 | G113: 1.485904735 | H113: 36 | J113: 71 | N113: PROYECTOS DE INVERSION (En Cantidad)
A114: 10 | B114: R11X | C114: NAUSEA Y VOMITO | F114: 106 | G114: 1.472017775 | H114: 61 | J114: 45 | N114: PROGRAMA AEREO (No brigadas) | S114: 3
A115: 11 | C115: OTROS | F115: 5272 | G115: 73.21205388 | H115: 2372 | J115: 2900 | N115: ASESORIA Y ASISTENCIA TECNICA | Q115: 38
A116: TOTALES | F116: 7201 | G116: 100 | H116: 3131 | J116: 4070 | N116: CENTROS AMIGABLES JOVENES | S116: SI

Sheet ARBOLETES
C4: ALCALDE | E4: DIANA STELLA GARRIDO HENAO
C5: DIRECTOR LOCAL DE SALUD | E5: LEIDY MOSQUERA RAMOS
C7: CERTIFICACION | E7: RANKING | F7: CATEGORIA MUNICIPAL
C8: SI | E8: 107 | F8: 6a.
C9: TOTAL CORREGIMIENTOS | E9: 8 | F9: TOTAL VEREDAS | I9: 67
A10: CARACTERISTICAS DEMOGRAFICAS | N10: VIGILANCIA DE LA SALUD PUBLICA - AÑO 2014
A11: POBLACION 2015
A12: TOTAL | B12: HOMBRES | C12: MUJERES | D12: CABECERA | E12: RESTO | N12: MORTALIDAD CANCER CUELLO UTERINO | S12: MORTALIDAD MATERNA
A13: 40147 | B13: 20487 | C13: 19660 | D13: 16870 | E13: 23277 | N13: # Casos | O13: Tasa x cienmil Mujeres | S13: # Casos | T13: Tasa x cienmil Nacidos vivos
A14: POR GRUPOS DE EDAD | N14: 1 | O14: 5.216211987 | S14: 1 | T14: 201.6129032
A15: 0 - 4 AÑOS | B15: 5 - 9 AÑOS | C15: 10 - 14 AÑOS | D15: 15 - 19 AÑOS | E15: 20 - 59 AÑOS | F15: > 60 AÑOS
A16: 4957 | B16: 4668 | C16: 4616 | D16: 4544 | E16: 19028 | F16: 2334 | N16: MORTALIDAD INFANTIL | S16: MORTALIDAD PERINATAL
N17: # Casos | O17: Tasa x cienmil Nacidos vivos | S17: # Casos | T17: Tasa x cienmil Nacidos vivos
A18: DESPLAZADOS 2015 (a marzo) | D18: INDIGENAS FEB 2014 | G18: ROM | I18: AFRO | N18: 8 | O18: 16.12903226 | S18: 10 | T18: 20.16129032
A19: TOTAL | B19: HOMBRES | C19: MUJERES | D19: TOTAL | E19: HOMBRES | F19: MUJERES
A20: 8848 | B20: 4335.52 | C20: 4512.48 | D20: 1424 | E20: 706 | F20: 718 | N20: MORTALIDAD VIH SIDA | S20: MORTALIDAD TUBERCULOSIS
A21: POBLACION TOTAL | B21: Afiliados al regimen Subsidiado * | D21: % De Aseguramiento al Regimen Subsidiado * | F21: Afiliados al Regimen Contributivo BDUA * | H21: % De Aseguramiento al Regimen Contributivo * | N21: # Casos | O21: Tasa x cienmil Habitantes | S21: # Casos | T21: Tasa x cienmil Habitantes
N22: 3 | O22: 7.670084115 | S22: 1 | T22: 2.556694705
N24: MORTALIDAD INFARTO AL MIOCARDIO | S24: MORTALIDAD < 5 AÑOS
A25: 40147 | B25: 26479 | D25: 65.95511495 | F25: 3750 | H25: 9.340673027 | N25: # Casos | O25: Tasa x cienmil Habitantes | S25: # Casos | T25: Tasa x cienmil Niños
A26: NBI (pobre) 2012 | H26: * Agosto 2015 | N26: 17 | O26: 43.46380999 | S26: 11 | T26: 227.3666804
A27: Total | C27: Cabecera | E27: Resto
A28: Prop (%) | B28: cve (%) | C28: Prop (%) | D28: cve (%) | E28: Prop (%) | F28: cve (%)
A29: 72.39527089 | B29: 1.309917256 | C29: 44.7386016 | D29: 2.573923764 | E29: 90.84196616 | F29: 1.521003745 | N29: REGISTRO POBLACIONAL DE CANCER 2012
N30: Numero de casos registrados | P30: HOMBRES | Q30: MUJERES | R30: TOTAL
A31: PRESTACION DE SERVICIOS DE SALUD ** | P31: 2 | Q31: 1 | R31: =SUM(P31:Q31) -> 3
A32: EMPRESAS SOCIALES DEL ESTADO
A33: INSTITUCION PRESTADORA DE SERVICIOS DE SALUD | F33: DIRECTOR / GERENTE | N33: 10 PRIMERAS CAUSAS DE MORTALIDAD 2014
A34: ESE HOSPITAL PEDRO NEL CARDONA DE ARBOLETES | F34: JENNY GARCES LUNA | N34: ORDEN | O34: CODIGO 105 CIE-10 | P34: CAUSA | T34: TOTAL GENERAL | U34: HOMBRES | V34: MUJERES | W34: SIN DATO
N36: 1 | O36: 051 | P36: ENFERMEDADES ISQUEMICAS DEL CORAZON | T36: 17 | U36: 10 | V36: 7
N37: 2 | O37: 055 | P37: ENFERMEDADES CEREBROVASCULARES | T37: 14 | U37: 8 | V37: 6
N38: 3 | O38: 089 | P38: SIGNOS, SINTOMAS Y AFECCIONES MAL DEFINIDAS | T38: 12 | U38: 4 | V38: 8
A39: PRESTADORES DE SERVICIOS DE SALUD | N39: 4 | O39: 101 | P39: AGRESIONES (HOMICIDIOS) Y SECUELAS | T39: 8 | U39: 7 | V39: 1
A40: TOTALES | B40: IPS | C40: PROFESIONALES INDEPENDIENTES | E40: TRANSPORTE ESPECIAL | G40: OBJETO SOCIAL DIFERENTE | N40: 5 | O40: 050 | P40: ENFERMEDADES HIPERTENSIVAS | T40: 6 | U40: 1 | V40: 5
N41: 6 | O41: 060 | P41: ENFERMEDADES CRONICAS DE LAS VIAS RESPIRATORIAS INFERIORES | T41: 5 | U41: 4 | V41: 1
B42: 2 | C42: 3 | E42: 0 | G42: 0 | N42: 7 | O42: 041 | P42: DIABETES MELLITUS | T42: 5 | U42: 3 | V42: 2
A43: IPS PUBLICAS | B43: IPS PRIVADAS | C43: SERVICIOS PRESTADOS X PROFESION | N43: 8 | O43: 090 | P43: ACCIDENTES DE TRANSPORTE DE MOTOR Y SECUELAS | T43: 4 | U43: 2 | V43: 2
C44: Odontólogos | D44: Médicos | E44: Otros | F44: Total | N44: 9 | O44: 074 | P44: INSUFICIENCIA RENAL | T44: 4 | U44: 3 | V44: 1
N45: 10 | O45: 009 | P45: ENFERMEDAD POR EL VIH (SIDA) | T45: 3 | U45: 2 | V45: 1
A46: 1 | B46: 1 | C46: 2 | D46: 0 | E46: 4 | F46: =C46+D46+E46 -> 6
A48: CAPACIDAD INSTALADA | N48: PORCENTAJE DE EMBARAZOS POR GRUPO EDAD RESIDENCIA HABITUAL DE LA MADRE 2014 | S48: TASAS DE FECUNDIDAD ESPECIFICA POR MIL MUJERES 2014
A49: CAMAS
A50: Adultos | B50: Cuidado Agudo Mental | C50: Cuidado Intensivo Adulto | D50: Cuidado Intensivo Neonatal | E50: Cuidado Intensivo Pediátrico | F50: Cuidado Intermedio Adulto | G50: Cuidado Intermedio Mental | I50: Cuidado Intermedio Neonatal
N51: 10 a 14 AÑOS | P51: 15 a 19 AÑOS | S51: 10 a 14 AÑOS | U51: 15 a 19 AÑOS
N52: No | O52: % | P52: No | Q52: % | S52: No | T52: TASA | U52: No | V52: TASA
A53: 5 | B53: 0 | C53: 0 | D53: 0 | E53: 0 | F53: 0 | G53: 0 | I53: 0 | N53: 11 | O53: 2.071563089 | P53: 146 | Q53: 27.4952919 | S53: 11 | T53: 4.843681198 | U53: 146 | V53: 66.33348478
A54: CAMAS
A55: Cuidado Intermedio Pediátrico | B55: Farmaco- de-pendencia | C55: Obste-tricia | D55: Pediátricas | E55: Quemados Adultos | F55: Quemados Pediátrico | G55: Salud Mental Psiquiatría | I55: TOTAL CAMAS
A58: 0 | B58: 0 | C58: 2 | D58: 2 | E58: 0 | F58: 0 | G58: 0 | I58: =A53+B53+C53+D53+E53+F53+G53+I53+A58+B58+C58+D58+E58+F58+G58 -> 9
A60: SALAS | E60: TOTAL SALAS | N60: INMUNIZACIONES PAI 2014
A61: PARTO | C61: QUIROFANO | N61: POLIOMIELITIS (V.O.P)
A62: 0 | C62: 0 | E62: =A62+C62 -> 0 | N62: Vacunados (Edades) | S62: Refuerzos | T62: Dosis Aplicadas
N63: <1 | O63: 1 | P63: 2 | Q63: 3 | R63: 4 | S63: Otros
A64: TOTAL DE SERVICIOS PRESTADOS SEGÚN LA COMPLEJIDAD | N64: 489 | O64: 11 | P64: 1 | Q64: 4 | R64: 0 | S64: 1093 | T64: 2669
A65: BAJA | C65: MEDIA | E65: ALTA
A66: 55 | C66: 8 | E66: 0 | N66: DIFTERIA, TOSFERINA Y TÉTANO (D.P.T)
N67: Vacunados (Edades) | S67: Refuerzos | T67: Dosis
A68: TOTAL DE AMBULANCIAS HABILITADAS SEGÚN TIPO Y MODALIDAD | N68: <1 | O68: 1 | P68: 2 | Q68: 3 | R68: 4 | S68: Otros | T68: Aplicadas
A69: TIPO | C69: MODALIDAD | F69: TOTAL GENERAL | N69: 490 | O69: 12 | P69: 1 | Q69: 4 | R69: 0 | S69: 1100 | T69: 2682
A70: BASICA | B70: MEDICADA | C70: AEREA | D70: TERRESTRE | E70: FLUVIAL | H70: ** Fuente: REPS-Minsalud julio 2015
A71: 2 | B71: 0 | C71: 0 | D71: 2 | E71: 0 | F71: =SUM(C71:E71) -> 2 | N71: TUBERCULOSIS (B.C.G)
A72: 10 PRIMERAS CAUSAS DE HOSPITALIZACION 2013 | N72: Vacunados (Edades) | S72: Otros | T72: Dosis Aplicadas
A73: ORDEN | B73: CODIGO CIE-10 | C73: CAUSA | F73: TOTAL GENERAL | G73: % | H73: HOMBRES | J73: MUJERES | N73: <1 | O73: 1
N74: 166 | O74: 30 | S74: 3 | T74: 199
A75: 1 | B75: J180 | C75: BRONCONEUMONIA NO ESPECIFICADA | F75: 58 | G75: 12.66375546 | H75: 28 | J75: 30
A76: 2 | B76: N390 | C76: INFECCION DE VIAS URINARIAS SITIO NO ESPECIFICADO | F76: 48 | G76: 10.48034934 | H76: 14 | J76: 34 | N76: TRIPLE VIRAL - S. R. P.
A77: 3 | B77: O800 | C77: PARTO UNICO ESPONTANEO PRESENTACION CEFALICA DE VERTICE | F77: 41 | G77: 8.951965066 | H77: 0 | J77: 41 | N77: Vacunados (Edades) | S77: Refuerzos | T77: Dosis Aplicadas
A78: 4 | B78: O623 | C78: TRABAJO DE PARTO PRECIPITADO | F78: 30 | G78: 6.550218341 | H78: 0 | J78: 30 | N78: 1 | O78: 2 | P78: 3 | Q78: 4 | R78: Ref. | S78: Otros
A79: 5 | B79: R509 | C79: FIEBRE NO ESPECIFICADA | F79: 14 | G79: 3.056768559 | H79: 9 | J79: 5 | N79: 545 | O79: 0 | P79: 1 | Q79: 2 | R79: 573 | S79: 8 | T79: 1129
A80: 6 | B80: J189 | C80: NEUMONIA NO ESPECIFICADA | F80: 13 | G80: 2.838427948 | H80: 8 | J80: 5
A81: 7 | B81: E46X | C81: DESNUTRICION PROTEICOCALORICA NO ESPECIFICADA | F81: 13 | G81: 2.838427948 | H81: 2 | J81: 11 | N81: AGUA POTABLE 2013
A82: 8 | B82: O234 | C82: INFECCION NO ESPECIFICADA DE LAS VIAS URINARIAS EN EL EMBARAZO | F82: 12 | G82: 2.620087336 | H82: 0 | J82: 12 | P82: NUMEROS ACUEDUCTOS | R82: COBERTURA ACUEDUCTOS CON AGUA POTABLE (%) | T82: COBERTURAS VIVIENDAS CON AGUA POTABLE (%)
A83: 9 | B83: O470 | C83: FALSO TRABAJO DE PARTO ANTES DE LA 37 SEMANAS COMPLETAS DE GESTACION | F83: 8 | G83: 1.746724891 | H83: 0 | J83: 8
A84: 10 | B84: L028 | C84: ABSCESO CUTANEO FURUNCULO Y ANTRAX DE OTROS SITIOS | F84: 8 | G84: 1.746724891 | H84: 3 | J84: 5
A85: 11 | C85: OTROS | F85: 213 | G85: 46.50655022 | H85: 104 | J85: 109 | N85: Urbano | P85: 1 | R85: 100 | T85: 62.4
A86: TOTALES | F86: 458 | G86: 100 | H86: 168 | J86: 290 | N86: Rural | P86: 19 | R86: 0 | T86: 0
A87: 10 PRIMERAS CAUSAS DE CONSULTA 2013 | N87: Total Municipal | P87: 20 | R87: 5 | T87: 18.2
A88: ORDEN | B88: CODIGO CIE-10 | C88: CAUSA | F88: TOTAL GENERAL | G88: % | H88: HOMBRES | J88: MUJERES | N88: CERTIFACION EN AGUA POTABLE | O88: INDICE RIESGO CALIDAD DEL AGUA POTABLE - IRCA- (a) | P88: INDICE RIESGO DE ABASTECIMIENTO MUNICIPAL - IRABA- (b) | R88: BUENAS PRACTICAS SANTIARIAS © | T88: CERTIFICAION SANITARIA MUNICIPAL EN AGUA POTABLE ©
A90: 1 | B90: I10X | C90: HIPERTENSION ESENCIAL (PRIMARIA) | F90: 14885 | G90: 6.140524574 | H90: 4362 | J90: 10523
A91: 2 | B91: J00X | C91: RINOFARINGITIS AGUDA (RESFRIADO COMUN) | F91: 12611 | G91: 5.202428983 | H91: 4870 | J91: 7741
A92: 3 | B92: N390 | C92: INFECCION DE VIAS URINARIAS SITIO NO ESPECIFICADO | F92: 8844 | G92: 3.648424544 | H92: 1969 | J92: 6875 | N92: Urbano | O92: 3.4 | P92: 25.7 | R92: 4 | T92: 8.04
A93: 4 | B93: R104 | C93: OTROS DOLORES ABDOMINALES Y LOS NO ESPECIFICADOS | F93: 7947 | G93: 3.278384198 | H93: 2393 | J93: 5554 | N93: Rural | O93: 100 | P93: 93 | R93: 100 | T93: 98.6
A94: 5 | B94: R509 | C94: FIEBRE NO ESPECIFICADA | F94: 7525 | G94: 3.104296098 | H94: 3629 | J94: 3896 | N94: Total | O94: 25.4 | P94: 34.7 | R94: 27.6 | T94: 27.92
A95: 6 | B95: B829 | C95: PARASITOSIS INTESTINAL SIN OTRA ESPECIFICACION | F95: 7222 | G95: 2.979299192 | H95: 3108 | J95: 4114 | N95: PROYECTOS DE INVERSION (En pesos)
A96: 7 | B96: N771 | C96: VAGINITIS VULVITIS Y VULVOVAGINITIS EN ENFERMEDADES INFECCIOSAS Y PARASITARIAS CLASIFICADAS EN OTRA PARTE | F96: 5838 | G96: 2.408356229 | H96: 0 | J96: 5838 | Q96: 2012 | S96: 2013 | U96: 2014
A97: 8 | B97: M545 | C97: LUMBAGO NO ESPECIFICADO | F97: 5467 | G97: 2.255307212 | H97: 2185 | J97: 3282 | N97: ADULTO MAYOR | Q97: 120000000 | S97: 70000000 | U97: 70000000
A98: 9 | B98: R51X | C98: CEFALEA | F98: 5431 | G98: 2.240456094 | H98: 1408 | J98: 4023 | N98: DOTACION DISCAPACIDAD | U98: 2747752
A99: 10 | B99: K029 | C99: CARIES DENTAL NO ESPECIFICADA | F99: 3990 | G99: 1.645998861 | H99: 1555 | J99: 2435 | N99: APS - SALUD CONTIGO | Q99: 44460000 | S99: 75000000 | U99: 53887000
A100: 11 | C100: OTROS | F100: 162646 | G100: 67.09652401 | H100: 54907 | J100: 107739 | N100: COFINANCIACION REG. SUBSIDIADO | Q100: 2156165857 | S100: 1851838641 | U100: 2444614492
A101: TOTALES | F101: 242406 | G101: 100 | H101: 80386 | J101: 162020 | N101: SSR | Q101: 4490198
A102: 10 PRIMERAS CAUSAS DE URGENCIAS 2013 | N102: PAI | Q102: 11522562
A103: ORDEN | B103: CODIGO CIE-10 | C103: CAUSA | F103: TOTAL GENERAL | G103: % | H103: HOMBRES | J103: MUJERES | N103: VECTORES | Q103: 25380673 | S103: 119034901
N104: ESTERILIZACION MASCOTAS | Q104: 0
A105: 1 | B105: R104 | C105: OTROS DOLORES ABDOMINALES Y LOS NO ESPECIFICADOS | F105: 17 | G105: 12.40875912 | H105: 9 | J105: 8 | N105: VACUNA ANTIRRABICA | Q105: 2372000
A106: 2 | B106: K800 | C106: CALCULO DE LA VESICULA BILIAR CON COLECISTITIS AGUDA | F106: 6 | G106: 4.379562044 | H106: 0 | J106: 6 | N106: INFRAESTRUCTURA | U106: 250000000
A107: 3 | B107: I10X | C107: HIPERTENSION ESENCIAL (PRIMARIA) | F107: 5 | G107: 3.649635036 | H107: 1 | J107: 4 | N107: DOTACION EQUIPOS BIOMEDICOS | U107: 75000000
A108: 4 | B108: R51X | C108: CEFALEA | F108: 5 | G108: 3.649635036 | H108: 0 | J108: 5 | N108: ESTAMPILLAS PROHOSPITALES
A109: 5 | B109: R509 | C109: FIEBRE NO ESPECIFICADA | F109: 4 | G109: 2.919708029 | H109: 0 | J109: 4 | N109: EQUIPAMIENTO
A110: 6 | B110: N390 | C110: INFECCION DE VIAS URINARIAS SITIO NO ESPECIFICADO | F110: 4 | G110: 2.919708029 | H110: 0 | J110: 4 | N110: TELEMEDICINA | S110: 37520800 | U110: 32904218
A111: 7 | B111: O234 | C111: INFECCION NO ESPECIFICADA DE LAS VIAS URINARIAS EN EL EMBARAZO | F111: 4 | G111: 2.919708029 | H111: 0 | J111: 4 | N111: AMBULANCIA | Q111: 33750000
A112: 8 | B112: J449 | C112: ENFERMEDAD PULMONAR OBSTRUCTIVA CRONICA NO ESPECIFICADA | F112: 3 | G112: 2.189781022 | H112: 0 | J112: 3 | N112: TOTALES | Q112: =SUM(Q97:R111) -> 2398141290 | S112: =SUM(S97:T111) -> 2153394342 | U112: =SUM(U97:V111) -> 2929153462
A113: 9 | B113: G440 | C113: SINDROME DE CEFALEA EN RACIMOS | F113: 3 | G113: 2.189781022 | H113: 0 | J113: 3 | N113: PROYECTOS DE INVERSION (En Cantidad)
A114: 10 | B114: A09X | C114: DIARREA Y GASTROENTERITIS DE PRESUNTO ORIGEN INFECCIOSO | F114: 3 | G114: 2.189781022 | H114: 0 | J114: 3 | N114: PROGRAMA AEREO (No brigadas) | S114: 1
A115: 11 | C115: OTROS | F115: 83 | G115: 60.58394161 | H115: 36 | J115: 47 | N115: ASESORIA Y ASISTENCIA TECNICA | Q115: 19
A116: TOTALES | F116: 137 | G116: 100 | H116: 46 | J116: 91 | N116: CENTROS AMIGABLES JOVENES | S116: SI

Sheet ARGELIA
C4: ALCALDE | E4: FLOR DEY GRANADA VALENCIA
C5: DIRECTOR LOCAL DE SALUD | E5: MÓNICA MARCELA ZAPATA LÓPEZ
C7: CERTIFICACION | E7: RANKING | F7: CATEGORIA MUNICIPAL
C8: NO | E8: 110 | F8: 6a.
C9: TOTAL CORREGIMIENTOS | E9: 0 | F9: TOTAL VEREDAS | I9: 48
A10: CARACTERISTICAS DEMOGRAFICAS | N10: VIGILANCIA DE LA SALUD PUBLICA - AÑO 2014
A11: POBLACION 2015
A12: TOTAL | B12: HOMBRES | C12: MUJERES | D12: CABECERA | E12: RESTO | N12: MORTALIDAD CANCER CUELLO UTERINO | S12: MORTALIDAD MATERNA
A13: 8699 | B13: 4555 | C13: 4144 | D13: 2550 | E13: 6149 | N13: # Casos | O13: Tasa x cienmil Mujeres | S13: # Casos | T13: Tasa x cienmil Nacidos vivos
A14: POR GRUPOS DE EDAD | N14: 0 | O14: 0 | S14: 0 | T14: 0
A15: 0 - 4 AÑOS | B15: 5 - 9 AÑOS | C15: 10 - 14 AÑOS | D15: 15 - 19 AÑOS | E15: 20 - 59 AÑOS | F15: > 60 AÑOS
A16: 1031 | B16: 964 | C16: 891 | D16: 809 | E16: 3948 | F16: 1056 | N16: MORTALIDAD INFANTIL | S16: MORTALIDAD PERINATAL
A17: 408 | B17: 404 | C17: 395 | D17: 380 | E17: 2120 | F17: 503 | N17: # Casos | O17: Tasa x cienmil Nacidos vivos | S17: # Casos | T17: Tasa x cienmil Nacidos vivos
A18: DESPLAZADOS 2015 (a marzo) | D18: INDIGENAS FEB 2014 | G18: ROM | I18: AFRO | N18: 1 | O18: 9.523809524 | S18: 0 | T18: 0
A19: TOTAL | B19: HOMBRES | C19: MUJERES | D19: TOTAL | E19: HOMBRES | F19: MUJERES
A20: 10640 | B20: 5213.6 | C20: 5426.4 | D20: 0 | E20: 0 | F20: 0 | N20: MORTALIDAD VIH SIDA | S20: MORTALIDAD TUBERCULOSIS
A21: POBLACION TOTAL | B21: Afiliados al regimen Subsidiado * | D21: % De Aseguramiento al Regimen Subsidiado * | F21: Afiliados al Regimen Contributivo BDUA * | H21: % De Aseguramiento al Regimen Contributivo * | N21: # Casos | O21: Tasa x cienmil Habitantes | S21: # Casos | T21: Tasa x cienmil Habitantes
N22: 0 | O22: 0 | S22: 0 | T22: 0
N24: MORTALIDAD INFARTO AL MIOCARDIO | S24: MORTALIDAD < 5 AÑOS
A25: 8699 | B25: 6796 | D25: 78.12392229 | F25: 697 | H25: 8.01241522 | N25: # Casos | O25: Tasa x cienmil Habitantes | S25: # Casos | T25: Tasa x cienmil Niños
A26: NBI (pobre) 2012 | H26: * Agosto 2015 | N26: 1 | O26: 11.31605749 | S26: 1 | T26: 95.14747859
A27: Total | C27: Cabecera | E27: Resto
A28: Prop (%) | B28: cve (%) | C28: Prop (%) | D28: cve (%) | E28: Prop (%) | F28: cve (%)
A29: 38.96526238 | B29: - | C29: 25.90843023 | D29: - | E29: 47.9192624 | F29: - | N29: REGISTRO POBLACIONAL DE CANCER 2012
N30: Numero de casos registrados | P30: HOMBRES | Q30: MUJERES | R30: TOTAL
A31: PRESTACION DE SERVICIOS DE SALUD ** | P31: 3 | Q31: 9 | R31: =SUM(P31:Q31) -> 12
A32: EMPRESAS SOCIALES DEL ESTADO
A33: INSTITUCION PRESTADORA DE SERVICIOS DE SALUD | F33: DIRECTOR / GERENTE | N33: 10 PRIMERAS CAUSAS DE MORTALIDAD 2014
A34: EMPRESA SOCIAL DEL ESTADO HOSPITAL SAN JULIAN | F34: GINNA PAOLA RODRIGUEZ DE LA VEGA | N34: ORDEN | O34: CODIGO 105 CIE-10 | P34: CAUSA | T34: TOTAL GENERAL | U34: HOMBRES | V34: MUJERES | W34: SIN DATO
N36: 1 | O36: 089 | P36: SIGNOS, SINTOMAS Y AFECCIONES MAL DEFINIDAS | T36: 5 | U36: 5 | V36: 0
N37: 2 | O37: 055 | P37: ENFERMEDADES CEREBROVASCULARES | T37: 4 | U37: 2 | V37: 2
N38: 3 | O38: 060 | P38: ENFERMEDADES CRONICAS DE LAS VIAS RESPIRATORIAS INFERIORES | T38: 3 | U38: 2 | V38: 1
A39: PRESTADORES DE SERVICIOS DE SALUD | N39: 4 | O39: 100 | P39: LESIONES AUTOINFLIGIDAS INTENCIONALMENTE (SUICIDIOS) Y SECUELAS | T39: 2 | U39: 2 | V39: 0
A40: TOTALES | B40: IPS | C40: PROFESIONALES INDEPENDIENTES | E40: TRANSPORTE ESPECIAL | G40: OBJETO SOCIAL DIFERENTE | N40: 5 | O40: 091 | P40: OTROS ACCIDENTES DE TRANSPORTE TERRESTRE | T40: 2 | U40: 1 | V40: 1
N41: 6 | O41: 050 | P41: ENFERMEDADES HIPERTENSIVAS | T41: 2 | U41: 0 | V41: 2
B42: 1 | C42: 0 | E42: 0 | G42: 0 | N42: 7 | O42: 013 | P42: TUMOR MALIGNO DEL ESTOMAGO | T42: 2 | U42: 1 | V42: 1
A43: IPS PUBLICAS | B43: IPS PRIVADAS | C43: SERVICIOS PRESTADOS X PROFESION | N43: 8 | O43: 065 | P43: ENFERMEDADES DEL APENDICE, HERNIA Y OBSTRUCCION INTESTINAL | T43: 1 | U43: 0 | V43: 1
C44: Odontólogos | D44: Médicos | E44: Otros | F44: Total | N44: 9 | O44: 014 | P44: TUMOR MALIGNO DEL COLON, DE LA UNION RECTOSIGMOIDEA, RECTO Y ANO | T44: 1 | U44: 1 | V44: 0
N45: 10 | O45: 077 | P45: TRASTORNOS DE LOS ORGANOS GENITALES | T45: 1 | U45: 0 | V45: 1
A46: 1 | B46: 0 | C46: 0 | D46: 0 | E46: 0 | F46: =C46+D46+E46 -> 0
A48: CAPACIDAD INSTALADA | N48: PORCENTAJE DE EMBARAZOS POR GRUPO EDAD RESIDENCIA HABITUAL DE LA MADRE 2014 | S48: TASAS DE FECUNDIDAD ESPECIFICA POR MIL MUJERES 2014
A49: CAMAS
A50: Adultos | B50: Cuidado Agudo Mental | C50: Cuidado Intensivo Adulto | D50: Cuidado Intensivo Neonatal | E50: Cuidado Intensivo Pediátrico | F50: Cuidado Intermedio Adulto | G50: Cuidado Intermedio Mental | I50: Cuidado Intermedio Neonatal
N51: 10 a 14 AÑOS | P51: 15 a 19 AÑOS | S51: 10 a 14 AÑOS | U51: 15 a 19 AÑOS
N52: No | O52: % | P52: No | Q52: % | S52: No | T52: TASA | U52: No | V52: TASA
A53: 6 | B53: 0 | C53: 0 | D53: 0 | E53: 0 | F53: 0 | G53: 0 | I53: 0 | N53: 3 | O53: 2.830188679 | P53: 34 | Q53: 32.0754717 | S53: 3 | T53: 7.009345794 | U53: 34 | V53: 87.85529716
A54: CAMAS
A55: Cuidado Intermedio Pediátrico | B55: Farmaco- de-pendencia | C55: Obste-tricia | D55: Pediátricas | E55: Quemados Adultos | F55: Quemados Pediátrico | G55: Salud Mental Psiquiatría | I55: TOTAL CAMAS
A58: 0 | B58: 0 | C58: 2 | D58: 0 | E58: 0 | F58: 0 | G58: 0 | I58: =A53+B53+C53+D53+E53+F53+G53+I53+A58+B58+C58+D58+E58+F58+G58 -> 8
A60: SALAS | E60: TOTAL SALAS | N60: INMUNIZACIONES PAI 2014
A61: PARTO | C61: QUIROFANO | N61: POLIOMIELITIS (V.O.P)
A62: 1 | C62: 0 | E62: =A62+C62 -> 1 | N62: Vacunados (Edades) | S62: Refuerzos | T62: Dosis Aplicadas
N63: <1 | O63: 1 | P63: 2 | Q63: 3 | R63: 4 | S63: Otros
A64: TOTAL DE SERVICIOS PRESTADOS SEGÚN LA COMPLEJIDAD | N64: 123 | O64: 0 | P64: 0 | Q64: 0 | R64: 0 | S64: 265 | T64: 616
A65: BAJA | C65: MEDIA | E65: ALTA
A66: 24 | C66: 0 | E66: 0 | N66: DIFTERIA, TOSFERINA Y TÉTANO (D.P.T)
N67: Vacunados (Edades) | S67: Refuerzos | T67: Dosis
A68: TOTAL DE AMBULANCIAS HABILITADAS SEGÚN TIPO Y MODALIDAD | N68: <1 | O68: 1 | P68: 2 | Q68: 3 | R68: 4 | S68: Otros | T68: Aplicadas
A69: TIPO | C69: MODALIDAD | F69: TOTAL GENERAL | N69: 123 | O69: 0 | P69: 0 | Q69: 0 | R69: 0 | S69: 268 | T69: 619
A70: BASICA | B70: MEDICADA | C70: AEREA | D70: TERRESTRE | E70: FLUVIAL | H70: ** Fuente: REPS-Minsalud julio 2015
A71: 2 | B71: 0 | C71: 0 | D71: 2 | E71: 0 | F71: =SUM(C71:E71) -> 2 | N71: TUBERCULOSIS (B.C.G)
A72: 10 PRIMERAS CAUSAS DE HOSPITALIZACION 2013 | N72: Vacunados (Edades) | S72: Otros | T72: Dosis Aplicadas
A73: ORDEN | B73: CODIGO CIE-10 | C73: CAUSA | F73: TOTAL GENERAL | G73: % | H73: HOMBRES | J73: MUJERES | N73: <1 | O73: 1
N74: 28 | O74: 0 | S74: 0 | T74: 28
A75: 1 | B75: O800 | C75: PARTO UNICO ESPONTANEO PRESENTACION CEFALICA DE VERTICE | F75: 18 | G75: 6.271777003 | H75: 0 | J75: 18
A76: 2 | B76: O470 | C76: FALSO TRABAJO DE PARTO ANTES DE LA 37 SEMANAS COMPLETAS DE GESTACION | F76: 12 | G76: 4.181184669 | H76: 0 | J76: 12 | N76: TRIPLE VIRAL - S. R. P.
A77: 3 | B77: N390 | C77: INFECCION DE VIAS URINARIAS SITIO NO ESPECIFICADO | F77: 12 | G77: 4.181184669 | H77: 6 | J77: 6 | N77: Vacunados (Edades) | S77: Refuerzos | T77: Dosis Aplicadas
A78: 4 | B78: L031 | C78: CELULITIS DE OTRAS PARTES DE LOS MIEMBROS | F78: 9 | G78: 3.135888502 | H78: 3 | J78: 6 | N78: 1 | O78: 2 | P78: 3 | Q78: 4 | R78: Ref. | S78: Otros
A79: 5 | B79: R104 | C79: OTROS DOLORES ABDOMINALES Y LOS NO ESPECIFICADOS | F79: 8 | G79: 2.787456446 | H79: 5 | J79: 3 | N79: 141 | O79: 0 | P79: 0 | Q79: 0 | R79: 153 | S79: 3 | T79: 297
A80: 6 | B80: I500 | C80: INSUFICIENCIA CARDIACA CONGESTIVA | F80: 8 | G80: 2.787456446 | H80: 0 | J80: 8
A81: 7 | B81: J441 | C81: ENFERMEDAD PULMONAR OBSTRUCTIVA CRONICA CON EXACERBACION AGUDA NO ESPECIFICADA | F81: 7 | G81: 2.43902439 | H81: 6 | J81: 1 | N81: AGUA POTABLE 2013
A82: 8 | B82: O479 | C82: FALSO TRABAJO DE PARTO SIN OTRA ESPECIFICACION | F82: 6 | G82: 2.090592334 | H82: 0 | J82: 6 | P82: NUMEROS ACUEDUCTOS | R82: COBERTURA ACUEDUCTOS CON AGUA POTABLE (%) | T82: COBERTURAS VIVIENDAS CON AGUA POTABLE (%)
A83: 9 | B83: O623 | C83: TRABAJO DE PARTO PRECIPITADO | F83: 6 | G83: 2.090592334 | H83: 0 | J83: 6
A84: 10 | B84: D410 | C84: TUMOR DE COMPORTAMIENTO INCIERTO O DESCONOCIDO DEL RI¥ON | F84: 5 | G84: 1.742160279 | H84: 0 | J84: 5
A85: 11 | C85: OTROS | F85: 196 | G85: 68.29268293 | H85: 87 | J85: 109 | N85: Urbano | P85: 6 | R85: 0 | T85: 0
A86: TOTALES | F86: 287 | G86: 100 | H86: 107 | J86: 180 | N86: Rural | P86: 21 | R86: 0 | T86: 0,0
A87: 10 PRIMERAS CAUSAS DE CONSULTA 2013 | N87: Total Municipal | P87: 27 | R87: 0 | T87: 0,0
A88: ORDEN | B88: CODIGO CIE-10 | C88: CAUSA | F88: TOTAL GENERAL | G88: % | H88: HOMBRES | J88: MUJERES | N88: CERTIFACION EN AGUA POTABLE | O88: INDICE RIESGO CALIDAD DEL AGUA POTABLE - IRCA- (a) | P88: INDICE RIESGO DE ABASTECIMIENTO MUNICIPAL - IRABA- (b) | R88: BUENAS PRACTICAS SANTIARIAS © | T88: CERTIFICAION SANITARIA MUNICIPAL EN AGUA POTABLE ©
A90: 1 | B90: I10X | C90: HIPERTENSION ESENCIAL (PRIMARIA) | F90: 4948 | G90: 16.64088249 | H90: 1719 | J90: 3229
A91: 2 | B91: N390 | C91: INFECCION DE VIAS URINARIAS SITIO NO ESPECIFICADO | F91: 1127 | G91: 3.790273761 | H91: 316 | J91: 811
A92: 3 | B92: J00X | C92: RINOFARINGITIS AGUDA (RESFRIADO COMUN) | F92: 695 | G92: 2.337391538 | H92: 294 | J92: 401 | N92: Urbano | O92: 84.5 | P92: 73.4 | R92: 78.9 | T92: 80.6
A93: 4 | B93: K021 | C93: CARIES DE LA DENTINA | F93: 562 | G93: 1.89009215 | H93: 254 | J93: 308 | N93: Rural | O93: 53.6 | P93: 85.1 | R93: 95.1 | T93: 72.35
A94: 5 | B94: M545 | C94: LUMBAGO NO ESPECIFICADO | F94: 511 | G94: 1.718571332 | H94: 190 | J94: 321 | N94: Total | O94: 44.7 | P94: 70.3 | R94: 84.7 | T94: 61.82
A95: 6 | B95: M255 | C95: DOLOR EN ARTICULACION | F95: 383 | G95: 1.288087711 | H95: 119 | J95: 264 | N95: PROYECTOS DE INVERSION (En pesos)
A96: 7 | B96: R51X | C96: CEFALEA | F96: 327 | G96: 1.099751127 | H96: 83 | J96: 244 | Q96: 2012 | S96: 2013 | U96: 2014
A97: 8 | B97: K297 | C97: GASTRITIS NO ESPECIFICADA | F97: 308 | G97: 1.035851214 | H97: 87 | J97: 221 | N97: ADULTO MAYOR | Q97: 30000000 | S97: 15019524 | U97: 22000000
A98: 9 | B98: N771 | C98: VAGINITIS VULVITIS Y VULVOVAGINITIS EN ENFERMEDADES INFECCIOSAS Y PARASITARIAS CLASIFICADAS EN OTRA PARTE | F98: 266 | G98: 0.8945987758 | H98: 0 | J98: 266 | N98: DOTACION DISCAPACIDAD | U98: 2747752
A99: 10 | B99: J039 | C99: AMIGDALITIS AGUDA NO ESPECIFICADA | F99: 255 | G99: 0.8576040896 | H99: 124 | J99: 131 | N99: APS - SALUD CONTIGO | S99: 50936849 | U99: 60000000
A100: 11 | C100: OTROS | F100: 20352 | G100: 68.44689581 | H100: 6964 | J100: 13388 | N100: COFINANCIACION REG. SUBSIDIADO | Q100: 250700059.1 | S100: 215315559 | U100: 284238337
A101: TOTALES | F101: 29734 | G101: 100 | H101: 10150 | J101: 19584 | N101: SSR | Q101: 1101625
A102: 10 PRIMERAS CAUSAS DE URGENCIAS 2013 | N102: PAI | Q102: 2826945
A103: ORDEN | B103: CODIGO CIE-10 | C103: CAUSA | F103: TOTAL GENERAL | G103: % | H103: HOMBRES | J103: MUJERES | N103: VECTORES | Q103: 386400
N104: ESTERILIZACION MASCOTAS | Q104: 0
A105: 1 | B105: C343 | C105: TUMOR MALIGNO DEL LOBULO INFERIOR BRONQUIO O PULMON | F105: 5 | G105: 5.319148936 | H105: 0 | J105: 5 | N105: VACUNA ANTIRRABICA | Q105: 1690000
A106: 2 | B106: O470 | C106: FALSO TRABAJO DE PARTO ANTES DE LA 37 SEMANAS COMPLETAS DE GESTACION | F106: 4 | G106: 4.255319149 | H106: 0 | J106: 4 | N106: INFRAESTRUCTURA
A107: 3 | B107: N200 | C107: CALCULO DEL RI¥ON | F107: 4 | G107: 4.255319149 | H107: 1 | J107: 3 | N107: DOTACION EQUIPOS BIOMEDICOS
A108: 4 | B108: R102 | C108: DOLOR PELVICO Y PERINEAL | F108: 3 | G108: 3.191489362 | H108: 0 | J108: 3 | N108: ESTAMPILLAS PROHOSPITALES | U108: 20265912
A109: 5 | B109: D381 | C109: TUMOR DE COMPORTAMIENTO INCIERTO O DESCONOCIDO DE LA TRAQUEA DE LOS BRONQUIOS Y DEL PULMON | F109: 3 | G109: 3.191489362 | H109: 0 | J109: 3 | N109: EQUIPAMIENTO
A110: 6 | B110: I728 | C110: ANEURISMA DE OTRAS ARTERIAS ESPECIFICADAS | F110: 3 | G110: 3.191489362 | H110: 0 | J110: 3 | N110: TELEMEDICINA
A111: 7 | B111: Z348 | C111: SUPERVISION DE OTROS EMBARAZOS NORMALES | F111: 3 | G111: 3.191489362 | H111: 0 | J111: 3 | N111: AMBULANCIA
A112: 8 | B112: G401 | C112: EPILEPSIA Y SINDROMES EPILEPTICOS SINTOMATICOS RELACIONADOS CON LOCALIZACIONES (FOCALES) (PARCIALES) Y CON ATAQUES PARCIALES SIMPLES | F112: 2 | G112: 2.127659574 | H112: 2 | J112: 0 | N112: TOTALES | Q112: =SUM(Q97:R111) -> 286705029.1 | S112: =SUM(S97:T111) -> 281271932 | U112: =SUM(U97:V111) -> 389252001
A113: 9 | B113: F105 | C113: TRASTORNOS MENTALES Y DEL COMPORTAMIENTO DEBIDOS AL USO DEL ALCOHOL: TRASTORNO PSICOTICO | F113: 2 | G113: 2.127659574 | H113: 2 | J113: 0 | N113: PROYECTOS DE INVERSION (En Cantidad)
A114: 10 | B114: O800 | C114: PARTO UNICO ESPONTANEO PRESENTACION CEFALICA DE VERTICE | F114: 2 | G114: 2.127659574 | H114: 0 | J114: 2 | N114: PROGRAMA AEREO (No brigadas)
A115: 11 | C115: OTROS | F115: 63 | G115: 67.0212766 | H115: 23 | J115: 40 | N115: ASESORIA Y ASISTENCIA TECNICA | Q115: 8
A116: TOTALES | F116: 94 | G116: 100 | H116: 28 | J116: 66 | N116: CENTROS AMIGABLES JOVENES

Sheet ARMENIA
C4: ALCALDE | E4: LUIS NORBEY ACEVEDO SÁNCHEZ
C5: DIRECTOR LOCAL DE SALUD | E5: WILMAN ANDRES CARDENAS SANMARTIN
C7: CERTIFICACION | E7: RANKING | F7: CATEGORIA MUNICIPAL
C8: SI | E8: 40 | F8: 6a.
C9: TOTAL CORREGIMIENTOS | E9: 1 | F9: TOTAL VEREDAS | I9: 10
A10: CARACTERISTICAS DEMOGRAFICAS | N10: VIGILANCIA DE LA SALUD PUBLICA - AÑO 2014
A11: POBLACION 2015
A12: TOTAL | B12: HOMBRES | C12: MUJERES | D12: CABECERA | E12: RESTO | N12: MORTALIDAD CANCER CUELLO UTERINO | S12: MORTALIDAD MATERNA
A13: 4210 | B13: 2180 | C13: 2030 | D13: 1579 | E13: 2631 | N13: # Casos | O13: Tasa x cienmil Mujeres | S13: # Casos | T13: Tasa x cienmil Nacidos vivos
A14: POR GRUPOS DE EDAD | N14: 0 | O14: 0 | S14: 0 | T14: 0
A15: 0 - 4 AÑOS | B15: 5 - 9 AÑOS | C15: 10 - 14 AÑOS | D15: 15 - 19 AÑOS | E15: 20 - 59 AÑOS | F15: > 60 AÑOS
A16: 408 | B16: 404 | C16: 395 | D16: 380 | E16: 2120 | F16: 503 | N16: MORTALIDAD INFANTIL | S16: MORTALIDAD PERINATAL
N17: # Casos | O17: Tasa x cienmil Nacidos vivos | S17: # Casos | T17: Tasa x cienmil Nacidos vivos
A18: DESPLAZADOS 2015 (a marzo) | D18: INDIGENAS FEB 2014 | G18: ROM | I18: AFRO | N18: 1 | O18: 25 | S18: 0 | T18: 0
A19: TOTAL | B19: HOMBRES | C19: MUJERES | D19: TOTAL | E19: HOMBRES | F19: MUJERES
A20: 234 | B20: 114.66 | C20: 119.34 | D20: 0 | E20: 0 | F20: 0 | N20: MORTALIDAD VIH SIDA | S20: MORTALIDAD TUBERCULOSIS
A21: POBLACION TOTAL | B21: Afiliados al regimen Subsidiado * | D21: % De Aseguramiento al Regimen Subsidiado * | F21: Afiliados al Regimen Contributivo BDUA * | H21: % De Aseguramiento al Regimen Contributivo * | N21: # Casos | O21: Tasa x cienmil Habitantes | S21: # Casos | T21: Tasa x cienmil Habitantes
N22: 0 | O22: 0 | S22: 0 | T22: 0
N24: MORTALIDAD INFARTO AL MIOCARDIO | S24: MORTALIDAD < 5 AÑOS
A25: 4210 | B25: 3136 | D25: 74.48931116 | F25: 888 | H25: 21.09263658 | N25: # Casos | O25: Tasa x cienmil Habitantes | S25: # Casos | T25: Tasa x cienmil Niños
A26: NBI (pobre) 2012 | H26: * Agosto 2015 | N26: 2 | O26: 46.54410054 | S26: 1 | T26: 238.6634845
A27: Total | C27: Cabecera | E27: Resto
A28: Prop (%) | B28: cve (%) | C28: Prop (%) | D28: cve (%) | E28: Prop (%) | F28: cve (%)
A29: 39.83084186 | B29: - | C29: 25.02890173 | D29: - | E29: 47.46571258 | F29: - | N29: REGISTRO POBLACIONAL DE CANCER 2012
N30: Numero de casos registrados | P30: HOMBRES | Q30: MUJERES | R30: TOTAL
A31: PRESTACION DE SERVICIOS DE SALUD ** | P31: 3 | Q31: 5 | R31: =SUM(P31:Q31) -> 8
A32: EMPRESAS SOCIALES DEL ESTADO
A33: INSTITUCION PRESTADORA DE SERVICIOS DE SALUD | F33: DIRECTOR / GERENTE | N33: 10 PRIMERAS CAUSAS DE MORTALIDAD 2014
A34: EMPRES SOCIAL DEL ESTADO HOSPITAL SAN MARTIN DE PORRES | F34: TOMÂS AUGUSTO OSPINA ROJO | N34: ORDEN | O34: CODIGO 105 CIE-10 | P34: CAUSA | T34: TOTAL GENERAL | U34: HOMBRES | V34: MUJERES | W34: SIN DATO
N36: 1 | O36: 060 | P36: ENFERMEDADES CRONICAS DE LAS VIAS RESPIRATORIAS INFERIORES | T36: 4 | U36: 3 | V36: 1
N37: 2 | O37: 050 | P37: ENFERMEDADES HIPERTENSIVAS | T37: 4 | U37: 2 | V37: 2
N38: 3 | O38: 034 | P38: TUMOR MALIGNO DE SITIOS NO ESPECIFICADOS | T38: 3 | U38: 1 | V38: 2
A39: PRESTADORES DE SERVICIOS DE SALUD | N39: 4 | O39: 055 | P39: ENFERMEDADES CEREBROVASCULARES | T39: 3 | U39: 2 | V39: 1
A40: TOTALES | B40: IPS | C40: PROFESIONALES INDEPENDIENTES | E40: TRANSPORTE ESPECIAL | G40: OBJETO SOCIAL DIFERENTE | N40: 5 | O40: 051 | P40: ENFERMEDADES ISQUEMICAS DEL CORAZON | T40: 2 | U40: 1 | V40: 1
N41: 6 | O41: 015 | P41: TUMOR MALIGNO DEL HIGADO | T41: 1 | U41: 1 | V41: 0
B42: 1 | C42: 1 | E42: 0 | G42: 0 | N42: 7 | O42: 041 | P42: DIABETES MELLITUS | T42: 1 | U42: 0 | V42: 1
A43: IPS PUBLICAS | B43: IPS PRIVADAS | C43: SERVICIOS PRESTADOS X PROFESION | N43: 8 | O43: 089 | P43: SIGNOS, SINTOMAS Y AFECCIONES MAL DEFINIDAS | T43: 1 | U43: 1 | V43: 0
C44: Odontólogos | D44: Médicos | E44: Otros | F44: Total | N44: 9 | O44: 043 | P44: TODAS LAS DEMAS ENFERMEDADES ENDOCRINAS Y NUTRICIONALES | T44: 1 | U44: 1 | V44: 0
N45: 10 | O45: 059 | P45: NEUMONIA | T45: 1 | U45: 0 | V45: 1
A46: 1 | B46: 0 | C46: 0 | D46: 1 | E46: 0 | F46: =C46+D46+E46 -> 1
A48: CAPACIDAD INSTALADA | N48: PORCENTAJE DE EMBARAZOS POR GRUPO EDAD RESIDENCIA HABITUAL DE LA MADRE 2014 | S48: TASAS DE FECUNDIDAD ESPECIFICA POR MIL MUJERES 2014
A49: CAMAS
A50: Adultos | B50: Cuidado Agudo Mental | C50: Cuidado Intensivo Adulto | D50: Cuidado Intensivo Neonatal | E50: Cuidado Intensivo Pediátrico | F50: Cuidado Intermedio Adulto | G50: Cuidado Intermedio Mental | I50: Cuidado Intermedio Neonatal
N51: 10 a 14 AÑOS | P51: 15 a 19 AÑOS | S51: 10 a 14 AÑOS | U51: 15 a 19 AÑOS
N52: No | O52: % | P52: No | Q52: % | S52: No | T52: TASA | U52: No | V52: TASA
A53: 2 | B53: 0 | C53: 0 | D53: 0 | E53: 0 | F53: 0 | G53: 0 | I53: 0 | N53: 2 | O53: 5 | P53: 13 | Q53: 32.5 | S53: 2 | T53: 10.69518717 | U53: 13 | V53: 68.42105263
A54: CAMAS
A55: Cuidado Intermedio Pediátrico | B55: Farmaco- de-pendencia | C55: Obste-tricia | D55: Pediátricas | E55: Quemados Adultos | F55: Quemados Pediátrico | G55: Salud Mental Psiquiatría | I55: TOTAL CAMAS
A58: 0 | B58: 0 | C58: 2 | E58: 0 | F58: 0 | G58: 0 | I58: =A53+B53+C53+D53+E53+F53+G53+I53+A58+B58+C58+D58+E58+F58+G58 -> 4
A60: SALAS | E60: TOTAL SALAS | N60: INMUNIZACIONES PAI 2014
A61: PARTO | C61: QUIROFANO | N61: POLIOMIELITIS (V.O.P)
A62: 1 | C62: 0 | E62: =A62+C62 -> 1 | N62: Vacunados (Edades) | S62: Refuerzos | T62: Dosis Aplicadas
N63: <1 | O63: 1 | P63: 2 | Q63: 3 | R63: 4 | S63: Otros
A64: TOTAL DE SERVICIOS PRESTADOS SEGÚN LA COMPLEJIDAD | N64: 33 | O64: 0 | P64: 0 | Q64: 0 | R64: 0 | S64: 107 | T64: 206
A65: BAJA | C65: MEDIA | E65: ALTA
A66: 24 | C66: 0 | E66: 0 | N66: DIFTERIA, TOSFERINA Y TÉTANO (D.P.T)
N67: Vacunados (Edades) | S67: Refuerzos | T67: Dosis
A68: TOTAL DE AMBULANCIAS HABILITADAS SEGÚN TIPO Y MODALIDAD | N68: <1 | O68: 1 | P68: 2 | Q68: 3 | R68: 4 | S68: Otros | T68: Aplicadas
A69: TIPO | C69: MODALIDAD | F69: TOTAL GENERAL | N69: 33 | O69: 0 | P69: 0 | Q69: 0 | R69: 0 | S69: 107 | T69: 207
A70: BASICA | B70: MEDICADA | C70: AEREA | D70: TERRESTRE | E70: FLUVIAL | H70: ** Fuente: REPS-Minsalud julio 2015
A71: 1 | B71: 0 | C71: 0 | D71: 1 | E71: 0 | F71: =SUM(C71:E71) -> 1 | N71: TUBERCULOSIS (B.C.G)
A72: 10 PRIMERAS CAUSAS DE HOSPITALIZACION 2013 | N72: Vacunados (Edades) | S72: Otros | T72: Dosis Aplicadas
A73: ORDEN | B73: CODIGO CIE-10 | C73: CAUSA | F73: TOTAL GENERAL | G73: % | H73: HOMBRES | J73: MUJERES | N73: <1 | O73: 1
N74: 10 | O74: 0 | S74: 0 | T74: 10
A75: 1 | B75: O800 | C75: PARTO UNICO ESPONTANEO PRESENTACION CEFALICA DE VERTICE | F75: 12 | G75: 8.510638298 | H75: 0 | J75: 12
A76: 2 | B76: J180 | C76: BRONCONEUMONIA NO ESPECIFICADA | F76: 6 | G76: 4.255319149 | H76: 1 | J76: 5 | N76: TRIPLE VIRAL - S. R. P.
A77: 3 | B77: O470 | C77: FALSO TRABAJO DE PARTO ANTES DE LA 37 SEMANAS COMPLETAS DE GESTACION | F77: 6 | G77: 4.255319149 | H77: 0 | J77: 6 | N77: Vacunados (Edades) | S77: Refuerzos | T77: Dosis Aplicadas
A78: 4 | B78: R104 | C78: OTROS DOLORES ABDOMINALES Y LOS NO ESPECIFICADOS | F78: 5 | G78: 3.546099291 | H78: 0 | J78: 5 | N78: 1 | O78: 2 | P78: 3 | Q78: 4 | R78: Ref. | S78: Otros
A79: 5 | B79: K922 | C79: HEMORRAGIA GASTROINTESTINAL NO ESPECIFICADA | F79: 5 | G79: 3.546099291 | H79: 0 | J79: 5 | N79: 48 | O79: 0 | P79: 0 | Q79: 0 | R79: 66 | S79: 0 | T79: 114
A80: 6 | B80: N390 | C80: INFECCION DE VIAS URINARIAS SITIO NO ESPECIFICADO | F80: 5 | G80: 3.546099291 | H80: 3 | J80: 2
A81: 7 | B81: O48X | C81: EMBARAZO PROLONGADO | F81: 4 | G81: 2.836879433 | H81: 0 | J81: 4 | N81: AGUA POTABLE 2013
A82: 8 | B82: M154 | C82: (OSTEO)ARTROSIS EROSIVA | F82: 4 | G82: 2.836879433 | H82: 4 | J82: 0 | P82: NUMEROS ACUEDUCTOS | R82: COBERTURA ACUEDUCTOS CON AGUA POTABLE (%) | T82: COBERTURAS VIVIENDAS CON AGUA POTABLE (%)
A83: 9 | B83: J46X | C83: ESTADO ASMATICO | F83: 4 | G83: 2.836879433 | H83: 0 | J83: 4
A84: 10 | B84: N450 | C84: ORQUITIS EPIDIDIMITIS Y ORQUIEPIDIDIMITIS CON ABSCESO | F84: 4 | G84: 2.836879433 | H84: 4 | J84: 0
A85: 11 | C85: OTROS | F85: 86 | G85: 60.9929078 | H85: 22 | J85: 64 | N85: Urbano | P85: 1 | R85: 100 | T85: 100
A86: TOTALES | F86: 141 | G86: 100 | H86: 34 | J86: 107 | N86: Rural | P86: 7 | R86: 0 | T86: 0
A87: 10 PRIMERAS CAUSAS DE CONSULTA 2013 | N87: Total Municipal | P87: 8 | R87: 12.5 | T87: 33
A88: ORDEN | B88: CODIGO CIE-10 | C88: CAUSA | F88: TOTAL GENERAL | G88: % | H88: HOMBRES | J88: MUJERES | N88: CERTIFACION EN AGUA POTABLE | O88: INDICE RIESGO CALIDAD DEL AGUA POTABLE - IRCA- (a) | P88: INDICE RIESGO DE ABASTECIMIENTO MUNICIPAL - IRABA- (b) | R88: BUENAS PRACTICAS SANTIARIAS © | T88: CERTIFICAION SANITARIA MUNICIPAL EN AGUA POTABLE ©
A90: 1 | B90: I10X | C90: HIPERTENSION ESENCIAL (PRIMARIA) | F90: 3221 | G90: 17.33397912 | H90: 1075 | J90: 2146
A91: 2 | B91: K021 | C91: CARIES DE LA DENTINA | F91: 763 | G91: 4.106124206 | H91: 327 | J91: 436
A92: 3 | B92: R104 | C92: OTROS DOLORES ABDOMINALES Y LOS NO ESPECIFICADOS | F92: 405 | G92: 2.179528576 | H92: 111 | J92: 294 | N92: Urbano | O92: 0 | P92: 24 | R92: 2 | T92: 5.4
A93: 4 | B93: M545 | C93: LUMBAGO NO ESPECIFICADO | F93: 402 | G93: 2.16338392 | H93: 126 | J93: 276 | N93: Rural | O93: 74.9 | P93: 81.2 | R93: 97.1 | T93: 82.82
A94: 5 | B94: K297 | C94: GASTRITIS NO ESPECIFICADA | F94: 310 | G94: 1.668281132 | H94: 89 | J94: 221 | N94: Total | O94: 24.4 | P94: 32.8 | R94: 30.8 | T94: 28
A95: 6 | B95: N390 | C95: INFECCION DE VIAS URINARIAS SITIO NO ESPECIFICADO | F95: 295 | G95: 1.587557852 | H95: 62 | J95: 233 | N95: PROYECTOS DE INVERSION (En pesos)
A96: 7 | B96: J00X | C96: RINOFARINGITIS AGUDA (RESFRIADO COMUN) | F96: 281 | G96: 1.512216123 | H96: 122 | J96: 159 | Q96: 2012 | S96: 2013 | U96: 2014
A97: 8 | B97: K040 | C97: PULPITIS | F97: 220 | G97: 1.183941449 | H97: 105 | J97: 115 | N97: ADULTO MAYOR | Q97: 60000000 | S97: 25468826 | U97: 30000000
A98: 9 | B98: A09X | C98: DIARREA Y GASTROENTERITIS DE PRESUNTO ORIGEN INFECCIOSO | F98: 200 | G98: 1.076310408 | H98: 93 | J98: 107 | N98: DOTACION DISCAPACIDAD | U98: 2918752
A99: 10 | B99: R42X | C99: MAREO Y DESVANECIMIENTO | F99: 177 | G99: 0.952534711 | H99: 47 | J99: 130 | N99: APS - SALUD CONTIGO | Q99: 45420448 | S99: 69000000 | U99: 60000000
A100: 11 | C100: OTROS | F100: 12308 | G100: 66.2361425 | H100: 4384 | J100: 7924 | N100: COFINANCIACION REG. SUBSIDIADO | Q100: 99113976.99 | S100: 85124756 | U100: 112373296
A101: TOTALES | F101: 18582 | G101: 100 | H101: 6541 | J101: 12041 | N101: SSR | Q101: 542346
A102: 10 PRIMERAS CAUSAS DE URGENCIAS 2013 | N102: PAI | Q102: 1391746
A103: ORDEN | B103: CODIGO CIE-10 | C103: CAUSA | F103: TOTAL GENERAL | G103: % | H103: HOMBRES | J103: MUJERES | N103: VECTORES | Q103: 386400
N104: ESTERILIZACION MASCOTAS | Q104: 0
A105: 1 | B105: R104 | C105: OTROS DOLORES ABDOMINALES Y LOS NO ESPECIFICADOS | F105: 28 | G105: 10.64638783 | H105: 6 | J105: 22 | N105: VACUNA ANTIRRABICA | Q105: 1082000
A106: 2 | B106: S069 | C106: TRAUMATISMO INTRACRANEAL NO ESPECIFICADO | F106: 12 | G106: 4.562737643 | H106: 11 | J106: 1 | N106: INFRAESTRUCTURA
A107: 3 | B107: O470 | C107: FALSO TRABAJO DE PARTO ANTES DE LA 37 SEMANAS COMPLETAS DE GESTACION | F107: 10 | G107: 3.802281369 | H107: 0 | J107: 10 | N107: DOTACION EQUIPOS BIOMEDICOS
A108: 4 | B108: R42X | C108: MAREO Y DESVANECIMIENTO | F108: 7 | G108: 2.661596958 | H108: 3 | J108: 4 | N108: ESTAMPILLAS PROHOSPITALES | Q108: 28138000 | U108: 22787909
A109: 5 | B109: K297 | C109: GASTRITIS NO ESPECIFICADA | F109: 6 | G109: 2.281368821 | H109: 2 | J109: 4 | N109: EQUIPAMIENTO
A110: 6 | B110: F412 | C110: TRASTORNO MIXTO DE ANSIEDAD Y DEPRESION | F110: 6 | G110: 2.281368821 | H110: 0 | J110: 6 | N110: TELEMEDICINA
A111: 7 | B111: O800 | C111: PARTO UNICO ESPONTANEO PRESENTACION CEFALICA DE VERTICE | F111: 5 | G111: 1.901140684 | H111: 0 | J111: 5 | N111: AMBULANCIA
A112: 8 | B112: N390 | C112: INFECCION DE VIAS URINARIAS SITIO NO ESPECIFICADO | F112: 5 | G112: 1.901140684 | H112: 1 | J112: 4 | N112: TOTALES | Q112: =SUM(Q97:R111) -> 236074917 | S112: =SUM(S97:T111) -> 179593582 | U112: =SUM(U97:V111) -> 228079957
A113: 9 | B113: J189 | C113: NEUMONIA NO ESPECIFICADA | F113: 5 | G113: 1.901140684 | H113: 2 | J113: 3 | N113: PROYECTOS DE INVERSION (En Cantidad)
A114: 10 | B114: L500 | C114: URTICARIA ALERGICA | F114: 5 | G114: 1.901140684 | H114: 0 | J114: 5 | N114: PROGRAMA AEREO (No brigadas)
A115: 11 | C115: OTROS | F115: 174 | G115: 66.15969582 | H115: 74 | J115: 100 | N115: ASESORIA Y ASISTENCIA TECNICA | Q115: 12
A116: TOTALES | F116: 263 | G116: 100 | H116: 99 | J116: 164 | N116: CENTROS AMIGABLES JOVENES

Sheet BARBOSA
C4: ALCALDE | E4: HERNANDO ALONSO CATAÑO VELEZ
C5: DIRECTOR LOCAL DE SALUD | E5: CLAUDIA PATRICIA AVENDAÑO MOLINA
C7: CERTIFICACION | E7: RANKING | F7: CATEGORIA MUNICIPAL
C8: SI | E8: 30 | F8: 3a.
C9: TOTAL CORREGIMIENTOS | E9: 2 | F9: TOTAL VEREDAS | I9: 62
A10: CARACTERISTICAS DEMOGRAFICAS | N10: VIGILANCIA DE LA SALUD PUBLICA - AÑO 2014
A11: POBLACION 2015
A12: TOTAL | B12: HOMBRES | C12: MUJERES | D12: CABECERA | E12: RESTO | N12: MORTALIDAD CANCER CUELLO UTERINO | S12: MORTALIDAD MATERNA
A13: 50052 | B13: 24892 | C13: 25160 | D13: 23000 | E13: 27052 | N13: # Casos | O13: Tasa x cienmil Mujeres | S13: # Casos | T13: Tasa x cienmil Nacidos vivos
A14: POR GRUPOS DE EDAD | N14: 0 | O14: 0 | S14: 0 | T14: 0
A15: 0 - 4 AÑOS | B15: 5 - 9 AÑOS | C15: 10 - 14 AÑOS | D15: 15 - 19 AÑOS | E15: 20 - 59 AÑOS | F15: > 60 AÑOS
A16: 4711 | B16: 4656 | C16: 4609 | D16: 4572 | E16: 26767 | F16: 4737 | N16: MORTALIDAD INFANTIL | S16: MORTALIDAD PERINATAL
N17: # Casos | O17: Tasa x cienmil Nacidos vivos | S17: # Casos | T17: Tasa x cienmil Nacidos vivos
A18: DESPLAZADOS 2015 (a marzo) | D18: INDIGENAS FEB 2014 | G18: ROM | I18: AFRO | N18: 6 | O18: 13.76146789 | S18: 4 | T18: 9.174311927
A19: TOTAL | B19: HOMBRES | C19: MUJERES | D19: TOTAL | E19: HOMBRES | F19: MUJERES
A20: 3749 | B20: 1837.01 | C20: 1911.99 | D20: 0 | E20: 0 | F20: 0 | N20: MORTALIDAD VIH SIDA | S20: MORTALIDAD TUBERCULOSIS
A21: POBLACION TOTAL | B21: Afiliados al regimen Subsidiado * | D21: % De Aseguramiento al Regimen Subsidiado * | F21: Afiliados al Regimen Contributivo BDUA * | H21: % De Aseguramiento al Regimen Contributivo * | N21: # Casos | O21: Tasa x cienmil Habitantes | S21: # Casos | T21: Tasa x cienmil Habitantes
N22: 1 | O22: 2.029467874 | S22: 0 | T22: 0
N24: MORTALIDAD INFARTO AL MIOCARDIO | S24: MORTALIDAD < 5 AÑOS
A25: 50052 | B25: 17321 | D25: 34.60600975 | F25: 20445 | H25: 40.84751858 | N25: # Casos | O25: Tasa x cienmil Habitantes | S25: # Casos | T25: Tasa x cienmil Niños
A26: NBI (pobre) 2012 | H26: * Agosto 2015 | N26: 37 | O26: 75.09031132 | S26: 6 | T26: 128.3971753
A27: Total | C27: Cabecera | E27: Resto
A28: Prop (%) | B28: cve (%) | C28: Prop (%) | D28: cve (%) | E28: Prop (%) | F28: cve (%)
A29: 21.72873732 | B29: 5.643457184 | C29: 12.28666399 | D29: 8.784781815 | E29: 29.15886006 | F29: 6.927213847 | N29: REGISTRO POBLACIONAL DE CANCER 2012
N30: Numero de casos registrados | P30: HOMBRES | Q30: MUJERES | R30: TOTAL
A31: PRESTACION DE SERVICIOS DE SALUD ** | P31: 27 | Q31: 40 | R31: =SUM(P31:Q31) -> 67
A32: EMPRESAS SOCIALES DEL ESTADO
A33: INSTITUCION PRESTADORA DE SERVICIOS DE SALUD | F33: DIRECTOR / GERENTE | N33: 10 PRIMERAS CAUSAS DE MORTALIDAD 2014
A34: ESE HOSPITAL SAN VICENTE DE PAUL | F34: RAFAEL ALBERTO ARISMENDY OSORIO | N34: ORDEN | O34: CODIGO 105 CIE-10 | P34: CAUSA | T34: TOTAL GENERAL | U34: HOMBRES | V34: MUJERES | W34: SIN DATO
N36: 1 | O36: 101 | P36: AGRESIONES (HOMICIDIOS) Y SECUELAS | T36: 51 | U36: 45 | V36: 6
N37: 2 | O37: 051 | P37: ENFERMEDADES ISQUEMICAS DEL CORAZON | T37: 38 | U37: 23 | V37: 15
N38: 3 | O38: 090 | P38: ACCIDENTES DE TRANSPORTE DE MOTOR Y SECUELAS | T38: 20 | U38: 16 | V38: 4
A39: PRESTADORES DE SERVICIOS DE SALUD | N39: 4 | O39: 060 | P39: ENFERMEDADES CRONICAS DE LAS VIAS RESPIRATORIAS INFERIORES | T39: 14 | U39: 11 | V39: 3
A40: TOTALES | B40: IPS | C40: PROFESIONALES INDEPENDIENTES | E40: TRANSPORTE ESPECIAL | G40: OBJETO SOCIAL DIFERENTE | N40: 5 | O40: 020 | P40: TUMOR MALIGNO DE LA TRAQUEA, LOS BRONQUIOS Y EL PULMON | T40: 12 | U40: 7 | V40: 5
N41: 6 | O41: 059 | P41: NEUMONIA | T41: 8 | U41: 5 | V41: 3
B42: 3 | C42: 15 | E42: 0 | G42: 3 | N42: 7 | O42: 055 | P42: ENFERMEDADES CEREBROVASCULARES | T42: 8 | U42: 2 | V42: 6
A43: IPS PUBLICAS | B43: IPS PRIVADAS | C43: SERVICIOS PRESTADOS X PROFESION | N43: 8 | O43: 062 | P43: TODAS LAS DEMAS ENFERMEDADES DEL SISTEMA RESPIRATORIO | T43: 6 | U43: 2 | V43: 4
C44: Odontólogos | D44: Médicos | E44: Otros | F44: Total | N44: 9 | O44: 013 | P44: TUMOR MALIGNO DEL ESTOMAGO | T44: 6 | U44: 3 | V44: 3
N45: 10 | O45: 050 | P45: ENFERMEDADES HIPERTENSIVAS | T45: 6 | U45: 3 | V45: 3
A46: 1 | B46: 5 | C46: 9 | D46: 4 | E46: 15 | F46: =C46+D46+E46 -> 28
A48: CAPACIDAD INSTALADA | N48: PORCENTAJE DE EMBARAZOS POR GRUPO EDAD RESIDENCIA HABITUAL DE LA MADRE 2014 | S48: TASAS DE FECUNDIDAD ESPECIFICA POR MIL MUJERES 2014
A49: CAMAS
A50: Adultos | B50: Cuidado Agudo Mental | C50: Cuidado Intensivo Adulto | D50: Cuidado Intensivo Neonatal | E50: Cuidado Intensivo Pediátrico | F50: Cuidado Intermedio Adulto | G50: Cuidado Intermedio Mental | I50: Cuidado Intermedio Neonatal
N51: 10 a 14 AÑOS | P51: 15 a 19 AÑOS | S51: 10 a 14 AÑOS | U51: 15 a 19 AÑOS
N52: No | O52: % | P52: No | Q52: % | S52: No | T52: TASA | U52: No | V52: TASA
A53: 5 | B53: 0 | C53: 0 | D53: 0 | E53: 0 | F53: 0 | G53: 0 | I53: 0 | N53: 3 | O53: 0.6535947712 | P53: 101 | Q53: 22.0043573 | S53: 3 | T53: 1.352569883 | U53: 101 | V53: 43.93214441
A54: CAMAS
A55: Cuidado Intermedio Pediátrico | B55: Farmaco- de-pendencia | C55: Obste-tricia | D55: Pediátricas | E55: Quemados Adultos | F55: Quemados Pediátrico | G55: Salud Mental Psiquiatría | I55: TOTAL CAMAS
A58: 0 | B58: 0 | C58: 5 | D58: 4 | E58: 0 | F58: 0 | G58: 0 | I58: =A53+B53+C53+D53+E53+F53+G53+I53+A58+B58+C58+D58+E58+F58+G58 -> 14
A60: SALAS | E60: TOTAL SALAS | N60: INMUNIZACIONES PAI 2014
A61: PARTO | C61: QUIROFANO | N61: POLIOMIELITIS (V.O.P)
A62: 1 | C62: 1 | E62: =A62+C62 -> 2 | N62: Vacunados (Edades) | S62: Refuerzos | T62: Dosis Aplicadas
N63: <1 | O63: 1 | P63: 2 | Q63: 3 | R63: 4 | S63: Otros
A64: TOTAL DE SERVICIOS PRESTADOS SEGÚN LA COMPLEJIDAD | N64: 444 | O64: 3 | P64: 1 | Q64: 1 | R64: 1 | S64: 1048 | T64: 2389
A65: BAJA | C65: MEDIA | E65: ALTA
A66: 73 | C66: 16 | E66: 0 | N66: DIFTERIA, TOSFERINA Y TÉTANO (D.P.T)
N67: Vacunados (Edades) | S67: Refuerzos | T67: Dosis
A68: TOTAL DE AMBULANCIAS HABILITADAS SEGÚN TIPO Y MODALIDAD | N68: <1 | O68: 1 | P68: 2 | Q68: 3 | R68: 4 | S68: Otros | T68: Aplicadas
A69: TIPO | C69: MODALIDAD | F69: TOTAL GENERAL | N69: 445 | O69: 3 | P69: 1 | Q69: 1 | R69: 1 | S69: 1053 | T69: 2375
A70: BASICA | B70: MEDICADA | C70: AEREA | D70: TERRESTRE | E70: FLUVIAL | H70: ** Fuente: REPS-Minsalud julio 2015
A71: 2 | B71: 0 | C71: 0 | D71: 2 | E71: 0 | F71: =SUM(C71:E71) -> 2 | N71: TUBERCULOSIS (B.C.G)
A72: 10 PRIMERAS CAUSAS DE HOSPITALIZACION 2013 | N72: Vacunados (Edades) | S72: Otros | T72: Dosis Aplicadas
A73: ORDEN | B73: CODIGO CIE-10 | C73: CAUSA | F73: TOTAL GENERAL | G73: % | H73: HOMBRES | J73: MUJERES | N73: <1 | O73: 1
N74: 74 | O74: 7 | S74: 0 | T74: 81
A75: 1 | B75: O800 | C75: PARTO UNICO ESPONTANEO PRESENTACION CEFALICA DE VERTICE | F75: 61 | G75: 3.526011561 | H75: 0 | J75: 61
A76: 2 | B76: N390 | C76: INFECCION DE VIAS URINARIAS SITIO NO ESPECIFICADO | F76: 61 | G76: 3.526011561 | H76: 25 | J76: 36 | N76: TRIPLE VIRAL - S. R. P.
A77: 3 | B77: J449 | C77: ENFERMEDAD PULMONAR OBSTRUCTIVA CRONICA NO ESPECIFICADA | F77: 39 | G77: 2.25433526 | H77: 21 | J77: 18 | N77: Vacunados (Edades) | S77: Refuerzos | T77: Dosis Aplicadas
A78: 4 | B78: R104 | C78: OTROS DOLORES ABDOMINALES Y LOS NO ESPECIFICADOS | F78: 32 | G78: 1.849710983 | H78: 14 | J78: 18 | N78: 1 | O78: 2 | P78: 3 | Q78: 4 | R78: Ref. | S78: Otros
A79: 5 | B79: J441 | C79: ENFERMEDAD PULMONAR OBSTRUCTIVA CRONICA CON EXACERBACION AGUDA NO ESPECIFICADA | F79: 31 | G79: 1.791907514 | H79: 22 | J79: 9 | N79: 420 | O79: 4 | P79: 2 | Q79: 7 | R79: 586 | S79: 62 | T79: 1081
A80: 6 | B80: I500 | C80: INSUFICIENCIA CARDIACA CONGESTIVA | F80: 29 | G80: 1.676300578 | H80: 14 | J80: 15
A81: 7 | B81: R509 | C81: FIEBRE NO ESPECIFICADA | F81: 28 | G81: 1.61849711 | H81: 19 | J81: 9 | N81: AGUA POTABLE 2013
A82: 8 | B82: J189 | C82: NEUMONIA NO ESPECIFICADA | F82: 24 | G82: 1.387283237 | H82: 14 | J82: 10 | P82: NUMEROS ACUEDUCTOS | R82: COBERTURA ACUEDUCTOS CON AGUA POTABLE (%) | T82: COBERTURAS VIVIENDAS CON AGUA POTABLE (%)
A83: 9 | B83: N939 | C83: HEMORRAGIA VAGINAL Y UTERINA ANORMAL NO ESPECIFICADA | F83: 24 | G83: 1.387283237 | H83: 0 | J83: 24
A84: 10 | B84: O471 | C84: FALSO TRABAJO DE PARTO ANTES DE LA 37 Y MAS SEMANAS COMPLETAS DE GESTACION | F84: 23 | G84: 1.329479769 | H84: 0 | J84: 23
A85: 11 | C85: OTROS | F85: 1378 | G85: 79.65317919 | H85: 611 | J85: 767 | N85: Urbano | P85: 1 | R85: 100 | T85: 99.4
A86: TOTALES | F86: 1730 | G86: 100 | H86: 740 | J86: 990 | N86: Rural | P86: 38 | R86: 2.631578947 | T86: 4.03
A87: 10 PRIMERAS CAUSAS DE CONSULTA 2013 | N87: Total Municipal | P87: 39 | R87: 5.128205128 | T87: 44.8
A88: ORDEN | B88: CODIGO CIE-10 | C88: CAUSA | F88: TOTAL GENERAL | G88: % | H88: HOMBRES | J88: MUJERES | N88: CERTIFACION EN AGUA POTABLE | O88: INDICE RIESGO CALIDAD DEL AGUA POTABLE - IRCA- (a) | P88: INDICE RIESGO DE ABASTECIMIENTO MUNICIPAL - IRABA- (b) | R88: BUENAS PRACTICAS SANTIARIAS © | T88: CERTIFICAION SANITARIA MUNICIPAL EN AGUA POTABLE ©
A90: 1 | B90: I10X | C90: HIPERTENSION ESENCIAL (PRIMARIA) | F90: 3671 | G90: 4.940780619 | H90: 1016 | J90: 2655
A91: 2 | B91: K021 | C91: CARIES DE LA DENTINA | F91: 2212 | G91: 2.977119785 | H91: 882 | J91: 1330
A92: 3 | B92: R104 | C92: OTROS DOLORES ABDOMINALES Y LOS NO ESPECIFICADOS | F92: 1944 | G92: 2.616419919 | H92: 608 | J92: 1336 | N92: Urbano | O92: 0 | P92: 25 | R92: 0 | T92: 5
A93: 4 | B93: R51X | C93: CEFALEA | F93: 1408 | G93: 1.895020188 | H93: 378 | J93: 1030 | N93: Rural | O93: 54 | P93: 59.3 | R93: 62.7 | T93: 57.67
A94: 5 | B94: M545 | C94: LUMBAGO NO ESPECIFICADO | F94: 1351 | G94: 1.818304172 | H94: 521 | J94: 830 | N94: Total | O94: 7.9 | P94: 26.8 | R94: 13.6 | T94: 13.39
A95: 6 | B95: R509 | C95: FIEBRE NO ESPECIFICADA | F95: 1147 | G95: 1.543741588 | H95: 606 | J95: 541 | N95: PROYECTOS DE INVERSION (En pesos)
A96: 7 | B96: N390 | C96: INFECCION DE VIAS URINARIAS SITIO NO ESPECIFICADO | F96: 1093 | G96: 1.471063257 | H96: 305 | J96: 788 | Q96: 2012 | S96: 2013 | U96: 2014
A97: 8 | B97: R103 | C97: DOLOR LOCALIZADO EN OTRAS PARTES INFERIORES DEL ABDOMEN | F97: 853 | G97: 1.148048452 | H97: 235 | J97: 618 | N97: ADULTO MAYOR | Q97: 56000000 | S97: 19255800 | U97: 30000000
A98: 9 | B98: M255 | C98: DOLOR EN ARTICULACION | F98: 835 | G98: 1.123822342 | H98: 349 | J98: 486 | N98: DOTACION DISCAPACIDAD | S98: 2875750 | U98: 2747752
A99: 10 | B99: A09X | C99: DIARREA Y GASTROENTERITIS DE PRESUNTO ORIGEN INFECCIOSO | F99: 804 | G99: 1.082099596 | H99: 398 | J99: 406 | N99: APS - SALUD CONTIGO | S99: 0 | U99: 39191800
A100: 11 | C100: OTROS | F100: 58982 | G100: 79.38358008 | H100: 22959 | J100: 36023 | N100: COFINANCIACION REG. SUBSIDIADO | Q100: 410221739.5 | S100: 352321908 | U100: 465100589
A101: TOTALES | F101: 74300 | G101: 100 | H101: 28257 | J101: 46043 | N101: SSR | Q101: 5772040
A102: 10 PRIMERAS CAUSAS DE URGENCIAS 2013 | N102: PAI | Q102: 14811974
A103: ORDEN | B103: CODIGO CIE-10 | C103: CAUSA | F103: TOTAL GENERAL | G103: % | H103: HOMBRES | J103: MUJERES | N103: VECTORES | Q103: 386400
N104: ESTERILIZACION MASCOTAS | Q104: 0
A105: 1 | B105: Z000 | C105: EXAMEN MEDICO GENERAL | F105: 79 | G105: 5.7706355 | H105: 22 | J105: 57 | N105: VACUNA ANTIRRABICA | Q105: 4236000
A106: 2 | B106: O800 | C106: PARTO UNICO ESPONTANEO PRESENTACION CEFALICA DE VERTICE | F106: 56 | G106: 4.090577064 | H106: 0 | J106: 56 | N106: INFRAESTRUCTURA
A107: 3 | B107: R104 | C107: OTROS DOLORES ABDOMINALES Y LOS NO ESPECIFICADOS | F107: 34 | G107: 2.483564646 | H107: 12 | J107: 22 | N107: DOTACION EQUIPOS BIOMEDICOS
A108: 4 | B108: Z348 | C108: SUPERVISION DE OTROS EMBARAZOS NORMALES | F108: 25 | G108: 1.826150475 | H108: 0 | J108: 25 | N108: ESTAMPILLAS PROHOSPITALES | U108: 121213675
A109: 5 | B109: J189 | C109: NEUMONIA NO ESPECIFICADA | F109: 23 | G109: 1.680058437 | H109: 6 | J109: 17 | N109: EQUIPAMIENTO
A110: 6 | B110: N939 | C110: HEMORRAGIA VAGINAL Y UTERINA ANORMAL NO ESPECIFICADA | F110: 23 | G110: 1.680058437 | H110: 0 | J110: 23 | N110: TELEMEDICINA
A111: 7 | B111: O470 | C111: FALSO TRABAJO DE PARTO ANTES DE LA 37 SEMANAS COMPLETAS DE GESTACION | F111: 21 | G111: 1.533966399 | H111: 0 | J111: 21 | N111: AMBULANCIA
A112: 8 | B112: N390 | C112: INFECCION DE VIAS URINARIAS SITIO NO ESPECIFICADO | F112: 20 | G112: 1.46092038 | H112: 11 | J112: 9 | N112: TOTALES | Q112: =SUM(Q97:R111) -> 491428153.5 | S112: =SUM(S97:T111) -> 374453458 | U112: =SUM(U97:V111) -> 658253816
A113: 9 | B113: O200 | C113: AMENAZA DE ABORTO | F113: 19 | G113: 1.387874361 | H113: 0 | J113: 19 | N113: PROYECTOS DE INVERSION (En Cantidad)
A114: 10 | B114: O821 | C114: PARTO POR CESAREA DE EMERGENCIA | F114: 17 | G114: 1.241782323 | H114: 0 | J114: 17 | N114: PROGRAMA AEREO (No brigadas)
A115: 11 | C115: OTROS | F115: 1052 | G115: 76.84441198 | H115: 463 | J115: 589 | N115: ASESORIA Y ASISTENCIA TECNICA | Q115: 22
A116: TOTALES | F116: 1369 | G116: 100 | H116: 514 | J116: 855 | N116: CENTROS AMIGABLES JOVENES | S116: SI

Sheet BELLO
C4: ALCALDE | E4: CARLOS ALIRIO MUÑOZ LÓPEZ
C5: DIRECTOR LOCAL DE SALUD | E5: CESAR AUGUSTO ARANGO SERNA
C7: CERTIFICACION | E7: RANKING | F7: CATEGORIA MUNICIPAL
C8: SI | E8: 30 | F8: 1a.
C9: TOTAL CORREGIMIENTOS | E9: 2 | F9: TOTAL VEREDAS | I9: 19
A10: CARACTERISTICAS DEMOGRAFICAS | N10: VIGILANCIA DE LA SALUD PUBLICA - AÑO 2014
A11: POBLACION 2015
A12: TOTAL | B12: HOMBRES | C12: MUJERES | D12: CABECERA | E12: RESTO | N12: MORTALIDAD CANCER CUELLO UTERINO | S12: MORTALIDAD MATERNA
A13: 455865 | B13: 220515 | C13: 235350 | D13: 448959 | E13: 6906 | N13: # Casos | O13: Tasa x cienmil Mujeres | S13: # Casos | T13: Tasa x cienmil Nacidos vivos
A14: POR GRUPOS DE EDAD | N14: 7 | O14: 3.031103452 | S14: 1 | T14: 19.9044586
A15: 0 - 4 AÑOS | B15: 5 - 9 AÑOS | C15: 10 - 14 AÑOS | D15: 15 - 19 AÑOS | E15: 20 - 59 AÑOS | F15: > 60 AÑOS
A16: 37637 | B16: 37416 | C16: 38579 | D16: 41476 | E16: 260850 | F16: 39907 | N16: MORTALIDAD INFANTIL | S16: MORTALIDAD PERINATAL
N17: # Casos | O17: Tasa x cienmil Nacidos vivos | S17: # Casos | T17: Tasa x cienmil Nacidos vivos
A18: DESPLAZADOS 2015 (a marzo) | D18: INDIGENAS FEB 2014 | G18: ROM | I18: AFRO | N18: 40 | O18: 7.961783439 | S18: 55 | T18: 10.94745223
A19: TOTAL | B19: HOMBRES | C19: MUJERES | D19: TOTAL | E19: HOMBRES | F19: MUJERES
A20: 36608 | B20: 17937.92 | C20: 18670.08 | D20: 0 | E20: 0 | F20: 0 | N20: MORTALIDAD VIH SIDA | S20: MORTALIDAD TUBERCULOSIS
A21: POBLACION TOTAL | B21: Afiliados al regimen Subsidiado * | D21: % De Aseguramiento al Regimen Subsidiado * | F21: Afiliados al Regimen Contributivo BDUA * | H21: % De Aseguramiento al Regimen Contributivo * | N21: # Casos | O21: Tasa x cienmil Habitantes | S21: # Casos | T21: Tasa x cienmil Habitantes
N22: 21 | O22: 4.696043025 | S22: 8 | T22: 1.788968771
N24: MORTALIDAD INFARTO AL MIOCARDIO | S24: MORTALIDAD < 5 AÑOS
A25: 455865 | B25: 92361 | D25: 20.20137541 | F25: 282192 | H25: 61.90253694 | N25: # Casos | O25: Tasa x cienmil Habitantes | S25: # Casos | T25: Tasa x cienmil Niños
A26: NBI (pobre) 2012 | H26: * Agosto 2015 | N26: 197 | O26: 44.05335599 | S26: 49 | T26: 131.8196492
A27: Total | C27: Cabecera | E27: Resto
A28: Prop (%) | B28: cve (%) | C28: Prop (%) | D28: cve (%) | E28: Prop (%) | F28: cve (%)
A29: 10.58263019 | B29: 10.29909306 | C29: 9.462277373 | D29: 11.91767374 | E29: 39.91430664 | F29: 6.126868844 | N29: REGISTRO POBLACIONAL DE CANCER 2012
N30: Numero de casos registrados | P30: HOMBRES | Q30: MUJERES | R30: TOTAL
A31: PRESTACION DE SERVICIOS DE SALUD ** | P31: 255 | Q31: 317 | R31: =SUM(P31:Q31) -> 572
A32: EMPRESAS SOCIALES DEL ESTADO
A33: INSTITUCION PRESTADORA DE SERVICIOS DE SALUD | F33: DIRECTOR / GERENTE | N33: 10 PRIMERAS CAUSAS DE MORTALIDAD 2014
A34: EMPRESA SOCIAL DEL ESTADO BELLO SALUD | F34: ELKIN DE JESUS CARDONA ORTIZ | N34: ORDEN | O34: CODIGO 105 CIE-10 | P34: CAUSA | T34: TOTAL GENERAL | U34: HOMBRES | V34: MUJERES | W34: SIN DATO
A35: ESE HOSPITAL MARCO FIDEL SUAREZ | F35: JOSE DAVID ALVAREZ RAMIREZ
A36: ESE HOSPITAL MENTAL DE ANTIOQUIA | F36: JUAN CARLOS TAMAYO SUAREZ | N36: 1 | O36: 051 | P36: ENFERMEDADES ISQUEMICAS DEL CORAZON | T36: 230 | U36: 129 | V36: 101
N37: 2 | O37: 060 | P37: ENFERMEDADES CRONICAS DE LAS VIAS RESPIRATORIAS INFERIORES | T37: 103 | U37: 51 | V37: 52
N38: 3 | O38: 055 | P38: ENFERMEDADES CEREBROVASCULARES | T38: 102 | U38: 39 | V38: 63
A39: PRESTADORES DE SERVICIOS DE SALUD | N39: 4 | O39: 101 | P39: AGRESIONES (HOMICIDIOS) Y SECUELAS | T39: 96 | U39: 93 | V39: 3
A40: TOTALES | B40: IPS | C40: PROFESIONALES INDEPENDIENTES | E40: TRANSPORTE ESPECIAL | G40: OBJETO SOCIAL DIFERENTE | N40: 5 | O40: 020 | P40: TUMOR MALIGNO DE LA TRAQUEA, LOS BRONQUIOS Y EL PULMON | T40: 77 | U40: 36 | V40: 41
N41: 6 | O41: 059 | P41: NEUMONIA | T41: 72 | U41: 37 | V41: 35
B42: 21 | C42: 144 | E42: 1 | G42: 5 | N42: 7 | O42: 013 | P42: TUMOR MALIGNO DEL ESTOMAGO | T42: 54 | U42: 34 | V42: 20
A43: IPS PUBLICAS | B43: IPS PRIVADAS | C43: SERVICIOS PRESTADOS X PROFESION | N43: 8 | O43: 090 | P43: ACCIDENTES DE TRANSPORTE DE MOTOR Y SECUELAS | T43: 54 | U43: 48 | V43: 6
C44: Odontólogos | D44: Médicos | E44: Otros | F44: Total | N44: 9 | O44: 041 | P44: DIABETES MELLITUS | T44: 47 | U44: 25 | V44: 22
N45: 10 | O45: 050 | P45: ENFERMEDADES HIPERTENSIVAS | T45: 44 | U45: 28 | V45: 16
A46: 3 | B46: 24 | C46: 113 | D46: 15 | E46: 81 | F46: =C46+D46+E46 -> 209
A48: CAPACIDAD INSTALADA | N48: PORCENTAJE DE EMBARAZOS POR GRUPO EDAD RESIDENCIA HABITUAL DE LA MADRE 2014 | S48: TASAS DE FECUNDIDAD ESPECIFICA POR MIL MUJERES 2014
A49: CAMAS
A50: Adultos | B50: Cuidado Agudo Mental | C50: Cuidado Intensivo Adulto | D50: Cuidado Intensivo Neonatal | E50: Cuidado Intensivo Pediátrico | F50: Cuidado Intermedio Adulto | G50: Cuidado Intermedio Mental | I50: Cuidado Intermedio Neonatal
N51: 10 a 14 AÑOS | P51: 15 a 19 AÑOS | S51: 10 a 14 AÑOS | U51: 15 a 19 AÑOS
N52: No | O52: % | P52: No | Q52: % | S52: No | T52: TASA | U52: No | V52: TASA
A53: 401 | B53: 0 | C53: 25 | D53: 0 | E53: 0 | F53: 27 | G53: 0 | I53: 0 | N53: 43 | O53: 0.8108617764 | P53: 1083 | Q53: 20.42240241 | S53: 43 | T53: 2.247425913 | U53: 1083 | V53: 51.90012939
A54: CAMAS
A55: Cuidado Intermedio Pediátrico | B55: Farmaco- de-pendencia | C55: Obste-tricia | D55: Pediátricas | E55: Quemados Adultos | F55: Quemados Pediátrico | G55: Salud Mental Psiquiatría | I55: TOTAL CAMAS
A58: 0 | B58: 100 | C58: 36 | D58: 57 | E58: 0 | F58: 0 | G58: 450 | I58: =A53+B53+C53+D53+E53+F53+G53+I53+A58+B58+C58+D58+E58+F58+G58 -> 1096
A60: SALAS | E60: TOTAL SALAS | N60: INMUNIZACIONES PAI 2014
A61: PARTO | C61: QUIROFANO | N61: POLIOMIELITIS (V.O.P)
A62: 4 | C62: 17 | E62: =A62+C62 -> 21 | N62: Vacunados (Edades) | S62: Refuerzos | T62: Dosis Aplicadas
N63: <1 | O63: 1 | P63: 2 | Q63: 3 | R63: 4 | S63: Otros
A64: TOTAL DE SERVICIOS PRESTADOS SEGÚN LA COMPLEJIDAD | N64: 4839 | O64: 64 | P64: 33 | Q64: 14 | R64: 12 | S64: 10005 | T64: 24906
A65: BAJA | C65: MEDIA | E65: ALTA
A66: 458 | C66: 261 | E66: 28 | N66: DIFTERIA, TOSFERINA Y TÉTANO (D.P.T)
N67: Vacunados (Edades) | S67: Refuerzos | T67: Dosis
A68: TOTAL DE AMBULANCIAS HABILITADAS SEGÚN TIPO Y MODALIDAD | N68: <1 | O68: 1 | P68: 2 | Q68: 3 | R68: 4 | S68: Otros | T68: Aplicadas
A69: TIPO | C69: MODALIDAD | F69: TOTAL GENERAL | N69: 4843 | O69: 60 | P69: 30 | Q69: 14 | R69: 12 | S69: 9801 | T69: 24693
A70: BASICA | B70: MEDICADA | C70: AEREA | D70: TERRESTRE | E70: FLUVIAL | H70: ** Fuente: REPS-Minsalud julio 2015
A71: 3 | B71: 3 | C71: 0 | D71: 6 | E71: 0 | F71: =SUM(C71:E71) -> 6 | N71: TUBERCULOSIS (B.C.G)
A72: 10 PRIMERAS CAUSAS DE HOSPITALIZACION 2013 | N72: Vacunados (Edades) | S72: Otros | T72: Dosis Aplicadas
A73: ORDEN | B73: CODIGO CIE-10 | C73: CAUSA | F73: TOTAL GENERAL | G73: % | H73: HOMBRES | J73: MUJERES | N73: <1 | O73: 1
N74: 2227 | O74: 22 | S74: 29 | T74: 2278
A75: 1 | B75: N390 | C75: INFECCION DE VIAS URINARIAS SITIO NO ESPECIFICADO | F75: 561 | G75: 3.351654917 | H75: 218 | J75: 343
A76: 2 | B76: J189 | C76: NEUMONIA NO ESPECIFICADA | F76: 428 | G76: 2.557055801 | H76: 210 | J76: 218 | N76: TRIPLE VIRAL - S. R. P.
A77: 3 | B77: O800 | C77: PARTO UNICO ESPONTANEO PRESENTACION CEFALICA DE VERTICE | F77: 413 | G77: 2.46743936 | H77: 0 | J77: 413 | N77: Vacunados (Edades) | S77: Refuerzos | T77: Dosis Aplicadas
A78: 4 | B78: R104 | C78: OTROS DOLORES ABDOMINALES Y LOS NO ESPECIFICADOS | F78: 343 | G78: 2.049229299 | H78: 126 | J78: 217 | N78: 1 | O78: 2 | P78: 3 | Q78: 4 | R78: Ref. | S78: Otros
A79: 5 | B79: J219 | C79: BRONQUIOLITIS AGUDA NO ESPECIFICADA | F79: 334 | G79: 1.995459434 | H79: 167 | J79: 167 | N79: 4727 | O79: 118 | P79: 23 | Q79: 21 | R79: 4534 | S79: 699 | T79: 10122
A80: 6 | B80: K359 | C80: APENDICITIS AGUDA NO ESPECIFICADA | F80: 299 | G80: 1.786354403 | H80: 145 | J80: 154
A81: 7 | B81: J441 | C81: ENFERMEDAD PULMONAR OBSTRUCTIVA CRONICA CON EXACERBACION AGUDA NO ESPECIFICADA | F81: 285 | G81: 1.702712391 | H81: 123 | J81: 162 | N81: AGUA POTABLE 2013
A82: 8 | B82: O470 | C82: FALSO TRABAJO DE PARTO ANTES DE LA 37 SEMANAS COMPLETAS DE GESTACION | F82: 235 | G82: 1.403990919 | H82: 0 | J82: 235 | P82: NUMEROS ACUEDUCTOS | R82: COBERTURA ACUEDUCTOS CON AGUA POTABLE (%) | T82: COBERTURAS VIVIENDAS CON AGUA POTABLE (%)
A83: 9 | B83: J46X | C83: ESTADO ASMATICO | F83: 222 | G83: 1.326323336 | H83: 136 | J83: 86
A84: 10 | B84: N939 | C84: HEMORRAGIA VAGINAL Y UTERINA ANORMAL NO ESPECIFICADA | F84: 220 | G84: 1.314374477 | H84: 0 | J84: 220
A85: 11 | C85: OTROS | F85: 13398 | G85: 80.04540566 | H85: 5544 | J85: 7854 | N85: Urbano | P85: 1 | R85: 100 | T85: 98.1
A86: TOTALES | F86: 16738 | G86: 100 | H86: 6669 | J86: 10069 | N86: Rural | P86: 9 | R86: 22.22222222 | T86: 13.9
A87: 10 PRIMERAS CAUSAS DE CONSULTA 2013 | N87: Total Municipal | P87: 10 | R87: 30 | T87: 93.8
A88: ORDEN | B88: CODIGO CIE-10 | C88: CAUSA | F88: TOTAL GENERAL | G88: % | H88: HOMBRES | J88: MUJERES | N88: CERTIFACION EN AGUA POTABLE | O88: INDICE RIESGO CALIDAD DEL AGUA POTABLE - IRCA- (a) | P88: INDICE RIESGO DE ABASTECIMIENTO MUNICIPAL - IRABA- (b) | R88: BUENAS PRACTICAS SANTIARIAS © | T88: CERTIFICAION SANITARIA MUNICIPAL EN AGUA POTABLE ©
A90: 1 | B90: I10X | C90: HIPERTENSION ESENCIAL (PRIMARIA) | F90: 46228 | G90: 6.829843408 | H90: 15614 | J90: 30614
A91: 2 | B91: N390 | C91: INFECCION DE VIAS URINARIAS SITIO NO ESPECIFICADO | F91: 10523 | G91: 1.554695037 | H91: 2671 | J91: 7852
A92: 3 | B92: M545 | C92: LUMBAGO NO ESPECIFICADO | F92: 9773 | G92: 1.443888112 | H92: 4360 | J92: 5413 | N92: Urbano | O92: 0.5 | P92: 9.8 | R92: 0 | T92: 2.21
A93: 4 | B93: A09X | C93: DIARREA Y GASTROENTERITIS DE PRESUNTO ORIGEN INFECCIOSO | F93: 8398 | G93: 1.240742081 | H93: 4022 | J93: 4376 | N93: Rural | O93: 35.2 | P93: 68.6 | R93: 32.1 | T93: 40.95
A94: 5 | B94: J00X | C94: RINOFARINGITIS AGUDA (RESFRIADO COMUN) | F94: 7748 | G94: 1.144709413 | H94: 3296 | J94: 4452 | N94: Total | O94: 1.2 | P94: 9.5 | R94: 0.5 | T94: 2.65
A95: 6 | B95: R104 | C95: OTROS DOLORES ABDOMINALES Y LOS NO ESPECIFICADOS | F95: 7712 | G95: 1.13939068 | H95: 2549 | J95: 5163 | N95: PROYECTOS DE INVERSION (En pesos)
A96: 7 | B96: R51X | C96: CEFALEA | F96: 6681 | G96: 0.9870680931 | H96: 1828 | J96: 4853 | Q96: 2012 | S96: 2013 | U96: 2014
A97: 8 | B97: M255 | C97: DOLOR EN ARTICULACION | F97: 6436 | G97: 0.950871164 | H97: 2230 | J97: 4206 | N97: ADULTO MAYOR | Q97: 60000000 | S97: 21053008 | U97: 20000000
A98: 9 | B98: E119 | C98: DIABETES MELLITUS NO INSULINODEPENDIENTE SIN MENCION DE COMPLICACION | F98: 6175 | G98: 0.9123103539 | H98: 2545 | J98: 3630 | N98: DOTACION DISCAPACIDAD | U98: 2747752
A99: 10 | B99: E039 | C99: HIPOTIROIDISMO NO ESPECIFICADO | F99: 5411 | G99: 0.7994350324 | H99: 1103 | J99: 4308 | N99: APS - SALUD CONTIGO | S99: 0
A100: 11 | C100: OTROS | F100: 561768 | G100: 82.99704663 | H100: 214679 | J100: 347089 | N100: COFINANCIACION REG. SUBSIDIADO | S100: 0
A101: TOTALES | F101: 676853 | G101: 100 | H101: 254897 | J101: 421956 | N101: SSR | Q101: 52013193
A102: 10 PRIMERAS CAUSAS DE URGENCIAS 2013 | N102: PAI | Q102: 133474128
A103: ORDEN | B103: CODIGO CIE-10 | C103: CAUSA | F103: TOTAL GENERAL | G103: % | H103: HOMBRES | J103: MUJERES | N103: VECTORES | Q103: 386400
N104: ESTERILIZACION MASCOTAS | Q104: 0
A105: 1 | B105: A09X | C105: DIARREA Y GASTROENTERITIS DE PRESUNTO ORIGEN INFECCIOSO | F105: 925 | G105: 3.407123651 | H105: 438 | J105: 487 | N105: VACUNA ANTIRRABICA | Q105: 21116000
A106: 2 | B106: R104 | C106: OTROS DOLORES ABDOMINALES Y LOS NO ESPECIFICADOS | F106: 889 | G106: 3.274522082 | H106: 303 | J106: 586 | N106: INFRAESTRUCTURA
A107: 3 | B107: N390 | C107: INFECCION DE VIAS URINARIAS SITIO NO ESPECIFICADO | F107: 709 | G107: 2.611514236 | H107: 200 | J107: 509 | N107: DOTACION EQUIPOS BIOMEDICOS
A108: 4 | B108: O800 | C108: PARTO UNICO ESPONTANEO PRESENTACION CEFALICA DE VERTICE | F108: 664 | G108: 2.445762275 | H108: 0 | J108: 664 | N108: ESTAMPILLAS PROHOSPITALES | Q108: 410075000 | U108: 970877675
A109: 5 | B109: R51X | C109: CEFALEA | F109: 589 | G109: 2.169509006 | H109: 151 | J109: 438 | N109: EQUIPAMIENTO
A110: 6 | B110: Z000 | C110: EXAMEN MEDICO GENERAL | F110: 492 | G110: 1.812221445 | H110: 177 | J110: 315 | N110: TELEMEDICINA
A111: 7 | B111: O470 | C111: FALSO TRABAJO DE PARTO ANTES DE LA 37 SEMANAS COMPLETAS DE GESTACION | F111: 447 | G111: 1.646469483 | H111: 0 | J111: 447 | N111: AMBULANCIA | Q111: 65000000
A112: 8 | B112: R102 | C112: DOLOR PELVICO Y PERINEAL | F112: 414 | G112: 1.524918045 | H112: 1 | J112: 413 | N112: TOTALES | Q112: =SUM(Q97:R111) -> 742064721 | S112: =SUM(S97:T111) -> 21053008 | U112: =SUM(U97:V111) -> 993625427
A113: 9 | B113: A689 | C113: FIEBRE RECURRENTE NO ESPECIFICADA | F113: 360 | G113: 1.326015691 | H113: 205 | J113: 155 | N113: PROYECTOS DE INVERSION (En Cantidad)
A114: 10 | B114: O200 | C114: AMENAZA DE ABORTO | F114: 342 | G114: 1.259714907 | H114: 0 | J114: 342 | N114: PROGRAMA AEREO (No brigadas)
A115: 11 | C115: OTROS | F115: 21318 | G115: 78.52222918 | H115: 9210 | J115: 12108 | N115: ASESORIA Y ASISTENCIA TECNICA | Q115: 28
A116: TOTALES | F116: 27149 | G116: 100 | H116: 10685 | J116: 16464 | N116: CENTROS AMIGABLES JOVENES | S116: SI

Sheet BELMIRA
C4: ALCALDE | E4: EDISON DE JESUS BUSTAMANTE RUIZ
C5: DIRECTOR LOCAL DE SALUD | E5: GLORIA ZULEIMA VELASQUEZ ZAPATA
C7: CERTIFICACION | E7: RANKING | F7: CATEGORIA MUNICIPAL
C8: SI | E8: 20 | F8: 6a.
C9: TOTAL CORREGIMIENTOS | E9: 0 | F9: TOTAL VEREDAS | I9: 14
A10: CARACTERISTICAS DEMOGRAFICAS | N10: VIGILANCIA DE LA SALUD PUBLICA - AÑO 2014
A11: POBLACION 2015
A12: TOTAL | B12: HOMBRES | C12: MUJERES | D12: CABECERA | E12: RESTO | N12: MORTALIDAD CANCER CUELLO UTERINO | S12: MORTALIDAD MATERNA
A13: 6760 | B13: 3578 | C13: 3182 | D13: 1928 | E13: 4832 | N13: # Casos | O13: Tasa x cienmil Mujeres | S13: # Casos | T13: Tasa x cienmil Nacidos vivos
A14: POR GRUPOS DE EDAD | N14: 0 | O14: 0 | S14: 0 | T14: 0
A15: 0 - 4 AÑOS | B15: 5 - 9 AÑOS | C15: 10 - 14 AÑOS | D15: 15 - 19 AÑOS | E15: 20 - 59 AÑOS | F15: > 60 AÑOS
A16: 734 | B16: 693 | C16: 667 | D16: 691 | E16: 3324 | F16: 651 | N16: MORTALIDAD INFANTIL | S16: MORTALIDAD PERINATAL
N17: # Casos | O17: Tasa x cienmil Nacidos vivos | S17: # Casos | T17: Tasa x cienmil Nacidos vivos
A18: DESPLAZADOS 2015 (a marzo) | D18: INDIGENAS FEB 2014 | G18: ROM | I18: AFRO | N18: 2 | O18: 32.78688525 | S18: 1 | T18: 16.39344262
A19: TOTAL | B19: HOMBRES | C19: MUJERES | D19: TOTAL | E19: HOMBRES | F19: MUJERES
A20: 263 | B20: 128.87 | C20: 134.13 | D20: 0 | E20: 0 | F20: 0 | N20: MORTALIDAD VIH SIDA | S20: MORTALIDAD TUBERCULOSIS
A21: POBLACION TOTAL | B21: Afiliados al regimen Subsidiado * | D21: % De Aseguramiento al Regimen Subsidiado * | F21: Afiliados al Regimen Contributivo BDUA * | H21: % De Aseguramiento al Regimen Contributivo * | N21: # Casos | O21: Tasa x cienmil Habitantes | S21: # Casos | T21: Tasa x cienmil Habitantes
N22: 0 | O22: 0 | S22: 0 | T22: 0
N24: MORTALIDAD INFARTO AL MIOCARDIO | S24: MORTALIDAD < 5 AÑOS
A25: 6760 | B25: 3261 | D25: 48.23964497 | F25: 1237 | H25: 18.29881657 | N25: # Casos | O25: Tasa x cienmil Habitantes | S25: # Casos | T25: Tasa x cienmil Niños
A26: NBI (pobre) 2012 | H26: * Agosto 2015 | N26: 1 | O26: 14.90535102 | S26: 2 | T26: 273.2240437
A27: Total | C27: Cabecera | E27: Resto
A28: Prop (%) | B28: cve (%) | C28: Prop (%) | D28: cve (%) | E28: Prop (%) | F28: cve (%)
A29: 29.04946654 | B29: - | C29: 19.60784314 | D29: - | E29: 32.57828115 | F29: - | N29: REGISTRO POBLACIONAL DE CANCER 2012
N30: Numero de casos registrados | P30: HOMBRES | Q30: MUJERES | R30: TOTAL
A31: PRESTACION DE SERVICIOS DE SALUD ** | P31: 2 | Q31: 3 | R31: =SUM(P31:Q31) -> 5
A32: EMPRESAS SOCIALES DEL ESTADO
A33: INSTITUCION PRESTADORA DE SERVICIOS DE SALUD | F33: DIRECTOR / GERENTE | N33: 10 PRIMERAS CAUSAS DE MORTALIDAD 2014
A34: EMPRESA SOCIAL DEL ESTADO HOSPITAL NUESTRA SEÑORA DEL ROSARIO | F34: GERARDO ANTONIO PESCADOR DAVID | N34: ORDEN | O34: CODIGO 105 CIE-10 | P34: CAUSA | T34: TOTAL GENERAL | U34: HOMBRES | V34: MUJERES | W34: SIN DATO
N36: 1 | O36: 101 | P36: AGRESIONES (HOMICIDIOS) Y SECUELAS | T36: 5 | U36: 5 | V36: 0
N37: 2 | O37: 057 | P37: ANEURISMA AORTICO | T37: 2 | U37: 2 | V37: 0
N38: 3 | O38: 072 | P38: ENFERMEDADES DEL SISTEMA OSTEOMUSCULAR Y DEL TEJIDO CONJUNTIVO | T38: 2 | U38: 0 | V38: 2
A39: PRESTADORES DE SERVICIOS DE SALUD | N39: 4 | O39: 090 | P39: ACCIDENTES DE TRANSPORTE DE MOTOR Y SECUELAS | T39: 2 | U39: 2 | V39: 0
A40: TOTALES | B40: IPS | C40: PROFESIONALES INDEPENDIENTES | E40: TRANSPORTE ESPECIAL | G40: OBJETO SOCIAL DIFERENTE | N40: 5 | O40: 024 | P40: TUMOR MALIGNO DE LA MAMA DE LA MUJER | T40: 1 | U40: 0 | V40: 1
N41: 6 | O41: 017 | P41: TUMOR MALIGNO DEL PANCREAS | T41: 1 | U41: 0 | V41: 1
B42: 1 | C42: 1 | E42: 0 | G42: 0 | N42: 7 | O42: 035 | P42: LEUCEMIA | T42: 1 | U42: 1 | V42: 0
A43: IPS PUBLICAS | B43: IPS PRIVADAS | C43: SERVICIOS PRESTADOS X PROFESION | N43: 8 | O43: 045 | P43: MENINGITIS Y OTRAS ENFERMEDADES INFLAMATORIAS DEL SISTEMA NERVIOSO CENTRAL | T43: 1 | U43: 0 | V43: 1
C44: Odontólogos | D44: Médicos | E44: Otros | F44: Total | N44: 9 | O44: 060 | P44: ENFERMEDADES CRONICAS DE LAS VIAS RESPIRATORIAS INFERIORES | T44: 1 | U44: 1 | V44: 0
N45: 10 | O45: 015 | P45: TUMOR MALIGNO DEL HIGADO | T45: 1 | U45: 1 | V45: 0
A46: 1 | B46: 0 | C46: 1 | D46: 0 | E46: 0 | F46: =C46+D46+E46 -> 1
A48: CAPACIDAD INSTALADA | N48: PORCENTAJE DE EMBARAZOS POR GRUPO EDAD RESIDENCIA HABITUAL DE LA MADRE 2014 | S48: TASAS DE FECUNDIDAD ESPECIFICA POR MIL MUJERES 2014
A49: CAMAS
A50: Adultos | B50: Cuidado Agudo Mental | C50: Cuidado Intensivo Adulto | D50: Cuidado Intensivo Neonatal | E50: Cuidado Intensivo Pediátrico | F50: Cuidado Intermedio Adulto | G50: Cuidado Intermedio Mental | I50: Cuidado Intermedio Neonatal
N51: 10 a 14 AÑOS | P51: 15 a 19 AÑOS | S51: 10 a 14 AÑOS | U51: 15 a 19 AÑOS
N52: No | O52: % | P52: No | Q52: % | S52: No | T52: TASA | U52: No | V52: TASA
A53: 2 | B53: 0 | C53: 0 | D53: 0 | E53: 0 | F53: 0 | G53: 0 | I53: 0 | N53: 2 | O53: 3.125 | P53: 17 | Q53: 26.5625 | S53: 2 | T53: 6.172839506 | U53: 17 | V53: 52.63157895
A54: CAMAS
A55: Cuidado Intermedio Pediátrico | B55: Farmaco- de-pendencia | C55: Obste-tricia | D55: Pediátricas | E55: Quemados Adultos | F55: Quemados Pediátrico | G55: Salud Mental Psiquiatría | I55: TOTAL CAMAS
A58: 0 | B58: 0 | C58: 2 | D58: 2 | E58: 0 | F58: 0 | G58: 0 | I58: =A53+B53+C53+D53+E53+F53+G53+I53+A58+B58+C58+D58+E58+F58+G58 -> 6
A60: SALAS | E60: TOTAL SALAS | N60: INMUNIZACIONES PAI 2014
A61: PARTO | C61: QUIROFANO | N61: POLIOMIELITIS (V.O.P)
A62: 1 | C62: 0 | E62: =A62+C62 -> 1 | N62: Vacunados (Edades) | S62: Refuerzos | T62: Dosis Aplicadas
N63: <1 | O63: 1 | P63: 2 | Q63: 3 | R63: 4 | S63: Otros
A64: TOTAL DE SERVICIOS PRESTADOS SEGÚN LA COMPLEJIDAD | N64: 71 | O64: 0 | P64: 0 | Q64: 0 | R64: 0 | S64: 150 | T64: 347
A65: BAJA | C65: MEDIA | E65: ALTA
A66: 25 | C66: 0 | E66: 0 | N66: DIFTERIA, TOSFERINA Y TÉTANO (D.P.T)
N67: Vacunados (Edades) | S67: Refuerzos | T67: Dosis
A68: TOTAL DE AMBULANCIAS HABILITADAS SEGÚN TIPO Y MODALIDAD | N68: <1 | O68: 1 | P68: 2 | Q68: 3 | R68: 4 | S68: Otros | T68: Aplicadas
A69: TIPO | C69: MODALIDAD | F69: TOTAL GENERAL | N69: 71 | O69: 0 | P69: 0 | Q69: 0 | R69: 0 | S69: 143 | T69: 340
A70: BASICA | B70: MEDICADA | C70: AEREA | D70: TERRESTRE | E70: FLUVIAL | H70: ** Fuente: REPS-Minsalud julio 2015
A71: 1 | B71: 0 | C71: 0 | D71: 1 | E71: 0 | F71: =SUM(C71:E71) -> 1 | N71: TUBERCULOSIS (B.C.G)
A72: 10 PRIMERAS CAUSAS DE HOSPITALIZACION 2013 | N72: Vacunados (Edades) | S72: Otros | T72: Dosis Aplicadas
A73: ORDEN | B73: CODIGO CIE-10 | C73: CAUSA | F73: TOTAL GENERAL | G73: % | H73: HOMBRES | J73: MUJERES | N73: <1 | O73: 1
N74: 21 | O74: 1 | S74: 0 | T74: 22
A75: 1 | B75: J449 | C75: ENFERMEDAD PULMONAR OBSTRUCTIVA CRONICA NO ESPECIFICADA | F75: 10 | G75: 4.926108374 | H75: 5 | J75: 5
A76: 2 | B76: O809 | C76: PARTO UNICO ESPONTANEO SIN OTRA ESPECIFICACION | F76: 9 | G76: 4.433497537 | H76: 0 | J76: 9 | N76: TRIPLE VIRAL - S. R. P.
A77: 3 | B77: C833 | C77: LINFOMA NO HODGKIN DE CELULAS GRANDES (DIFUSO) | F77: 8 | G77: 3.9408867 | H77: 8 | J77: 0 | N77: Vacunados (Edades) | S77: Refuerzos | T77: Dosis Aplicadas
A78: 4 | B78: J189 | C78: NEUMONIA NO ESPECIFICADA | F78: 7 | G78: 3.448275862 | H78: 3 | J78: 4 | N78: 1 | O78: 2 | P78: 3 | Q78: 4 | R78: Ref. | S78: Otros
A79: 5 | B79: J219 | C79: BRONQUIOLITIS AGUDA NO ESPECIFICADA | F79: 6 | G79: 2.955665025 | H79: 4 | J79: 2 | N79: 78 | O79: 0 | P79: 0 | Q79: 0 | R79: 72 | S79: 0 | T79: 150
A80: 6 | B80: L031 | C80: CELULITIS DE OTRAS PARTES DE LOS MIEMBROS | F80: 5 | G80: 2.463054187 | H80: 2 | J80: 3
A81: 7 | B81: O471 | C81: FALSO TRABAJO DE PARTO ANTES DE LA 37 Y MAS SEMANAS COMPLETAS DE GESTACION | F81: 5 | G81: 2.463054187 | H81: 0 | J81: 5 | N81: AGUA POTABLE 2013
A82: 8 | B82: J459 | C82: ASMA NO ESPECIFICADA | F82: 4 | G82: 1.97044335 | H82: 3 | J82: 1 | P82: NUMEROS ACUEDUCTOS | R82: COBERTURA ACUEDUCTOS CON AGUA POTABLE (%) | T82: COBERTURAS VIVIENDAS CON AGUA POTABLE (%)
A83: 9 | B83: K359 | C83: APENDICITIS AGUDA NO ESPECIFICADA | F83: 4 | G83: 1.97044335 | H83: 2 | J83: 2
A84: 10 | B84: I500 | C84: INSUFICIENCIA CARDIACA CONGESTIVA | F84: 3 | G84: 1.477832512 | H84: 1 | J84: 2
A85: 11 | C85: OTROS | F85: 142 | G85: 69.95073892 | H85: 61 | J85: 81 | N85: Urbano | P85: 1 | R85: 100 | T85: 98
A86: TOTALES | F86: 203 | G86: 100 | H86: 89 | J86: 114 | N86: Rural | P86: 10 | R86: 0 | T86: 0,0
A87: 10 PRIMERAS CAUSAS DE CONSULTA 2013 | N87: Total Municipal | P87: 11 | R87: 9.090909091 | T87: 34.5
A88: ORDEN | B88: CODIGO CIE-10 | C88: CAUSA | F88: TOTAL GENERAL | G88: % | H88: HOMBRES | J88: MUJERES | N88: CERTIFACION EN AGUA POTABLE | O88: INDICE RIESGO CALIDAD DEL AGUA POTABLE - IRCA- (a) | P88: INDICE RIESGO DE ABASTECIMIENTO MUNICIPAL - IRABA- (b) | R88: BUENAS PRACTICAS SANTIARIAS © | T88: CERTIFICAION SANITARIA MUNICIPAL EN AGUA POTABLE ©
A90: 1 | B90: I10X | C90: HIPERTENSION ESENCIAL (PRIMARIA) | F90: 3762 | G90: 21.45423439 | H90: 879 | J90: 2883
A91: 2 | B91: J00X | C91: RINOFARINGITIS AGUDA (RESFRIADO COMUN) | F91: 377 | G91: 2.149985743 | H91: 145 | J91: 232
A92: 3 | B92: N390 | C92: INFECCION DE VIAS URINARIAS SITIO NO ESPECIFICADO | F92: 350 | G92: 1.996007984 | H92: 63 | J92: 287 | N92: Urbano | O92: 4.7 | P92: 53.4 | R92: 20.8 | T92: 19.27
A93: 4 | B93: A09X | C93: DIARREA Y GASTROENTERITIS DE PRESUNTO ORIGEN INFECCIOSO | F93: 309 | G93: 1.762189906 | H93: 137 | J93: 172 | N93: Rural | O93: 73.1 | P93: 63.2 | R93: 65.2 | T93: 68.75
A94: 5 | B94: M545 | C94: LUMBAGO NO ESPECIFICADO | F94: 281 | G94: 1.602509267 | H94: 114 | J94: 167 | N94: Total | O94: 48.2 | P94: 46.3 | R94: 44.2 | T94: 46.62
A95: 6 | B95: R104 | C95: OTROS DOLORES ABDOMINALES Y LOS NO ESPECIFICADOS | F95: 250 | G95: 1.425719989 | H95: 64 | J95: 186 | N95: PROYECTOS DE INVERSION (En pesos)
A96: 7 | B96: B829 | C96: PARASITOSIS INTESTINAL SIN OTRA ESPECIFICACION | F96: 200 | G96: 1.140575991 | H96: 93 | J96: 107 | Q96: 2012 | S96: 2013 | U96: 2014
A97: 8 | B97: J020 | C97: FARINGITIS ESTREPTOCOCICA | F97: 193 | G97: 1.100655831 | H97: 95 | J97: 98 | N97: ADULTO MAYOR | Q97: 60000000 | S97: 25083710 | U97: 30000000
A98: 9 | B98: J039 | C98: AMIGDALITIS AGUDA NO ESPECIFICADA | F98: 184 | G98: 1.049329912 | H98: 76 | J98: 108 | N98: DOTACION DISCAPACIDAD | U98: 2747752
A99: 10 | B99: J029 | C99: FARINGITIS AGUDA NO ESPECIFICADA | F99: 171 | G99: 0.9751924722 | H99: 79 | J99: 92 | N99: APS - SALUD CONTIGO | Q99: 45150000 | S99: 45150000 | U99: 27487200
A100: 11 | C100: OTROS | F100: 11458 | G100: 65.34359852 | H100: 4001 | J100: 7457 | N100: COFINANCIACION REG. SUBSIDIADO | Q100: 415238241.5 | S100: 356630367 | U100: 470788191
A101: TOTALES | F101: 17535 | G101: 100 | H101: 5746 | J101: 11789 | N101: SSR | Q101: 797069
A102: 10 PRIMERAS CAUSAS DE URGENCIAS 2013 | N102: PAI | Q102: 2045407
A103: ORDEN | B103: CODIGO CIE-10 | C103: CAUSA | F103: TOTAL GENERAL | G103: % | H103: HOMBRES | J103: MUJERES | N103: VECTORES | Q103: 386400
N104: ESTERILIZACION MASCOTAS | Q104: 0
A105: 1 | B105: R520 | C105: DOLOR AGUDO | F105: 14 | G105: 4.560260586 | H105: 10 | J105: 4 | N105: VACUNA ANTIRRABICA | Q105: 1146000
A106: 2 | B106: S610 | C106: HERIDA DE DEDO(S) DE LA MANO SIN DA¥O DE LA(S) U¥A(S) | F106: 13 | G106: 4.234527687 | H106: 9 | J106: 4 | N106: INFRAESTRUCTURA
A107: 3 | B107: R104 | C107: OTROS DOLORES ABDOMINALES Y LOS NO ESPECIFICADOS | F107: 12 | G107: 3.908794788 | H107: 2 | J107: 10 | N107: DOTACION EQUIPOS BIOMEDICOS
A108: 4 | B108: S018 | C108: HERIDA DE OTRAS PARTES DE LA CABEZA | F108: 10 | G108: 3.25732899 | H108: 5 | J108: 5 | N108: ESTAMPILLAS PROHOSPITALES | Q108: 70319000 | U108: 2666983
A109: 5 | B109: S019 | C109: HERIDA DE LA CABEZA PARTE NO ESPECIFICADA | F109: 9 | G109: 2.931596091 | H109: 7 | J109: 2 | N109: EQUIPAMIENTO
A110: 6 | B110: I10X | C110: HIPERTENSION ESENCIAL (PRIMARIA) | F110: 9 | G110: 2.931596091 | H110: 4 | J110: 5 | N110: TELEMEDICINA
A111: 7 | B111: R101 | C111: DOLOR ABDOMINAL LOCALIZADO EN PARTE SUPERIOR | F111: 8 | G111: 2.605863192 | H111: 3 | J111: 5 | N111: AMBULANCIA
A112: 8 | B112: O800 | C112: PARTO UNICO ESPONTANEO PRESENTACION CEFALICA DE VERTICE | F112: 5 | G112: 1.628664495 | H112: 0 | J112: 5 | N112: TOTALES | Q112: =SUM(Q97:R111) -> 595082117.5 | S112: =SUM(S97:T111) -> 426864077 | U112: =SUM(U97:V111) -> 533690126
A113: 9 | B113: S069 | C113: TRAUMATISMO INTRACRANEAL NO ESPECIFICADO | F113: 5 | G113: 1.628664495 | H113: 4 | J113: 1 | N113: PROYECTOS DE INVERSION (En Cantidad)
A114: 10 | B114: G439 | C114: MIGRAÑA NO ESPECIFICADA | F114: 5 | G114: 1.628664495 | H114: 3 | J114: 2 | N114: PROGRAMA AEREO (No brigadas)
A115: 11 | C115: OTROS | F115: 217 | G115: 70.68403909 | H115: 120 | J115: 97 | N115: ASESORIA Y ASISTENCIA TECNICA | Q115: 13
A116: TOTALES | F116: 307 | G116: 100 | H116: 167 | J116: 140 | N116: CENTROS AMIGABLES JOVENES

Sheet BETANIA
C4: ALCALDE | E4: JUAN CARLOS MONTOYA ALZATE
C5: DIRECTOR LOCAL DE SALUD | E5: BEATRIZ EUGENIA BLANDON VARGAS
C7: CERTIFICACION | E7: RANKING | F7: CATEGORIA MUNICIPAL
C8: SI | E8: 4 | F8: 6a.
C9: TOTAL CORREGIMIENTOS | E9: 0 | F9: TOTAL VEREDAS | I9: 27
A10: CARACTERISTICAS DEMOGRAFICAS | N10: VIGILANCIA DE LA SALUD PUBLICA - AÑO 2014
A11: POBLACION 2015
A12: TOTAL | B12: HOMBRES | C12: MUJERES | D12: CABECERA | E12: RESTO | N12: MORTALIDAD CANCER CUELLO UTERINO | S12: MORTALIDAD MATERNA
A13: 9286 | B13: 4956 | C13: 4330 | D13: 3855 | E13: 5431 | N13: # Casos | O13: Tasa x cienmil Mujeres | S13: # Casos | T13: Tasa x cienmil Nacidos vivos
A14: POR GRUPOS DE EDAD | N14: 0 | O14: 0 | S14: 0 | T14: 0
A15: 0 - 4 AÑOS | B15: 5 - 9 AÑOS | C15: 10 - 14 AÑOS | D15: 15 - 19 AÑOS | E15: 20 - 59 AÑOS | F15: > 60 AÑOS
A16: 926 | B16: 922 | C16: 917 | D16: 858 | E16: 4859 | F16: 804 | N16: MORTALIDAD INFANTIL | S16: MORTALIDAD PERINATAL
N17: # Casos | O17: Tasa x cienmil Nacidos vivos | S17: # Casos | T17: Tasa x cienmil Nacidos vivos
A18: DESPLAZADOS 2015 (a marzo) | D18: INDIGENAS FEB 2014 | G18: ROM | I18: AFRO | N18: 2 | O18: 19.8019802 | S18: 1 | T18: 9.900990099
A19: TOTAL | B19: HOMBRES | C19: MUJERES | D19: TOTAL | E19: HOMBRES | F19: MUJERES
A20: 1201 | B20: 588.49 | C20: 612.51 | D20: 0 | E20: 0 | F20: 0 | N20: MORTALIDAD VIH SIDA | S20: MORTALIDAD TUBERCULOSIS
A21: POBLACION TOTAL | B21: Afiliados al regimen Subsidiado * | D21: % De Aseguramiento al Regimen Subsidiado * | F21: Afiliados al Regimen Contributivo BDUA * | H21: % De Aseguramiento al Regimen Contributivo * | N21: # Casos | O21: Tasa x cienmil Habitantes | S21: # Casos | T21: Tasa x cienmil Habitantes
N22: 0 | O22: 0 | S22: 0 | T22: 0
N24: MORTALIDAD INFARTO AL MIOCARDIO | S24: MORTALIDAD < 5 AÑOS
A25: 9286 | B25: 7014 | D25: 75.53306052 | F25: 772 | H25: 8.313590351 | N25: # Casos | O25: Tasa x cienmil Habitantes | S25: # Casos | T25: Tasa x cienmil Niños
A26: NBI (pobre) 2012 | H26: * Agosto 2015 | N26: 4 | O26: 42.60758415 | S26: 2 | T26: 212.7659574
A27: Total | C27: Cabecera | E27: Resto
A28: Prop (%) | B28: cve (%) | C28: Prop (%) | D28: cve (%) | E28: Prop (%) | F28: cve (%)
A29: 31.245004 | B29: - | C29: 23.34301558 | D29: - | E29: 36.05529658 | F29: - | N29: REGISTRO POBLACIONAL DE CANCER 2012
N30: Numero de casos registrados | P30: HOMBRES | Q30: MUJERES | R30: TOTAL
A31: PRESTACION DE SERVICIOS DE SALUD ** | P31: 5 | Q31: 7 | R31: =SUM(P31:Q31) -> 12
A32: EMPRESAS SOCIALES DEL ESTADO
A33: INSTITUCION PRESTADORA DE SERVICIOS DE SALUD | F33: DIRECTOR / GERENTE | N33: 10 PRIMERAS CAUSAS DE MORTALIDAD 2014
A34: ESE HOSPITAL SAN ANTONIO | F34: DIEGO ALFONSO MONTOYA GRAJALES | N34: ORDEN | O34: CODIGO 105 CIE-10 | P34: CAUSA | T34: TOTAL GENERAL | U34: HOMBRES | V34: MUJERES | W34: SIN DATO
N36: 1 | O36: 101 | P36: AGRESIONES (HOMICIDIOS) Y SECUELAS | T36: 11 | U36: 11 | V36: 0
N37: 2 | O37: 090 | P37: ACCIDENTES DE TRANSPORTE DE MOTOR Y SECUELAS | T37: 5 | U37: 4 | V37: 1
N38: 3 | O38: 051 | P38: ENFERMEDADES ISQUEMICAS DEL CORAZON | T38: 4 | U38: 1 | V38: 3
A39: PRESTADORES DE SERVICIOS DE SALUD | N39: 4 | O39: 060 | P39: ENFERMEDADES CRONICAS DE LAS VIAS RESPIRATORIAS INFERIORES | T39: 3 | U39: 2 | V39: 1
A40: TOTALES | B40: IPS | C40: PROFESIONALES INDEPENDIENTES | E40: TRANSPORTE ESPECIAL | G40: OBJETO SOCIAL DIFERENTE | N40: 5 | O40: 041 | P40: DIABETES MELLITUS | T40: 2 | U40: 1 | V40: 1
N41: 6 | O41: 055 | P41: ENFERMEDADES CEREBROVASCULARES | T41: 2 | U41: 1 | V41: 1
B42: 1 | C42: 0 | E42: 0 | G42: 0 | N42: 7 | O42: 043 | P42: TODAS LAS DEMAS ENFERMEDADES ENDOCRINAS Y NUTRICIONALES | T42: 1 | U42: 1 | V42: 0
A43: IPS PUBLICAS | B43: IPS PRIVADAS | C43: SERVICIOS PRESTADOS X PROFESION | N43: 8 | O43: 073 | P43: ENFERMEDADES GLOMERULARES Y TUBULOINTERSTICIALES | T43: 1 | U43: 1 | V43: 0
C44: Odontólogos | D44: Médicos | E44: Otros | F44: Total | N44: 9 | O44: 069 | P44: ENFERMEDADES DEL PERITONEO Y TODAS LAS DEMAS ENFERMEDADES DEL SISTEMA DIGESTIVO | T44: 1 | U44: 0 | V44: 1
N45: 10 | O45: 028 | P45: TUMOR MALIGNO DE LA PROSTATA | T45: 1 | U45: 1 | V45: 0
A46: 1 | B46: 0 | C46: 1 | D46: 0 | E46: 2 | F46: =C46+D46+E46 -> 3
A48: CAPACIDAD INSTALADA | N48: PORCENTAJE DE EMBARAZOS POR GRUPO EDAD RESIDENCIA HABITUAL DE LA MADRE 2014 | S48: TASAS DE FECUNDIDAD ESPECIFICA POR MIL MUJERES 2014
A49: CAMAS
A50: Adultos | B50: Cuidado Agudo Mental | C50: Cuidado Intensivo Adulto | D50: Cuidado Intensivo Neonatal | E50: Cuidado Intensivo Pediátrico | F50: Cuidado Intermedio Adulto | G50: Cuidado Intermedio Mental | I50: Cuidado Intermedio Neonatal
N51: 10 a 14 AÑOS | P51: 15 a 19 AÑOS | S51: 10 a 14 AÑOS | U51: 15 a 19 AÑOS
N52: No | O52: % | P52: No | Q52: % | S52: No | T52: TASA | U52: No | V52: TASA
A53: 2 | B53: 0 | C53: 0 | D53: 0 | E53: 0 | F53: 0 | G53: 0 | I53: 0 | N53: 2 | O53: 1.98019802 | P53: 27 | Q53: 26.73267327 | S53: 2 | T53: 4.662004662 | U53: 27 | V53: 63.67924528
A54: CAMAS
A55: Cuidado Intermedio Pediátrico | B55: Farmaco- de-pendencia | C55: Obste-tricia | D55: Pediátricas | E55: Quemados Adultos | F55: Quemados Pediátrico | G55: Salud Mental Psiquiatría | I55: TOTAL CAMAS
A58: 0 | B58: 0 | C58: 1 | D58: 1 | E58: 0 | F58: 0 | G58: 0 | I58: =A53+B53+C53+D53+E53+F53+G53+I53+A58+B58+C58+D58+E58+F58+G58 -> 4
A60: SALAS | E60: TOTAL SALAS | N60: INMUNIZACIONES PAI 2014
A61: PARTO | C61: QUIROFANO | N61: POLIOMIELITIS (V.O.P)
A62: 1 | C62: 0 | E62: =A62+C62 -> 1 | N62: Vacunados (Edades) | S62: Refuerzos | T62: Dosis Aplicadas
N63: <1 | O63: 1 | P63: 2 | Q63: 3 | R63: 4 | S63: Otros
A64: TOTAL DE SERVICIOS PRESTADOS SEGÚN LA COMPLEJIDAD | N64: 107 | O64: 0 | P64: 0 | Q64: 0 | R64: 0 | S64: 264 | T64: 577
A65: BAJA | C65: MEDIA | E65: ALTA
A66: 27 | C66: 0 | E66: 0 | N66: DIFTERIA, TOSFERINA Y TÉTANO (D.P.T)
N67: Vacunados (Edades) | S67: Refuerzos | T67: Dosis
A68: TOTAL DE AMBULANCIAS HABILITADAS SEGÚN TIPO Y MODALIDAD | N68: <1 | O68: 1 | P68: 2 | Q68: 3 | R68: 4 | S68: Otros | T68: Aplicadas
A69: TIPO | C69: MODALIDAD | F69: TOTAL GENERAL | N69: 107 | O69: 0 | P69: 0 | Q69: 0 | R69: 0 | S69: 264 | T69: 580
A70: BASICA | B70: MEDICADA | C70: AEREA | D70: TERRESTRE | E70: FLUVIAL | H70: ** Fuente: REPS-Minsalud julio 2015
A71: 2 | B71: 0 | C71: 0 | D71: 2 | E71: 0 | F71: =SUM(C71:E71) -> 2 | N71: TUBERCULOSIS (B.C.G)
A72: 10 PRIMERAS CAUSAS DE HOSPITALIZACION 2013 | N72: Vacunados (Edades) | S72: Otros | T72: Dosis Aplicadas
A73: ORDEN | B73: CODIGO CIE-10 | C73: CAUSA | F73: TOTAL GENERAL | G73: % | H73: HOMBRES | J73: MUJERES | N73: <1 | O73: 1
N74: 45 | O74: 0 | S74: 0 | T74: 45
A75: 1 | B75: O809 | C75: PARTO UNICO ESPONTANEO SIN OTRA ESPECIFICACION | F75: 20 | G75: 7.042253521 | H75: 0 | J75: 20
A76: 2 | B76: J189 | C76: NEUMONIA NO ESPECIFICADA | F76: 14 | G76: 4.929577465 | H76: 5 | J76: 9 | N76: TRIPLE VIRAL - S. R. P.
A77: 3 | B77: N390 | C77: INFECCION DE VIAS URINARIAS SITIO NO ESPECIFICADO | F77: 12 | G77: 4.225352113 | H77: 7 | J77: 5 | N77: Vacunados (Edades) | S77: Refuerzos | T77: Dosis Aplicadas
A78: 4 | B78: O800 | C78: PARTO UNICO ESPONTANEO PRESENTACION CEFALICA DE VERTICE | F78: 8 | G78: 2.816901408 | H78: 0 | J78: 8 | N78: 1 | O78: 2 | P78: 3 | Q78: 4 | R78: Ref. | S78: Otros
A79: 5 | B79: R509 | C79: FIEBRE NO ESPECIFICADA | F79: 6 | G79: 2.112676056 | H79: 5 | J79: 1 | N79: 107 | O79: 0 | P79: 0 | Q79: 0 | R79: 151 | S79: 0 | T79: 258
A80: 6 | B80: N939 | C80: HEMORRAGIA VAGINAL Y UTERINA ANORMAL NO ESPECIFICADA | F80: 5 | G80: 1.76056338 | H80: 0 | J80: 5
A81: 7 | B81: R104 | C81: OTROS DOLORES ABDOMINALES Y LOS NO ESPECIFICADOS | F81: 5 | G81: 1.76056338 | H81: 3 | J81: 2 | N81: AGUA POTABLE 2013
A82: 8 | B82: J449 | C82: ENFERMEDAD PULMONAR OBSTRUCTIVA CRONICA NO ESPECIFICADA | F82: 5 | G82: 1.76056338 | H82: 0 | J82: 5 | P82: NUMEROS ACUEDUCTOS | R82: COBERTURA ACUEDUCTOS CON AGUA POTABLE (%) | T82: COBERTURAS VIVIENDAS CON AGUA POTABLE (%)
A83: 9 | B83: L031 | C83: CELULITIS DE OTRAS PARTES DE LOS MIEMBROS | F83: 4 | G83: 1.408450704 | H83: 2 | J83: 2
A84: 10 | B84: O479 | C84: FALSO TRABAJO DE PARTO SIN OTRA ESPECIFICACION | F84: 4 | G84: 1.408450704 | H84: 0 | J84: 4
A85: 11 | C85: OTROS | F85: 201 | G85: 70.77464789 | H85: 86 | J85: 115 | N85: Urbano | P85: 1 | R85: 0 | T85: 0
A86: TOTALES | F86: 284 | G86: 100 | H86: 108 | J86: 176 | N86: Rural | P86: 27 | R86: 0 | T86: 0
A87: 10 PRIMERAS CAUSAS DE CONSULTA 2013 | N87: Total Municipal | P87: 28 | R87: 0 | T87: 0
A88: ORDEN | B88: CODIGO CIE-10 | C88: CAUSA | F88: TOTAL GENERAL | G88: % | H88: HOMBRES | J88: MUJERES | N88: CERTIFACION EN AGUA POTABLE | O88: INDICE RIESGO CALIDAD DEL AGUA POTABLE - IRCA- (a) | P88: INDICE RIESGO DE ABASTECIMIENTO MUNICIPAL - IRABA- (b) | R88: BUENAS PRACTICAS SANTIARIAS © | T88: CERTIFICAION SANITARIA MUNICIPAL EN AGUA POTABLE ©
A90: 1 | B90: I10X | C90: HIPERTENSION ESENCIAL (PRIMARIA) | F90: 4006 | G90: 15.48871018 | H90: 1311 | J90: 2695
A91: 2 | B91: K021 | C91: CARIES DE LA DENTINA | F91: 776 | G91: 3.00030931 | H91: 285 | J91: 491
A92: 3 | B92: R104 | C92: OTROS DOLORES ABDOMINALES Y LOS NO ESPECIFICADOS | F92: 665 | G92: 2.571141355 | H92: 254 | J92: 411 | N92: Urbano | O92: 12.7 | P92: 33.2 | R92: 47 | T92: 27.09
A93: 4 | B93: R51X | C93: CEFALEA | F93: 649 | G93: 2.509279307 | H93: 148 | J93: 501 | N93: Rural | O93: 44.3 | P93: 65.4 | R93: 56 | T93: 52.03
A94: 5 | B94: J00X | C94: RINOFARINGITIS AGUDA (RESFRIADO COMUN) | F94: 424 | G94: 1.639344262 | H94: 208 | J94: 216 | N94: Total | O94: 24.4 | P94: 32.6 | R94: 49.4 | T94: 33.54
A95: 6 | B95: N390 | C95: INFECCION DE VIAS URINARIAS SITIO NO ESPECIFICADO | F95: 416 | G95: 1.608413238 | H95: 100 | J95: 316 | N95: PROYECTOS DE INVERSION (En pesos)
A96: 7 | B96: M545 | C96: LUMBAGO NO ESPECIFICADO | F96: 402 | G96: 1.554283947 | H96: 163 | J96: 239 | Q96: 2012 | S96: 2013 | U96: 2014
A97: 8 | B97: J039 | C97: AMIGDALITIS AGUDA NO ESPECIFICADA | F97: 341 | G97: 1.31843489 | H97: 155 | J97: 186 | N97: ADULTO MAYOR | Q97: 70200000 | S97: 19255800 | U97: 27000000
A98: 9 | B98: R42X | C98: MAREO Y DESVANECIMIENTO | F98: 327 | G98: 1.264305599 | H98: 92 | J98: 235 | N98: DOTACION DISCAPACIDAD | U98: 2919752
A99: 10 | B99: J449 | C99: ENFERMEDAD PULMONAR OBSTRUCTIVA CRONICA NO ESPECIFICADA | F99: 298 | G99: 1.152180637 | H99: 119 | J99: 179 | N99: APS - SALUD CONTIGO | S99: 17616198 | U99: 40146331
A100: 11 | C100: OTROS | F100: 17560 | G100: 67.89359728 | H100: 6296 | J100: 11264 | N100: COFINANCIACION REG. SUBSIDIADO | Q100: 360673978.4 | S100: 309767455 | U100: 408924402
A101: TOTALES | F101: 25864 | G101: 100 | H101: 9131 | J101: 16733 | N101: SSR | Q101: 1159440
A102: 10 PRIMERAS CAUSAS DE URGENCIAS 2013 | N102: PAI | Q102: 2975307
A103: ORDEN | B103: CODIGO CIE-10 | C103: CAUSA | F103: TOTAL GENERAL | G103: % | H103: HOMBRES | J103: MUJERES | N103: VECTORES | Q103: 386400
N104: ESTERILIZACION MASCOTAS | Q104: 0
A105: 1 | B105: R104 | C105: OTROS DOLORES ABDOMINALES Y LOS NO ESPECIFICADOS | F105: 77 | G105: 11.66666667 | H105: 29 | J105: 48 | N105: VACUNA ANTIRRABICA | Q105: 2088000
A106: 2 | B106: R51X | C106: CEFALEA | F106: 40 | G106: 6.060606061 | H106: 8 | J106: 32 | N106: INFRAESTRUCTURA
A107: 3 | B107: I10X | C107: HIPERTENSION ESENCIAL (PRIMARIA) | F107: 21 | G107: 3.181818182 | H107: 3 | J107: 18 | N107: DOTACION EQUIPOS BIOMEDICOS
A108: 4 | B108: R42X | C108: MAREO Y DESVANECIMIENTO | F108: 18 | G108: 2.727272727 | H108: 8 | J108: 10 | N108: ESTAMPILLAS PROHOSPITALES | U108: 42228515
A109: 5 | B109: R509 | C109: FIEBRE NO ESPECIFICADA | F109: 15 | G109: 2.272727273 | H109: 8 | J109: 7 | N109: EQUIPAMIENTO | S109: 50000000
A110: 6 | B110: N390 | C110: INFECCION DE VIAS URINARIAS SITIO NO ESPECIFICADO | F110: 15 | G110: 2.272727273 | H110: 3 | J110: 12 | N110: TELEMEDICINA
A111: 7 | B111: J441 | C111: ENFERMEDAD PULMONAR OBSTRUCTIVA CRONICA CON EXACERBACION AGUDA NO ESPECIFICADA | F111: 13 | G111: 1.96969697 | H111: 7 | J111: 6 | N111: AMBULANCIA
A112: 8 | B112: R074 | C112: DOLOR EN EL PECHO NO ESPECIFICADO | F112: 12 | G112: 1.818181818 | H112: 9 | J112: 3 | N112: TOTALES | Q112: =SUM(Q97:R111) -> 437483125.4 | S112: =SUM(S97:T111) -> 396639453 | U112: =SUM(U97:V111) -> 521219000
A113: 9 | B113: J449 | C113: ENFERMEDAD PULMONAR OBSTRUCTIVA CRONICA NO ESPECIFICADA | F113: 11 | G113: 1.666666667 | H113: 5 | J113: 6 | N113: PROYECTOS DE INVERSION (En Cantidad)
A114: 10 | B114: M545 | C114: LUMBAGO NO ESPECIFICADO | F114: 11 | G114: 1.666666667 | H114: 6 | J114: 5 | N114: PROGRAMA AEREO (No brigadas)
A115: 11 | C115: OTROS | F115: 427 | G115: 64.6969697 | H115: 167 | J115: 260 | N115: ASESORIA Y ASISTENCIA TECNICA | Q115: 12
A116: TOTALES | F116: 660 | G116: 100 | H116: 253 | J116: 407 | N116: CENTROS AMIGABLES JOVENES

Sheet BETULIA
C4: ALCALDE | E4: LEÓN DARÍO VÉLEZ YEPES
C5: DIRECTOR LOCAL DE SALUD | E5: YULIANA ANDREA LONDOÑO VANEGAS
C7: CERTIFICACION | E7: RANKING | F7: CATEGORIA MUNICIPAL
C8: SI | E8: 3 | F8: 6a.
C9: TOTAL CORREGIMIENTOS | E9: 3 | F9: TOTAL VEREDAS | I9: 41
A10: CARACTERISTICAS DEMOGRAFICAS | N10: VIGILANCIA DE LA SALUD PUBLICA - AÑO 2014
A11: POBLACION 2015
A12: TOTAL | B12: HOMBRES | C12: MUJERES | D12: CABECERA | E12: RESTO | N12: MORTALIDAD CANCER CUELLO UTERINO | S12: MORTALIDAD MATERNA
A13: 17542 | B13: 8974 | C13: 8568 | D13: 5817 | E13: 11725 | N13: # Casos | O13: Tasa x cienmil Mujeres | S13: # Casos | T13: Tasa x cienmil Nacidos vivos
A14: POR GRUPOS DE EDAD | N14: 0 | O14: 0 | S14: 0 | T14: 0
A15: 0 - 4 AÑOS | B15: 5 - 9 AÑOS | C15: 10 - 14 AÑOS | D15: 15 - 19 AÑOS | E15: 20 - 59 AÑOS | F15: > 60 AÑOS
A16: 1836 | B16: 1766 | C16: 1744 | D16: 1617 | E16: 9064 | F16: 1515 | N16: MORTALIDAD INFANTIL | S16: MORTALIDAD PERINATAL
N17: # Casos | O17: Tasa x cienmil Nacidos vivos | S17: # Casos | T17: Tasa x cienmil Nacidos vivos
A18: DESPLAZADOS 2015 (a marzo) | D18: INDIGENAS FEB 2014 | G18: ROM | I18: AFRO | N18: 4 | O18: 17.62114537 | S18: 7 | T18: 30.83700441
A19: TOTAL | B19: HOMBRES | C19: MUJERES | D19: TOTAL | E19: HOMBRES | F19: MUJERES
A20: 8322 | B20: 4077.78 | C20: 4244.22 | D20: 0 | E20: 0 | F20: 0 | N20: MORTALIDAD VIH SIDA | S20: MORTALIDAD TUBERCULOSIS
A21: POBLACION TOTAL | B21: Afiliados al regimen Subsidiado * | D21: % De Aseguramiento al Regimen Subsidiado * | F21: Afiliados al Regimen Contributivo BDUA * | H21: % De Aseguramiento al Regimen Contributivo * | N21: # Casos | O21: Tasa x cienmil Habitantes | S21: # Casos | T21: Tasa x cienmil Habitantes
N22: 0 | O22: 0 | S22: 0 | T22: 0
N24: MORTALIDAD INFARTO AL MIOCARDIO | S24: MORTALIDAD < 5 AÑOS
A25: 17542 | B25: 14161 | D25: 80.72625698 | F25: 1389 | H25: 7.918139323 | N25: # Casos | O25: Tasa x cienmil Habitantes | S25: # Casos | T25: Tasa x cienmil Niños
A26: NBI (pobre) 2012 | H26: * Agosto 2015 | N26: 15 | O26: 85.83199817 | S26: 4 | T26: 217.509516
A27: Total | C27: Cabecera | E27: Resto
A28: Prop (%) | B28: cve (%) | C28: Prop (%) | D28: cve (%) | E28: Prop (%) | F28: cve (%)
A29: 45.35628019 | B29: - | C29: 34.01054894 | D29: - | E29: 50.43265449 | F29: - | N29: REGISTRO POBLACIONAL DE CANCER 2012
N30: Numero de casos registrados | P30: HOMBRES | Q30: MUJERES | R30: TOTAL
A31: PRESTACION DE SERVICIOS DE SALUD ** | P31: 9 | Q31: 7 | R31: =SUM(P31:Q31) -> 16
A32: EMPRESAS SOCIALES DEL ESTADO
A33: INSTITUCION PRESTADORA DE SERVICIOS DE SALUD | F33: DIRECTOR / GERENTE | N33: 10 PRIMERAS CAUSAS DE MORTALIDAD 2014
A34: E.S.E HOSPITAL GERMAN VELEZ GUTIERREZ | F34: MARIO ALEJANDRO CADAVID CADAVID | N34: ORDEN | O34: CODIGO 105 CIE-10 | P34: CAUSA | T34: TOTAL GENERAL | U34: HOMBRES | V34: MUJERES | W34: SIN DATO
N36: 1 | O36: 051 | P36: ENFERMEDADES ISQUEMICAS DEL CORAZON | T36: 15 | U36: 6 | V36: 9
N37: 2 | O37: 101 | P37: AGRESIONES (HOMICIDIOS) Y SECUELAS | T37: 6 | U37: 6 | V37: 0
N38: 3 | O38: 060 | P38: ENFERMEDADES CRONICAS DE LAS VIAS RESPIRATORIAS INFERIORES | T38: 5 | U38: 4 | V38: 1
A39: PRESTADORES DE SERVICIOS DE SALUD | N39: 4 | O39: 055 | P39: ENFERMEDADES CEREBROVASCULARES | T39: 4 | U39: 3 | V39: 1
A40: TOTALES | B40: IPS | C40: PROFESIONALES INDEPENDIENTES | E40: TRANSPORTE ESPECIAL | G40: OBJETO SOCIAL DIFERENTE | N40: 5 | O40: 050 | P40: ENFERMEDADES HIPERTENSIVAS | T40: 4 | U40: 2 | V40: 2
N41: 6 | O41: 105 | P41: OTROS ACCIDENTES Y SECUELAS | T41: 2 | U41: 2 | V41: 0
B42: 1 | C42: 3 | E42: 0 | G42: 0 | N42: 7 | O42: 047 | P42: TODAS LAS DEMAS ENFERMEDADES DEL SISTEMA NERVIOSO | T42: 2 | U42: 2 | V42: 0
A43: IPS PUBLICAS | B43: IPS PRIVADAS | C43: SERVICIOS PRESTADOS X PROFESION | N43: 8 | O43: 013 | P43: TUMOR MALIGNO DEL ESTOMAGO | T43: 2 | U43: 2 | V43: 0
C44: Odontólogos | D44: Médicos | E44: Otros | F44: Total | N44: 9 | O44: 031 | P44: TUMOR MALIGNOS DEL ENCEFALO, DEL OJO Y DE OTRAS PARTES DEL SISTEMA NERVIOSO CENTRAL | T44: 2 | U44: 2 | V44: 0
N45: 10 | O45: 059 | P45: NEUMONIA | T45: 2 | U45: 2 | V45: 0
A46: 1 | B46: 0 | C46: 3 | D46: 0 | E46: 1 | F46: =C46+D46+E46 -> 4
A48: CAPACIDAD INSTALADA | N48: PORCENTAJE DE EMBARAZOS POR GRUPO EDAD RESIDENCIA HABITUAL DE LA MADRE 2014 | S48: TASAS DE FECUNDIDAD ESPECIFICA POR MIL MUJERES 2014
A49: CAMAS
A50: Adultos | B50: Cuidado Agudo Mental | C50: Cuidado Intensivo Adulto | D50: Cuidado Intensivo Neonatal | E50: Cuidado Intensivo Pediátrico | F50: Cuidado Intermedio Adulto | G50: Cuidado Intermedio Mental | I50: Cuidado Intermedio Neonatal
N51: 10 a 14 AÑOS | P51: 15 a 19 AÑOS | S51: 10 a 14 AÑOS | U51: 15 a 19 AÑOS
N52: No | O52: % | P52: No | Q52: % | S52: No | T52: TASA | U52: No | V52: TASA
A53: 10 | B53: 0 | C53: 0 | D53: 0 | E53: 0 | F53: 0 | G53: 0 | I53: 0 | N53: 3 | O53: 1.260504202 | P53: 72 | Q53: 30.25210084 | S53: 3 | T53: 3.558718861 | U53: 72 | V53: 87.37864078
A54: CAMAS
A55: Cuidado Intermedio Pediátrico | B55: Farmaco- de-pendencia | C55: Obste-tricia | D55: Pediátricas | E55: Quemados Adultos | F55: Quemados Pediátrico | G55: Salud Mental Psiquiatría | I55: TOTAL CAMAS
A58: 0 | B58: 0 | C58: 4 | D58: 3 | E58: 0 | F58: 0 | G58: 0 | I58: =A53+B53+C53+D53+E53+F53+G53+I53+A58+B58+C58+D58+E58+F58+G58 -> 17
A60: SALAS | E60: TOTAL SALAS | N60: INMUNIZACIONES PAI 2014
A61: PARTO | C61: QUIROFANO | N61: POLIOMIELITIS (V.O.P)
A62: 2 | C62: 0 | E62: =A62+C62 -> 2 | N62: Vacunados (Edades) | S62: Refuerzos | T62: Dosis Aplicadas
N63: <1 | O63: 1 | P63: 2 | Q63: 3 | R63: 4 | S63: Otros
A64: TOTAL DE SERVICIOS PRESTADOS SEGÚN LA COMPLEJIDAD | N64: 251 | O64: 0 | P64: 1 | Q64: 0 | R64: 0 | S64: 541 | T64: 1286
A65: BAJA | C65: MEDIA | E65: ALTA
A66: 50 | C66: 3 | E66: 0 | N66: DIFTERIA, TOSFERINA Y TÉTANO (D.P.T)
N67: Vacunados (Edades) | S67: Refuerzos | T67: Dosis
A68: TOTAL DE AMBULANCIAS HABILITADAS SEGÚN TIPO Y MODALIDAD | N68: <1 | O68: 1 | P68: 2 | Q68: 3 | R68: 4 | S68: Otros | T68: Aplicadas
A69: TIPO | C69: MODALIDAD | F69: TOTAL GENERAL | N69: 253 | O69: 0 | P69: 1 | Q69: 0 | R69: 0 | S69: 551 | T69: 1297
A70: BASICA | B70: MEDICADA | C70: AEREA | D70: TERRESTRE | E70: FLUVIAL | H70: ** Fuente: REPS-Minsalud julio 2015
A71: 3 | B71: 0 | C71: 0 | D71: 3 | E71: 0 | F71: =SUM(C71:E71) -> 3 | N71: TUBERCULOSIS (B.C.G)
A72: 10 PRIMERAS CAUSAS DE HOSPITALIZACION 2013 | N72: Vacunados (Edades) | S72: Otros | T72: Dosis Aplicadas
A73: ORDEN | B73: CODIGO CIE-10 | C73: CAUSA | F73: TOTAL GENERAL | G73: % | H73: HOMBRES | J73: MUJERES | N73: <1 | O73: 1
N74: 90 | O74: 2 | S74: 0 | T74: 92
A75: 1 | B75: O623 | C75: TRABAJO DE PARTO PRECIPITADO | F75: 78 | G75: 10.49798116 | H75: 0 | J75: 78
A76: 2 | B76: J441 | C76: ENFERMEDAD PULMONAR OBSTRUCTIVA CRONICA CON EXACERBACION AGUDA NO ESPECIFICADA | F76: 27 | G76: 3.633916555 | H76: 17 | J76: 10 | N76: TRIPLE VIRAL - S. R. P.
A77: 3 | B77: J189 | C77: NEUMONIA NO ESPECIFICADA | F77: 26 | G77: 3.499327052 | H77: 11 | J77: 15 | N77: Vacunados (Edades) | S77: Refuerzos | T77: Dosis Aplicadas
A78: 4 | B78: J219 | C78: BRONQUIOLITIS AGUDA NO ESPECIFICADA | F78: 25 | G78: 3.36473755 | H78: 11 | J78: 14 | N78: 1 | O78: 2 | P78: 3 | Q78: 4 | R78: Ref. | S78: Otros
A79: 5 | B79: N390 | C79: INFECCION DE VIAS URINARIAS SITIO NO ESPECIFICADO | F79: 21 | G79: 2.826379542 | H79: 3 | J79: 18 | N79: 254 | O79: 3 | P79: 1 | Q79: 1 | R79: 247 | S79: 23 | T79: 529
A80: 6 | B80: J159 | C80: NEUMONIA BACTERIANA NO ESPECIFICADA | F80: 18 | G80: 2.422611036 | H80: 7 | J80: 11
A81: 7 | B81: O471 | C81: FALSO TRABAJO DE PARTO ANTES DE LA 37 Y MAS SEMANAS COMPLETAS DE GESTACION | F81: 15 | G81: 2.01884253 | H81: 0 | J81: 15 | N81: AGUA POTABLE 2013
A82: 8 | B82: O470 | C82: FALSO TRABAJO DE PARTO ANTES DE LA 37 SEMANAS COMPLETAS DE GESTACION | F82: 13 | G82: 1.749663526 | H82: 0 | J82: 13 | P82: NUMEROS ACUEDUCTOS | R82: COBERTURA ACUEDUCTOS CON AGUA POTABLE (%) | T82: COBERTURAS VIVIENDAS CON AGUA POTABLE (%)
A83: 9 | B83: J440 | C83: ENFERMEDAD PULMONAR OBSTRUCTIVA CRONICA CON INFECCION AGUDA DE LAS VIAS RESPIRATORIAS INFERIORES | F83: 12 | G83: 1.615074024 | H83: 6 | J83: 6
A84: 10 | B84: L031 | C84: CELULITIS DE OTRAS PARTES DE LOS MIEMBROS | F84: 11 | G84: 1.480484522 | H84: 5 | J84: 6
A85: 11 | C85: OTROS | F85: 497 | G85: 66.8909825 | H85: 189 | J85: 308 | N85: Urbano | P85: 1 | R85: 100 | T85: 98.5
A86: TOTALES | F86: 743 | G86: 100 | H86: 249 | J86: 494 | N86: Rural | P86: 16 | R86: 0 | T86: 0
A87: 10 PRIMERAS CAUSAS DE CONSULTA 2013 | N87: Total Municipal | P87: 17 | R87: SD | T87: 29.6
A88: ORDEN | B88: CODIGO CIE-10 | C88: CAUSA | F88: TOTAL GENERAL | G88: % | H88: HOMBRES | J88: MUJERES | N88: CERTIFACION EN AGUA POTABLE | O88: INDICE RIESGO CALIDAD DEL AGUA POTABLE - IRCA- (a) | P88: INDICE RIESGO DE ABASTECIMIENTO MUNICIPAL - IRABA- (b) | R88: BUENAS PRACTICAS SANTIARIAS © | T88: CERTIFICAION SANITARIA MUNICIPAL EN AGUA POTABLE ©
A90: 1 | B90: I10X | C90: HIPERTENSION ESENCIAL (PRIMARIA) | F90: 11284 | G90: 19.20942426 | H90: 3244 | J90: 8040
A91: 2 | B91: K050 | C91: GINGIVITIS AGUDA | F91: 7370 | G91: 12.5463893 | H91: 3365 | J91: 4005
A92: 3 | B92: K021 | C92: CARIES DE LA DENTINA | F92: 1854 | G92: 3.156174458 | H92: 846 | J92: 1008 | N92: Urbano | O92: 1.8 | P92: 25.5 | R92: 21 | T92: 12.3
A93: 4 | B93: J00X | C93: RINOFARINGITIS AGUDA (RESFRIADO COMUN) | F93: 1180 | G93: 2.008784175 | H93: 494 | J93: 686 | N93: Rural | O93: SD | P93: SD | R93: SD | T93: SD
A94: 5 | B94: K051 | C94: GINGIVITIS CRONICA | F94: 1012 | G94: 1.722787784 | H94: 495 | J94: 517 | N94: Total | O94: 1.8 | P94: 25.5 | R94: 21 | T94: 12.3
A95: 6 | B95: J039 | C95: AMIGDALITIS AGUDA NO ESPECIFICADA | F95: 792 | G95: 1.3482687 | H95: 342 | J95: 450 | N95: PROYECTOS DE INVERSION (En pesos)
A96: 7 | B96: N390 | C96: INFECCION DE VIAS URINARIAS SITIO NO ESPECIFICADO | F96: 756 | G96: 1.286983759 | H96: 140 | J96: 616 | Q96: 2012 | S96: 2013 | U96: 2014
A97: 8 | B97: R51X | C97: CEFALEA | F97: 610 | G97: 1.038439277 | H97: 160 | J97: 450 | N97: ADULTO MAYOR | Q97: 60000000 | S97: 17779522 | U97: 27000000
A98: 9 | B98: M545 | C98: LUMBAGO NO ESPECIFICADO | F98: 480 | G98: 0.8171325457 | H98: 193 | J98: 287 | N98: DOTACION DISCAPACIDAD | U98: 2747752
A99: 10 | B99: A09X | C99: DIARREA Y GASTROENTERITIS DE PRESUNTO ORIGEN INFECCIOSO | F99: 507 | G99: 0.8630962514 | H99: 261 | J99: 246 | N99: APS - SALUD CONTIGO | S99: 51050000 | U99: 38480000
A100: 11 | C100: OTROS | F100: 32897 | G100: 56.00251949 | H100: 10925 | J100: 21972 | N100: COFINANCIACION REG. SUBSIDIADO | Q100: 543794880.2 | S100: 467042166 | U100: 616542944
A101: TOTALES | F101: 58742 | G101: 100 | H101: 20465 | J101: 38277 | N101: SSR | Q101: 2094515
A102: 10 PRIMERAS CAUSAS DE URGENCIAS 2013 | N102: PAI | Q102: 5374858
A103: ORDEN | B103: CODIGO CIE-10 | C103: CAUSA | F103: TOTAL GENERAL | G103: % | H103: HOMBRES | J103: MUJERES | N103: VECTORES | Q103: 386400
N104: ESTERILIZACION MASCOTAS | Q104: 0
A105: 1 | B105: R51X | C105: CEFALEA | F105: 115 | G105: 3.935660507 | H105: 34 | J105: 81 | N105: VACUNA ANTIRRABICA | Q105: 2104000
A106: 2 | B106: R101 | C106: DOLOR ABDOMINAL LOCALIZADO EN PARTE SUPERIOR | F106: 106 | G106: 3.627652293 | H106: 35 | J106: 71 | N106: INFRAESTRUCTURA
A107: 3 | B107: S610 | C107: HERIDA DE DEDO(S) DE LA MANO SIN DA¥O DE LA(S) U¥A(S) | F107: 95 | G107: 3.25119781 | H107: 79 | J107: 16 | N107: DOTACION EQUIPOS BIOMEDICOS
A108: 4 | B108: R104 | C108: OTROS DOLORES ABDOMINALES Y LOS NO ESPECIFICADOS | F108: 67 | G108: 2.292950034 | H108: 25 | J108: 42 | N108: ESTAMPILLAS PROHOSPITALES | Q108: 34405000 | U108: 87500780
A109: 5 | B109: A09X | C109: DIARREA Y GASTROENTERITIS DE PRESUNTO ORIGEN INFECCIOSO | F109: 66 | G109: 2.258726899 | H109: 31 | J109: 35 | N109: EQUIPAMIENTO | S109: 40000000
A110: 6 | B110: R103 | C110: DOLOR LOCALIZADO EN OTRAS PARTES INFERIORES DEL ABDOMEN | F110: 64 | G110: 2.19028063 | H110: 26 | J110: 38 | N110: TELEMEDICINA
A111: 7 | B111: R509 | C111: FIEBRE NO ESPECIFICADA | F111: 62 | G111: 2.12183436 | H111: 36 | J111: 26 | N111: AMBULANCIA | Q111: 82000000
A112: 8 | B112: J441 | C112: ENFERMEDAD PULMONAR OBSTRUCTIVA CRONICA CON EXACERBACION AGUDA NO ESPECIFICADA | F112: 53 | G112: 1.813826146 | H112: 36 | J112: 17 | N112: TOTALES | Q112: =SUM(Q97:R111) -> 730159653.2 | S112: =SUM(S97:T111) -> 575871688 | U112: =SUM(U97:V111) -> 772271476
A113: 9 | B113: R11X | C113: NAUSEA Y VOMITO | F113: 50 | G113: 1.711156742 | H113: 19 | J113: 31 | N113: PROYECTOS DE INVERSION (En Cantidad)
A114: 10 | B114: N390 | C114: INFECCION DE VIAS URINARIAS SITIO NO ESPECIFICADO | F114: 50 | G114: 1.711156742 | H114: 9 | J114: 41 | N114: PROGRAMA AEREO (No brigadas)
A115: 11 | C115: OTROS | F115: 2194 | G115: 75.08555784 | H115: 1045 | J115: 1149 | N115: ASESORIA Y ASISTENCIA TECNICA | Q115: 16
A116: TOTALES | F116: 2922 | G116: 100 | H116: 1375 | J116: 1547 | N116: CENTROS AMIGABLES JOVENES

Sheet BRICEÑO
C4: ALCALDE | E4: YORLEY AMPARO ECHAVARRIA CORREA
C5: DIRECTOR LOCAL DE SALUD | E5: PAULO ANDRES BUSTAMANTE VILLEGAS
C7: CERTIFICACION | E7: RANKING | F7: CATEGORIA MUNICIPAL
C8: SI | E8: 40 | F8: 6a.
C9: TOTAL CORREGIMIENTOS | E9: 2 | F9: TOTAL VEREDAS | I9: 36
A10: CARACTERISTICAS DEMOGRAFICAS | N10: VIGILANCIA DE LA SALUD PUBLICA - AÑO 2014
A11: POBLACION 2015
A12: TOTAL | B12: HOMBRES | C12: MUJERES | D12: CABECERA | E12: RESTO | N12: MORTALIDAD CANCER CUELLO UTERINO | S12: MORTALIDAD MATERNA
A13: 8702 | B13: 4284 | C13: 4418 | D13: 2546 | E13: 6156 | N13: # Casos | O13: Tasa x cienmil Mujeres | S13: # Casos | T13: Tasa x cienmil Nacidos vivos
A14: POR GRUPOS DE EDAD | N14: 0 | O14: 0 | S14: 0 | T14: 0
A15: 0 - 4 AÑOS | B15: 5 - 9 AÑOS | C15: 10 - 14 AÑOS | D15: 15 - 19 AÑOS | E15: 20 - 59 AÑOS | F15: > 60 AÑOS
A16: 919 | B16: 900 | C16: 873 | D16: 850 | E16: 4311 | F16: 849 | N16: MORTALIDAD INFANTIL | S16: MORTALIDAD PERINATAL
N17: # Casos | O17: Tasa x cienmil Nacidos vivos | S17: # Casos | T17: Tasa x cienmil Nacidos vivos
A18: DESPLAZADOS 2015 (a marzo) | D18: INDIGENAS FEB 2014 | G18: ROM | I18: AFRO | N18: 2 | O18: 16.80672269 | S18: 3 | T18: 25.21008403
A19: TOTAL | B19: HOMBRES | C19: MUJERES | D19: TOTAL | E19: HOMBRES | F19: MUJERES
A20: 1020 | B20: 499.8 | C20: 520.2 | D20: 0 | E20: 0 | F20: 0 | N20: MORTALIDAD VIH SIDA | S20: MORTALIDAD TUBERCULOSIS
A21: POBLACION TOTAL | B21: Afiliados al regimen Subsidiado * | D21: % De Aseguramiento al Regimen Subsidiado * | F21: Afiliados al Regimen Contributivo BDUA * | H21: % De Aseguramiento al Regimen Contributivo * | N21: # Casos | O21: Tasa x cienmil Habitantes | S21: # Casos | T21: Tasa x cienmil Habitantes
N22: 0 | O22: 0 | S22: 0 | T22: 0
N24: MORTALIDAD INFARTO AL MIOCARDIO | S24: MORTALIDAD < 5 AÑOS
A25: 8702 | B25: 6185 | D25: 71.0756148 | F25: 942 | H25: 10.82509768 | N25: # Casos | O25: Tasa x cienmil Habitantes | S25: # Casos | T25: Tasa x cienmil Niños
A26: NBI (pobre) 2012 | H26: * Agosto 2015 | N26: 3 | O26: 34.43921479 | S26: 2 | T26: 217.6278564
A27: Total | C27: Cabecera | E27: Resto
A28: Prop (%) | B28: cve (%) | C28: Prop (%) | D28: cve (%) | E28: Prop (%) | F28: cve (%)
A29: 55.03524673 | B29: - | C29: 43.6955525 | D29: - | E29: 59.32673955 | F29: - | N29: REGISTRO POBLACIONAL DE CANCER 2012
N30: Numero de casos registrados | P30: HOMBRES | Q30: MUJERES | R30: TOTAL
A31: PRESTACION DE SERVICIOS DE SALUD ** | P31: 7 | Q31: 8 | R31: =SUM(P31:Q31) -> 15
A32: EMPRESAS SOCIALES DEL ESTADO
A33: INSTITUCION PRESTADORA DE SERVICIOS DE SALUD | F33: DIRECTOR / GERENTE | N33: 10 PRIMERAS CAUSAS DE MORTALIDAD 2014
A34: EMPRESA SOCIAL DEL ESTADO HOSPITAL EL SAGRADO CORAZON | F34: JOAQUIN ALBERTO ALVAREZ MONSALVE | N34: ORDEN | O34: CODIGO 105 CIE-10 | P34: CAUSA | T34: TOTAL GENERAL | U34: HOMBRES | V34: MUJERES | W34: SIN DATO
N36: 1 | O36: 101 | P36: AGRESIONES (HOMICIDIOS) Y SECUELAS | T36: 16 | U36: 15 | V36: 1
N37: 2 | O37: 060 | P37: ENFERMEDADES CRONICAS DE LAS VIAS RESPIRATORIAS INFERIORES | T37: 4 | U37: 2 | V37: 2
N38: 3 | O38: 051 | P38: ENFERMEDADES ISQUEMICAS DEL CORAZON | T38: 3 | U38: 3 | V38: 0
A39: PRESTADORES DE SERVICIOS DE SALUD | N39: 4 | O39: 082 | P39: TRASTORNOS RESPIRATORIOS ESPECIFICOS DEL PERIODO PERINATAL | T39: 1 | U39: 0 | V39: 1
A40: TOTALES | B40: IPS | C40: PROFESIONALES INDEPENDIENTES | E40: TRANSPORTE ESPECIAL | G40: OBJETO SOCIAL DIFERENTE | N40: 5 | O40: 103 | P40: INTERVENCION LEGAL Y OPERACIONES DE GUERRA Y SECUELAS | T40: 1 | U40: 1 | V40: 0
N41: 6 | O41: 088 | P41: LAS DEMAS MALFORMACIONES CONGENITAS, DEFORMIDADES Y ANOMALIAS CONGENITAS | T41: 1 | U41: 1 | V41: 0
B42: 1 | C42: 0 | E42: 0 | G42: 0 | N42: 7 | O42: 020 | P42: TUMOR MALIGNO DE LA TRAQUEA, LOS BRONQUIOS Y EL PULMON | T42: 1 | U42: 1 | V42: 0
A43: IPS PUBLICAS | B43: IPS PRIVADAS | C43: SERVICIOS PRESTADOS X PROFESION | N43: 8 | O43: 105 | P43: OTROS ACCIDENTES Y SECUELAS | T43: 1 | U43: 1 | V43: 0
C44: Odontólogos | D44: Médicos | E44: Otros | F44: Total | N44: 9 | O44: 043 | P44: TODAS LAS DEMAS ENFERMEDADES ENDOCRINAS Y NUTRICIONALES | T44: 1 | U44: 0 | V44: 1
N45: 10 | O45: 015 | P45: TUMOR MALIGNO DEL HIGADO | T45: 1 | U45: 0 | V45: 1
A46: 1 | B46: 0 | C46: 0 | D46: 0 | E46: 0 | F46: =C46+D46+E46 -> 0
A48: CAPACIDAD INSTALADA | N48: PORCENTAJE DE EMBARAZOS POR GRUPO EDAD RESIDENCIA HABITUAL DE LA MADRE 2014 | S48: TASAS DE FECUNDIDAD ESPECIFICA POR MIL MUJERES 2014
A49: CAMAS
A50: Adultos | B50: Cuidado Agudo Mental | C50: Cuidado Intensivo Adulto | D50: Cuidado Intensivo Neonatal | E50: Cuidado Intensivo Pediátrico | F50: Cuidado Intermedio Adulto | G50: Cuidado Intermedio Mental | I50: Cuidado Intermedio Neonatal
N51: 10 a 14 AÑOS | P51: 15 a 19 AÑOS | S51: 10 a 14 AÑOS | U51: 15 a 19 AÑOS
N52: No | O52: % | P52: No | Q52: % | S52: No | T52: TASA | U52: No | V52: TASA
A53: 4 | B53: 0 | C53: 0 | D53: 0 | E53: 0 | F53: 0 | G53: 0 | I53: 0 | N53: 2 | O53: 1.666666667 | P53: 41 | Q53: 34.16666667 | S53: 2 | T53: 4.739336493 | U53: 41 | V53: 93.60730594
A54: CAMAS
A55: Cuidado Intermedio Pediátrico | B55: Farmaco- de-pendencia | C55: Obste-tricia | D55: Pediátricas | E55: Quemados Adultos | F55: Quemados Pediátrico | G55: Salud Mental Psiquiatría | I55: TOTAL CAMAS
A58: 0 | B58: 0 | C58: 3 | D58: 3 | E58: 0 | F58: 0 | G58: 0 | I58: =A53+B53+C53+D53+E53+F53+G53+I53+A58+B58+C58+D58+E58+F58+G58 -> 10
A60: SALAS | E60: TOTAL SALAS | N60: INMUNIZACIONES PAI 2014
A61: PARTO | C61: QUIROFANO | N61: POLIOMIELITIS (V.O.P)
A62: 1 | C62: 0 | E62: =A62+C62 -> 1 | N62: Vacunados (Edades) | S62: Refuerzos | T62: Dosis Aplicadas
N63: <1 | O63: 1 | P63: 2 | Q63: 3 | R63: 4 | S63: Otros
A64: TOTAL DE SERVICIOS PRESTADOS SEGÚN LA COMPLEJIDAD | N64: 109 | O64: 2 | P64: 0 | Q64: 0 | R64: 0 | S64: 290 | T64: 638
A65: BAJA | C65: MEDIA | E65: ALTA
A66: 61 | C66: 7 | E66: 0 | N66: DIFTERIA, TOSFERINA Y TÉTANO (D.P.T)
N67: Vacunados (Edades) | S67: Refuerzos | T67: Dosis
A68: TOTAL DE AMBULANCIAS HABILITADAS SEGÚN TIPO Y MODALIDAD | N68: <1 | O68: 1 | P68: 2 | Q68: 3 | R68: 4 | S68: Otros | T68: Aplicadas
A69: TIPO | C69: MODALIDAD | F69: TOTAL GENERAL | N69: 110 | O69: 2 | P69: 0 | Q69: 0 | R69: 0 | S69: 290 | T69: 651
A70: BASICA | B70: MEDICADA | C70: AEREA | D70: TERRESTRE | E70: FLUVIAL | H70: ** Fuente: REPS-Minsalud julio 2015
A71: 2 | B71: 0 | C71: 0 | D71: 2 | E71: 0 | F71: =SUM(C71:E71) -> 2 | N71: TUBERCULOSIS (B.C.G)
A72: 10 PRIMERAS CAUSAS DE HOSPITALIZACION 2013 | N72: Vacunados (Edades) | S72: Otros | T72: Dosis Aplicadas
A73: ORDEN | B73: CODIGO CIE-10 | C73: CAUSA | F73: TOTAL GENERAL | G73: % | H73: HOMBRES | J73: MUJERES | N73: <1 | O73: 1
N74: 49 | O74: 0 | S74: 0 | T74: 49
A75: 1 | B75: J219 | C75: BRONQUIOLITIS AGUDA NO ESPECIFICADA | F75: 27 | G75: 6.108597285 | H75: 11 | J75: 16
A76: 2 | B76: L031 | C76: CELULITIS DE OTRAS PARTES DE LOS MIEMBROS | F76: 23 | G76: 5.20361991 | H76: 13 | J76: 10 | N76: TRIPLE VIRAL - S. R. P.
A77: 3 | B77: O800 | C77: PARTO UNICO ESPONTANEO PRESENTACION CEFALICA DE VERTICE | F77: 15 | G77: 3.393665158 | H77: 0 | J77: 15 | N77: Vacunados (Edades) | S77: Refuerzos | T77: Dosis Aplicadas
A78: 4 | B78: N390 | C78: INFECCION DE VIAS URINARIAS SITIO NO ESPECIFICADO | F78: 15 | G78: 3.393665158 | H78: 3 | J78: 12 | N78: 1 | O78: 2 | P78: 3 | Q78: 4 | R78: Ref. | S78: Otros
A79: 5 | B79: J159 | C79: NEUMONIA BACTERIANA NO ESPECIFICADA | F79: 13 | G79: 2.941176471 | H79: 8 | J79: 5 | N79: 130 | O79: 0 | P79: 0 | Q79: 0 | R79: 146 | S79: 1 | T79: 277
A80: 6 | B80: L030 | C80: CELULITIS DE LOS DEDOS DE LA MANO Y DEL PIE | F80: 11 | G80: 2.488687783 | H80: 6 | J80: 5
A81: 7 | B81: R104 | C81: OTROS DOLORES ABDOMINALES Y LOS NO ESPECIFICADOS | F81: 8 | G81: 1.809954751 | H81: 4 | J81: 4 | N81: AGUA POTABLE 2013
A82: 8 | B82: S019 | C82: HERIDA DE LA CABEZA PARTE NO ESPECIFICADA | F82: 6 | G82: 1.357466063 | H82: 4 | J82: 2 | P82: NUMEROS ACUEDUCTOS | R82: COBERTURA ACUEDUCTOS CON AGUA POTABLE (%) | T82: COBERTURAS VIVIENDAS CON AGUA POTABLE (%)
A83: 9 | B83: L97X | C83: ULCERA DEL MIEMBRO INFERIOR NO CLASIFICADA EN OTRA PARTE | F83: 6 | G83: 1.357466063 | H83: 2 | J83: 4
A84: 10 | B84: J180 | C84: BRONCONEUMONIA NO ESPECIFICADA | F84: 6 | G84: 1.357466063 | H84: 4 | J84: 2
A85: 11 | C85: OTROS | F85: 312 | G85: 70.58823529 | H85: 87 | J85: 225 | N85: Urbano | P85: 1 | R85: 0 | T85: 0
A86: TOTALES | F86: 442 | G86: 100 | H86: 142 | J86: 300 | N86: Rural | P86: 15 | R86: 0 | T86: 0
A87: 10 PRIMERAS CAUSAS DE CONSULTA 2013 | N87: Total Municipal | P87: 16 | R87: 0 | T87: 0
A88: ORDEN | B88: CODIGO CIE-10 | C88: CAUSA | F88: TOTAL GENERAL | G88: % | H88: HOMBRES | J88: MUJERES | N88: CERTIFACION EN AGUA POTABLE | O88: INDICE RIESGO CALIDAD DEL AGUA POTABLE - IRCA- (a) | P88: INDICE RIESGO DE ABASTECIMIENTO MUNICIPAL - IRABA- (b) | R88: BUENAS PRACTICAS SANTIARIAS © | T88: CERTIFICAION SANITARIA MUNICIPAL EN AGUA POTABLE ©
A90: 1 | B90: I10X | C90: HIPERTENSION ESENCIAL (PRIMARIA) | F90: 4666 | G90: 11.09736955 | H90: 1568 | J90: 3098
A91: 2 | B91: K051 | C91: GINGIVITIS CRONICA | F91: 1952 | G91: 4.642534367 | H91: 721 | J91: 1231
A92: 3 | B92: K021 | C92: CARIES DE LA DENTINA | F92: 1656 | G92: 3.9385435 | H92: 756 | J92: 900 | N92: Urbano | O92: 9.8 | P92: 34.7 | R92: 32 | T92: 21.44
A93: 4 | B93: N390 | C93: INFECCION DE VIAS URINARIAS SITIO NO ESPECIFICADO | F93: 923 | G93: 2.195214765 | H93: 163 | J93: 760 | N93: Rural | O93: 26.5 | P93: 74.1 | R93: 95.6 | T93: 56.75
A94: 5 | B94: J00X | C94: RINOFARINGITIS AGUDA (RESFRIADO COMUN) | F94: 638 | G94: 1.51738572 | H94: 252 | J94: 386 | N94: Total | O94: 11 | P94: 38.3 | R94: 58.4 | T94: 30.68
A95: 6 | B95: B829 | C95: PARASITOSIS INTESTINAL SIN OTRA ESPECIFICACION | F95: 508 | G95: 1.208200542 | H95: 229 | J95: 279 | N95: PROYECTOS DE INVERSION (En pesos)
A96: 7 | B96: K297 | C96: GASTRITIS NO ESPECIFICADA | F96: 498 | G96: 1.184417067 | H96: 167 | J96: 331 | Q96: 2012 | S96: 2013 | U96: 2014
A97: 8 | B97: M545 | C97: LUMBAGO NO ESPECIFICADO | F97: 454 | G97: 1.079769776 | H97: 198 | J97: 256 | N97: ADULTO MAYOR | Q97: 50000000 | S97: 22465100 | U97: 220000000
A98: 9 | B98: N760 | C98: VAGINITIS AGUDA | F98: 413 | G98: 0.9822575275 | H98: 0 | J98: 413 | N98: DOTACION DISCAPACIDAD | U98: 2747752
A99: 10 | B99: R42X | C99: MAREO Y DESVANECIMIENTO | F99: 378 | G99: 0.8990153641 | H99: 142 | J99: 236 | N99: APS - SALUD CONTIGO | S99: 48600000 | U99: 35000000
A100: 11 | C100: OTROS | F100: 29960 | G100: 71.25529182 | H100: 9604 | J100: 20356 | N100: COFINANCIACION REG. SUBSIDIADO | Q100: 354874895.8 | S100: 304786871 | U100: 402349527
A101: TOTALES | F101: 42046 | G101: 100 | H101: 13800 | J101: 28246 | N101: SSR | Q101: 1055663
A102: 10 PRIMERAS CAUSAS DE URGENCIAS 2013 | N102: PAI | Q102: 2709000
A103: ORDEN | B103: CODIGO CIE-10 | C103: CAUSA | F103: TOTAL GENERAL | G103: % | H103: HOMBRES | J103: MUJERES | N103: VECTORES | Q103: 386400
N104: ESTERILIZACION MASCOTAS | Q104: 0
A105: 1 | B105: O800 | C105: PARTO UNICO ESPONTANEO PRESENTACION CEFALICA DE VERTICE | F105: 109 | G105: 13.81495564 | H105: 0 | J105: 109 | N105: VACUNA ANTIRRABICA | Q105: 1562000
A106: 2 | B106: J219 | C106: BRONQUIOLITIS AGUDA NO ESPECIFICADA | F106: 40 | G106: 5.069708492 | H106: 16 | J106: 24 | N106: INFRAESTRUCTURA
A107: 3 | B107: R101 | C107: DOLOR ABDOMINAL LOCALIZADO EN PARTE SUPERIOR | F107: 34 | G107: 4.309252218 | H107: 10 | J107: 24 | N107: DOTACION EQUIPOS BIOMEDICOS
A108: 4 | B108: O200 | C108: AMENAZA DE ABORTO | F108: 28 | G108: 3.548795944 | H108: 0 | J108: 28 | N108: ESTAMPILLAS PROHOSPITALES | Q108: 28723000 | S108: 4966548 | U108: 13247116
A109: 5 | B109: R11X | C109: NAUSEA Y VOMITO | F109: 27 | G109: 3.422053232 | H109: 18 | J109: 9 | N109: EQUIPAMIENTO
A110: 6 | B110: A09X | C110: DIARREA Y GASTROENTERITIS DE PRESUNTO ORIGEN INFECCIOSO | F110: 26 | G110: 3.29531052 | H110: 19 | J110: 7 | N110: TELEMEDICINA
A111: 7 | B111: J459 | C111: ASMA NO ESPECIFICADA | F111: 23 | G111: 2.915082383 | H111: 11 | J111: 12 | N111: AMBULANCIA
A112: 8 | B112: I10X | C112: HIPERTENSION ESENCIAL (PRIMARIA) | F112: 22 | G112: 2.78833967 | H112: 4 | J112: 18 | N112: TOTALES | Q112: =SUM(Q97:R111) -> 439310958.8 | S112: =SUM(S97:T111) -> 380818519 | U112: =SUM(U97:V111) -> 673344395
A113: 9 | B113: J449 | C113: ENFERMEDAD PULMONAR OBSTRUCTIVA CRONICA NO ESPECIFICADA | F113: 19 | G113: 2.408111534 | H113: 10 | J113: 9 | N113: PROYECTOS DE INVERSION (En Cantidad)
A114: 10 | B114: R103 | C114: DOLOR LOCALIZADO EN OTRAS PARTES INFERIORES DEL ABDOMEN | F114: 16 | G114: 2.027883397 | H114: 1 | J114: 15 | N114: PROGRAMA AEREO (No brigadas)
A115: 11 | C115: OTROS | F115: 445 | G115: 56.40050697 | H115: 191 | J115: 254 | N115: ASESORIA Y ASISTENCIA TECNICA | Q115: 12
A116: TOTALES | F116: 789 | G116: 100 | H116: 280 | J116: 509 | N116: CENTROS AMIGABLES JOVENES | S116: SI

Sheet BURITICA
C4: ALCALDE | E4: CARLOS MARIO VARELA RAMÍREZ
C5: DIRECTOR LOCAL DE SALUD | E5: JHON ALBEIRO USUGA OQUENDO
C7: CERTIFICACION | E7: RANKING | F7: CATEGORIA MUNICIPAL
C8: SI | E8: 50 | F8: 6a.
C9: TOTAL CORREGIMIENTOS | E9: 5 | F9: TOTAL VEREDAS | I9: 36
A10: CARACTERISTICAS DEMOGRAFICAS | N10: VIGILANCIA DE LA SALUD PUBLICA - AÑO 2014
A11: POBLACION 2015
A12: TOTAL | B12: HOMBRES | C12: MUJERES | D12: CABECERA | E12: RESTO | N12: MORTALIDAD CANCER CUELLO UTERINO | S12: MORTALIDAD MATERNA
A13: 6601 | B13: 3495 | C13: 3106 | D13: 1551 | E13: 5050 | N13: # Casos | O13: Tasa x cienmil Mujeres | S13: # Casos | T13: Tasa x cienmil Nacidos vivos
A14: POR GRUPOS DE EDAD | N14: 0 | O14: 0 | S14: 0 | T14: 0
A15: 0 - 4 AÑOS | B15: 5 - 9 AÑOS | C15: 10 - 14 AÑOS | D15: 15 - 19 AÑOS | E15: 20 - 59 AÑOS | F15: > 60 AÑOS
A16: 686 | B16: 651 | C16: 628 | D16: 631 | E16: 3310 | F16: 695 | N16: MORTALIDAD INFANTIL | S16: MORTALIDAD PERINATAL
N17: # Casos | O17: Tasa x cienmil Nacidos vivos | S17: # Casos | T17: Tasa x cienmil Nacidos vivos
A18: DESPLAZADOS 2015 (a marzo) | D18: INDIGENAS FEB 2014 | G18: ROM | I18: AFRO | N18: 2 | O18: 18.69158879 | S18: 2 | T18: 18.69158879
A19: TOTAL | B19: HOMBRES | C19: MUJERES | D19: TOTAL | E19: HOMBRES | F19: MUJERES
A20: 2720 | B20: 1332.8 | C20: 1387.2 | D20: 0 | E20: 0 | F20: 0 | N20: MORTALIDAD VIH SIDA | S20: MORTALIDAD TUBERCULOSIS
A21: POBLACION TOTAL | B21: Afiliados al regimen Subsidiado * | D21: % De Aseguramiento al Regimen Subsidiado * | F21: Afiliados al Regimen Contributivo BDUA * | H21: % De Aseguramiento al Regimen Contributivo * | N21: # Casos | O21: Tasa x cienmil Habitantes | S21: # Casos | T21: Tasa x cienmil Habitantes
N22: 0 | O22: 0 | S22: 0 | T22: 0
N24: MORTALIDAD INFARTO AL MIOCARDIO | S24: MORTALIDAD < 5 AÑOS
A25: 6601 | B25: 5805 | D25: 87.94122103 | F25: 2533 | H25: 38.37297379 | N25: # Casos | O25: Tasa x cienmil Habitantes | S25: # Casos | T25: Tasa x cienmil Niños
A26: NBI (pobre) 2012 | H26: * Agosto 2015 | N26: 1 | O26: 15.03081317 | S26: 2 | T26: 287.7697842
A27: Total | C27: Cabecera | E27: Resto
A28: Prop (%) | B28: cve (%) | C28: Prop (%) | D28: cve (%) | E28: Prop (%) | F28: cve (%)
A29: 70.30227485 | B29: - | C29: 27.57955641 | D29: - | E29: 78.53558818 | F29: - | N29: REGISTRO POBLACIONAL DE CANCER 2012
N30: Numero de casos registrados | P30: HOMBRES | Q30: MUJERES | R30: TOTAL
A31: PRESTACION DE SERVICIOS DE SALUD ** | P31: 2 | Q31: 4 | R31: =SUM(P31:Q31) -> 6
A32: EMPRESAS SOCIALES DEL ESTADO
A33: INSTITUCION PRESTADORA DE SERVICIOS DE SALUD | F33: DIRECTOR / GERENTE | N33: 10 PRIMERAS CAUSAS DE MORTALIDAD 2014
A34: ESE HOSPITAL SAN ANTONIO | F34: LILIANA MARIA GALLEGO MORENO | N34: ORDEN | O34: CODIGO 105 CIE-10 | P34: CAUSA | T34: TOTAL GENERAL | U34: HOMBRES | V34: MUJERES | W34: SIN DATO
N36: 1 | O36: 101 | P36: AGRESIONES (HOMICIDIOS) Y SECUELAS | T36: 5 | U36: 5 | V36: 0
N37: 2 | O37: 055 | P37: ENFERMEDADES CEREBROVASCULARES | T37: 3 | U37: 1 | V37: 2
N38: 3 | O38: 060 | P38: ENFERMEDADES CRONICAS DE LAS VIAS RESPIRATORIAS INFERIORES | T38: 3 | U38: 2 | V38: 1
A39: PRESTADORES DE SERVICIOS DE SALUD | N39: 4 | O39: 090 | P39: ACCIDENTES DE TRANSPORTE DE MOTOR Y SECUELAS | T39: 2 | U39: 2 | V39: 0
A40: TOTALES | B40: IPS | C40: PROFESIONALES INDEPENDIENTES | E40: TRANSPORTE ESPECIAL | G40: OBJETO SOCIAL DIFERENTE | N40: 5 | O40: 089 | P40: SIGNOS, SINTOMAS Y AFECCIONES MAL DEFINIDAS | T40: 2 | U40: 2 | V40: 0
N41: 6 | O41: 091 | P41: OTROS ACCIDENTES DE TRANSPORTE TERRESTRE | T41: 2 | U41: 2 | V41: 0
B42: 1 | C42: 0 | E42: 0 | G42: 0 | N42: 7 | O42: 051 | P42: ENFERMEDADES ISQUEMICAS DEL CORAZON | T42: 2 | U42: 1 | V42: 1
A43: IPS PUBLICAS | B43: IPS PRIVADAS | C43: SERVICIOS PRESTADOS X PROFESION | N43: 8 | O43: 105 | P43: OTROS ACCIDENTES Y SECUELAS | T43: 2 | U43: 1 | V43: 1
C44: Odontólogos | D44: Médicos | E44: Otros | F44: Total | N44: 9 | O44: 099 | P44: ENVENENAMIENTO ACCIDENTAL POR Y EXPOSICION A SUSTANCIAS NOCIVAS | T44: 1 | U44: 1 | V44: 0
N45: 10 | O45: 059 | P45: NEUMONIA | T45: 1 | U45: 0 | V45: 1
A46: 1 | B46: 0 | C46: 0 | D46: 0 | E46: 0 | F46: =C46+D46+E46 -> 0
A48: CAPACIDAD INSTALADA | N48: PORCENTAJE DE EMBARAZOS POR GRUPO EDAD RESIDENCIA HABITUAL DE LA MADRE 2014 | S48: TASAS DE FECUNDIDAD ESPECIFICA POR MIL MUJERES 2014
A49: CAMAS
A50: Adultos | B50: Cuidado Agudo Mental | C50: Cuidado Intensivo Adulto | D50: Cuidado Intensivo Neonatal | E50: Cuidado Intensivo Pediátrico | F50: Cuidado Intermedio Adulto | G50: Cuidado Intermedio Mental | I50: Cuidado Intermedio Neonatal
N51: 10 a 14 AÑOS | P51: 15 a 19 AÑOS | S51: 10 a 14 AÑOS | U51: 15 a 19 AÑOS
N52: No | O52: % | P52: No | Q52: % | S52: No | T52: TASA | U52: No | V52: TASA
A53: 2 | B53: 0 | C53: 0 | D53: 0 | E53: 0 | F53: 0 | G53: 0 | I53: 0 | N53: 1 | O53: 0.8547008547 | P53: 39 | Q53: 33.33333333 | S53: 1 | T53: 3.278688525 | U53: 39 | V53: 133.5616438
A54: CAMAS
A55: Cuidado Intermedio Pediátrico | B55: Farmaco- de-pendencia | C55: Obste-tricia | D55: Pediátricas | E55: Quemados Adultos | F55: Quemados Pediátrico | G55: Salud Mental Psiquiatría | I55: TOTAL CAMAS
A58: 0 | B58: 0 | C58: 2 | D58: 2 | E58: 0 | F58: 0 | G58: 0 | I58: =A53+B53+C53+D53+E53+F53+G53+I53+A58+B58+C58+D58+E58+F58+G58 -> 6
A60: SALAS | E60: TOTAL SALAS | N60: INMUNIZACIONES PAI 2014
A61: PARTO | C61: QUIROFANO | N61: POLIOMIELITIS (V.O.P)
A62: 0 | C62: 0 | E62: =A62+C62 -> 0 | N62: Vacunados (Edades) | S62: Refuerzos | T62: Dosis Aplicadas
N63: <1 | O63: 1 | P63: 2 | Q63: 3 | R63: 4 | S63: Otros
A64: TOTAL DE SERVICIOS PRESTADOS SEGÚN LA COMPLEJIDAD | N64: 117 | O64: 0 | P64: 0 | Q64: 0 | R64: 0 | S64: 252 | T64: 613
A65: BAJA | C65: MEDIA | E65: ALTA
A66: 24 | C66: 10 | E66: 0 | N66: DIFTERIA, TOSFERINA Y TÉTANO (D.P.T)
N67: Vacunados (Edades) | S67: Refuerzos | T67: Dosis
A68: TOTAL DE AMBULANCIAS HABILITADAS SEGÚN TIPO Y MODALIDAD | N68: <1 | O68: 1 | P68: 2 | Q68: 3 | R68: 4 | S68: Otros | T68: Aplicadas
A69: TIPO | C69: MODALIDAD | F69: TOTAL GENERAL | N69: 119 | O69: 0 | P69: 0 | Q69: 0 | R69: 0 | S69: 252 | T69: 609
A70: BASICA | B70: MEDICADA | C70: AEREA | D70: TERRESTRE | E70: FLUVIAL | H70: ** Fuente: REPS-Minsalud julio 2015
A71: 3 | B71: 0 | C71: 0 | D71: 3 | E71: 0 | F71: =SUM(C71:E71) -> 3 | N71: TUBERCULOSIS (B.C.G)
A72: 10 PRIMERAS CAUSAS DE HOSPITALIZACION 2013 | N72: Vacunados (Edades) | S72: Otros | T72: Dosis Aplicadas
A73: ORDEN | B73: CODIGO CIE-10 | C73: CAUSA | F73: TOTAL GENERAL | G73: % | H73: HOMBRES | J73: MUJERES | N73: <1 | O73: 1
N74: 43 | O74: 3 | S74: 0 | T74: 46
A75: 1 | B75: O800 | C75: PARTO UNICO ESPONTANEO PRESENTACION CEFALICA DE VERTICE | F75: 36 | G75: 9.917355372 | H75: 0 | J75: 36
A76: 2 | B76: N390 | C76: INFECCION DE VIAS URINARIAS SITIO NO ESPECIFICADO | F76: 17 | G76: 4.683195592 | H76: 5 | J76: 12 | N76: TRIPLE VIRAL - S. R. P.
A77: 3 | B77: J441 | C77: ENFERMEDAD PULMONAR OBSTRUCTIVA CRONICA CON EXACERBACION AGUDA NO ESPECIFICADA | F77: 14 | G77: 3.856749311 | H77: 9 | J77: 5 | N77: Vacunados (Edades) | S77: Refuerzos | T77: Dosis Aplicadas
A78: 4 | B78: R104 | C78: OTROS DOLORES ABDOMINALES Y LOS NO ESPECIFICADOS | F78: 13 | G78: 3.581267218 | H78: 4 | J78: 9 | N78: 1 | O78: 2 | P78: 3 | Q78: 4 | R78: Ref. | S78: Otros
A79: 5 | B79: J459 | C79: ASMA NO ESPECIFICADA | F79: 10 | G79: 2.754820937 | H79: 7 | J79: 3 | N79: 126 | O79: 0 | P79: 0 | Q79: 0 | R79: 132 | S79: 3 | T79: 261
A80: 6 | B80: J189 | C80: NEUMONIA NO ESPECIFICADA | F80: 9 | G80: 2.479338843 | H80: 4 | J80: 5
A81: 7 | B81: O809 | C81: PARTO UNICO ESPONTANEO SIN OTRA ESPECIFICACION | F81: 8 | G81: 2.203856749 | H81: 0 | J81: 8 | N81: AGUA POTABLE 2013
A82: 8 | B82: O829 | C82: PARTO POR CESAREA SIN OTRA ESPECIFICACION | F82: 7 | G82: 1.928374656 | H82: 0 | J82: 7 | P82: NUMEROS ACUEDUCTOS | R82: COBERTURA ACUEDUCTOS CON AGUA POTABLE (%) | T82: COBERTURAS VIVIENDAS CON AGUA POTABLE (%)
A83: 9 | B83: S069 | C83: TRAUMATISMO INTRACRANEAL NO ESPECIFICADO | F83: 7 | G83: 1.928374656 | H83: 5 | J83: 2
A84: 10 | B84: J180 | C84: BRONCONEUMONIA NO ESPECIFICADA | F84: 6 | G84: 1.652892562 | H84: 1 | J84: 5
A85: 11 | C85: OTROS | F85: 236 | G85: 65.0137741 | H85: 103 | J85: 133 | N85: Urbano | P85: 1 | R85: 100 | T85: 100
A86: TOTALES | F86: 363 | G86: 100 | H86: 138 | J86: 225 | N86: Rural | P86: 34 | R86: 0 | T86: 0
A87: 10 PRIMERAS CAUSAS DE CONSULTA 2013 | N87: Total Municipal | P87: 35 | R87: 2.857142857 | T87: 25.4
A88: ORDEN | B88: CODIGO CIE-10 | C88: CAUSA | F88: TOTAL GENERAL | G88: % | H88: HOMBRES | J88: MUJERES | N88: CERTIFACION EN AGUA POTABLE | O88: INDICE RIESGO CALIDAD DEL AGUA POTABLE - IRCA- (a) | P88: INDICE RIESGO DE ABASTECIMIENTO MUNICIPAL - IRABA- (b) | R88: BUENAS PRACTICAS SANTIARIAS © | T88: CERTIFICAION SANITARIA MUNICIPAL EN AGUA POTABLE ©
A90: 1 | B90: I10X | C90: HIPERTENSION ESENCIAL (PRIMARIA) | F90: 4177 | G90: 10.65126479 | H90: 1337 | J90: 2840
A91: 2 | B91: R104 | C91: OTROS DOLORES ABDOMINALES Y LOS NO ESPECIFICADOS | F91: 1484 | G91: 3.784169727 | H91: 506 | J91: 978
A92: 3 | B92: M255 | C92: DOLOR EN ARTICULACION | F92: 1330 | G92: 3.391472868 | H92: 594 | J92: 736 | N92: Urbano | O92: 1 | P92: 38.3 | R92: 13 | T92: 12.06
A93: 4 | B93: M545 | C93: LUMBAGO NO ESPECIFICADO | F93: 981 | G93: 2.501529988 | H93: 563 | J93: 418 | N93: Rural | O93: 96 | P93: 74.3 | R93: 97 | T93: 91.96
A94: 5 | B94: J039 | C94: AMIGDALITIS AGUDA NO ESPECIFICADA | F94: 957 | G94: 2.440330477 | H94: 472 | J94: 485 | N94: Total | O94: 53.1 | P94: 49.1 | R94: 61.3 | T94: 54.76
A95: 6 | B95: J00X | C95: RINOFARINGITIS AGUDA (RESFRIADO COMUN) | F95: 871 | G95: 2.221032232 | H95: 356 | J95: 515 | N95: PROYECTOS DE INVERSION (En pesos)
A96: 7 | B96: K297 | C96: GASTRITIS NO ESPECIFICADA | F96: 856 | G96: 2.182782538 | H96: 276 | J96: 580 | Q96: 2012 | S96: 2013 | U96: 2014
A97: 8 | B97: N390 | C97: INFECCION DE VIAS URINARIAS SITIO NO ESPECIFICADO | F97: 843 | G97: 2.149632803 | H97: 181 | J97: 662 | N97: ADULTO MAYOR | Q97: 100000000 | S97: 36765562 | U97: 37000000
A98: 9 | B98: A09X | C98: DIARREA Y GASTROENTERITIS DE PRESUNTO ORIGEN INFECCIOSO | F98: 839 | G98: 2.139432885 | H98: 424 | J98: 415 | N98: DOTACION DISCAPACIDAD | U98: 2747752
A99: 10 | B99: R51X | C99: CEFALEA | F99: 641 | G99: 1.634536924 | H99: 162 | J99: 479 | N99: APS - SALUD CONTIGO | Q99: 72900000 | S99: 90000000
A100: 11 | C100: OTROS | F100: 26237 | G100: 66.90381477 | H100: 10004 | J100: 16233 | N100: COFINANCIACION REG. SUBSIDIADO | Q100: 257258685.8 | S100: 220948483 | U100: 291674367
A101: TOTALES | F101: 39216 | G101: 100 | H101: 14875 | J101: 24341 | N101: SSR | Q101: 812309
A102: 10 PRIMERAS CAUSAS DE URGENCIAS 2013 | N102: PAI | Q102: 2084515
A103: ORDEN | B103: CODIGO CIE-10 | C103: CAUSA | F103: TOTAL GENERAL | G103: % | H103: HOMBRES | J103: MUJERES | N103: VECTORES | Q103: 386400
N104: ESTERILIZACION MASCOTAS | Q104: 0
A105: 1 | B105: I702 | C105: ATEROSCLEROSIS DE LAS ARTERIAS DE LOS MIEMBROS | F105: 13 | G105: 8.724832215 | H105: 13 | J105: 0 | N105: VACUNA ANTIRRABICA | Q105: 1338000
A106: 2 | B106: R104 | C106: OTROS DOLORES ABDOMINALES Y LOS NO ESPECIFICADOS | F106: 9 | G106: 6.040268456 | H106: 4 | J106: 5 | N106: INFRAESTRUCTURA | S106: 325000000
A107: 3 | B107: O800 | C107: PARTO UNICO ESPONTANEO PRESENTACION CEFALICA DE VERTICE | F107: 6 | G107: 4.026845638 | H107: 0 | J107: 6 | N107: DOTACION EQUIPOS BIOMEDICOS | S107: 175081000
A108: 4 | B108: N390 | C108: INFECCION DE VIAS URINARIAS SITIO NO ESPECIFICADO | F108: 5 | G108: 3.355704698 | H108: 4 | J108: 1 | N108: ESTAMPILLAS PROHOSPITALES | Q108: 31279000 | U108: 46824840
A109: 5 | B109: S069 | C109: TRAUMATISMO INTRACRANEAL NO ESPECIFICADO | F109: 4 | G109: 2.684563758 | H109: 2 | J109: 2 | N109: EQUIPAMIENTO
A110: 6 | B110: O829 | C110: PARTO POR CESAREA SIN OTRA ESPECIFICACION | F110: 4 | G110: 2.684563758 | H110: 0 | J110: 4 | N110: TELEMEDICINA | S110: 54905280
A111: 7 | B111: J459 | C111: ASMA NO ESPECIFICADA | F111: 4 | G111: 2.684563758 | H111: 4 | J111: 0 | N111: AMBULANCIA | S111: 114900000
